Workbook

Sheet Universalização_Redutor
A1: Resolução nº 950/2021 - Artigo 14 | C1: REDUTOR TARIFÁRIO | H1: LIMITADORES
A2: Proret 4.4A - Item 5.2.3 - Penalidade por Descumprimento de Metas de Universalização | C2: CONCESSIONÁRIA | D2: EAC | E2: D46 | H2: T | I2: 0.34 | K2: Proret 2.4 | O2: Dados SAMP | P2: 12/2022 -11/2023
C3: TNR-U | H3: WACC | I3: 0.074252 | K3: DSP 829/2023 - RTP de 2023 | N3: Fornecimento | O3: ReceitaConsumo | P3: 713026029.3
C4: TNR-R | H4: (WACC/1-T) | I4: =I3/(1-I2) -> 0.1125030303 | K4: DSP 829/2023 - RTP de 2023 | O4: ReceitaDemanda | P4: 26812291.24
O5: ReceitaBandeiras | P5: 39996.59
C6: TNR | D6: =3347 -> 3347 | H6: TNR-(2019) | I6: =Q13 -> 1403.603924 | O6: ReceitaUltrapassagemdemanda | P6: 2350713.86
H7: CUSTO U (2023) | I7: 44479.66 | K7: <- Nota Técnica nº 0075/2022–SRD/ANEEL | N7: Uso | O7: ReceitaDemanda | P7: 12661105.51
O8: ReceitaEnergia | P8: 12889023.11
C9: META-URBANO | H9: TNR-(2020) | I9: =Q14+Q20 -> 721.6472618 | O9: ReceitaMensal | P9: 0
C10: META-RURAL | H10: CUSTO U (2023) | I10: =I7 -> 44479.66 | O10: ReceitaUltrapassagemdemanda | P10: 222768.01
C12: META | D12: =9276+1368 -> 10644 | H12: TNR-(2021) | I12: =Q15+Q21 -> 721.6472618 | O12: Meta de ligações (RF nº 1/2023-SFT/ANEEL) - PLpT | R12: REH 2.647/2019
H13: CUSTO U (2023) | I13: =I10 -> 44479.66 | O13: 2019 | P13: 3890 | Q13: =$Q$17*(P13/$P$17) -> 1403.603924
C14: %(TNR /META) | D14: =D6/D12 -> 0.3144494551 | O14: 2020 | P14: 2000 | Q14: =$Q$17*(P14/$P$17) -> 721.6472618
H15: TNR-(2022) | I15: =Q16+Q22 -> 500.1015524 | O15: 2021 | P15: 2000 | Q15: =$Q$17*(P15/$P$17) -> 721.6472618
C16: RP | D16: 0.101777 | E16: <- Valor vigente da data da RTP de 2023 | H16: CUSTO U (2023) | I16: =I13 -> 44479.66 | O16: 2022 | P16: 1386 | Q16: =$Q$17*(P16/$P$17) -> 500.1015524
C17: EOC | D17: 0.524453 | E17: <- Valor vigente da data da RTP de 2023 | P17: =SUM(P13:P16) -> 9276 | Q17: 3347
H18: LIMITADOR (A) | I18: =I4*((I6*I7)+(I9*I10)+(I12*I13)+(I15*I16)) -> 16748711.11
C19: BRL | D19: 1043042084 | K19: =I20*0.02 -> 15360038.55 | O19: Meta de ligações (RF nº 1/2023-SFT/ANEEL) - MLpA
H20: Faturamento da Distribuidora | I20: =SUM(P3:P10) -> 768001927.6 | K20: <- Dados do SAMP, sem tributos no período entre dezembro/2022 a novembro/2023, anterior ao Despacho (4.842/2023) | O20: 2020 | Q20: 0
O21: 2021 | Q21: 0
H22: LIMITADOR (B) | I22: =I20*0.02 -> 15360038.55 | K22: <- Ajuste no limitador tendo em vista que a penalidade abarca 4 anos, conforme previsto em lei 10.438/02. | O22: 2022 | Q22: 0
P23: =SUM(P20:P22) -> 0 | Q23: 0
H24: Penalidade | I24: =MIN(I18,I22,D26) -> 15360038.55 | K24: <- Valor total da penalização - base (dez/2023)
C26: REDUTOR | D26: =(D6/D12)*D16*D17*D19 -> 17506885.74
K28: Atualização para 2024
C29: Nº PARCELAS (N) | D29: 5 | E29: <- Ciclo de fiscalização | H29: RTP 2024 - Parcela 1/5 | I29: =$I$24/$D$29 -> 3072007.71 | K29: =I29*Índices!F433/Índices!F421 -> 3406301.864
H30: RTA 2025 - Parcela 2/5 | I30: =$I$24/$D$29 -> 3072007.71
H31: RTA 2026 - Parcela 3/5 | I31: 3072007.71
H32: RTA 2027 - Parcela 4/5 | I32: 3072007.71
H33: RTA 2028 - Parcela 5/5 | I33: 3072007.71
A44: Referências
A45: DSP 4.842/2023 e DSP 1.729/2024: Processo SIC 48500.000774/2023-21
A46: SAMP
A47: REH 2.647/2019 - Plano de Metas
A48: DSP 829/2023
A49: Nota Técnica nº 0075/2022–SRD/ANEEL, de 01/12/2022 (48554.002869/2022)
A50: Lei 10.438/2002

Sheet CAPA
B1: SPARTA | C1: 18/10/2024 14h15min | R1: DF | S1: Sudeste/Centro Oeste
B2: Helenístico LX | C2: 0.94 | M2: =C23 -> 146 | N2: =C22 -> 26
C3: Macro Ver.
C4: 5.03
B6: EAC | L6: CodigoSamp | M6: Empresa | N6: Nome Completo | O6: IdSgtAg | P6: CodigoSamp | Q6: Supridora/suprida | R6: Financeiro 243 (TUSD) | S6: Databse Fin. 243 | T6: Contrato de Concessão | U6: Data Aditivo (Cont Novo) | V6: Cidade Sede | W6: CNPJ | X6: Novo/Antigo
B7: =VLOOKUP(B6,TabEmpresas[],2,FALSE) -> Energisa Acre - Distribuidora de Energia S.A | C7: Reajuste | G7: Últ. Atualização | L7: 7019 | M7: Amazonas Energia | N7: Amazonas Energia S.A. | O7: 102 | P7: 7019 | Q7: NÃO SUPRIDA | T7: 1/2019 | U7: 42579 | V7: Manaus - AM | W7: 02.341.467/0001-20 | X7: N
B8: CÓDIGO DA EMPRESA | C8: ="D" & TEXT(C23-100,"00") -> D46 | F8: Info iniciais | G8: 2024-11-27T12:03:26 | L8: 31 | M8: CEA | N8: Companhia de Eletricidade do Amapá | O8: 107 | P8: 31 | Q8: NÃO SUPRIDA | T8: 01/2021 | U8: 42606 | V8: Macapá - AP | W8: 05.965.546/0001-09 | X8: N
B9: Data do Reajuste/Revisão Anterior | C9: 45273 | F9: Energia do ano anterior (CM compra, MWh Mercado, R$ Mercado) | L9: 5707 | M9: CEEE-D | N9: Companhia Estadual de Distribuição de Energia Elétrica | O9: 110 | P9: 5707 | Q9: NÃO SUPRIDA | T9: 81/1999 | U9: 42347 | V9: Porto Alegre - RS | W9: 08.467.115/0001-00 | X9: N
B10: Data de Reajuste/Revisão em Processamento | C10: 45639 | F10: Perda de RB /Perdas Regulatórias /TUSDgONS-RB | L10: 5697 | M10: Celesc-Dis | N10: Celesc Distribuição S.A. | O10: 111 | P10: 5697 | Q10: NÃO SUPRIDA | T10: 56/1999 | U10: 42347 | V10: Florianópolis - SC | W10: 08.336.783/0001-90 | X10: N
F11: Financeiros ano anterior (CVA 5º dia útil, RTE restante) | L11: 4950 | M11: Cemig-D | N11: Cemig Distribuição S.A. | O11: 118 | P11: 4950 | Q11: NÃO SUPRIDA | T11: 3/1997 | U11: 42359 | V11: Belo Horizonte - MG | W11: 06.981.180/0001-16 | X11: N
F12: Encargos ano anterior (não RTE) | L12: 103 | M12: CHESP | N12: Companhia Hidroelétrica São Patrício | O12: 123 | P12: 103 | Q12: SUPRIDA | T12: 44/1999 | U12: 42347 | V12: Ceres - GO | W12: 01.377.555/0001-10 | X12: N
F13: Dados da Revisão, Fator X e DecFec | L13: 82 | M13: Cocel | N13: Companhia Campolarguense de Energia | O13: 128 | P13: 82 | Q13: SUPRIDA | T13: 27/1998 | U13: 42347 | V13: Campo Largo - PR | W13: 75.805.895/0001-30 | X13: N
F14: Previsão de Subsidios dos Processos Anteriores | L14: 2904 | M14: Cooperaliança | N14: Cooperativa Aliança | O14: 131 | P14: 2904 | Q14: SUPRIDA | T14: 145/2002 | U14: 42347 | V14: Iraça - SC | W14: 83.647.990/0001-81 | X14: N
B15: Período de Referencia final | C15: =DATE(YEAR($C$10),MONTH($C$10)-1,1) -> 45597 | F15: Conexão ano anterior | L15: 2866 | M15: Copel-Dis | N15: Copel Distribuição S.A. | O15: 132 | P15: 2866 | Q15: NÃO SUPRIDA | T15: 46/1999 | U15: 42347 | V15: Curitiba - PR | W15: 04.368.898/0001-06 | X15: N
B16: Período de Referencia inicial | C16: =DATE(YEAR($C$10)-1,MONTH($C$10),1) -> 45261 | F16: Energia (CCEAR, Bil., Itaipu) | G16: 2024-11-18T16:43:11 | L16: 63 | M16: CPFL Paulista | N16: Companhia Paulista de Força e Luz | O16: 136 | P16: 63 | Q16: NÃO SUPRIDA | T16: 14/1997 | V16: Campinas - SP | W16: 33.050.196/0001-88 | X16: A
B17: Índice IGPM na data Revisão/Reajuste | C17: =VLOOKUP(C15,Índices!$B$7:$F$500,2,FALSE) -> 1179.494 | F17: CCEAR | L17: 2937 | M17: CPFL Piratininga | N17: Companhia Piratininga de Força e Luz | O17: 135 | P17: 2937 | Q17: NÃO SUPRIDA | T17: 9/2002 | V17: Sorocaba - SP | W17: 04.172.213/0001-51 | X17: A
B18: Índice IPCA na data Revisão/Reajuste | C18: =VLOOKUP(C15,Índices!$B$7:$F$500,3,FALSE) -> 7047.84 | L18: 1000041 | M18: CPFL Santa Cruz | N18: Companhia Jaguari de Energia | O18: 166 | P18: 1000041 | Q18: NÃO SUPRIDA | T18: 15/1999 | U18: 42347 | V18: Jaguariúna - SP | W18: 53.859.112/0001-69 | X18: N
B19: IGPM para o período de Referência | C19: =VLOOKUP(DATE(YEAR($C$10),MONTH($C$10)-1,1),Índices!$B$7:$F$500,2,FALSE)/VLOOKUP(DATE(YEAR($C$9),MONTH($C$9)-1,1),Índices!$B$7:$F$500,2,FALSE)-1 -> 0.05706949629 | F19: Itaipu (Energia, Transporte, MUST) | L19: 87 | M19: DCELT | N19: Distribuidora Catarinense de Energia Elétrica Ltda | O19: 158 | P19: 87 | Q19: NÃO SUPRIDA | T19: 50/1999 | U19: 42353 | V19: Xanxerê - SC | W19: 83.855.973/0001-30 | X19: N
B20: IPCA para o período de Referência | C20: =VLOOKUP(DATE(YEAR(C10),MONTH(C10)-1,1),Índices!$B$7:$F$500,3,FALSE)/VLOOKUP(DATE(YEAR($C$9),MONTH($C$9)-1,1),Índices!$B$7:$F$500,3,FALSE)-1 -> 0.04636443943 | F20: Cotas Lei/Angra | L20: 95 | M20: Demei | N20: Departamento Municipal de Energia de Ijuí | O20: 138 | P20: 95 | Q20: SUPRIDA | T20: 85/2000 | U20: 42347 | V20: Ijuí - RS | W20: 95.289.500/0001-00 | X20: N
B21: Dados Gerenciais | F21: Encargos DRP | G21: 2024-10-18T15:38:16 | L21: 51 | M21: DME-D | N21: DME Distribuição S.A. | O21: 139 | P21: 51 | Q21: NÃO SUPRIDA | T21: 49/1999 | U21: 42347 | V21: Poços de Caldas - MG | W21: 23.664.303/0001-04 | X21: N
B22: IdAgente | C22: =VLOOKUP(B6,TabEmpresas[],4,FALSE) -> 26 | F22: Indicadores Econômicos / Dólar | G22: 2024-11-08T15:37:30 | L22: 26 | M22: EAC | N22: Energisa Acre - Distribuidora de Energia S.A | O22: 146 | P22: 26 | Q22: NÃO SUPRIDA | T22: 3/2018 | U22: 42579 | V22: Rio Branco - AC | W22: 04.065.033/0001-70 | X22: N
B23: ID Concessão | C23: =VLOOKUP(B6,TabEmpresas[],3,FALSE) -> 146 | F23: Tudo de Mercado | G23: 2024-11-22T16:49:14 | L23: 6611 | M23: EBO | N23: Energisa Borborema - Distribuidora de Energia S.A | O23: 140 | P23: 6611 | Q23: NÃO SUPRIDA | T23: 8/2000 | V23: Campina Grande - PB | W23: 08.826.596/0001-95 | X23: A
F24: Rede Básica e Conexão | G24: 2024-11-27T12:02:15 | L24: 380 | M24: EDP ES | N24: EDP Espírito Santo Distribuição de Energia S.A. | O24: 154 | P24: 380 | Q24: NÃO SUPRIDA | T24: 1/1995 | V24: Vitória - ES | W24: 28.152.650/0001-71 | X24: A
B25: Quadro para vínculos | F25: Histórico de Tarifas B1 Residencial | L25: 391 | M25: EDP SP | N25: EDP São Paulo Distribuição de Energia S.A. | O25: 104 | P25: 391 | Q25: NÃO SUPRIDA | T25: 202/1998 | V25: São Paulo - SP | W25: 02.302.100/0001-06 | X25: A
B26: Descrição | C26: valor | F26: CVA | G26: 2024-11-21T15:40:24 | H26: CVA - D | L26: 86 | M26: EFLUL | N26: Empresa Força e Luz de Urussanga Ltda | O26: 144 | P26: 86 | Q26: SUPRIDA | T26: 25/1999 | U26: 42347 | V26: Urussanga - SC | W26: 86.531.175/0001-40 | X26: N
B27: Tipo de contrato | C27: =IF(VLOOKUP(B6,TabEmpresas[],12,FALSE)="A", "Antigo","Novo") -> Novo | F27: CUSD | G27: 2024-10-15T14:03:44 | L27: 398 | M27: Eletrocar | N27: Centrais Elétricas de Carazinho S.A. | O27: 147 | P27: 398 | Q27: SUPRIDA | T27: 84/2000 | U27: 42347 | V27: Carazinho - RS | W27: 88.446.034/0001-55 | X27: N
B28: Contrato de concessão | C28: =VLOOKUP(B6,TabEmpresas[],8,FALSE) -> 3/2018 | F28: Suprimento: Financeiro de Ultrapassagem e Sobrecontratação | G28: 2024-10-15T14:08:17 | L28: 6585 | M28: EMG | N28: Energisa Minas Gerais - Distribuidora de Energia S.A. | O28: 150 | P28: 6585 | Q28: NÃO SUPRIDA | T28: 40/1999 | U28: 42347 | V28: Cataguases - MG | W28: 19.527.639/0001-58 | X28: N
B29: Número do Processo | C29: 48500.005884/2023-89 | F29: UDEROR | G29: 2024-11-25T09:16:17 | L29: 404 | M29: EMS | N29: Energisa Mato Grossodo Sul - Distribuidora de Energia S.A. | O29: 151 | P29: 404 | Q29: NÃO SUPRIDA | T29: 1/1997 | V29: Campo Grande - MS | W29: 15.413.826/0001-50 | X29: A
B30: Período de Referencia | C30: =TEXT(C16,"mmmm/aaaa")& " a "&TEXT(C15,"mmmm/aaaa") -> dezembro/2023 a novembro/2024 | F30: BMP/RIT | L30: 405 | M30: EMT | N30: Energisa Mato Grosso - Distribuidora de Energia S.A. | O30: 117 | P30: 405 | Q30: NÃO SUPRIDA | T30: 3/1997 | V30: Cuibá - MT | W30: 03.467.321/0001-99 | X30: A
B31: Início da vigênica por extenso | C31: =DAY(LnkTxtDRPData)&" de "&TEXT(LnkTxtDRPData,"mmmmmm")&" de "&YEAR(LnkTxtDRPData) -> 13 de dezembro de 2024 | F31: Componente Q do Fator X | G31: 2024-11-04T09:36:43 | L31: 39 | M31: ENEL CE | N31: Companhia Energética do Ceará | O31: 130 | P31: 39 | Q31: NÃO SUPRIDA | T31: 1/1998 | V31: Fortaleza - CE | W31: 07.047.251/0001-70 | X31: A
B32: CNPJ | C32: =VLOOKUP(B6,TabEmpresas[],11,FALSE) -> 04.065.033/0001-70 | L32: 6072 | M32: ENEL GO | N32: Enel Distribuição Goiás | O32: 112 | P32: 6072 | Q32: NÃO SUPRIDA | T32: 63/2000 | U32: 42367 | V32: Goiânia - GO | W32: 01.543.032/0001-04 | X32: N
B33: Período de competência de previsão de subsídios | C33: =TEXT(EDATE(Aj.Subsidio!G19,12),"mmmmmm")&"/"&TEXT(EDATE(Aj.Subsidio!G19,12),"aaaa")&" a "&TEXT(EDATE(Aj.Subsidio!R19,12),"mmmmmm")&"/"&TEXT(EDATE(Aj.Subsidio!R19,12),"aaaa") -> dezembro/2024 a novembro/2025 | L33: 383 | M33: ENEL RJ | N33: Ampla Energia e Serviços S.A. | O33: 103 | P33: 383 | Q33: NÃO SUPRIDA | T33: 5/1996 | U33: 42808 | V33: Rio de Janeiro - RJ | W33: 33.050.071/0001-58 | X33: N
B34: Período de competência de ajuste de subsídios | C34: =TEXT(Aj.Subsidio!G19,"mmmmmm")&"/"&TEXT(Aj.Subsidio!G19,"aaaa")&" a "&TEXT(Aj.Subsidio!R19,"mmmmmm")&"/"&TEXT(Aj.Subsidio!R19,"aaaa") -> dezembro/2023 a novembro/2024 | L34: 390 | M34: ENEL SP | N34: Eletropaulo Metropolitana Eletricidade de São Paulo S.A. | O34: 148 | P34: 390 | Q34: NÃO SUPRIDA | T34: 162/1998 | V34: São Paulo - SP | W34: 61.695.227/0001-93 | X34: A
B35: Cidade Sede | C35: =VLOOKUP(B6,TabEmpresas[],10,FALSE) -> Rio Branco - AC | L35: 6612 | M35: ENF | N35: Energisa Nova Friburgo - Distribuidora de Energia S.A. | O35: 152 | P35: 6612 | Q35: SUPRIDA | T35: 42/1999 | U35: 42347 | V35: Nova Friburgo - RJ | W35: 33.249.046/0001-06 | X35: N
B36: Receita | C36: =IF(Mercado!D24>2000000000,ROUND(Mercado!D24/1000000000,2)&" bilhões",IF(Mercado!D24>1000000000,ROUND(Mercado!D24/1000000000,2)&" bilhão",IF(Mercado!D24>100000000,ROUND(Mercado!D24/1000000,0)&" milhões",IF(Mercado!D24>10000000,ROUND(Mercado!D24/1000000,1)&" milhões",IF(Mercado!D24>2000000,ROUND(Mercado!D24/1000000,2)&" milhões",IF(Mercado!D24>1000000,ROUND(Mercado!D24/1000000,2)&" milhão",ROUND(Mercado!D24/1000,0)&" mil")))))) -> 939 milhões | L36: 6600 | M36: EPB | N36: Energisa Paraíba - Distribuidora de Energia S.A. | O36: 153 | P36: 6600 | Q36: NÃO SUPRIDA | T36: 19/2001 | V36: João Pessoa - PB | W36: 09.095.183/0001-40 | X36: A
B37: Unidades Consumidoras | C37: =IF(Mercado!E38>2000000,ROUND(Mercado!E38/1000000,2)&" milhões",IF(Mercado!E38>1000000,ROUND(Mercado!E38/1000000,2)&" milhão",IF(Mercado!E38>100000,ROUND(Mercado!E38/1000,0)&" mil",IF(Mercado!E38>10000,ROUND(Mercado!E38/1000,1)&" mil",IF(Mercado!E38>1000,ROUND(Mercado!E38/1000,2)&" mil",Mercado!E38))))) -> 301 mil | L37: 44 | M37: Equatorial AL | N37: Equatorial Alagoas Distribuidora de Energia S.A. | O37: 108 | P37: 44 | Q37: NÃO SUPRIDA | T37: 2/2019 | U37: 42579 | V37: Maceió - AL | W37: 12.272.084/0001-00 | X37: N
B38: Data SAMP | C38: =TEXT(_xlfn.MAXIFS(Mercado_Receita!K:K,Mercado_Receita!B:B,"regular"),"mmmmmm")&"/"&YEAR(_xlfn.MAXIFS(Mercado_Receita!K:K,Mercado_Receita!B:B,"regular")) -> outubro/2024 | L38: 37 | M38: Equatorial MA | N38: Equatorial Maranhão Distribuidora de Energia S.A. | O38: 116 | P38: 37 | Q38: NÃO SUPRIDA | T38: 60/2000 | V38: São Luís - MA | W38: 06.272.793/0001-84 | X38: A
B39: Classificação mercado próprio | C39: >700 | L39: 371 | M39: Equatorial PA | N39: Equatorial Pará Distribuidora de Energia S.A. | O39: 113 | P39: 371 | Q39: NÃO SUPRIDA | T39: 182/1998 | V39: Belém - PA | W39: 04.895.728/0001-80 | X39: A
B40: Data Reunião Pública - RPO | C40: =IF(MOD(LnkTxtDRPData,7)>0,ROUNDDOWN(LnkTxtDRPData/7,0)*7+3,ROUNDDOWN(LnkTxtDRPData/7,0)*7-4)-7 -> 45629 | L40: 38 | M40: Equatorial PI | N40: Equatorial Piauí Distribuidora de Energia S.A. | O40: 119 | P40: 38 | Q40: NÃO SUPRIDA | T40: 1/2018 | U40: 42579 | V40: Teresina - PI | W40: 06.840.748/0001-89 | X40: N
B41: Data limite Atualização Indicadores Econômicos (RPO-8) | C41: =C40-8 -> 45621 | L41: 369 | M41: ERO | N41: Energisa Rondônia - Distribuidora de Energia S.A. | O41: 120 | P41: 369 | Q41: NÃO SUPRIDA | T41: 2/2018 | U41: 42579 | V41: Porto Velho - RO | W41: 05.914.650/0001-66 | X41: N
L42: 6587 | M42: ESE | N42: Energisa Sergipe - Distribuidora de Energia S.A. | O42: 155 | P42: 6587 | Q42: NÃO SUPRIDA | T42: 7/1997 | V42: Aracajú - SE | W42: 13.017.462/0001-63 | X42: A
L43: 1000040 | M43: ESS | N43: Energisa Sul-Sudeste - Distribuidora de Energia S.A. | O43: 165 | P43: 1000040 | Q43: NÃO SUPRIDA | T43: 13/1999 | U43: 42347 | V43: Presidente Prudente - SP | W43: 07.282.377/0001-20 | X43: N
L44: 32 | M44: ETO | N44: Energisa Tocantins Distribuidora de Energia S.A. | O44: 115 | P44: 32 | Q44: NÃO SUPRIDA | T44: 52/1999 | U44: 43805 | V44: Palmas - TO | W44: 25.086.034/0001-71 | X44: N
L45: 83 | M45: Forcel | N45: Força e Luz Coronel Vivida Ltda. | O45: 156 | P45: 83 | Q45: SUPRIDA | T45: 69/1999 | U45: 42347 | V45: Coronel Vivida - PR | W45: 79.850.574/0001-09 | X45: N
L46: 399 | M46: Hidropan | N46: Hidropan Distribuição de Energia S.A. | O46: 157 | P46: 399 | Q46: SUPRIDA | T46: 86/2000 | U46: 42347 | V46: Panambi - RS | W46: 91.982.348/0001-87 | X46: N
B47: Deslocar mercado | C47: Não | L47: 88 | M47: João Cesa | N47: Empresa Força e Luz João Cesa Ltda. | O47: 143 | P47: 88 | Q47: SUPRIDA | T47: 26/1999 | U47: 42347 | V47: Siderópolis - RS | W47: 86.301.124/0001-22 | X47: N
B48: Data de processamento em simulação | L48: 382 | M48: Light | N48: Light Serviços de Eletricidade S.A. | O48: 160 | P48: 382 | Q48: NÃO SUPRIDA | T48: 1/1996 | U48: 42803 | V48: Rio de Janeiro - RJ | W48: 60.444.437/0001-46 | X48: N
L49: 401 | M49: Mux Energia | N49: Muxfeldt Marin E Cia Ltda | O49: 161 | P49: 401 | Q49: SUPRIDA | T49: 87/2000 | U49: 42347 | V49: Tapejara - RS | W49: 97.578.090/0001-34 | X49: N
L50: 5160 | M50: Neoenergia Brasília | N50: Neoenergia Distribuição Brasília S.A. | O50: 109 | P50: 5160 | Q50: NÃO SUPRIDA | T50: 66/1999 | U50: 42347 | V50: Brasília - DF | W50: 07.522.669/0001-92 | X50: N
L51: 47 | M51: Neoenergia Coelba | N51: Companhia de Eletricidadedo Estado da Bahia | O51: 129 | P51: 47 | Q51: NÃO SUPRIDA | T51: 10/1997 | V51: Salvador - BA | W51: 15.139.629/0001-94 | X51: A
L52: 40 | M52: Neoenergia Cosern | N52: Companhia Energetica do Rio Grande do Norte | O52: 133 | P52: 40 | Q52: NÃO SUPRIDA | T52: 8/1997 | V52: Natal - RN | W52: 08.324.196/0001-81 | X52: A
L53: 385 | M53: Neoenergia Elektro | N53: Elektro Redes S.A. | O53: 145 | P53: 385 | Q53: NÃO SUPRIDA | T53: 187/1998 | V53: Campinas - SP | W53: 02.328.280/0001-97 | X53: A
L54: 43 | M54: Neoenergia Pernambuco | N54: Companhia Energética de Pernambuco | O54: 114 | P54: 43 | Q54: NÃO SUPRIDA | T54: 26/2000 | V54: Recife - PE | W54: 10.835.932/0001-08 | X54: A
L55: 400 | M55: Nova Palma | N55: Nova Palma Energia Ltda. | O55: 164 | P55: 400 | Q55: SUPRIDA | T55: 107/2001 | U55: 42347 | V55: Faxinal do Soturno - RS | W55: 89.889.604/0001-44 | X55: N
L56: 1000042 | M56: RGE | N56: RGE Sul Distribuidora de Energia S.A. | O56: 167 | P56: 1000042 | Q56: NÃO SUPRIDA | T56: 12/1997 | V56: São Leopoldo - RS | W56: 02.016.440/0001-62 | X56: A
L57: 370 | M57: Roraima Energia | N57: Roraima Energia S.A. | O57: 105 | P57: 370 | Q57: NÃO SUPRIDA | T57: 4/2018 | U57: 42579 | V57: Boa Vista - RR | W57: 02.341.470/0001-44 | X57: N
L58: 381 | M58: Santa Maria | N58: Empresa Luz e Força Santa Maria S/A | O58: 149 | P58: 381 | Q58: SUPRIDA | T58: 20/1999 | U58: 42347 | V58: Colatina - ES | W58: 27.485.069/0001-09 | X58: N
L59: 46 | M59: Sulgipe | N59: Companhia Sul Sergipana de Eletricidade | O59: 163 | P59: 46 | Q59: SUPRIDA | T59: 91/1999 | U59: 42347 | V59: Estância - SE | W59: 13.255.658/0001-96 | X59: N

Sheet BD_Uderor
K1: Número de lançamentos por item e por competência
A2: Dados SAMP Opção:Cativo Classe:Industrial | K2: Descrição | L2: =DATE(YEAR(LnkTxtDRPData),MONTH(LnkTxtDRPData),1) -> 2024-12-01 | M2: =EDATE(L2,-1) -> 2024-11-01 | N2: =EDATE(M2,-1) -> 2024-10-01 | O2: 2024-09-01 | P2: 2024-08-01 | Q2: 2024-07-01 | R2: 2024-06-01 | S2: 2024-05-01 | T2: 2024-04-01 | U2: 2024-03-01 | V2: 2024-02-01 | W2: 2024-01-01 | X2: 2023-12-01 | Y2: 2023-11-01 | Z2: 2023-10-01 | AA2: 2023-09-01
A3: Competencia | B3: COFINS (R$) | C3: ICMS (R$) | D3: PIS/PASEP (R$) | E3: Receita Bandeiras (R$) | F3: Receita Demanda (R$) | G3: Receita Energia (R$) | H3: PIS_Cofins_% | I3: ICMS_% | K3: =Entrada!P8 -> Serviços Cobráveis | L3: =IF(COUNTIFS($C$30:$C$200000,$K3,$H$30:$H$200000,L$2)=0,"",COUNTIFS($C$30:$C$200000,$K3,$H$30:$H$200000,L$2)) ->  | M3: =IF(COUNTIFS($C$30:$C$200000,$K3,$H$30:$H$200000,M$2)=0,"",COUNTIFS($C$30:$C$200000,$K3,$H$30:$H$200000,M$2)) -> 1 | N3: 1 | O3: 1 | P3: 1 | Q3: 1 | R3: 1 | S3: 1 | T3: 1 | U3: 1 | V3: 1 | W3: 1 | X3: 1 | Y3: 1 | Z3: 1 | AA3: 1
A4: 45170 | B4: 81219.62 | C4: 382060.54 | D4: 17631.73 | F4: 346737.94 | G4: 1147644.47 | H4: 0.05004385929 | I4: 0.1934195527 | K4: =Entrada!P9 -> Arrecadação de convênios ou valores pela fatura | L4: =IF(COUNTIFS($C$30:$C$200000,$K4,$H$30:$H$200000,L$2)=0,"",COUNTIFS($C$30:$C$200000,$K4,$H$30:$H$200000,L$2)) ->  | M4: 1 | N4: 1 | O4: 1 | P4: 1 | Q4: 1 | R4: 1 | S4: 1 | T4: 1 | U4: 1 | V4: 1 | W4: 1 | X4: 1 | Y4: 1 | Z4: 1 | AA4: 1
A5: 45200 | B5: 75073.96 | C5: 355476.34 | D5: 16297.59 | F5: 331680.31 | G5: 1051269.54 | H5: 0.04993532782 | I5: 0.1942708378 | K5: =Entrada!P10 -> Arrecadação de faturas de terceiros por estrutura própria
A6: 45231 | B6: 73544.54 | C6: 347931.37 | D6: 15965.58 | F6: 332278.33 | G6: 1018685.14 | H6: 0.0500502526 | I6: 0.194548426 | K6: =Entrada!P11 -> Veiculação de publicidade
A7: 45261 | B7: 71227.45 | C7: 332314.17 | D7: 15462.56 | F7: 345581.19 | G7: 963031.38 | H7: 0.05017895896 | I7: 0.1923541028 | K7: =Entrada!P12 -> Aluguel ou cessão onerosa de imóveis e espaços físicos
A8: 45292 | B8: 69631.32 | C8: 319751.01 | D8: 15115.88 | F8: 383330.86 | G8: 909855.97 | H8: 0.04991927124 | I8: 0.188345307 | K8: =Entrada!P13 -> Compartilhamento de infraestrutura | M8: 1 | N8: 1 | O8: 1 | P8: 1 | Q8: 1 | R8: 1 | S8: 1 | T8: 1 | U8: 1 | V8: 1 | W8: 1 | X8: 1 | Y8: 1 | Z8: 1 | AA8: 1
A9: 45323 | B9: 53877.66 | C9: 326016.29 | D9: 11695.74 | F9: 398428.86 | G9: 940904.27 | H9: 0.03788349154 | I9: 0.1883482534 | K9: =Entrada!P14 -> Serviços de avaliação técnica e aferição de medidores.
A10: 45352 | B10: 61975.43 | C10: 346563.52 | D10: 13454.17 | F10: 386331.31 | G10: 1018770.82 | H10: 0.04128389037 | I10: 0.1896800509 | K10: =Entrada!P15 -> Operacionalização de serviço de créditos tributários
A11: 45383 | B11: 77357.57 | C11: 367697.09 | D11: 16793.47 | F11: 396625.83 | G11: 1051410.48 | H11: 0.0492967208 | I11: 0.1925232136 | K11: =Entrada!P16 -> Elaboração de projeto, construção, operação, manutenção ou reforma de:
A12: 45413 | B12: 69275.96 | C12: 362471.21 | D12: 15039.2 | F12: 390424.8 | G12: 1034107.63 | H12: 0.04505654515 | I12: 0.1936982678 | K12: =Entrada!P17 -> (1) redes de distribuição de energia elétrica destinadas à regularização fundiária de interesse específico e ao atendimento dos empreendimentos de múltiplas unidades consumidoras;
A13: 45444 | B13: 65889.22 | C13: 327441.81 | D13: 14303.63 | F13: 382410.36 | G13: 946956.92 | H13: 0.04616739231 | I13: 0.1885097549 | K13: =Entrada!P18 -> (2) redes de energia elétrica destinadas ao acesso dos sistemas de distribuição ou transmissão;
A14: 45474 | B14: 69908.4 | C14: 349331.29 | D14: 15176.46 | E14: 17374.42 | F14: 379282.14 | G14: 1023714.25 | H14: 0.04674894392 | I14: 0.1919362491 | K14: =Entrada!P19 -> (3) subestações de energia;
A15: 45505 | B15: 54981.1 | C15: 351845.67 | D15: 11935.4 | E15: 11603.98 | F15: 375256.63 | G15: 1049369.31 | H15: 0.03653077833 | I15: 0.1920781299 | K15: =Entrada!P20 -> (4) instalações elétricas internas de unidades consumidoras;
A16: 45536 | B16: 64511.98 | C16: 349898.23 | D16: 14004.63 | E16: 39590.46 | F16: 370347.49 | G16: 1030296.42 | H16: 0.04387706138 | I16: 0.1955319532 | K16: =Entrada!P21 -> (5) banco de capacitores;
A17: 45566 | B17: 61335.14 | C17: 368843.96 | D17: 13314.43 | E17: 99704 | F17: 367072.23 | G17: 1118212.97 | H17: 0.04081275017 | I17: 0.2016560362 | K17: =Entrada!P22 -> (6) padrões de entrada de unidades consumidoras atendidas em baixa tensão;
K18: =Entrada!P23 -> (7) sistemas de medição de energia elétrica;
K19: =Entrada!P24 -> (8) geradores, incluindo-se unidades de microgeração e minigeração distribuída; | AA19: =IF(COUNTIFS($C$30:$C$200000,$K19,$H$30:$H$200000,AA$2)=0,"",COUNTIFS($C$30:$C$200000,$K19,$H$30:$H$200000,AA$2)) -> 
K20: =Entrada!P25 -> (9) sistemas de iluminação pública. | L20: =IF(COUNTIFS($C$30:$C$200000,$K20,$H$30:$H$200000,L$2)=0,"",COUNTIFS($C$30:$C$200000,$K20,$H$30:$H$200000,L$2)) -> 
K21: =Entrada!P26 -> (10) estações de recarga de veículos elétricos, incluindo a prestação de serviços aos usuários
K22: =Entrada!P27 -> Eficientização do consumo de energia elétrica e instalação de cogeração qualificada, desde que não enquadráveis nos projetos de Pesquisa e Desenvolvimento (P&D) ou de Eficiência Energética estabelecidos em lei
K23: =Entrada!P28 -> Serviços de comunicação de dados
K24: =Entrada!P29 -> Serviços de consultoria
K25: =Entrada!P30 -> Receita proveniente da comercialização de resultados de projetos de P&D COM comprovação
K26: =Entrada!P31 -> Receita proveniente da comercialização de resultados de projetos de P&D SEM comprovação
A28: Tab_Uderor | K28: Descrição | L28: =L2 -> 2024-12-01 | M28: =M2 -> 2024-11-01 | N28: 2024-10-01 | O28: 2024-09-01 | P28: 2024-08-01 | Q28: 2024-07-01 | R28: 2024-06-01 | S28: 2024-05-01 | T28: 2024-04-01 | U28: 2024-03-01 | V28: 2024-02-01 | W28: 2024-01-01 | X28: 2023-12-01 | Y28: 2023-11-01 | Z28: 2023-10-01 | AA28: =AA2 -> 2023-09-01
A29: IdeTipoReceita | B29: TipoReceitaArquivo | C29: TipoReceita | D29: CompetenciaArquivo | E29: Data_envio_arquivo | F29: NomeArquivo | G29: Data_Lancamento | H29: Competencia | I29: R$ | K29: =Entrada!P51 -> Ultrapassagem de Demanda | L29: =IF(COUNTIFS($C$30:$C$200000,$K29,$H$30:$H$200000,L$2)=0,"",COUNTIFS($C$30:$C$200000,$K29,$H$30:$H$200000,L$2)) ->  | M29: =IF(COUNTIFS($C$30:$C$200000,$K29,$H$30:$H$200000,M$2)=0,"",COUNTIFS($C$30:$C$200000,$K29,$H$30:$H$200000,M$2)) -> 1 | N29: 1 | O29: 1 | P29: 1 | Q29: 1 | R29: 1 | S29: 1 | T29: 1 | U29: 1 | V29: 1 | W29: 1 | X29: 1 | Y29: 1 | Z29: 1 | AA29: 1
A30: 1 | B30: Serviços Cobráveis | C30: Serviços Cobráveis | D30: 202309 | E30: 45240 | F30: APLCVA00026_FLXPAGAMENTOS_092023_S002.XML | G30: 45170 | H30: 45170 | I30: 102928.85 | K30: =Entrada!P52 -> Excedente Reativo | L30: =IF(COUNTIFS($C$30:$C$200000,$K30,$H$30:$H$200000,L$2)=0,"",COUNTIFS($C$30:$C$200000,$K30,$H$30:$H$200000,L$2)) ->  | M30: 1 | N30: 1 | O30: 1 | P30: 1 | Q30: 1 | R30: 1 | S30: 1 | T30: 1 | U30: 1 | V30: 1 | W30: 1 | X30: 1 | Y30: 1 | Z30: 1 | AA30: 1
A31: 1 | B31: Serviços Cobráveis | C31: Serviços Cobráveis | D31: 202310 | E31: 45240 | F31: APLCVA00026_FLXPAGAMENTOS_102023_S001.XML | G31: 45200 | H31: 45200 | I31: 89702.74
A32: 1 | B32: Serviços Cobráveis | C32: Serviços Cobráveis | D32: 202311 | E32: 45358 | F32: APLCVA00026_FLXPAGAMENTOS_112023_S003.XML | G32: 45231 | H32: 45231 | I32: 90924.76
A33: 1 | B33: Serviços Cobráveis | C33: Serviços Cobráveis | D33: 202312 | E33: 45569 | F33: APLCVA00026_FLXPAGAMENTOS_122023_S004.XML | G33: 45261 | H33: 45261 | I33: 107489.6
A34: 1 | B34: Serviços Cobráveis | C34: Serviços Cobráveis | D34: 202401 | E34: 45597 | F34: APLCVA00026_FLXPAGAMENTOS_012024_S004.XML | G34: 45292 | H34: 45292 | I34: 93772.68 | K34: Data do último Lançamento por item e competência
A35: 1 | B35: Serviços Cobráveis | C35: Serviços Cobráveis | D35: 202402 | E35: 45568 | F35: APLCVA00026_FLXPAGAMENTOS_022024_S004.XML | G35: 45323 | H35: 45323 | I35: 80403.87 | K35: Descrição | L35: =DATE(YEAR(LnkTxtDRPData),MONTH(LnkTxtDRPData),1) -> 2024-12-01 | M35: =EDATE(L35,-1) -> 2024-11-01 | N35: =EDATE(M35,-1) -> 2024-10-01 | O35: 2024-09-01 | P35: 2024-08-01 | Q35: 2024-07-01 | R35: 2024-06-01 | S35: 2024-05-01 | T35: 2024-04-01 | U35: 2024-03-01 | V35: 2024-02-01 | W35: 2024-01-01 | X35: 2023-12-01 | Y35: 2023-11-01 | Z35: 2023-10-01 | AA35: 2023-09-01
A36: 1 | B36: Serviços Cobráveis | C36: Serviços Cobráveis | D36: 202403 | E36: 45568 | F36: APLCVA00026_FLXPAGAMENTOS_032024_S003.XML | G36: 45352 | H36: 45352 | I36: 70861.74 | K36: =Entrada!P8 -> Serviços Cobráveis | L36: =IF(_xlfn.MAXIFS($G$30:$G$200000,$C$30:$C$200000,$K36,$H$30:$H$200000,L$2)=0,"",_xlfn.MAXIFS($G$30:$G$200000,$C$30:$C$200000,$K36,$H$30:$H$200000,L$2)) ->  | M36: 45597 | N36: 45566 | O36: 45536 | P36: 45505 | Q36: 45474 | R36: 45444 | S36: 45413 | T36: 45383 | U36: 45352 | V36: 45323 | W36: 45292 | X36: 45261 | Y36: 45231 | Z36: 45200 | AA36: 45170
A37: 1 | B37: Serviços Cobráveis | C37: Serviços Cobráveis | D37: 202404 | E37: 45569 | F37: APLCVA00026_FLXPAGAMENTOS_042024_S002.XML | G37: 45383 | H37: 45383 | I37: 81426.42 | K37: =Entrada!P9 -> Arrecadação de convênios ou valores pela fatura | M37: 45597 | N37: 45566 | O37: 45536 | P37: 45505 | Q37: 45474 | R37: 45444 | S37: 45413 | T37: 45383 | U37: 45352 | V37: 45323 | W37: 45292 | X37: 45261 | Y37: 45231 | Z37: 45200 | AA37: 45170
A38: 1 | B38: Serviços Cobráveis | C38: Serviços Cobráveis | D38: 202405 | E38: 45569 | F38: APLCVA00026_FLXPAGAMENTOS_052024_S002.XML | G38: 45413 | H38: 45413 | I38: 76514.93 | K38: =Entrada!P10 -> Arrecadação de faturas de terceiros por estrutura própria
A39: 1 | B39: Serviços Cobráveis | C39: Serviços Cobráveis | D39: 202406 | E39: 45516 | F39: APLCVA00026_FLXPAGAMENTOS_062024_S001.XML | G39: 45444 | H39: 45444 | I39: 84537.61 | K39: =Entrada!P11 -> Veiculação de publicidade
A40: 1 | B40: Serviços Cobráveis | C40: Serviços Cobráveis | D40: 202407 | E40: 45544 | F40: APLCVA00026_FLXPAGAMENTOS_072024_S002.XML | G40: 45474 | H40: 45474 | I40: 96485.93 | K40: =Entrada!P12 -> Aluguel ou cessão onerosa de imóveis e espaços físicos
A41: 1 | B41: Serviços Cobráveis | C41: Serviços Cobráveis | D41: 202408 | E41: 45575 | F41: APLCVA00026_FLXPAGAMENTOS_082024_S002.XML | G41: 45505 | H41: 45505 | I41: 96256.12 | K41: =Entrada!P13 -> Compartilhamento de infraestrutura | M41: 45597 | N41: 45566 | O41: 45536 | P41: 45505 | Q41: 45474 | R41: 45444 | S41: 45413 | T41: 45383 | U41: 45352 | V41: 45323 | W41: 45292 | X41: 45261 | Y41: 45231 | Z41: 45200 | AA41: 45170
A42: 1 | B42: Serviços Cobráveis | C42: Serviços Cobráveis | D42: 202409 | E42: 45600 | F42: APLCVA00026_FLXPAGAMENTOS_092024_S001.XML | G42: 45536 | H42: 45536 | I42: 88433.09 | K42: =Entrada!P14 -> Serviços de avaliação técnica e aferição de medidores.
A43: 1 | B43: Serviços Cobráveis | C43: Serviços Cobráveis | D43: 202410 | E43: 45609 | F43: APLCVA00026_FLXPAGAMENTOS_102024_S001.XML | G43: 45566 | H43: 45566 | I43: 73097.35 | K43: =Entrada!P15 -> Operacionalização de serviço de créditos tributários
A44: 1 | B44: Serviços Cobráveis | C44: Serviços Cobráveis | D44: 202411 | E44: 45600 | F44: APLCVA00026_FLXPAGAMENTOS_112024_S000.XML | G44: 45597 | H44: 45597 | I44: 0 | K44: =Entrada!P16 -> Elaboração de projeto, construção, operação, manutenção ou reforma de:
A45: 2 | B45: Arrecadação de convênios ou valores pela fatura | C45: Arrecadação de convênios ou valores pela fatura | D45: 202309 | E45: 45240 | F45: APLCVA00026_FLXPAGAMENTOS_092023_S002.XML | G45: 45170 | H45: 45170 | I45: 0 | K45: =Entrada!P17 -> (1) redes de distribuição de energia elétrica destinadas à regularização fundiária de interesse específico e ao atendimento dos empreendimentos de múltiplas unidades consumidoras;
A46: 2 | B46: Arrecadação de convênios ou valores pela fatura | C46: Arrecadação de convênios ou valores pela fatura | D46: 202310 | E46: 45240 | F46: APLCVA00026_FLXPAGAMENTOS_102023_S001.XML | G46: 45200 | H46: 45200 | I46: 0 | K46: =Entrada!P18 -> (2) redes de energia elétrica destinadas ao acesso dos sistemas de distribuição ou transmissão; | L46: =IF(_xlfn.MAXIFS($G$30:$G$200000,$C$30:$C$200000,$K46,$H$30:$H$200000,L$2)=0,"",_xlfn.MAXIFS($G$30:$G$200000,$C$30:$C$200000,$K46,$H$30:$H$200000,L$2)) -> 
A47: 2 | B47: Arrecadação de convênios ou valores pela fatura | C47: Arrecadação de convênios ou valores pela fatura | D47: 202311 | E47: 45358 | F47: APLCVA00026_FLXPAGAMENTOS_112023_S003.XML | G47: 45231 | H47: 45231 | I47: 0 | K47: =Entrada!P19 -> (3) subestações de energia;
A48: 2 | B48: Arrecadação de convênios ou valores pela fatura | C48: Arrecadação de convênios ou valores pela fatura | D48: 202312 | E48: 45569 | F48: APLCVA00026_FLXPAGAMENTOS_122023_S004.XML | G48: 45261 | H48: 45261 | I48: 0 | K48: =Entrada!P20 -> (4) instalações elétricas internas de unidades consumidoras;
A49: 2 | B49: Arrecadação de convênios ou valores pela fatura | C49: Arrecadação de convênios ou valores pela fatura | D49: 202401 | E49: 45597 | F49: APLCVA00026_FLXPAGAMENTOS_012024_S004.XML | G49: 45292 | H49: 45292 | I49: 0 | K49: =Entrada!P21 -> (5) banco de capacitores;
A50: 2 | B50: Arrecadação de convênios ou valores pela fatura | C50: Arrecadação de convênios ou valores pela fatura | D50: 202402 | E50: 45568 | F50: APLCVA00026_FLXPAGAMENTOS_022024_S004.XML | G50: 45323 | H50: 45323 | I50: 0 | K50: =Entrada!P22 -> (6) padrões de entrada de unidades consumidoras atendidas em baixa tensão;
A51: 2 | B51: Arrecadação de convênios ou valores pela fatura | C51: Arrecadação de convênios ou valores pela fatura | D51: 202403 | E51: 45568 | F51: APLCVA00026_FLXPAGAMENTOS_032024_S003.XML | G51: 45352 | H51: 45352 | I51: 0 | K51: =Entrada!P23 -> (7) sistemas de medição de energia elétrica;
A52: 2 | B52: Arrecadação de convênios ou valores pela fatura | C52: Arrecadação de convênios ou valores pela fatura | D52: 202404 | E52: 45569 | F52: APLCVA00026_FLXPAGAMENTOS_042024_S002.XML | G52: 45383 | H52: 45383 | I52: 0 | K52: =Entrada!P24 -> (8) geradores, incluindo-se unidades de microgeração e minigeração distribuída;
A53: 2 | B53: Arrecadação de convênios ou valores pela fatura | C53: Arrecadação de convênios ou valores pela fatura | D53: 202405 | E53: 45569 | F53: APLCVA00026_FLXPAGAMENTOS_052024_S002.XML | G53: 45413 | H53: 45413 | I53: 0 | K53: =Entrada!P25 -> (9) sistemas de iluminação pública.
A54: 2 | B54: Arrecadação de convênios ou valores pela fatura | C54: Arrecadação de convênios ou valores pela fatura | D54: 202406 | E54: 45516 | F54: APLCVA00026_FLXPAGAMENTOS_062024_S001.XML | G54: 45444 | H54: 45444 | I54: 0 | K54: =Entrada!P26 -> (10) estações de recarga de veículos elétricos, incluindo a prestação de serviços aos usuários
A55: 2 | B55: Arrecadação de convênios ou valores pela fatura | C55: Arrecadação de convênios ou valores pela fatura | D55: 202407 | E55: 45544 | F55: APLCVA00026_FLXPAGAMENTOS_072024_S002.XML | G55: 45474 | H55: 45474 | I55: 0 | K55: =Entrada!P27 -> Eficientização do consumo de energia elétrica e instalação de cogeração qualificada, desde que não enquadráveis nos projetos de Pesquisa e Desenvolvimento (P&D) ou de Eficiência Energética estabelecidos em lei
A56: 2 | B56: Arrecadação de convênios ou valores pela fatura | C56: Arrecadação de convênios ou valores pela fatura | D56: 202408 | E56: 45575 | F56: APLCVA00026_FLXPAGAMENTOS_082024_S002.XML | G56: 45505 | H56: 45505 | I56: 185260.27 | K56: =Entrada!P28 -> Serviços de comunicação de dados
A57: 2 | B57: Arrecadação de convênios ou valores pela fatura | C57: Arrecadação de convênios ou valores pela fatura | D57: 202409 | E57: 45600 | F57: APLCVA00026_FLXPAGAMENTOS_092024_S001.XML | G57: 45536 | H57: 45536 | I57: 172740.29 | K57: =Entrada!P29 -> Serviços de consultoria
A58: 2 | B58: Arrecadação de convênios ou valores pela fatura | C58: Arrecadação de convênios ou valores pela fatura | D58: 202410 | E58: 45609 | F58: APLCVA00026_FLXPAGAMENTOS_102024_S001.XML | G58: 45566 | H58: 45566 | I58: 183109.87 | K58: =Entrada!P30 -> Receita proveniente da comercialização de resultados de projetos de P&D COM comprovação
A59: 2 | B59: Arrecadação de convênios ou valores pela fatura | C59: Arrecadação de convênios ou valores pela fatura | D59: 202411 | E59: 45600 | F59: APLCVA00026_FLXPAGAMENTOS_112024_S000.XML | G59: 45597 | H59: 45597 | I59: 0 | K59: =Entrada!P31 -> Receita proveniente da comercialização de resultados de projetos de P&D SEM comprovação
A60: 6 | B60: Compartilhamento de infraestrutura | C60: Compartilhamento de infraestrutura | D60: 202309 | E60: 45240 | F60: APLCVA00026_FLXPAGAMENTOS_092023_S002.XML | G60: 45170 | H60: 45170 | I60: 269934.62
A61: 6 | B61: Compartilhamento de infraestrutura | C61: Compartilhamento de infraestrutura | D61: 202310 | E61: 45240 | F61: APLCVA00026_FLXPAGAMENTOS_102023_S001.XML | G61: 45200 | H61: 45200 | I61: 254843.02 | K61: Descrição | L61: =L35 -> 2024-12-01 | M61: =M35 -> 2024-11-01 | N61: 2024-10-01 | O61: 2024-09-01 | P61: 2024-08-01 | Q61: 2024-07-01 | R61: 2024-06-01 | S61: 2024-05-01 | T61: 2024-04-01 | U61: 2024-03-01 | V61: 2024-02-01 | W61: 2024-01-01 | X61: 2023-12-01 | Y61: 2023-11-01 | Z61: 2023-10-01 | AA61: 2023-09-01
A62: 6 | B62: Compartilhamento de infraestrutura | C62: Compartilhamento de infraestrutura | D62: 202311 | E62: 45358 | F62: APLCVA00026_FLXPAGAMENTOS_112023_S003.XML | G62: 45231 | H62: 45231 | I62: 285938.09 | K62: =Entrada!P51 -> Ultrapassagem de Demanda | L62: =IF(COUNTIFS($C$30:$C$200000,$K62,$H$30:$H$200000,L$2)=0,"",COUNTIFS($C$30:$C$200000,$K62,$H$30:$H$200000,L$2)) ->  | M62: 1 | N62: 1 | O62: 1 | P62: 1 | Q62: 1 | R62: 1 | S62: 1 | T62: 1 | U62: 1 | V62: 1 | W62: 1 | X62: 1 | Y62: 1 | Z62: 1 | AA62: 1
A63: 6 | B63: Compartilhamento de infraestrutura | C63: Compartilhamento de infraestrutura | D63: 202312 | E63: 45569 | F63: APLCVA00026_FLXPAGAMENTOS_122023_S004.XML | G63: 45261 | H63: 45261 | I63: 285774.69 | K63: =Entrada!P52 -> Excedente Reativo | M63: 1 | N63: =IF(COUNTIFS($C$30:$C$200000,$K63,$H$30:$H$200000,N$2)=0,"",COUNTIFS($C$30:$C$200000,$K63,$H$30:$H$200000,N$2)) -> 1 | O63: 1 | P63: 1 | Q63: 1 | R63: 1 | S63: 1 | T63: 1 | U63: 1 | V63: 1 | W63: 1 | X63: 1 | Y63: 1 | Z63: 1 | AA63: 1
A64: 6 | B64: Compartilhamento de infraestrutura | C64: Compartilhamento de infraestrutura | D64: 202401 | E64: 45597 | F64: APLCVA00026_FLXPAGAMENTOS_012024_S004.XML | G64: 45292 | H64: 45292 | I64: 291760.73
A65: 6 | B65: Compartilhamento de infraestrutura | C65: Compartilhamento de infraestrutura | D65: 202402 | E65: 45568 | F65: APLCVA00026_FLXPAGAMENTOS_022024_S004.XML | G65: 45323 | H65: 45323 | I65: 346598.8
A66: 6 | B66: Compartilhamento de infraestrutura | C66: Compartilhamento de infraestrutura | D66: 202403 | E66: 45568 | F66: APLCVA00026_FLXPAGAMENTOS_032024_S003.XML | G66: 45352 | H66: 45352 | I66: 346598.8
A67: 6 | B67: Compartilhamento de infraestrutura | C67: Compartilhamento de infraestrutura | D67: 202404 | E67: 45569 | F67: APLCVA00026_FLXPAGAMENTOS_042024_S002.XML | G67: 45383 | H67: 45383 | I67: 340859.42
A68: 6 | B68: Compartilhamento de infraestrutura | C68: Compartilhamento de infraestrutura | D68: 202405 | E68: 45569 | F68: APLCVA00026_FLXPAGAMENTOS_052024_S002.XML | G68: 45413 | H68: 45413 | I68: 339893.98
A69: 6 | B69: Compartilhamento de infraestrutura | C69: Compartilhamento de infraestrutura | D69: 202406 | E69: 45516 | F69: APLCVA00026_FLXPAGAMENTOS_062024_S001.XML | G69: 45444 | H69: 45444 | I69: 339893.98
A70: 6 | B70: Compartilhamento de infraestrutura | C70: Compartilhamento de infraestrutura | D70: 202407 | E70: 45544 | F70: APLCVA00026_FLXPAGAMENTOS_072024_S002.XML | G70: 45474 | H70: 45474 | I70: 50678.83
A71: 6 | B71: Compartilhamento de infraestrutura | C71: Compartilhamento de infraestrutura | D71: 202408 | E71: 45575 | F71: APLCVA00026_FLXPAGAMENTOS_082024_S002.XML | G71: 45505 | H71: 45505 | I71: 121478.83
A72: 6 | B72: Compartilhamento de infraestrutura | C72: Compartilhamento de infraestrutura | D72: 202409 | E72: 45600 | F72: APLCVA00026_FLXPAGAMENTOS_092024_S001.XML | G72: 45536 | H72: 45536 | I72: 777634.5
A73: 6 | B73: Compartilhamento de infraestrutura | C73: Compartilhamento de infraestrutura | D73: 202410 | E73: 45609 | F73: APLCVA00026_FLXPAGAMENTOS_102024_S001.XML | G73: 45566 | H73: 45566 | I73: 131719.66
A74: 6 | B74: Compartilhamento de infraestrutura | C74: Compartilhamento de infraestrutura | D74: 202411 | E74: 45600 | F74: APLCVA00026_FLXPAGAMENTOS_112024_S000.XML | G74: 45597 | H74: 45597 | I74: 0
A75: 23 | B75: Ultrapassagem de Demanda | C75: Ultrapassagem de Demanda | D75: 202309 | E75: 45240 | F75: APLCVA00026_FLXPAGAMENTOS_092023_S002.XML | G75: 45170 | H75: 45170 | I75: 332165.74
A76: 23 | B76: Ultrapassagem de Demanda | C76: Ultrapassagem de Demanda | D76: 202310 | E76: 45240 | F76: APLCVA00026_FLXPAGAMENTOS_102023_S001.XML | G76: 45200 | H76: 45200 | I76: 379907.12
A77: 23 | B77: Ultrapassagem de Demanda | C77: Ultrapassagem de Demanda | D77: 202311 | E77: 45358 | F77: APLCVA00026_FLXPAGAMENTOS_112023_S003.XML | G77: 45231 | H77: 45231 | I77: 431498.17
A78: 23 | B78: Ultrapassagem de Demanda | C78: Ultrapassagem de Demanda | D78: 202312 | E78: 45569 | F78: APLCVA00026_FLXPAGAMENTOS_122023_S004.XML | G78: 45261 | H78: 45261 | I78: 363131.19
A79: 23 | B79: Ultrapassagem de Demanda | C79: Ultrapassagem de Demanda | D79: 202401 | E79: 45597 | F79: APLCVA00026_FLXPAGAMENTOS_012024_S004.XML | G79: 45292 | H79: 45292 | I79: 308794.76
A80: 23 | B80: Ultrapassagem de Demanda | C80: Ultrapassagem de Demanda | D80: 202402 | E80: 45568 | F80: APLCVA00026_FLXPAGAMENTOS_022024_S004.XML | G80: 45323 | H80: 45323 | I80: 273994.43
A81: 23 | B81: Ultrapassagem de Demanda | C81: Ultrapassagem de Demanda | D81: 202403 | E81: 45568 | F81: APLCVA00026_FLXPAGAMENTOS_032024_S003.XML | G81: 45352 | H81: 45352 | I81: 361575.76
A82: 23 | B82: Ultrapassagem de Demanda | C82: Ultrapassagem de Demanda | D82: 202404 | E82: 45569 | F82: APLCVA00026_FLXPAGAMENTOS_042024_S002.XML | G82: 45383 | H82: 45383 | I82: 408410.42
A83: 23 | B83: Ultrapassagem de Demanda | C83: Ultrapassagem de Demanda | D83: 202405 | E83: 45569 | F83: APLCVA00026_FLXPAGAMENTOS_052024_S002.XML | G83: 45413 | H83: 45413 | I83: 404308.25
A84: 23 | B84: Ultrapassagem de Demanda | C84: Ultrapassagem de Demanda | D84: 202406 | E84: 45516 | F84: APLCVA00026_FLXPAGAMENTOS_062024_S001.XML | G84: 45444 | H84: 45444 | I84: 367418.14
A85: 23 | B85: Ultrapassagem de Demanda | C85: Ultrapassagem de Demanda | D85: 202407 | E85: 45544 | F85: APLCVA00026_FLXPAGAMENTOS_072024_S002.XML | G85: 45474 | H85: 45474 | I85: 397184.49
A86: 23 | B86: Ultrapassagem de Demanda | C86: Ultrapassagem de Demanda | D86: 202408 | E86: 45575 | F86: APLCVA00026_FLXPAGAMENTOS_082024_S002.XML | G86: 45505 | H86: 45505 | I86: 413555.02
A87: 23 | B87: Ultrapassagem de Demanda | C87: Ultrapassagem de Demanda | D87: 202409 | E87: 45600 | F87: APLCVA00026_FLXPAGAMENTOS_092024_S001.XML | G87: 45536 | H87: 45536 | I87: 552637.71
A88: 23 | B88: Ultrapassagem de Demanda | C88: Ultrapassagem de Demanda | D88: 202410 | E88: 45609 | F88: APLCVA00026_FLXPAGAMENTOS_102024_S001.XML | G88: 45566 | H88: 45566 | I88: 549134.08
A89: 23 | B89: Ultrapassagem de Demanda | C89: Ultrapassagem de Demanda | D89: 202411 | E89: 45600 | F89: APLCVA00026_FLXPAGAMENTOS_112024_S000.XML | G89: 45597 | H89: 45597 | I89: 0
A90: 24 | B90: Excedente Reativo | C90: Excedente Reativo | D90: 202309 | E90: 45240 | F90: APLCVA00026_FLXPAGAMENTOS_092023_S002.XML | G90: 45170 | H90: 45170 | I90: 325233.39
A91: 24 | B91: Excedente Reativo | C91: Excedente Reativo | D91: 202310 | E91: 45240 | F91: APLCVA00026_FLXPAGAMENTOS_102023_S001.XML | G91: 45200 | H91: 45200 | I91: 322839.26
A92: 24 | B92: Excedente Reativo | C92: Excedente Reativo | D92: 202311 | E92: 45358 | F92: APLCVA00026_FLXPAGAMENTOS_112023_S003.XML | G92: 45231 | H92: 45231 | I92: 327121.76
A93: 24 | B93: Excedente Reativo | C93: Excedente Reativo | D93: 202312 | E93: 45569 | F93: APLCVA00026_FLXPAGAMENTOS_122023_S004.XML | G93: 45261 | H93: 45261 | I93: 354826.82
A94: 24 | B94: Excedente Reativo | C94: Excedente Reativo | D94: 202401 | E94: 45597 | F94: APLCVA00026_FLXPAGAMENTOS_012024_S004.XML | G94: 45292 | H94: 45292 | I94: 488649.56
A95: 24 | B95: Excedente Reativo | C95: Excedente Reativo | D95: 202402 | E95: 45568 | F95: APLCVA00026_FLXPAGAMENTOS_022024_S004.XML | G95: 45323 | H95: 45323 | I95: 435581.62
A96: 24 | B96: Excedente Reativo | C96: Excedente Reativo | D96: 202403 | E96: 45568 | F96: APLCVA00026_FLXPAGAMENTOS_032024_S003.XML | G96: 45352 | H96: 45352 | I96: 426225.14
A97: 24 | B97: Excedente Reativo | C97: Excedente Reativo | D97: 202404 | E97: 45569 | F97: APLCVA00026_FLXPAGAMENTOS_042024_S002.XML | G97: 45383 | H97: 45383 | I97: 447001.74
A98: 24 | B98: Excedente Reativo | C98: Excedente Reativo | D98: 202405 | E98: 45569 | F98: APLCVA00026_FLXPAGAMENTOS_052024_S002.XML | G98: 45413 | H98: 45413 | I98: 453868.3
A99: 24 | B99: Excedente Reativo | C99: Excedente Reativo | D99: 202406 | E99: 45516 | F99: APLCVA00026_FLXPAGAMENTOS_062024_S001.XML | G99: 45444 | H99: 45444 | I99: 449856.54
A100: 24 | B100: Excedente Reativo | C100: Excedente Reativo | D100: 202407 | E100: 45544 | F100: APLCVA00026_FLXPAGAMENTOS_072024_S002.XML | G100: 45474 | H100: 45474 | I100: 455700.03
A101: 24 | B101: Excedente Reativo | C101: Excedente Reativo | D101: 202408 | E101: 45575 | F101: APLCVA00026_FLXPAGAMENTOS_082024_S002.XML | G101: 45505 | H101: 45505 | I101: 440024.76
A102: 24 | B102: Excedente Reativo | C102: Excedente Reativo | D102: 202409 | E102: 45600 | F102: APLCVA00026_FLXPAGAMENTOS_092024_S001.XML | G102: 45536 | H102: 45536 | I102: 429285.71
A103: 24 | B103: Excedente Reativo | C103: Excedente Reativo | D103: 202410 | E103: 45609 | F103: APLCVA00026_FLXPAGAMENTOS_102024_S001.XML | G103: 45566 | H103: 45566 | I103: 422016.59
A104: 24 | B104: Excedente Reativo | C104: Excedente Reativo | D104: 202411 | E104: 45600 | F104: APLCVA00026_FLXPAGAMENTOS_112024_S000.XML | G104: 45597 | H104: 45597 | I104: 0

Sheet BD
B1: Banco de Dados | M1: Anexo II | N1: =Resultado!$D$6 -> 0.03795258618
B2: =CAPA!B6 -> EAC | M2: Anexo I | N2: =Resultado!$D$8 -> 0.01500725363
B5: Informações do ano anterior | G5: Dados de abertura (Neutralidade e CVA saldo a compensar) | L5: Dados de Energia | S5: Dados para Revisão | AA5: BMP_RIT | AK5: Avaliação Parcela B
B7: Encargos | G7: Encargo | H7: Valor | I7: Norma | L7: Cotas | M7: Valor da "Cota" | N7: Ano | O7: Custo Médio da Cota | P7: Energia MWh | S7: item | T7: Descrição | U7: Detalhe | V7: Valor | AA7: IDAGENTE | AB7: ANO | AC7: SIGLA | AD7: ContaPrincipal | AE7: ContaDetalhada | AF7: CONTA | AG7: SALDO | AK7: Ano | AL7: DataRevREa | AM7: item | AN7: valor
B8: CDE Covid TE | C8: 5377709.54 | D8: ok | G8: CDE Eletrobras | H8: -3631685.463 | I8: DSP 1239/2024 | L8: Angra | M8: 0.003165482261 | N8: 2024 | O8: 355.16 | P8: 42566.07219 | S8: 201 | T8: Financeiro de RTP | U8: Conselho de Consumidor | V8: 0 | AK8: 2023 | AL8: 23357 | AM8: ANEXO II | AN8: 0.07236107792
B9: CDE Covid TUSD | C9: 21196044.62 | D9: ok | G9: CDE | H9: 47479092.68 | I9: NT 140/2023 - CP 41/2023 | S9: 202 | T9: Financeiro de RTP | U9: Conselho de Consumidor | V9: 0.13 | AK9: 2023 | AL9: 23357 | AM9: Base de Remuneração Bruta | AN9: 1426712835
B10: TFSEE | C10: 1539068.281 | D10: ok | G10: CFURH | S10: 203 | T10: Financeiro de RTP | U10: Conselho de Consumidor | V10: 0.87 | AK10: 2023 | AL10: 23357 | AM10: Base de Remuneração Líquida | AN10: 1043042084
B11: CDE | C11: 39071059.95 | D11: ok | G11: ESS/EER | H11: 21331445.22 | I11: DSP 2.537/2024 | L11: Ano | M11: Cota Itaipu | AK11: 2023 | AL11: 23357 | AM11: CONSUMIDOR DISTRIBUIÇÃO | AN11: 0
B12: ESS/ERR | C12: 19769864.34 | D12: ok | G12: PROINFA | H12: 11461719.63 | I12: REH 3.291/2023 | AK12: 2023 | AL12: 23357 | AM12: CONSUMIDOR LIVRE | AN12: 69206.616
B13: PROINFA | C13: 12197276.27 | D13: ok | G13: ONS | H13: 43252.22034 | I13: Contribuição 2023 | AK13: 2023 | AL13: 23357 | AM13: ENCARGO | AN13: 132037427.7
B14: P&D | C14: 8275791.458 | D14: ok | G14: TFSEE | AK14: 2023 | AL14: 23357 | AM14: ENERGIA | AN14: 300258450.6
B15: ONS | C15: 0 | G15: EER | H15: 20872680.59 | I15: DSP 2.537/2024 | AK15: 2023 | AL15: 23357 | AM15: FATOR X | AN15: 0.01174984674
B16: CDE Eletrobras | C16: -2067095.851 | D16: ok | G16: TFSEE Fator de Carga | H16: 0.841 | AK16: 2023 | AL16: 23357 | AM16: Fornecimento | AN16: 1152119.51
B17: CDE GD | C17: 2853359.628 | D17: ok | G17: CDE Covid | H17: 15944252.52 | I17: DSP 689/2024 | AK17: 2023 | AL17: 23357 | AM17: IGPM | AN17: -0.03461930787
B18: CDE Conta - Escassez Hídrica TUSD | C18: 4499182.519 | D18: ok | G18: CDE Covid TE% | H18: 0.2023692064 | AK18: 2023 | AL18: 23357 | AM18: IPCA | AN18: 0.04685500762
B19: CDE Conta - Escassez Hídrica TE | C19: 19325166.99 | D19: ok | G19: CDE Covid TUSD% | H19: 0.7976307936 | AK19: 2023 | AL19: 23357 | AM19: Parcela B | AN19: 398051751.1
G20: CDE Escassez Hidrica | H20: 23824349.5 | I20: DSP 510/2023 | AK20: 2023 | AL20: 23357 | AM20: Receita Irrecuperável | AN20: 14213963.36
B21: Pmix | C21: 208.1831435 | D21: ok | G21: CDE Escassez Hidr TE% | H21: 0.811151926 | AK21: 2023 | AL21: 23357 | AM21: Revisão ou Reajuste (1-REVI,0-Reaj) | AN21: 1
B22: PN2023 | C22: 0.124035 | D22: ok | G22: CDE Escassez Hidr TUSD% | H22: 0.188848074 | L22: Mês | M22: Potência | N22: Tarifa | O22: Perdas | P22: Energia | AK22: 2023 | AL22: 23357 | AM22: SUPRIMENTO (Mercado TUSD) | AN22: 11225.011
B23: PN2024 | C23: 0.124035 | D23: ok | G23: CDE GD | H23: 3956488.049 | I23: NT 140/2023 - CP 41/2023 | AK23: 2023 | AL23: 23357 | AM23: SUPRIMENTO (via Rede Básica) | AN23: 0
B24: PT2023 | C24: 0.088794 | D24: ok | AK24: 2023 | AL24: 23357 | AM24: TRANSPORTE TERCEIROS | AN24: 34814360.18
B25: Perda RB total | C25: 0.02089987471 | G25: Informações de Postergação
B27: CVA RB | C27: 4944798.125 | D27: ok | G27: Tipo | H27: Valor | I27: Coluna1
B28: CVA CDE Covid TUSD | C28: -0.03613267495 | G28: Data Postergada | H28: DtAniversario | I28: 45639
B29: CVA CCC | C29: 0 | G29: Data Anterior | I29: 45639
B30: CVA CDE | C30: 4301033.684 | D30: ok | G30: Diferença de Dias | I30: 0
B31: CVA CFURH | G31: MesesAdin | I31: 0
B32: CVA ESS\ERR | C32: 1436249.974 | D32: ok | G32: Reversão Subvenção CDE | I32: 0
B33: CVA PROINFA | C33: -1572197.228 | D33: ok | G33: Data 4CRT | I33: 45273
B34: CVA TRANS. ITAIPU | C34: 0
B35: CVA ENERGIA | C35: 2607168.542 | D35: ok | G35: Nome | H35: Valor
B36: CVA CDE Covid TE | C36: -0.009167325049 | G36: TUSDg Export DRP | H36: 0 | L36: Mês | M36: Potência | N36: Tarifa DRA | O36: Tarifa DRP | P36: Colunas1
G37: TUSDg ONS DRP | H37: 0
G38: TUSDg ONS DRA | H38: 0
B39: Transporte | G39: TUSDg Export DRA | H39: 0
B40: Conexao | C40: 1654045.272 | D40: ok
G42: Fator X | H42: Valor | I42: Coluna1
G43: fatorx_t | H43: 0.00733 | I43: 0
B44: Mercado | G44: fatorx_pd | H44: 0 | I44: 0
B45: RA0_MWh_Tusd | C45: 1232551.137 | D45: ok
B46: RA1_R$ | C46: 879375952.9 | D46: ok | G46: DecFec Processo Anterior | H46: Valor
B47: Proinfa
B48: 2024 | C48: 26238.91311
B49: Detalhamento de Encargos ESS e CDE
L50: Dado | M50: Valor | N50: Início | O50: Fim
L51: MUST | M51: 7934 | N51: 45108 | O51: 45473
G52: Dados de dólar | H52: Valor | L52: MUST | M52: 6963 | N52: 45474 | O52: 45838
B53: Ciclo de Revisão | C53: 5 | G53: Dólar médio | H53: 5.74458 | L53: Potência Max | M53: 10555 | N53: 44927 | O53: 45291
G54: Data Inicial | H54: 45586 | L54: Potência Max | M54: 10335 | N54: 45292 | O54: 45657
G55: Data Final | H55: 45614
L56: Dados de perda | M56: Valor | O56: Agente | P56: Ressarcimento P&D
B57: Subsídios Concedidos (sem ajuste) | L57: Perdas RB | M57: 29001.5705
B58: Mês de Início | C58: Carga Fonte | D58: Geração | E58: Distribuição | F58: Água, Esgoto e Saneamento | G58: Rural | H58: Irrigante/Aquicultor | I58: SCEE | J58: Lei 14299/20222 | L58: Perdas DITs | M58: 0
B59: 2023-12-01 | C59: 745435.75 | H59: 2574.2 | I59: 69476.96
L62: Informações de DR1
L63: fator PB1 | M63: 1.015945853
L64: Informações de RI
B65: Data | C65: Tipo | D65: Valor | E65: Valor IGPM | F65: Valor IPCA | G65: EixoRef
B66: =DATE(YEAR(CAPA!C10),MONTH(CAPA!C10),1) -> 2024-12-01 | C66: =IF(CAPA!C7="Revisão",1,0) -> 0 | D66: =Resultado!L11 -> 790.8948239 | E66: =IFERROR(VLOOKUP(EDATE($B66,-1),Índices!$B$6:$F$500,2,FALSE)/VLOOKUP(EDATE(MIN($B$67:$B$81),-1),Índices!$B$6:$F$500,2,FALSE)*VLOOKUP(MIN($B$67:$B$81),$B$67:$D$81,3,FALSE),0) -> 0 | F66: =IFERROR(VLOOKUP(EDATE($B66,-1),Índices!$B$6:$F$500,3,FALSE)/VLOOKUP(EDATE(MIN($B$67:$B$81),-1),Índices!$B$6:$F$500,3,FALSE)*VLOOKUP(MIN($B$67:$B$81),$B$67:$D$81,3,FALSE),0) -> 0 | G66: =IF(B66<>"",150+1,"") -> 151 | L66: Tipo | M66: % RI | O66: Data | P66: Fat Bandeiras
L67: PctRIResidencial | M67: 0.0181 | O67: 45261 | P67: -5930.57
L68: PctRIIndustrial | M68: 0.0049 | O68: 45292 | P68: 511.9
L69: PctRICOMERCIAL | M69: 0.0068 | O69: 45323 | P69: 2209.16
L70: PctRIRURAL | M70: 0.0123 | O70: 45352 | P70: 2094.7
L71: PctRILUMPUBLICA | M71: 0.0007 | O71: 45383 | P71: -709.96
L72: PctRIPODERPUBLICO | M72: 0.0019 | O72: 45413 | P72: -2462.54
L73: PctRISERVPUBLICO | M73: 0.0003 | O73: 45444 | P73: -66.91
O74: 45474 | P74: 719045.86
L75: Tipo | M75: % RI Anterior | O75: 45505 | P75: 602845.95
L76: PctRIResidencial | M76: 0.0181 | O76: 45536 | P76: 1922832.14
L77: PctRIIndustrial | M77: 0.0049 | O77: 45566 | P77: 1922832.14
L78: PctRICOMERCIAL | M78: 0.0068 | O78: 45597 | P78: 1922832.14
L79: PctRIRURAL | M79: 0.0123
L80: PctRILUMPUBLICA | M80: 0.0007
L81: PctRIPODERPUBLICO | M81: 0.0019
L82: PctRISERVPUBLICO | M82: 0.0003
B84: Tabela de Resumo de Montante DRP ano anterior/ Montante Apurado pelo Mercado
B85: detalhe_grupo | C85: GrupoTarifa | D85: tipoBase | E85: tipofatura | F85: ValorCTAnterior_Sum | G85: ValorAnt_Sum | L85: Prcesso Anterior | N85: RTE
L86: MWh | M86: R$ | N86: MWh | O86: R$ | S86: DthEfetivaPagamento | T86: VlrGarantiaFinanceira | V86: Conta Escassez | W86: Valor | X86: Legislacao
I87: BILATERAL | K87: valor | L87: 298607.976 | M87: 90350936.1 | P87: ok | S87: 45231 | T87: 8345.37
I88: CCEAR-DISP | J88: Nova | K88: valor | L88: 240318.5282 | M88: 72821231.25 | P88: ok | S88: 45261 | T88: 8345.37
I89: CCEAR-QTD | J89: Belo Monte | K89: valor | L89: 677310.901 | M89: 115106020.8 | P89: ok | S89: 45292 | T89: 8345.37
I90: CCEAR-QTD | J90: Existente | K90: valor | L90: 493.156 | M90: 220469.2432 | P90: ok | S90: 45323 | T90: 8345.37
I91: CCEAR-QTD | J91: Nova | K91: valor | L91: 462573.2724 | M91: 78883067.84 | P91: ok | S91: 45352 | T91: 12720.34
I92: CCEN | K92: valor | L92: 39054.95491 | M92: 13571596.83 | P92: ok | S92: 45383 | T92: 12720.34
I93: CCGF | K93: valor | L93: 180770.2481 | M93: 31438735.76 | P93: ok | S93: 45413 | T93: 12720.34
I94: GERAÇÃO PRÓPRIA | K94: valor | L94: 206.65 | M94: 62526.86615 | P94: ok | S94: 45444 | T94: 12720.34
I95: PROINFA | K95: valor | L95: 25246.9137 | S95: 45474 | T95: 13219.73
I96: SOBRA/EXPOSIÇÃO | K96: valor | L96: -482302.2819 | M96: -102196134.1 | P96: ok | S96: 45505 | T96: 13219.73
S97: 45536 | T97: 13219.73
S98: 45566 | T98: 13219.73
S99: 45597 | T99: 13219.73
V105: Empresa | W105: AT | X105: MT | Y105: BT
V106: 167 | W106: 0.02134 | X106: 0.35825 | Y106: 0.62041
V107: 102 | W107: 0.064 | X107: 0.32003 | Y107: 0.61596
V108: 103 | W108: 0.02996 | X108: 0.27106 | Y108: 0.69898
V109: 104 | W109: 0.07171 | X109: 0.2909 | Y109: 0.63739
V110: 105 | W110: 0.00823 | X110: 0.24677 | Y110: 0.745
I111: Agente | J111: idagente | K111: indexador | L111: database | M111: RAP do ciclo | N111: Colunas1 | O111: RAP atualizada | V111: 165 | W111: 0.00795 | X111: 0.22554 | Y111: 0.76651
O112: =M112*VLOOKUP(CAPA!C15,Índices!$B$6:$F$626,IF(BD!K112="IPCA",3,2),FALSE)/VLOOKUP(L112,Índices!$B$6:$F$626,IF(BD!K112="IPCA",3,2),FALSE) ->  | V112: 108 | W112: 0.06098 | X112: 0.1711 | Y112: 0.76792
O113: =M113*VLOOKUP(CAPA!C16,Índices!$B$6:$F$626,IF(BD!K113="IPCA",3,2),FALSE)/VLOOKUP(L113,Índices!$B$6:$F$626,IF(BD!K113="IPCA",3,2),FALSE) ->  | V113: 109 | W113: 0.01034 | X113: 0.24366 | Y113: 0.746
O114: =M114*VLOOKUP(CAPA!C17,Índices!$B$6:$F$626,IF(BD!K114="IPCA",3,2),FALSE)/VLOOKUP(L114,Índices!$B$6:$F$626,IF(BD!K114="IPCA",3,2),FALSE) ->  | V114: 110 | W114: 0.01165 | X114: 0.24322 | Y114: 0.74513
O115: =M115*VLOOKUP(CAPA!C18,Índices!$B$6:$F$626,IF(BD!K115="IPCA",3,2),FALSE)/VLOOKUP(L115,Índices!$B$6:$F$626,IF(BD!K115="IPCA",3,2),FALSE) ->  | V115: 111 | W115: 0.03791 | X115: 0.37961 | Y115: 0.58248
O116: =M116*VLOOKUP(CAPA!C19,Índices!$B$6:$F$626,IF(BD!K116="IPCA",3,2),FALSE)/VLOOKUP(L116,Índices!$B$6:$F$626,IF(BD!K116="IPCA",3,2),FALSE) ->  | V116: 112 | W116: 0.02273 | X116: 0.26361 | Y116: 0.71367
O117: =M117*VLOOKUP(CAPA!C20,Índices!$B$6:$F$626,IF(BD!K117="IPCA",3,2),FALSE)/VLOOKUP(L117,Índices!$B$6:$F$626,IF(BD!K117="IPCA",3,2),FALSE) ->  | V117: 113 | W117: 0.01263 | X117: 0.23345 | Y117: 0.75392
O118: =M118*VLOOKUP(CAPA!C21,Índices!$B$6:$F$626,IF(BD!K118="IPCA",3,2),FALSE)/VLOOKUP(L118,Índices!$B$6:$F$626,IF(BD!K118="IPCA",3,2),FALSE) ->  | V118: 114 | W118: 0.01726 | X118: 0.23794 | Y118: 0.7448
O119: =M119*VLOOKUP(CAPA!C22,Índices!$B$6:$F$626,IF(BD!K119="IPCA",3,2),FALSE)/VLOOKUP(L119,Índices!$B$6:$F$626,IF(BD!K119="IPCA",3,2),FALSE) ->  | V119: 115 | W119: 0.00993 | X119: 0.23087 | Y119: 0.7592
O120: =M120*VLOOKUP(CAPA!C23,Índices!$B$6:$F$626,IF(BD!K120="IPCA",3,2),FALSE)/VLOOKUP(L120,Índices!$B$6:$F$626,IF(BD!K120="IPCA",3,2),FALSE) ->  | S120: iddet1 | T120: valor | V120: 116 | W120: 0.00806 | X120: 0.16835 | Y120: 0.82359
O121: =M121*VLOOKUP(CAPA!C24,Índices!$B$6:$F$626,IF(BD!K121="IPCA",3,2),FALSE)/VLOOKUP(L121,Índices!$B$6:$F$626,IF(BD!K121="IPCA",3,2),FALSE) ->  | S121: 56-Datalimite_D-25 | T121: 45615 | V121: 117 | W121: 0.03028 | X121: 0.29131 | Y121: 0.67841
O122: =M122*VLOOKUP(CAPA!C25,Índices!$B$6:$F$626,IF(BD!K122="IPCA",3,2),FALSE)/VLOOKUP(L122,Índices!$B$6:$F$626,IF(BD!K122="IPCA",3,2),FALSE) ->  | S122: 57-DthEfetivaPagamento | T122: 45614 | V122: 118 | W122: 0.04215 | X122: 0.2081 | Y122: 0.74975
O123: =M123*VLOOKUP(CAPA!C26,Índices!$B$6:$F$626,IF(BD!K123="IPCA",3,2),FALSE)/VLOOKUP(L123,Índices!$B$6:$F$626,IF(BD!K123="IPCA",3,2),FALSE) ->  | S123: 58-DthCompetenciaPagamento | T123: 45566 | V123: 119 | W123: 0.01807 | X123: 0.11713 | Y123: 0.8648
O124: =M124*VLOOKUP(CAPA!C27,Índices!$B$6:$F$626,IF(BD!K124="IPCA",3,2),FALSE)/VLOOKUP(L124,Índices!$B$6:$F$626,IF(BD!K124="IPCA",3,2),FALSE) ->  | V124: 120 | W124: - | X124: 0.17688 | Y124: 0.82312
O125: =M125*VLOOKUP(CAPA!C28,Índices!$B$6:$F$626,IF(BD!K125="IPCA",3,2),FALSE)/VLOOKUP(L125,Índices!$B$6:$F$626,IF(BD!K125="IPCA",3,2),FALSE) ->  | V125: 123 | W125: - | X125: 0.13612 | Y125: 0.86388
O126: =M126*VLOOKUP(CAPA!C29,Índices!$B$6:$F$626,IF(BD!K126="IPCA",3,2),FALSE)/VLOOKUP(L126,Índices!$B$6:$F$626,IF(BD!K126="IPCA",3,2),FALSE) ->  | V126: 166 | W126: 0.04257 | X126: 0.29652 | Y126: 0.66092
O127: =M127*VLOOKUP(CAPA!C30,Índices!$B$6:$F$626,IF(BD!K127="IPCA",3,2),FALSE)/VLOOKUP(L127,Índices!$B$6:$F$626,IF(BD!K127="IPCA",3,2),FALSE) ->  | V127: 128 | W127: - | X127: 0.40427 | Y127: 0.59573
O128: =M128*VLOOKUP(CAPA!C31,Índices!$B$6:$F$626,IF(BD!K128="IPCA",3,2),FALSE)/VLOOKUP(L128,Índices!$B$6:$F$626,IF(BD!K128="IPCA",3,2),FALSE) ->  | V128: 129 | W128: 0.02905 | X128: 0.24895 | Y128: 0.722
O129: =M129*VLOOKUP(CAPA!C32,Índices!$B$6:$F$626,IF(BD!K129="IPCA",3,2),FALSE)/VLOOKUP(L129,Índices!$B$6:$F$626,IF(BD!K129="IPCA",3,2),FALSE) ->  | V129: 130 | W129: 0.0175 | X129: 0.14397 | Y129: 0.83853
O130: =M130*VLOOKUP(CAPA!C33,Índices!$B$6:$F$626,IF(BD!K130="IPCA",3,2),FALSE)/VLOOKUP(L130,Índices!$B$6:$F$626,IF(BD!K130="IPCA",3,2),FALSE) ->  | S130: Nível | T130: Mercado Faturado A-6 | V130: 131 | W130: - | X130: 0.30099 | Y130: 0.69901
O131: =M131*VLOOKUP(CAPA!C34,Índices!$B$6:$F$626,IF(BD!K131="IPCA",3,2),FALSE)/VLOOKUP(L131,Índices!$B$6:$F$626,IF(BD!K131="IPCA",3,2),FALSE) ->  | S131: BT | T131: 809360.581 | V131: 132 | W131: 0.02757 | X131: 0.26424 | Y131: 0.70819
O132: =M132*VLOOKUP(CAPA!C35,Índices!$B$6:$F$626,IF(BD!K132="IPCA",3,2),FALSE)/VLOOKUP(L132,Índices!$B$6:$F$626,IF(BD!K132="IPCA",3,2),FALSE) ->  | S132: MT | T132: 268425.19 | V132: 133 | W132: 0.01856 | X132: 0.19536 | Y132: 0.78608
V133: 135 | W133: 0.04788 | X133: 0.27054 | Y133: 0.68158
V134: 136 | W134: 0.06732 | X134: 0.35547 | Y134: 0.57721
V135: 138 | W135: - | X135: 0.07651 | Y135: 0.92349
V136: 139 | W136: - | X136: 0.35483 | Y136: 0.64517
V137: 140 | W137: 0.01004 | X137: 0.21058 | Y137: 0.77938
V138: 143 | W138: - | X138: 0.20409 | Y138: 0.79591
V139: 144 | W139: - | X139: 0.48131 | Y139: 0.51869
A140: NumBar | B140: Nome Conexão | C140: Tensão | D140: Posto Tarifário | E140: Tarifas RB - DRA | F140: Tarifa RB - DRP | G140: Tarifas Fronteira - DRA | H140: Tarifa Fronteira - DRP | I140: M01 | J140: M02 | K140: M03 | L140: M04 | M140: M05 | N140: M06 | O140: M07 | P140: M08 | Q140: M09 | R140: M10 | S140: M11 | T140: M12 | V140: 145 | W140: 0.03725 | X140: 0.29306 | Y140: 0.66969
A141: 6951 | B141: RIO BRANCO I - 138 kV (A) | C141: 138.0 | D141: Ponta | E141: 4648 | F141: 6808 | G141: 9187 | H141: 8675 | I141: 17.5 | J141: 18.4 | K141: 18.4 | L141: 18.4 | M141: 18.4 | N141: 18.4 | O141: 18.4 | P141: 21.9 | Q141: 21.9 | R141: 21.9 | S141: 21.9 | T141: 21.9 | V141: 146 | W141: - | X141: 0.14124 | Y141: 0.85876
A142: 6991 | B142: FEIJO69kVA | C142: 69.0 | D142: Ponta | E142: 4845 | F142: 7143 | G142: 9987 | H142: 6089 | I142: 9.2 | J142: 11 | K142: 11 | L142: 11 | M142: 11 | N142: 11 | O142: 11 | P142: 11.49 | Q142: 11.49 | R142: 11.49 | S142: 11.49 | T142: 11.49 | V142: 147 | W142: - | X142: 0.20977 | Y142: 0.79023
A143: 6952 | B143: RIO BRANCO I - 69 kV (C) | C143: 69.0 | D143: Ponta | E143: 4648 | F143: 6799 | G143: 1669 | H143: 2937 | I143: 176.56 | J143: 164.5 | K143: 164.5 | L143: 164.5 | M143: 164.5 | N143: 164.5 | O143: 164.5 | P143: 188 | Q143: 188 | R143: 188 | S143: 188 | T143: 188 | V143: 148 | W143: 0.03455 | X143: 0.23757 | Y143: 0.72788
A144: 7032 | B144: TUCUMA69kVA | C144: 69.0 | D144: Ponta | F144: 6735 | H144: 4424 | I144: 0 | J144: 0 | K144: 0 | L144: 0 | M144: 0 | N144: 0 | O144: 0 | P144: 0 | Q144: 27.7742 | R144: 172.2 | S144: 172.2 | T144: 172.2 | V144: 149 | W144: - | X144: 0.17399 | Y144: 0.82601
A145: 6951 | B145: RIO BRANCO I - 138 kV (A) | C145: 138.0 | D145: Fora Ponta | E145: 4060 | F145: 6585 | G145: 9187 | H145: 8675 | I145: 19.1 | J145: 19.95 | K145: 19.95 | L145: 19.95 | M145: 19.95 | N145: 19.95 | O145: 19.95 | P145: 21.75 | Q145: 21.75 | R145: 21.75 | S145: 21.75 | T145: 21.75 | V145: 150 | W145: 0.03635 | X145: 0.17413 | Y145: 0.78952
A146: 6991 | B146: FEIJO69kVA | C146: 69.0 | D146: Fora Ponta | E146: 4276 | F146: 6947 | G146: 9987 | H146: 6089 | I146: 9.4 | J146: 11.1 | K146: 11.1 | L146: 11.1 | M146: 11.1 | N146: 11.1 | O146: 11.1 | P146: 11.58 | Q146: 11.58 | R146: 11.58 | S146: 11.58 | T146: 11.58 | V146: 151 | W146: 0.02735 | X146: 0.28351 | Y146: 0.68915
A147: 6952 | B147: RIO BRANCO I - 69 kV (C) | C147: 69.0 | D147: Fora Ponta | E147: 4060 | F147: 6575 | G147: 1669 | H147: 2937 | I147: 179.93 | J147: 167.7 | K147: 167.7 | L147: 167.7 | M147: 167.7 | N147: 167.7 | O147: 167.7 | P147: 189 | Q147: 189 | R147: 189 | S147: 189 | T147: 189 | V147: 152 | W147: 0.00215 | X147: 0.1412 | Y147: 0.85665
A148: 7032 | B148: TUCUMA69kVA | C148: 69.0 | D148: Fora Ponta | F148: 6505 | H148: 4424 | I148: 0 | J148: 0 | K148: 0 | L148: 0 | M148: 0 | N148: 0 | O148: 0 | P148: 0 | Q148: 28.5 | R148: 176.7 | S148: 176.7 | T148: 176.7 | V148: 153 | W148: 0.03606 | X148: 0.17601 | Y148: 0.78793
V149: 154 | W149: 0.12913 | X149: 0.26626 | Y149: 0.60462
V150: 155 | W150: 0.04008 | X150: 0.23225 | Y150: 0.72768
V151: 156 | W151: - | X151: 0.35985 | Y151: 0.64015
V152: 157 | W152: - | X152: 0.15963 | Y152: 0.84037
V153: 158 | W153: - | X153: 0.33049 | Y153: 0.66951
V154: 160 | W154: 0.1013 | X154: 0.22818 | Y154: 0.67051
V155: 161 | W155: - | X155: 0.28355 | Y155: 0.71645
V156: 163 | W156: 0.03507 | X156: 0.1664 | Y156: 0.79853
V157: 164 | W157: - | X157: 0.12897 | Y157: 0.87103
V163: Tab_EnergiaConsumidaMWh
V164: Competencia | W164: EnergiaConsumidaMWh | X164: EnergiaFaturadaMWh | Y164: Dif_Consumida_FaturadaMWh
V165: 45261 | W165: 8562.738 | X165: 3815.838 | Y165: 4746.9
V166: 45292 | W166: 8450.384 | X166: 3714.571 | Y166: 4735.813
V167: 45323 | W167: 8494.08 | X167: 3775.305 | Y167: 4718.775
V168: 45352 | W168: 8654.651 | X168: 3759.406 | Y168: 4895.245
V169: 45383 | W169: 9866.78 | X169: 4227.52 | Y169: 5639.26
V170: 45413 | W170: 9996.92 | X170: 4565.683 | Y170: 5431.237
V171: 45444 | W171: 9295.032 | X171: 4180.375 | Y171: 5114.657
V172: 45474 | W172: 9717.302 | X172: 3760.21 | Y172: 5957.092
V173: 45505 | W173: 10798.805 | X173: 4126.52 | Y173: 6672.285
V174: 45536 | W174: 12018.786 | X174: 5165.834 | Y174: 6852.952
V175: 45566 | W175: 13747.716 | X175: 5922.162 | Y175: 7825.554
V176: 45597 | W176: 13747.716 | X176: 5922.162 | Y176: 7825.554
B469: Transmissora | C469: Indice de atualização | D469: ENCARGO DE CONEXÃO repassável | E469: Instalações com Estabelecimento de RAP que entraram em operação | F469: PA para repasse a tarifa | G469: PA Qualidade DIT | H469: ENCARGO DE CONEXÃO ou PA não rapassável a tarifa (REN 67/2004 ou 68/2004) | I469: PA Empreendimento Autorizado sem estabelecimento prévio de RAP | J469: Contrato | K469: Razão Social Transmissora
B470: ACRE | C470: IPCA | D470: 907468.02 | E470: 0 | F470: 0 | G470: 0 | H470: 0 | I470: 0 | J470: 011/2020 | K470: TRANSMISSORA ACRE SPE S.A. - ACRE (Contrato nº 011/2020 )
B471: EDP NORTE | C471: IPCA | D471: 682963.28 | E471: 0 | F471: 0 | G471: 0 | H471: 0 | I471: 0 | J471: 011/2021 | K471: EDP TRANSMISSAO NORTE S/A - EDP NORTE (Contrato nº 011/2021 )
B472: ELETRONORTE | C472: IPCA | D472: 744381.71 | E472: 0 | F472: 53784.82 | G472: 0 | H472: 0 | I472: 0 | J472: 058/2001 | K472: CENTRAIS ELÉTRICAS DO NORTE DO BRASIL S/A - ELETRONORTE (Contrato nº 058/2001 )
B498: Tabela de Financeiros para o cálculo da Neutralidade | G498: Tabela de Financeiros para o cálculo da Neutralidade de RB | M498: Tabela de Financeiros para o cálculo da Neutralidade CVA processamento
B499: Grupo Tarifa | C499: Detalhe Grupo | D499: Valor | E499: Percentual | G499: Tipo | H499: Detalhe | I499: Posto | J499: Unidade | K499: Valor | M499: Grupo Tarifa | N499: Detalhe Grupo | O499: Valor | P499: Percentual
B500: ENCARGO | C500: CDE | D500: -2112898.672 | F500: ok | G500: CUSTO | H500: CONEXÃO D | I500: Não se aplica | J500: R$ | K500: 0 | M500: ENCARGO | N500: CDE | O500: 4544964.092 | Q500: ok
B501: ENCARGO | C501: CDE Covid TE | D501: -402113.3441 | F501: ok | G501: CUSTO | H501: CONEXÃO T | I501: Não se aplica | J501: R$ | K501: 1654045.272 | L501: ok | M501: ENCARGO | N501: ESS/ERR | O501: 1517705.985 | Q501: ok
B502: ENCARGO | C502: CDE Covid TUSD | D502: -869308.5967 | F502: ok | G502: CUSTO | H502: EUSD | I502: Não se aplica | J502: R$ | K502: 0 | M502: ENCARGO | N502: PROINFA | O502: -1661363.4 | Q502: ok
B503: ENCARGO | C503: CDE Eletrobras | D503: -691184.7882 | F503: ok | G503: CUSTO | H503: EUST - FR | I503: Não se aplica | J503: R$ | K503: 12210696.99 | L503: ok | M503: ENERGIA | N503: ENERGIA REQUERIDA SEM PERDAS | O503: 2217440.278 | Q503: ok
B504: ENCARGO | C504: ESS/ERR | D504: -1814235.523 | F504: ok | G504: CUSTO | H504: EUST - ITAIPU | I504: Não se aplica | J504: R$ | K504: 0 | M504: ENERGIA | N504: PERDAS NA RB (sobre as perdas na D) | O504: 10056.83418 | Q504: ok
B505: ENCARGO | C505: P&D | D505: 0.1509450244 | F505: ok | G505: CUSTO | H505: EUST - RB | I505: Não se aplica | J505: R$ | K505: 20949617.92 | L505: ok | M505: ENERGIA | N505: PERDAS NA RB (sobre o mercado cativo) | O505: 46344.22399 | Q505: ok
B506: ENCARGO | C506: PROINFA | D506: -812545.7494 | F506: ok | G506: CUSTO | H506: TRANSPORTE ITAIPU | I506: Não se aplica | J506: R$ | K506: 0 | M506: ENERGIA | N506: PERDAS NÃO TÉCNICAS | O506: 222313.5821 | Q506: ok
B507: ENCARGO | C507: TFSEE | D507: -134967.9344 | F507: ok | G507: CUSTO | H507: TUSDg ONS (A2) | I507: Não se aplica | J507: R$ | K507: 0 | M507: ENERGIA | N507: PERDAS TÉCNICAS | O507: 258877.5407 | Q507: ok
B508: ENERGIA | C508: ENERGIA REQUERIDA SEM PERDAS | D508: 33540772.36 | F508: ok | G508: CUSTO | H508: TUSDg T (A2) | I508: Não se aplica | J508: R$ | K508: 0 | M508: TRANSPORTE TERCEIROS | N508: EUST - RB | O508: 5225239.227 | Q508: ok
B509: ENERGIA | C509: PERDAS NA RB (sobre as perdas na D) | D509: 103700.6738 | F509: ok | G509: PARÂMETRO | H509: EUST - FR | I509: FORA PONTA | J509: R$ | K509: 6246766.29 | L509: ok | M509: ENCARGO | N509: CDE Covid TE | O509: -0.009693484986 | Q509: ok
B510: ENERGIA | C510: PERDAS NA RB (sobre o mercado cativo) | D510: 566954.8651 | F510: ok | G510: PARÂMETRO | H510: EUST - FR | I510: PONTA | J510: R$ | K510: 5963930.7 | L510: ok | M510: ENCARGO | N510: CDE Covid TUSD | O510: -0.03820651501 | Q510: ok
B511: ENERGIA | C511: PERDAS NÃO TÉCNICAS | D511: 2855312.856 | F511: ok | G511: PARÂMETRO | H511: EUST - RB | I511: FORA PONTA | J511: R$ | K511: 9906605.4 | L511: ok
B512: ENERGIA | C512: PERDAS TÉCNICAS | D512: 3789370.938 | F512: ok | G512: PARÂMETRO | H512: EUST - RB | I512: PONTA | J512: R$ | K512: 11043012.52 | L512: ok
B513: Receita Irrecuperável | C513: Não se aplica | D513: -906924.7164 | F513: ok | G513: PARÂMETRO | H513: Não se aplica | I513: FORA PONTA | J513: MW | K513: 2437.05 | L513: ok
B514: TRANSPORTE TERCEIROS | C514: CONEXÃO T | D514: -142708.238 | F514: ok | G514: PARÂMETRO | H514: Não se aplica | I514: PONTA | J514: MW | K514: 2373.666667 | L514: ok
B515: TRANSPORTE TERCEIROS | C515: EUST - FR | D515: -162724.4685 | F515: ok
B516: TRANSPORTE TERCEIROS | C516: EUST - RB | D516: -571070.0884 | F516: ok
B517: Parcela B | C517: Não se aplica | D517: -1301717.961 | F517: ok
B518: Não se Aplica | C518: Créditos de Pis/Cofins | D518: 3888580.446 | F518: ok
G520: Tabela CUSTOS_BE_FR_ONS_T
G521: Nome | H521: Valor
G522: BE_TUSDG_ONS | H522: 0
G523: BE_TUSDG_T | H523: 0
G524: BE_TUSD_FR | H524: 12210696.99
G525: Evento | H525: 0
G533: Tabela Aj_Cob_EUST_FR
G534: Nome | H534: Posto | I534: Valor
G535: EUST - FR | H535: FP | I535: =SUMIF(Tab_CUSTOS_BE_FR_ONS_T[Nome],"BE_TUSD_FR",Tab_CUSTOS_BE_FR_ONS_T[Valor])*SUMIFS(TabNeuRB[Valor],TabNeuRB[Detalhe],"EUST - FR",TabNeuRB[Posto],"Fora Ponta",TabNeuRB[Tipo],"PARÂMETRO",TabNeuRB[Unidade],"R$")/SUMIFS(TabNeuRB[Valor],TabNeuRB[Detalhe],"EUST - FR",TabNeuRB[Tipo],"PARÂMETRO",TabNeuRB[Unidade],"R$")-SUMIFS(TabNeuRB[Valor],TabNeuRB[Detalhe],"EUST - FR",TabNeuRB[Posto],"Fora Ponta",TabNeuRB[Tipo],"PARÂMETRO",TabNeuRB[Unidade],"R$") -> 0
G536: EUST - FR | H536: P | I536: =SUMIF(Tab_CUSTOS_BE_FR_ONS_T[Nome],"BE_TUSD_FR",Tab_CUSTOS_BE_FR_ONS_T[Valor])*SUMIFS(TabNeuRB[Valor],TabNeuRB[Detalhe],"EUST - FR",TabNeuRB[Posto],"Ponta",TabNeuRB[Tipo],"PARÂMETRO",TabNeuRB[Unidade],"R$")/SUMIFS(TabNeuRB[Valor],TabNeuRB[Detalhe],"EUST - FR",TabNeuRB[Tipo],"PARÂMETRO",TabNeuRB[Unidade],"R$")-SUMIFS(TabNeuRB[Valor],TabNeuRB[Detalhe],"EUST - FR",TabNeuRB[Posto],"Ponta",TabNeuRB[Tipo],"PARÂMETRO",TabNeuRB[Unidade],"R$") -> 0
B593: Empresa | C593: idsgtag | D593: dtConv | E593: VlrMontante | F593: VlrTarOutros | G593: VlrTarB4a | H593: VlrTarB4b
B594: Eletroacre | C594: 146 | D594: 20422 | E594: 0
B599: Tabela de Financeiros para o Cálculo da Neutralidade - Covid | G599: Tabela de CVA - Covid
B600: Grupo Tarifa | C600: Detalhe Grupo | D600: Det3 | E600: Valor | G600: Grupo Tarifa | H600: Detalhe Grupo | I600: Det3 | J600: Valor
B624: Tab_Todos_Financeiros
B625: iddet1 | C625: idDet2 | D625: idDet3 | E625: id_grupo_tarifa | F625: id_detalhe_grupo_tarifa | G625: id_tipo_tarifa | H625: Det1 | I625: Det2 | J625: Det3 | K625: Grupo_TARIFA | L625: Detalhe_Grupo_TARIFA | M625: Tipo_Tarifa | N625: valor
B626: 19 | C626: 60 | D626: 73 | E626: 3 | F626: 12 | G626: 9 | H626: CVA | I626: APURAÇÃO | J626: CDE Covid TUSD | K626: ENCARGO | L626: CDE Covid TUSD | M626: Não se aplica | N626: -0.03820651501
... 70 more rows

Sheet Entrada
B1: Entrada de parâmetros para cálculo tarifário
B4: Energia | D4: Últ. Atualização | F4: Parâmetros para Revisão | P4: ="Caso de OR para a empresa é: " &IF(BD!C53=4,"caso 1","caso 3") -> Caso de OR para a empresa é: caso 3
D6: 45308 | F6: CAPEX - Ativos de Distribuição | J6: Custo Operacional Real do(s) último(s) ano(s) | P6: Outras Receitas - Caso 1 e 2 | AC6: =" Diferenças em relação ao RTA "&YEAR(AC7) -> Diferenças em relação ao RTA 2023 | AG6: ="Valores RTA "&YEAR(AG7) -> Valores RTA 2023
B7: Montante de Geração Própria | C7: =206.65+3238+275 -> 3719.65 | D7: 45580 | F7: (1) Ativo Imobilizado em Serviço (Valor Novo de Reposição) | G7: =G71*VLOOKUP(DATE(YEAR(CAPA!$C$10),MONTH(CAPA!$C$10)-1,1),Índices!$B$135:$D$638,3,0)/VLOOKUP(DATE(YEAR($G$70),MONTH($G$70)-1,1),Índices!$B$135:$D$638,3,0) ->  | J7: Ano do Custo Operacional | L7: =MAX(Tab_RIT_BMP[ANO])-1 -> -1 | M7: =MAX(Tab_RIT_BMP[ANO]) -> 0 | P7: Tipo de Receita | Q7: =DATE(YEAR(LnkTxtDRPData),MONTH(LnkTxtDRPData)-1,1) -> 2024-11-01 | R7: =DATE(YEAR(Q7),MONTH(Q7)-1,1) -> 2024-10-01 | S7: =DATE(YEAR(R7),MONTH(R7)-1,1) -> 2024-09-01 | T7: 2024-08-01 | U7: 2024-07-01 | V7: 2024-06-01 | W7: 2024-05-01 | X7: 2024-04-01 | Y7: 2024-03-01 | Z7: 2024-02-01 | AA7: 2024-01-01 | AB7: 2023-12-01 | AC7: =EDATE(AB7,-1) -> 2023-11-01 | AD7: =EDATE(AC7,-1) -> 2023-10-01 | AE7: 2023-09-01 | AF7: =AC7 -> 2023-11-01 | AG7: =AD7 -> 2023-10-01 | AH7: 2023-09-01 | AI7: =UDEROR!Y12 -> 00:00:00 | AJ7: =UDEROR!Z12 -> 00:00:00 | AK7: =UDEROR!AA12 -> 00:00:00 | AL7: =UDEROR!AB12 -> 00:00:00 | AM7: =UDEROR!AC12 -> 00:00:00 | AN7: =UDEROR!AD12 -> 00:00:00 | AO7: =UDEROR!AE12 -> 00:00:00 | AP7: =UDEROR!AF12 -> 00:00:00 | AQ7: =UDEROR!AG12 -> 00:00:00 | AR7: =UDEROR!AH12 -> 00:00:00 | AS7: =UDEROR!AI12 -> 00:00:00 | AT7: =UDEROR!AJ12 -> 00:00:00 | AU7: =UDEROR!AK12 -> 00:00:00 | AV7: =UDEROR!AL12 -> 00:00:00 | AW7: =UDEROR!AM12 -> 00:00:00 | AX7: =UDEROR!AN12 -> 00:00:00 | AY7: =UDEROR!AO12 -> 00:00:00 | AZ7: =UDEROR!AP12 -> 00:00:00 | BA7: =UDEROR!AQ12 -> 00:00:00 | BB7: =UDEROR!AR12 -> 00:00:00 | BC7: =UDEROR!AS12 -> 00:00:00 | BD7: =UDEROR!AT12 -> 00:00:00
B8: Custo médio da Geração Própria | C8: =C15*(18/365)+C14*(365-18)/365 -> 306.9393699 | D8: 45580 | F8: (2) Índice de Aproveitamento Integral | G8: =G72*VLOOKUP(DATE(YEAR(CAPA!$C$10),MONTH(CAPA!$C$10)-1,1),Índices!$B$135:$D$638,3,0)/VLOOKUP(DATE(YEAR($G$70),MONTH($G$70)-1,1),Índices!$B$135:$D$638,3,0) ->  | J8: CONTA PESSOAL | P8: Serviços Cobráveis | Q8: =SUMIFS(Tab_Uderor[R$],Tab_Uderor[Competencia],Entrada!Q$7,Tab_Uderor[TipoReceita],Entrada!$P8)*0+R8 -> 73097.35 | R8: =SUMIFS(Tab_Uderor[R$],Tab_Uderor[Competencia],Entrada!R$7,Tab_Uderor[TipoReceita],Entrada!$P8) -> 73097.35 | S8: =SUMIFS(Tab_Uderor[R$],Tab_Uderor[Competencia],Entrada!S$7,Tab_Uderor[TipoReceita],Entrada!$P8) -> 88433.09 | T8: =SUMIFS(Tab_Uderor[R$],Tab_Uderor[Competencia],Entrada!T$7,Tab_Uderor[TipoReceita],Entrada!$P8) -> 96256.12 | U8: =SUMIFS(Tab_Uderor[R$],Tab_Uderor[Competencia],Entrada!U$7,Tab_Uderor[TipoReceita],Entrada!$P8) -> 96485.93 | V8: =SUMIFS(Tab_Uderor[R$],Tab_Uderor[Competencia],Entrada!V$7,Tab_Uderor[TipoReceita],Entrada!$P8) -> 84537.61 | W8: =SUMIFS(Tab_Uderor[R$],Tab_Uderor[Competencia],Entrada!W$7,Tab_Uderor[TipoReceita],Entrada!$P8) -> 76514.93 | X8: =SUMIFS(Tab_Uderor[R$],Tab_Uderor[Competencia],Entrada!X$7,Tab_Uderor[TipoReceita],Entrada!$P8) -> 81426.42 | Y8: =SUMIFS(Tab_Uderor[R$],Tab_Uderor[Competencia],Entrada!Y$7,Tab_Uderor[TipoReceita],Entrada!$P8) -> 70861.74 | Z8: =SUMIFS(Tab_Uderor[R$],Tab_Uderor[Competencia],Entrada!Z$7,Tab_Uderor[TipoReceita],Entrada!$P8) -> 80403.87 | AA8: =SUMIFS(Tab_Uderor[R$],Tab_Uderor[Competencia],Entrada!AA$7,Tab_Uderor[TipoReceita],Entrada!$P8) -> 93772.68 | AB8: =SUMIFS(Tab_Uderor[R$],Tab_Uderor[Competencia],Entrada!AB$7,Tab_Uderor[TipoReceita],Entrada!$P8) -> 107489.6 | AC8: =SUMIFS(Tab_Uderor[R$],Tab_Uderor[Competencia],Entrada!AC$7,Tab_Uderor[TipoReceita],Entrada!$P8)-AF8 -> 1222.02 | AD8: =SUMIFS(Tab_Uderor[R$],Tab_Uderor[Competencia],Entrada!AD$7,Tab_Uderor[TipoReceita],Entrada!$P8)-AG8 -> 0 | AE8: =SUMIFS(Tab_Uderor[R$],Tab_Uderor[Competencia],Entrada!AE$7,Tab_Uderor[TipoReceita],Entrada!$P8)-AH8 -> 0 | AF8: 89702.74 | AG8: 89702.74 | AH8: 102928.85
D9: 45308 | F9: (3) Obrigações Especiais Bruta | G9: =G73*VLOOKUP(DATE(YEAR(CAPA!$C$10),MONTH(CAPA!$C$10)-1,1),Índices!$B$135:$D$638,3,0)/VLOOKUP(DATE(YEAR($G$70),MONTH($G$70)-1,1),Índices!$B$135:$D$638,3,0) ->  | J9: BMP - 610530501; 610550501; 610532501; 610552501; 610530511; 610532511 | K9: Remuneração | L9: =SUMIFS(Tab_RIT_BMP[SALDO],Tab_RIT_BMP[CONTA],610530501,Tab_RIT_BMP[ANO],$L$7)+SUMIFS(Tab_RIT_BMP[SALDO],Tab_RIT_BMP[CONTA],610550501,Tab_RIT_BMP[ANO],$L$7)+ SUMIFS(Tab_RIT_BMP[SALDO],Tab_RIT_BMP[CONTA],610532501,Tab_RIT_BMP[ANO],$L$7)+SUMIFS(Tab_RIT_BMP[SALDO],Tab_RIT_BMP[CONTA],610552501,Tab_RIT_BMP[ANO],$L$7)+ SUMIFS(Tab_RIT_BMP[SALDO],Tab_RIT_BMP[CONTA],610530511,Tab_RIT_BMP[ANO],$L$7)+SUMIFS(Tab_RIT_BMP[SALDO],Tab_RIT_BMP[CONTA],610532511,Tab_RIT_BMP[ANO],$L$7) -> 0 | M9: =SUMIFS(Tab_RIT_BMP[SALDO],Tab_RIT_BMP[CONTA],610530501,Tab_RIT_BMP[ANO],$M$7)+SUMIFS(Tab_RIT_BMP[SALDO],Tab_RIT_BMP[CONTA],610550501,Tab_RIT_BMP[ANO],$M$7)+ SUMIFS(Tab_RIT_BMP[SALDO],Tab_RIT_BMP[CONTA],610532501,Tab_RIT_BMP[ANO],$M$7)+SUMIFS(Tab_RIT_BMP[SALDO],Tab_RIT_BMP[CONTA],610552501,Tab_RIT_BMP[ANO],$M$7)+ SUMIFS(Tab_RIT_BMP[SALDO],Tab_RIT_BMP[CONTA],610530511,Tab_RIT_BMP[ANO],$M$7)+SUMIFS(Tab_RIT_BMP[SALDO],Tab_RIT_BMP[CONTA],610532511,Tab_RIT_BMP[ANO],$M$7) -> 0 | P9: Arrecadação de convênios ou valores pela fatura | Q9: =SUMIFS(Tab_Uderor[R$],Tab_Uderor[Competencia],Entrada!Q$7,Tab_Uderor[TipoReceita],Entrada!$P9)*0+R9 -> 183109.87 | R9: =SUMIFS(Tab_Uderor[R$],Tab_Uderor[Competencia],Entrada!R$7,Tab_Uderor[TipoReceita],Entrada!$P9) -> 183109.87 | S9: =SUMIFS(Tab_Uderor[R$],Tab_Uderor[Competencia],Entrada!S$7,Tab_Uderor[TipoReceita],Entrada!$P9) -> 172740.29 | T9: =SUMIFS(Tab_Uderor[R$],Tab_Uderor[Competencia],Entrada!T$7,Tab_Uderor[TipoReceita],Entrada!$P9) -> 185260.27 | U9: =SUMIFS(Tab_Uderor[R$],Tab_Uderor[Competencia],Entrada!U$7,Tab_Uderor[TipoReceita],Entrada!$P9) -> 0 | V9: =SUMIFS(Tab_Uderor[R$],Tab_Uderor[Competencia],Entrada!V$7,Tab_Uderor[TipoReceita],Entrada!$P9) -> 0 | W9: =SUMIFS(Tab_Uderor[R$],Tab_Uderor[Competencia],Entrada!W$7,Tab_Uderor[TipoReceita],Entrada!$P9) -> 0 | X9: =SUMIFS(Tab_Uderor[R$],Tab_Uderor[Competencia],Entrada!X$7,Tab_Uderor[TipoReceita],Entrada!$P9) -> 0 | Y9: =SUMIFS(Tab_Uderor[R$],Tab_Uderor[Competencia],Entrada!Y$7,Tab_Uderor[TipoReceita],Entrada!$P9) -> 0 | Z9: =SUMIFS(Tab_Uderor[R$],Tab_Uderor[Competencia],Entrada!Z$7,Tab_Uderor[TipoReceita],Entrada!$P9) -> 0 | AA9: =SUMIFS(Tab_Uderor[R$],Tab_Uderor[Competencia],Entrada!AA$7,Tab_Uderor[TipoReceita],Entrada!$P9) -> 0 | AB9: =SUMIFS(Tab_Uderor[R$],Tab_Uderor[Competencia],Entrada!AB$7,Tab_Uderor[TipoReceita],Entrada!$P9) -> 0 | AC9: =SUMIFS(Tab_Uderor[R$],Tab_Uderor[Competencia],Entrada!AC$7,Tab_Uderor[TipoReceita],Entrada!$P9)-AF9 -> 0 | AD9: =SUMIFS(Tab_Uderor[R$],Tab_Uderor[Competencia],Entrada!AD$7,Tab_Uderor[TipoReceita],Entrada!$P9)-AG9 -> 0 | AE9: =SUMIFS(Tab_Uderor[R$],Tab_Uderor[Competencia],Entrada!AE$7,Tab_Uderor[TipoReceita],Entrada!$P9)-AH9 -> 0 | AF9: 0 | AG9: 0 | AH9: 0
D10: 45308 | F10: (4) Bens Totalmente Depreciados | G10: =G74*VLOOKUP(DATE(YEAR(CAPA!$C$10),MONTH(CAPA!$C$10)-1,1),Índices!$B$135:$D$638,3,0)/VLOOKUP(DATE(YEAR($G$70),MONTH($G$70)-1,1),Índices!$B$135:$D$638,3,0) ->  | J10: BMP - 610530502; 610550502; 610532502; 610552502 | K10: Encargos | L10: =SUMIFS(Tab_RIT_BMP[SALDO],Tab_RIT_BMP[CONTA],610530502,Tab_RIT_BMP[ANO],$L$7)+SUMIFS(Tab_RIT_BMP[SALDO],Tab_RIT_BMP[CONTA],610550502,Tab_RIT_BMP[ANO],$L$7)+ SUMIFS(Tab_RIT_BMP[SALDO],Tab_RIT_BMP[CONTA],610532502,Tab_RIT_BMP[ANO],$L$7)+SUMIFS(Tab_RIT_BMP[SALDO],Tab_RIT_BMP[CONTA],610552502,Tab_RIT_BMP[ANO],$L$7) -> 0 | M10: =SUMIFS(Tab_RIT_BMP[SALDO],Tab_RIT_BMP[CONTA],610530502,Tab_RIT_BMP[ANO],$M$7)+SUMIFS(Tab_RIT_BMP[SALDO],Tab_RIT_BMP[CONTA],610550502,Tab_RIT_BMP[ANO],$M$7)+ SUMIFS(Tab_RIT_BMP[SALDO],Tab_RIT_BMP[CONTA],610532502,Tab_RIT_BMP[ANO],$M$7)+SUMIFS(Tab_RIT_BMP[SALDO],Tab_RIT_BMP[CONTA],610552502,Tab_RIT_BMP[ANO],$M$7) -> 0 | P10: Arrecadação de faturas de terceiros por estrutura própria | Q10: =SUMIFS(Tab_Uderor[R$],Tab_Uderor[Competencia],Entrada!Q$7,Tab_Uderor[TipoReceita],Entrada!$P10)*0+R10 -> 0 | R10: =SUMIFS(Tab_Uderor[R$],Tab_Uderor[Competencia],Entrada!R$7,Tab_Uderor[TipoReceita],Entrada!$P10) -> 0 | S10: =SUMIFS(Tab_Uderor[R$],Tab_Uderor[Competencia],Entrada!S$7,Tab_Uderor[TipoReceita],Entrada!$P10) -> 0 | T10: =SUMIFS(Tab_Uderor[R$],Tab_Uderor[Competencia],Entrada!T$7,Tab_Uderor[TipoReceita],Entrada!$P10) -> 0 | U10: =SUMIFS(Tab_Uderor[R$],Tab_Uderor[Competencia],Entrada!U$7,Tab_Uderor[TipoReceita],Entrada!$P10) -> 0 | V10: =SUMIFS(Tab_Uderor[R$],Tab_Uderor[Competencia],Entrada!V$7,Tab_Uderor[TipoReceita],Entrada!$P10) -> 0 | W10: =SUMIFS(Tab_Uderor[R$],Tab_Uderor[Competencia],Entrada!W$7,Tab_Uderor[TipoReceita],Entrada!$P10) -> 0 | X10: =SUMIFS(Tab_Uderor[R$],Tab_Uderor[Competencia],Entrada!X$7,Tab_Uderor[TipoReceita],Entrada!$P10) -> 0 | Y10: =SUMIFS(Tab_Uderor[R$],Tab_Uderor[Competencia],Entrada!Y$7,Tab_Uderor[TipoReceita],Entrada!$P10) -> 0 | Z10: =SUMIFS(Tab_Uderor[R$],Tab_Uderor[Competencia],Entrada!Z$7,Tab_Uderor[TipoReceita],Entrada!$P10) -> 0 | AA10: =SUMIFS(Tab_Uderor[R$],Tab_Uderor[Competencia],Entrada!AA$7,Tab_Uderor[TipoReceita],Entrada!$P10) -> 0 | AB10: =SUMIFS(Tab_Uderor[R$],Tab_Uderor[Competencia],Entrada!AB$7,Tab_Uderor[TipoReceita],Entrada!$P10) -> 0 | AC10: =SUMIFS(Tab_Uderor[R$],Tab_Uderor[Competencia],Entrada!AC$7,Tab_Uderor[TipoReceita],Entrada!$P10)-AF10 -> 0 | AD10: =SUMIFS(Tab_Uderor[R$],Tab_Uderor[Competencia],Entrada!AD$7,Tab_Uderor[TipoReceita],Entrada!$P10)-AG10 -> 0 | AE10: =SUMIFS(Tab_Uderor[R$],Tab_Uderor[Competencia],Entrada!AE$7,Tab_Uderor[TipoReceita],Entrada!$P10)-AH10 -> 0 | AF10: 0 | AG10: 0 | AH10: 0
F11: (5) Base de Remuneração Bruta = (1)-(2)-(3)-(4) | G11: =G7-G8-G9-G10 ->  | J11: BMP - 610530503; 610550503; 610532503; 610552503 | K11: Previdência Privada - Corrente | L11: =SUMIFS(Tab_RIT_BMP[SALDO],Tab_RIT_BMP[CONTA],610530503,Tab_RIT_BMP[ANO],$L$7)+SUMIFS(Tab_RIT_BMP[SALDO],Tab_RIT_BMP[CONTA],610550503,Tab_RIT_BMP[ANO],$L$7)+ SUMIFS(Tab_RIT_BMP[SALDO],Tab_RIT_BMP[CONTA],610532503,Tab_RIT_BMP[ANO],$L$7)+SUMIFS(Tab_RIT_BMP[SALDO],Tab_RIT_BMP[CONTA],610552503,Tab_RIT_BMP[ANO],$L$7) -> 0 | M11: =SUMIFS(Tab_RIT_BMP[SALDO],Tab_RIT_BMP[CONTA],610530503,Tab_RIT_BMP[ANO],$M$7)+SUMIFS(Tab_RIT_BMP[SALDO],Tab_RIT_BMP[CONTA],610550503,Tab_RIT_BMP[ANO],$M$7)+ SUMIFS(Tab_RIT_BMP[SALDO],Tab_RIT_BMP[CONTA],610532503,Tab_RIT_BMP[ANO],$M$7)+SUMIFS(Tab_RIT_BMP[SALDO],Tab_RIT_BMP[CONTA],610552503,Tab_RIT_BMP[ANO],$M$7) -> 0 | P11: Veiculação de publicidade | Q11: =SUMIFS(Tab_Uderor[R$],Tab_Uderor[Competencia],Entrada!Q$7,Tab_Uderor[TipoReceita],Entrada!$P11)*0+R11 -> 0 | R11: =SUMIFS(Tab_Uderor[R$],Tab_Uderor[Competencia],Entrada!R$7,Tab_Uderor[TipoReceita],Entrada!$P11) -> 0 | S11: =SUMIFS(Tab_Uderor[R$],Tab_Uderor[Competencia],Entrada!S$7,Tab_Uderor[TipoReceita],Entrada!$P11) -> 0 | T11: =SUMIFS(Tab_Uderor[R$],Tab_Uderor[Competencia],Entrada!T$7,Tab_Uderor[TipoReceita],Entrada!$P11) -> 0 | U11: =SUMIFS(Tab_Uderor[R$],Tab_Uderor[Competencia],Entrada!U$7,Tab_Uderor[TipoReceita],Entrada!$P11) -> 0 | V11: =SUMIFS(Tab_Uderor[R$],Tab_Uderor[Competencia],Entrada!V$7,Tab_Uderor[TipoReceita],Entrada!$P11) -> 0 | W11: =SUMIFS(Tab_Uderor[R$],Tab_Uderor[Competencia],Entrada!W$7,Tab_Uderor[TipoReceita],Entrada!$P11) -> 0 | X11: =SUMIFS(Tab_Uderor[R$],Tab_Uderor[Competencia],Entrada!X$7,Tab_Uderor[TipoReceita],Entrada!$P11) -> 0 | Y11: =SUMIFS(Tab_Uderor[R$],Tab_Uderor[Competencia],Entrada!Y$7,Tab_Uderor[TipoReceita],Entrada!$P11) -> 0 | Z11: =SUMIFS(Tab_Uderor[R$],Tab_Uderor[Competencia],Entrada!Z$7,Tab_Uderor[TipoReceita],Entrada!$P11) -> 0 | AA11: =SUMIFS(Tab_Uderor[R$],Tab_Uderor[Competencia],Entrada!AA$7,Tab_Uderor[TipoReceita],Entrada!$P11) -> 0 | AB11: =SUMIFS(Tab_Uderor[R$],Tab_Uderor[Competencia],Entrada!AB$7,Tab_Uderor[TipoReceita],Entrada!$P11) -> 0 | AC11: =SUMIFS(Tab_Uderor[R$],Tab_Uderor[Competencia],Entrada!AC$7,Tab_Uderor[TipoReceita],Entrada!$P11)-AF11 -> 0 | AD11: =SUMIFS(Tab_Uderor[R$],Tab_Uderor[Competencia],Entrada!AD$7,Tab_Uderor[TipoReceita],Entrada!$P11)-AG11 -> 0 | AE11: =SUMIFS(Tab_Uderor[R$],Tab_Uderor[Competencia],Entrada!AE$7,Tab_Uderor[TipoReceita],Entrada!$P11)-AH11 -> 0 | AF11: 0 | AG11: 0 | AH11: 0
F12: (6) Depreciação Acumulada | G12: =G76*VLOOKUP(DATE(YEAR(CAPA!$C$10),MONTH(CAPA!$C$10)-1,1),Índices!$B$135:$D$638,3,0)/VLOOKUP(DATE(YEAR($G$70),MONTH($G$70)-1,1),Índices!$B$135:$D$638,3,0) ->  | J12: BMP - 610530508; 610550508; 610532508; 610552508 | K12: Outros Benefícios | L12: =SUMIFS(Tab_RIT_BMP[SALDO],Tab_RIT_BMP[CONTA],610530508,Tab_RIT_BMP[ANO],$L$7)+SUMIFS(Tab_RIT_BMP[SALDO],Tab_RIT_BMP[CONTA],610550508,Tab_RIT_BMP[ANO],$L$7)+ SUMIFS(Tab_RIT_BMP[SALDO],Tab_RIT_BMP[CONTA],610532508,Tab_RIT_BMP[ANO],$L$7)+SUMIFS(Tab_RIT_BMP[SALDO],Tab_RIT_BMP[CONTA],610552508,Tab_RIT_BMP[ANO],$L$7) -> 0 | M12: =SUMIFS(Tab_RIT_BMP[SALDO],Tab_RIT_BMP[CONTA],610530508,Tab_RIT_BMP[ANO],$M$7)+SUMIFS(Tab_RIT_BMP[SALDO],Tab_RIT_BMP[CONTA],610550508,Tab_RIT_BMP[ANO],$M$7)+ SUMIFS(Tab_RIT_BMP[SALDO],Tab_RIT_BMP[CONTA],610532508,Tab_RIT_BMP[ANO],$M$7)+SUMIFS(Tab_RIT_BMP[SALDO],Tab_RIT_BMP[CONTA],610552508,Tab_RIT_BMP[ANO],$M$7) -> 0 | P12: Aluguel ou cessão onerosa de imóveis e espaços físicos | Q12: =SUMIFS(Tab_Uderor[R$],Tab_Uderor[Competencia],Entrada!Q$7,Tab_Uderor[TipoReceita],Entrada!$P12)*0+R12 -> 0 | R12: =SUMIFS(Tab_Uderor[R$],Tab_Uderor[Competencia],Entrada!R$7,Tab_Uderor[TipoReceita],Entrada!$P12) -> 0 | S12: =SUMIFS(Tab_Uderor[R$],Tab_Uderor[Competencia],Entrada!S$7,Tab_Uderor[TipoReceita],Entrada!$P12) -> 0 | T12: =SUMIFS(Tab_Uderor[R$],Tab_Uderor[Competencia],Entrada!T$7,Tab_Uderor[TipoReceita],Entrada!$P12) -> 0 | U12: =SUMIFS(Tab_Uderor[R$],Tab_Uderor[Competencia],Entrada!U$7,Tab_Uderor[TipoReceita],Entrada!$P12) -> 0 | V12: =SUMIFS(Tab_Uderor[R$],Tab_Uderor[Competencia],Entrada!V$7,Tab_Uderor[TipoReceita],Entrada!$P12) -> 0 | W12: =SUMIFS(Tab_Uderor[R$],Tab_Uderor[Competencia],Entrada!W$7,Tab_Uderor[TipoReceita],Entrada!$P12) -> 0 | X12: =SUMIFS(Tab_Uderor[R$],Tab_Uderor[Competencia],Entrada!X$7,Tab_Uderor[TipoReceita],Entrada!$P12) -> 0 | Y12: =SUMIFS(Tab_Uderor[R$],Tab_Uderor[Competencia],Entrada!Y$7,Tab_Uderor[TipoReceita],Entrada!$P12) -> 0 | Z12: =SUMIFS(Tab_Uderor[R$],Tab_Uderor[Competencia],Entrada!Z$7,Tab_Uderor[TipoReceita],Entrada!$P12) -> 0 | AA12: =SUMIFS(Tab_Uderor[R$],Tab_Uderor[Competencia],Entrada!AA$7,Tab_Uderor[TipoReceita],Entrada!$P12) -> 0 | AB12: =SUMIFS(Tab_Uderor[R$],Tab_Uderor[Competencia],Entrada!AB$7,Tab_Uderor[TipoReceita],Entrada!$P12) -> 0 | AC12: =SUMIFS(Tab_Uderor[R$],Tab_Uderor[Competencia],Entrada!AC$7,Tab_Uderor[TipoReceita],Entrada!$P12)-AF12 -> 0 | AD12: =SUMIFS(Tab_Uderor[R$],Tab_Uderor[Competencia],Entrada!AD$7,Tab_Uderor[TipoReceita],Entrada!$P12)-AG12 -> 0 | AE12: =SUMIFS(Tab_Uderor[R$],Tab_Uderor[Competencia],Entrada!AE$7,Tab_Uderor[TipoReceita],Entrada!$P12)-AH12 -> 0 | AF12: 0 | AG12: 0 | AH12: 0
F13: (7) AIS Líquido (Valor de Mercado em Uso) | G13: =G7-G12 ->  | J13: BMP - 610530506; 610550506; 610532506; 610552506 | K13: Despesas Rescisórias | L13: =SUMIFS(Tab_RIT_BMP[SALDO],Tab_RIT_BMP[CONTA],610530506,Tab_RIT_BMP[ANO],$L$7)+SUMIFS(Tab_RIT_BMP[SALDO],Tab_RIT_BMP[CONTA],610550506,Tab_RIT_BMP[ANO],$L$7)+ SUMIFS(Tab_RIT_BMP[SALDO],Tab_RIT_BMP[CONTA],610532506,Tab_RIT_BMP[ANO],$L$7)+SUMIFS(Tab_RIT_BMP[SALDO],Tab_RIT_BMP[CONTA],610552506,Tab_RIT_BMP[ANO],$L$7) -> 0 | M13: =SUMIFS(Tab_RIT_BMP[SALDO],Tab_RIT_BMP[CONTA],610530506,Tab_RIT_BMP[ANO],$M$7)+SUMIFS(Tab_RIT_BMP[SALDO],Tab_RIT_BMP[CONTA],610550506,Tab_RIT_BMP[ANO],$M$7)+ SUMIFS(Tab_RIT_BMP[SALDO],Tab_RIT_BMP[CONTA],610532506,Tab_RIT_BMP[ANO],$M$7)+SUMIFS(Tab_RIT_BMP[SALDO],Tab_RIT_BMP[CONTA],610552506,Tab_RIT_BMP[ANO],$M$7) -> 0 | P13: Compartilhamento de infraestrutura | Q13: =SUMIFS(Tab_Uderor[R$],Tab_Uderor[Competencia],Entrada!Q$7,Tab_Uderor[TipoReceita],Entrada!$P13)*0+R13 -> 131719.66 | R13: =SUMIFS(Tab_Uderor[R$],Tab_Uderor[Competencia],Entrada!R$7,Tab_Uderor[TipoReceita],Entrada!$P13) -> 131719.66 | S13: =SUMIFS(Tab_Uderor[R$],Tab_Uderor[Competencia],Entrada!S$7,Tab_Uderor[TipoReceita],Entrada!$P13) -> 777634.5 | T13: =SUMIFS(Tab_Uderor[R$],Tab_Uderor[Competencia],Entrada!T$7,Tab_Uderor[TipoReceita],Entrada!$P13) -> 121478.83 | U13: =SUMIFS(Tab_Uderor[R$],Tab_Uderor[Competencia],Entrada!U$7,Tab_Uderor[TipoReceita],Entrada!$P13) -> 50678.83 | V13: =SUMIFS(Tab_Uderor[R$],Tab_Uderor[Competencia],Entrada!V$7,Tab_Uderor[TipoReceita],Entrada!$P13) -> 339893.98 | W13: =SUMIFS(Tab_Uderor[R$],Tab_Uderor[Competencia],Entrada!W$7,Tab_Uderor[TipoReceita],Entrada!$P13) -> 339893.98 | X13: =SUMIFS(Tab_Uderor[R$],Tab_Uderor[Competencia],Entrada!X$7,Tab_Uderor[TipoReceita],Entrada!$P13) -> 340859.42 | Y13: =SUMIFS(Tab_Uderor[R$],Tab_Uderor[Competencia],Entrada!Y$7,Tab_Uderor[TipoReceita],Entrada!$P13) -> 346598.8 | Z13: =SUMIFS(Tab_Uderor[R$],Tab_Uderor[Competencia],Entrada!Z$7,Tab_Uderor[TipoReceita],Entrada!$P13) -> 346598.8 | AA13: =SUMIFS(Tab_Uderor[R$],Tab_Uderor[Competencia],Entrada!AA$7,Tab_Uderor[TipoReceita],Entrada!$P13) -> 291760.73 | AB13: =SUMIFS(Tab_Uderor[R$],Tab_Uderor[Competencia],Entrada!AB$7,Tab_Uderor[TipoReceita],Entrada!$P13) -> 285774.69 | AC13: =SUMIFS(Tab_Uderor[R$],Tab_Uderor[Competencia],Entrada!AC$7,Tab_Uderor[TipoReceita],Entrada!$P13)-AF13 -> 31095.07 | AD13: =SUMIFS(Tab_Uderor[R$],Tab_Uderor[Competencia],Entrada!AD$7,Tab_Uderor[TipoReceita],Entrada!$P13)-AG13 -> 0 | AE13: =SUMIFS(Tab_Uderor[R$],Tab_Uderor[Competencia],Entrada!AE$7,Tab_Uderor[TipoReceita],Entrada!$P13)-AH13 -> 0 | AF13: 254843.02 | AG13: 254843.02 | AH13: 269934.62
B14: ACR Médio de 2024 | C14: 307.29 | D14: DSP 3.080/2024 | F14: (8) Índice de Aproveitamento Depreciado | G14: =G78*VLOOKUP(DATE(YEAR(CAPA!$C$10),MONTH(CAPA!$C$10)-1,1),Índices!$B$135:$D$638,3,0)/VLOOKUP(DATE(YEAR($G$70),MONTH($G$70)-1,1),Índices!$B$135:$D$638,3,0) ->  | J14: BMP - 610530507; 610550507; 610532507; 610552507 | K14: Participação nos Lucros e Resultados - PLR | L14: =SUMIFS(Tab_RIT_BMP[SALDO],Tab_RIT_BMP[CONTA],610530507,Tab_RIT_BMP[ANO],$L$7)+SUMIFS(Tab_RIT_BMP[SALDO],Tab_RIT_BMP[CONTA],610550507,Tab_RIT_BMP[ANO],$L$7)+SUMIFS(Tab_RIT_BMP[SALDO],Tab_RIT_BMP[CONTA],610532507,Tab_RIT_BMP[ANO],$L$7)+SUMIFS(Tab_RIT_BMP[SALDO],Tab_RIT_BMP[CONTA],610552507,Tab_RIT_BMP[ANO],$L$7) -> 0 | M14: =SUMIFS(Tab_RIT_BMP[SALDO],Tab_RIT_BMP[CONTA],610530507,Tab_RIT_BMP[ANO],$M$7)+SUMIFS(Tab_RIT_BMP[SALDO],Tab_RIT_BMP[CONTA],610550507,Tab_RIT_BMP[ANO],$M$7)+ SUMIFS(Tab_RIT_BMP[SALDO],Tab_RIT_BMP[CONTA],610532507,Tab_RIT_BMP[ANO],$M$7)+SUMIFS(Tab_RIT_BMP[SALDO],Tab_RIT_BMP[CONTA],610552507,Tab_RIT_BMP[ANO],$M$7) -> 0 | P14: Serviços de avaliação técnica e aferição de medidores. | Q14: =SUMIFS(Tab_Uderor[R$],Tab_Uderor[Competencia],Entrada!Q$7,Tab_Uderor[TipoReceita],Entrada!$P14)*0+R14 -> 0 | R14: =SUMIFS(Tab_Uderor[R$],Tab_Uderor[Competencia],Entrada!R$7,Tab_Uderor[TipoReceita],Entrada!$P14) -> 0 | S14: =SUMIFS(Tab_Uderor[R$],Tab_Uderor[Competencia],Entrada!S$7,Tab_Uderor[TipoReceita],Entrada!$P14) -> 0 | T14: =SUMIFS(Tab_Uderor[R$],Tab_Uderor[Competencia],Entrada!T$7,Tab_Uderor[TipoReceita],Entrada!$P14) -> 0 | U14: =SUMIFS(Tab_Uderor[R$],Tab_Uderor[Competencia],Entrada!U$7,Tab_Uderor[TipoReceita],Entrada!$P14) -> 0 | V14: =SUMIFS(Tab_Uderor[R$],Tab_Uderor[Competencia],Entrada!V$7,Tab_Uderor[TipoReceita],Entrada!$P14) -> 0 | W14: =SUMIFS(Tab_Uderor[R$],Tab_Uderor[Competencia],Entrada!W$7,Tab_Uderor[TipoReceita],Entrada!$P14) -> 0 | X14: =SUMIFS(Tab_Uderor[R$],Tab_Uderor[Competencia],Entrada!X$7,Tab_Uderor[TipoReceita],Entrada!$P14) -> 0 | Y14: =SUMIFS(Tab_Uderor[R$],Tab_Uderor[Competencia],Entrada!Y$7,Tab_Uderor[TipoReceita],Entrada!$P14) -> 0 | Z14: =SUMIFS(Tab_Uderor[R$],Tab_Uderor[Competencia],Entrada!Z$7,Tab_Uderor[TipoReceita],Entrada!$P14) -> 0 | AA14: =SUMIFS(Tab_Uderor[R$],Tab_Uderor[Competencia],Entrada!AA$7,Tab_Uderor[TipoReceita],Entrada!$P14) -> 0 | AB14: =SUMIFS(Tab_Uderor[R$],Tab_Uderor[Competencia],Entrada!AB$7,Tab_Uderor[TipoReceita],Entrada!$P14) -> 0 | AC14: =SUMIFS(Tab_Uderor[R$],Tab_Uderor[Competencia],Entrada!AC$7,Tab_Uderor[TipoReceita],Entrada!$P14)-AF14 -> 0 | AD14: =SUMIFS(Tab_Uderor[R$],Tab_Uderor[Competencia],Entrada!AD$7,Tab_Uderor[TipoReceita],Entrada!$P14)-AG14 -> 0 | AE14: =SUMIFS(Tab_Uderor[R$],Tab_Uderor[Competencia],Entrada!AE$7,Tab_Uderor[TipoReceita],Entrada!$P14)-AH14 -> 0
B15: ACR médio de 2023 | C15: 300.18 | D15: DSP 4.109/2023 | F15: (9) Valor da Base de Remuneração (VBR) | G15: =G13-G14 ->  | J15: BMP - 610530599; 610550599; 610532599; 610552599 | K15: Outros | L15: =SUMIFS(Tab_RIT_BMP[SALDO],Tab_RIT_BMP[CONTA],610530599,Tab_RIT_BMP[ANO],$L$7)+SUMIFS(Tab_RIT_BMP[SALDO],Tab_RIT_BMP[CONTA],610550599,Tab_RIT_BMP[ANO],$L$7)+ SUMIFS(Tab_RIT_BMP[SALDO],Tab_RIT_BMP[CONTA],610532599,Tab_RIT_BMP[ANO],$L$7)+SUMIFS(Tab_RIT_BMP[SALDO],Tab_RIT_BMP[CONTA],610552599,Tab_RIT_BMP[ANO],$L$7) -> 0 | M15: =SUMIFS(Tab_RIT_BMP[SALDO],Tab_RIT_BMP[CONTA],610530599,Tab_RIT_BMP[ANO],$M$7)+SUMIFS(Tab_RIT_BMP[SALDO],Tab_RIT_BMP[CONTA],610550599,Tab_RIT_BMP[ANO],$M$7)+ SUMIFS(Tab_RIT_BMP[SALDO],Tab_RIT_BMP[CONTA],610532599,Tab_RIT_BMP[ANO],$M$7)+SUMIFS(Tab_RIT_BMP[SALDO],Tab_RIT_BMP[CONTA],610552599,Tab_RIT_BMP[ANO],$M$7) -> 0 | P15: Operacionalização de serviço de créditos tributários | Q15: =SUMIFS(Tab_Uderor[R$],Tab_Uderor[Competencia],Entrada!Q$7,Tab_Uderor[TipoReceita],Entrada!$P15)*0+R15 -> 0 | R15: =SUMIFS(Tab_Uderor[R$],Tab_Uderor[Competencia],Entrada!R$7,Tab_Uderor[TipoReceita],Entrada!$P15) -> 0 | S15: =SUMIFS(Tab_Uderor[R$],Tab_Uderor[Competencia],Entrada!S$7,Tab_Uderor[TipoReceita],Entrada!$P15) -> 0 | T15: =SUMIFS(Tab_Uderor[R$],Tab_Uderor[Competencia],Entrada!T$7,Tab_Uderor[TipoReceita],Entrada!$P15) -> 0 | U15: =SUMIFS(Tab_Uderor[R$],Tab_Uderor[Competencia],Entrada!U$7,Tab_Uderor[TipoReceita],Entrada!$P15) -> 0 | V15: =SUMIFS(Tab_Uderor[R$],Tab_Uderor[Competencia],Entrada!V$7,Tab_Uderor[TipoReceita],Entrada!$P15) -> 0 | W15: =SUMIFS(Tab_Uderor[R$],Tab_Uderor[Competencia],Entrada!W$7,Tab_Uderor[TipoReceita],Entrada!$P15) -> 0 | X15: =SUMIFS(Tab_Uderor[R$],Tab_Uderor[Competencia],Entrada!X$7,Tab_Uderor[TipoReceita],Entrada!$P15) -> 0 | Y15: =SUMIFS(Tab_Uderor[R$],Tab_Uderor[Competencia],Entrada!Y$7,Tab_Uderor[TipoReceita],Entrada!$P15) -> 0 | Z15: =SUMIFS(Tab_Uderor[R$],Tab_Uderor[Competencia],Entrada!Z$7,Tab_Uderor[TipoReceita],Entrada!$P15) -> 0 | AA15: =SUMIFS(Tab_Uderor[R$],Tab_Uderor[Competencia],Entrada!AA$7,Tab_Uderor[TipoReceita],Entrada!$P15) -> 0 | AB15: =SUMIFS(Tab_Uderor[R$],Tab_Uderor[Competencia],Entrada!AB$7,Tab_Uderor[TipoReceita],Entrada!$P15) -> 0 | AC15: =SUMIFS(Tab_Uderor[R$],Tab_Uderor[Competencia],Entrada!AC$7,Tab_Uderor[TipoReceita],Entrada!$P15)-AF15 -> 0 | AD15: =SUMIFS(Tab_Uderor[R$],Tab_Uderor[Competencia],Entrada!AD$7,Tab_Uderor[TipoReceita],Entrada!$P15)-AG15 -> 0 | AE15: =SUMIFS(Tab_Uderor[R$],Tab_Uderor[Competencia],Entrada!AE$7,Tab_Uderor[TipoReceita],Entrada!$P15)-AH15 -> 0
F16: (10) Almoxarifado em Operação | G16: =G80*VLOOKUP(DATE(YEAR(CAPA!$C$10),MONTH(CAPA!$C$10)-1,1),Índices!$B$135:$D$638,3,0)/VLOOKUP(DATE(YEAR($G$70),MONTH($G$70)-1,1),Índices!$B$135:$D$638,3,0) ->  | J16: BMP - 610530510; 610550510; 610532510; 610552510 | K16: (-) Créditos de Tributos Recuperáveis | L16: =SUMIFS(Tab_RIT_BMP[SALDO],Tab_RIT_BMP[CONTA],610530510,Tab_RIT_BMP[ANO],$L$7)+SUMIFS(Tab_RIT_BMP[SALDO],Tab_RIT_BMP[CONTA],610550510,Tab_RIT_BMP[ANO],$L$7)+ SUMIFS(Tab_RIT_BMP[SALDO],Tab_RIT_BMP[CONTA],610532510,Tab_RIT_BMP[ANO],$L$7)+SUMIFS(Tab_RIT_BMP[SALDO],Tab_RIT_BMP[CONTA],610552510,Tab_RIT_BMP[ANO],$L$7) -> 0 | M16: =SUMIFS(Tab_RIT_BMP[SALDO],Tab_RIT_BMP[CONTA],610530510,Tab_RIT_BMP[ANO],$M$7)+SUMIFS(Tab_RIT_BMP[SALDO],Tab_RIT_BMP[CONTA],610550510,Tab_RIT_BMP[ANO],$M$7)+ SUMIFS(Tab_RIT_BMP[SALDO],Tab_RIT_BMP[CONTA],610532510,Tab_RIT_BMP[ANO],$M$7)+SUMIFS(Tab_RIT_BMP[SALDO],Tab_RIT_BMP[CONTA],610552510,Tab_RIT_BMP[ANO],$M$7) -> 0 | P16: Elaboração de projeto, construção, operação, manutenção ou reforma de: | Q16: =SUMIFS(Tab_Uderor[R$],Tab_Uderor[Competencia],Entrada!Q$7,Tab_Uderor[TipoReceita],Entrada!$P16)*0+R16 -> 0 | R16: =SUMIFS(Tab_Uderor[R$],Tab_Uderor[Competencia],Entrada!R$7,Tab_Uderor[TipoReceita],Entrada!$P16) -> 0 | S16: =SUMIFS(Tab_Uderor[R$],Tab_Uderor[Competencia],Entrada!S$7,Tab_Uderor[TipoReceita],Entrada!$P16) -> 0 | T16: =SUMIFS(Tab_Uderor[R$],Tab_Uderor[Competencia],Entrada!T$7,Tab_Uderor[TipoReceita],Entrada!$P16) -> 0 | U16: =SUMIFS(Tab_Uderor[R$],Tab_Uderor[Competencia],Entrada!U$7,Tab_Uderor[TipoReceita],Entrada!$P16) -> 0 | V16: =SUMIFS(Tab_Uderor[R$],Tab_Uderor[Competencia],Entrada!V$7,Tab_Uderor[TipoReceita],Entrada!$P16) -> 0 | W16: =SUMIFS(Tab_Uderor[R$],Tab_Uderor[Competencia],Entrada!W$7,Tab_Uderor[TipoReceita],Entrada!$P16) -> 0 | X16: =SUMIFS(Tab_Uderor[R$],Tab_Uderor[Competencia],Entrada!X$7,Tab_Uderor[TipoReceita],Entrada!$P16) -> 0 | Y16: =SUMIFS(Tab_Uderor[R$],Tab_Uderor[Competencia],Entrada!Y$7,Tab_Uderor[TipoReceita],Entrada!$P16) -> 0 | Z16: =SUMIFS(Tab_Uderor[R$],Tab_Uderor[Competencia],Entrada!Z$7,Tab_Uderor[TipoReceita],Entrada!$P16) -> 0 | AA16: =SUMIFS(Tab_Uderor[R$],Tab_Uderor[Competencia],Entrada!AA$7,Tab_Uderor[TipoReceita],Entrada!$P16) -> 0 | AB16: =SUMIFS(Tab_Uderor[R$],Tab_Uderor[Competencia],Entrada!AB$7,Tab_Uderor[TipoReceita],Entrada!$P16) -> 0 | AC16: =SUMIFS(Tab_Uderor[R$],Tab_Uderor[Competencia],Entrada!AC$7,Tab_Uderor[TipoReceita],Entrada!$P16)-AF16 -> 0 | AD16: =SUMIFS(Tab_Uderor[R$],Tab_Uderor[Competencia],Entrada!AD$7,Tab_Uderor[TipoReceita],Entrada!$P16)-AG16 -> 0 | AE16: =SUMIFS(Tab_Uderor[R$],Tab_Uderor[Competencia],Entrada!AE$7,Tab_Uderor[TipoReceita],Entrada!$P16)-AH16 -> 0
F17: (11) Ativo Diferido | G17: =G81*VLOOKUP(DATE(YEAR(CAPA!$C$10),MONTH(CAPA!$C$10)-1,1),Índices!$B$135:$D$638,3,0)/VLOOKUP(DATE(YEAR($G$70),MONTH($G$70)-1,1),Índices!$B$135:$D$638,3,0) ->  | J17: BMP - 6105306; 6105506; 6105326; 6105526 | K17: Administradores | L17: =SUMIFS(Tab_RIT_BMP[SALDO],Tab_RIT_BMP[CONTA],6105306,Tab_RIT_BMP[ANO],$L$7)+SUMIFS(Tab_RIT_BMP[SALDO],Tab_RIT_BMP[CONTA],6105506,Tab_RIT_BMP[ANO],$L$7)+ SUMIFS(Tab_RIT_BMP[SALDO],Tab_RIT_BMP[CONTA],6105326,Tab_RIT_BMP[ANO],$L$7)+SUMIFS(Tab_RIT_BMP[SALDO],Tab_RIT_BMP[CONTA],6105526,Tab_RIT_BMP[ANO],$L$7) -> 0 | M17: =SUMIFS(Tab_RIT_BMP[SALDO],Tab_RIT_BMP[CONTA],6105306,Tab_RIT_BMP[ANO],$M$7)+SUMIFS(Tab_RIT_BMP[SALDO],Tab_RIT_BMP[CONTA],6105506,Tab_RIT_BMP[ANO],$M$7)+ SUMIFS(Tab_RIT_BMP[SALDO],Tab_RIT_BMP[CONTA],6105326,Tab_RIT_BMP[ANO],$M$7)+SUMIFS(Tab_RIT_BMP[SALDO],Tab_RIT_BMP[CONTA],6105526,Tab_RIT_BMP[ANO],$M$7) -> 0 | P17: (1) redes de distribuição de energia elétrica destinadas à regularização fundiária de interesse específico e ao atendimento dos empreendimentos de múltiplas unidades consumidoras; | Q17: =SUMIFS(Tab_Uderor[R$],Tab_Uderor[Competencia],Entrada!Q$7,Tab_Uderor[TipoReceita],Entrada!$P17)*0+R17 -> 0 | R17: =SUMIFS(Tab_Uderor[R$],Tab_Uderor[Competencia],Entrada!R$7,Tab_Uderor[TipoReceita],Entrada!$P17) -> 0 | S17: =SUMIFS(Tab_Uderor[R$],Tab_Uderor[Competencia],Entrada!S$7,Tab_Uderor[TipoReceita],Entrada!$P17) -> 0 | T17: =SUMIFS(Tab_Uderor[R$],Tab_Uderor[Competencia],Entrada!T$7,Tab_Uderor[TipoReceita],Entrada!$P17) -> 0 | U17: =SUMIFS(Tab_Uderor[R$],Tab_Uderor[Competencia],Entrada!U$7,Tab_Uderor[TipoReceita],Entrada!$P17) -> 0 | V17: =SUMIFS(Tab_Uderor[R$],Tab_Uderor[Competencia],Entrada!V$7,Tab_Uderor[TipoReceita],Entrada!$P17) -> 0 | W17: =SUMIFS(Tab_Uderor[R$],Tab_Uderor[Competencia],Entrada!W$7,Tab_Uderor[TipoReceita],Entrada!$P17) -> 0 | X17: =SUMIFS(Tab_Uderor[R$],Tab_Uderor[Competencia],Entrada!X$7,Tab_Uderor[TipoReceita],Entrada!$P17) -> 0 | Y17: =SUMIFS(Tab_Uderor[R$],Tab_Uderor[Competencia],Entrada!Y$7,Tab_Uderor[TipoReceita],Entrada!$P17) -> 0 | Z17: =SUMIFS(Tab_Uderor[R$],Tab_Uderor[Competencia],Entrada!Z$7,Tab_Uderor[TipoReceita],Entrada!$P17) -> 0 | AA17: =SUMIFS(Tab_Uderor[R$],Tab_Uderor[Competencia],Entrada!AA$7,Tab_Uderor[TipoReceita],Entrada!$P17) -> 0 | AB17: =SUMIFS(Tab_Uderor[R$],Tab_Uderor[Competencia],Entrada!AB$7,Tab_Uderor[TipoReceita],Entrada!$P17) -> 0 | AC17: =SUMIFS(Tab_Uderor[R$],Tab_Uderor[Competencia],Entrada!AC$7,Tab_Uderor[TipoReceita],Entrada!$P17)-AF17 -> 0 | AD17: =SUMIFS(Tab_Uderor[R$],Tab_Uderor[Competencia],Entrada!AD$7,Tab_Uderor[TipoReceita],Entrada!$P17)-AG17 -> 0 | AE17: =SUMIFS(Tab_Uderor[R$],Tab_Uderor[Competencia],Entrada!AE$7,Tab_Uderor[TipoReceita],Entrada!$P17)-AH17 -> 0
F18: (12) Obrigações Especiais Líquida | G18: =G82*VLOOKUP(DATE(YEAR(CAPA!$C$10),MONTH(CAPA!$C$10)-1,1),Índices!$B$135:$D$638,3,0)/VLOOKUP(DATE(YEAR($G$70),MONTH($G$70)-1,1),Índices!$B$135:$D$638,3,0) ->  | K18: Subtotal | L18: =SUM(L9:L17) -> 0 | M18: =SUM(M9:M17) -> 0 | P18: (2) redes de energia elétrica destinadas ao acesso dos sistemas de distribuição ou transmissão; | Q18: =SUMIFS(Tab_Uderor[R$],Tab_Uderor[Competencia],Entrada!Q$7,Tab_Uderor[TipoReceita],Entrada!$P18)*0+R18 -> 0 | R18: =SUMIFS(Tab_Uderor[R$],Tab_Uderor[Competencia],Entrada!R$7,Tab_Uderor[TipoReceita],Entrada!$P18) -> 0 | S18: =SUMIFS(Tab_Uderor[R$],Tab_Uderor[Competencia],Entrada!S$7,Tab_Uderor[TipoReceita],Entrada!$P18) -> 0 | T18: =SUMIFS(Tab_Uderor[R$],Tab_Uderor[Competencia],Entrada!T$7,Tab_Uderor[TipoReceita],Entrada!$P18) -> 0 | U18: =SUMIFS(Tab_Uderor[R$],Tab_Uderor[Competencia],Entrada!U$7,Tab_Uderor[TipoReceita],Entrada!$P18) -> 0 | V18: =SUMIFS(Tab_Uderor[R$],Tab_Uderor[Competencia],Entrada!V$7,Tab_Uderor[TipoReceita],Entrada!$P18) -> 0 | W18: =SUMIFS(Tab_Uderor[R$],Tab_Uderor[Competencia],Entrada!W$7,Tab_Uderor[TipoReceita],Entrada!$P18) -> 0 | X18: =SUMIFS(Tab_Uderor[R$],Tab_Uderor[Competencia],Entrada!X$7,Tab_Uderor[TipoReceita],Entrada!$P18) -> 0 | Y18: =SUMIFS(Tab_Uderor[R$],Tab_Uderor[Competencia],Entrada!Y$7,Tab_Uderor[TipoReceita],Entrada!$P18) -> 0 | Z18: =SUMIFS(Tab_Uderor[R$],Tab_Uderor[Competencia],Entrada!Z$7,Tab_Uderor[TipoReceita],Entrada!$P18) -> 0 | AA18: =SUMIFS(Tab_Uderor[R$],Tab_Uderor[Competencia],Entrada!AA$7,Tab_Uderor[TipoReceita],Entrada!$P18) -> 0 | AB18: =SUMIFS(Tab_Uderor[R$],Tab_Uderor[Competencia],Entrada!AB$7,Tab_Uderor[TipoReceita],Entrada!$P18) -> 0 | AC18: =SUMIFS(Tab_Uderor[R$],Tab_Uderor[Competencia],Entrada!AC$7,Tab_Uderor[TipoReceita],Entrada!$P18)-AF18 -> 0 | AD18: =SUMIFS(Tab_Uderor[R$],Tab_Uderor[Competencia],Entrada!AD$7,Tab_Uderor[TipoReceita],Entrada!$P18)-AG18 -> 0 | AE18: =SUMIFS(Tab_Uderor[R$],Tab_Uderor[Competencia],Entrada!AE$7,Tab_Uderor[TipoReceita],Entrada!$P18)-AH18 -> 0
F19: (13) Terrenos e Servidões | G19: =G83*VLOOKUP(DATE(YEAR(CAPA!$C$10),MONTH(CAPA!$C$10)-1,1),Índices!$B$135:$D$638,3,0)/VLOOKUP(DATE(YEAR($G$70),MONTH($G$70)-1,1),Índices!$B$135:$D$638,3,0) ->  | J19: CONTA MATERIAIS | P19: (3) subestações de energia; | Q19: =SUMIFS(Tab_Uderor[R$],Tab_Uderor[Competencia],Entrada!Q$7,Tab_Uderor[TipoReceita],Entrada!$P19)*0+R19 -> 0 | R19: =SUMIFS(Tab_Uderor[R$],Tab_Uderor[Competencia],Entrada!R$7,Tab_Uderor[TipoReceita],Entrada!$P19) -> 0 | S19: =SUMIFS(Tab_Uderor[R$],Tab_Uderor[Competencia],Entrada!S$7,Tab_Uderor[TipoReceita],Entrada!$P19) -> 0 | T19: =SUMIFS(Tab_Uderor[R$],Tab_Uderor[Competencia],Entrada!T$7,Tab_Uderor[TipoReceita],Entrada!$P19) -> 0 | U19: =SUMIFS(Tab_Uderor[R$],Tab_Uderor[Competencia],Entrada!U$7,Tab_Uderor[TipoReceita],Entrada!$P19) -> 0 | V19: =SUMIFS(Tab_Uderor[R$],Tab_Uderor[Competencia],Entrada!V$7,Tab_Uderor[TipoReceita],Entrada!$P19) -> 0 | W19: =SUMIFS(Tab_Uderor[R$],Tab_Uderor[Competencia],Entrada!W$7,Tab_Uderor[TipoReceita],Entrada!$P19) -> 0 | X19: =SUMIFS(Tab_Uderor[R$],Tab_Uderor[Competencia],Entrada!X$7,Tab_Uderor[TipoReceita],Entrada!$P19) -> 0 | Y19: =SUMIFS(Tab_Uderor[R$],Tab_Uderor[Competencia],Entrada!Y$7,Tab_Uderor[TipoReceita],Entrada!$P19) -> 0 | Z19: =SUMIFS(Tab_Uderor[R$],Tab_Uderor[Competencia],Entrada!Z$7,Tab_Uderor[TipoReceita],Entrada!$P19) -> 0 | AA19: =SUMIFS(Tab_Uderor[R$],Tab_Uderor[Competencia],Entrada!AA$7,Tab_Uderor[TipoReceita],Entrada!$P19) -> 0 | AB19: =SUMIFS(Tab_Uderor[R$],Tab_Uderor[Competencia],Entrada!AB$7,Tab_Uderor[TipoReceita],Entrada!$P19) -> 0 | AC19: =SUMIFS(Tab_Uderor[R$],Tab_Uderor[Competencia],Entrada!AC$7,Tab_Uderor[TipoReceita],Entrada!$P19)-AF19 -> 0 | AD19: =SUMIFS(Tab_Uderor[R$],Tab_Uderor[Competencia],Entrada!AD$7,Tab_Uderor[TipoReceita],Entrada!$P19)-AG19 -> 0 | AE19: =SUMIFS(Tab_Uderor[R$],Tab_Uderor[Competencia],Entrada!AE$7,Tab_Uderor[TipoReceita],Entrada!$P19)-AH19 -> 0
F20: (14) Base de Rem. Líquida Total = (1)-(6)-(8)+(10)+(11)-(12)+(13) | G20: =G15+G16+G17-G18+G19 ->  | J20: BMP - 610530701; 610550701; 610532701; 610552701 | K20: Materiais | L20: =SUMIFS(Tab_RIT_BMP[SALDO],Tab_RIT_BMP[CONTA],610530701,Tab_RIT_BMP[ANO],$L$7)+SUMIFS(Tab_RIT_BMP[SALDO],Tab_RIT_BMP[CONTA],610550701,Tab_RIT_BMP[ANO],$L$7)+ SUMIFS(Tab_RIT_BMP[SALDO],Tab_RIT_BMP[CONTA],610532701,Tab_RIT_BMP[ANO],$L$7)+SUMIFS(Tab_RIT_BMP[SALDO],Tab_RIT_BMP[CONTA],610552701,Tab_RIT_BMP[ANO],$L$7) -> 0 | M20: =SUMIFS(Tab_RIT_BMP[SALDO],Tab_RIT_BMP[CONTA],610530701,Tab_RIT_BMP[ANO],$M$7)+SUMIFS(Tab_RIT_BMP[SALDO],Tab_RIT_BMP[CONTA],610550701,Tab_RIT_BMP[ANO],$M$7)+ SUMIFS(Tab_RIT_BMP[SALDO],Tab_RIT_BMP[CONTA],610532701,Tab_RIT_BMP[ANO],$M$7)+SUMIFS(Tab_RIT_BMP[SALDO],Tab_RIT_BMP[CONTA],610552701,Tab_RIT_BMP[ANO],$M$7) -> 0 | P20: (4) instalações elétricas internas de unidades consumidoras; | Q20: =SUMIFS(Tab_Uderor[R$],Tab_Uderor[Competencia],Entrada!Q$7,Tab_Uderor[TipoReceita],Entrada!$P20)*0+R20 -> 0 | R20: =SUMIFS(Tab_Uderor[R$],Tab_Uderor[Competencia],Entrada!R$7,Tab_Uderor[TipoReceita],Entrada!$P20) -> 0 | S20: =SUMIFS(Tab_Uderor[R$],Tab_Uderor[Competencia],Entrada!S$7,Tab_Uderor[TipoReceita],Entrada!$P20) -> 0 | T20: =SUMIFS(Tab_Uderor[R$],Tab_Uderor[Competencia],Entrada!T$7,Tab_Uderor[TipoReceita],Entrada!$P20) -> 0 | U20: =SUMIFS(Tab_Uderor[R$],Tab_Uderor[Competencia],Entrada!U$7,Tab_Uderor[TipoReceita],Entrada!$P20) -> 0 | V20: =SUMIFS(Tab_Uderor[R$],Tab_Uderor[Competencia],Entrada!V$7,Tab_Uderor[TipoReceita],Entrada!$P20) -> 0 | W20: =SUMIFS(Tab_Uderor[R$],Tab_Uderor[Competencia],Entrada!W$7,Tab_Uderor[TipoReceita],Entrada!$P20) -> 0 | X20: =SUMIFS(Tab_Uderor[R$],Tab_Uderor[Competencia],Entrada!X$7,Tab_Uderor[TipoReceita],Entrada!$P20) -> 0 | Y20: =SUMIFS(Tab_Uderor[R$],Tab_Uderor[Competencia],Entrada!Y$7,Tab_Uderor[TipoReceita],Entrada!$P20) -> 0 | Z20: =SUMIFS(Tab_Uderor[R$],Tab_Uderor[Competencia],Entrada!Z$7,Tab_Uderor[TipoReceita],Entrada!$P20) -> 0 | AA20: =SUMIFS(Tab_Uderor[R$],Tab_Uderor[Competencia],Entrada!AA$7,Tab_Uderor[TipoReceita],Entrada!$P20) -> 0 | AB20: =SUMIFS(Tab_Uderor[R$],Tab_Uderor[Competencia],Entrada!AB$7,Tab_Uderor[TipoReceita],Entrada!$P20) -> 0 | AC20: =SUMIFS(Tab_Uderor[R$],Tab_Uderor[Competencia],Entrada!AC$7,Tab_Uderor[TipoReceita],Entrada!$P20)-AF20 -> 0 | AD20: =SUMIFS(Tab_Uderor[R$],Tab_Uderor[Competencia],Entrada!AD$7,Tab_Uderor[TipoReceita],Entrada!$P20)-AG20 -> 0 | AE20: =SUMIFS(Tab_Uderor[R$],Tab_Uderor[Competencia],Entrada!AE$7,Tab_Uderor[TipoReceita],Entrada!$P20)-AH20 -> 0
F21: (15) Saldo RGR PLPT | G21: =G85*VLOOKUP(DATE(YEAR(CAPA!$C$10),MONTH(CAPA!$C$10)-1,1),Índices!$B$135:$D$638,3,0)/VLOOKUP(DATE(YEAR($G$70),MONTH($G$70)-1,1),Índices!$B$135:$D$638,3,0) ->  | J21: BMP - 610530799; 610550799; 610532799; 610552799 | K21: Outros | L21: =SUMIFS(Tab_RIT_BMP[SALDO],Tab_RIT_BMP[CONTA],610530799,Tab_RIT_BMP[ANO],$L$7)+SUMIFS(Tab_RIT_BMP[SALDO],Tab_RIT_BMP[CONTA],610550799,Tab_RIT_BMP[ANO],$L$7)+ SUMIFS(Tab_RIT_BMP[SALDO],Tab_RIT_BMP[CONTA],610532799,Tab_RIT_BMP[ANO],$L$7)+SUMIFS(Tab_RIT_BMP[SALDO],Tab_RIT_BMP[CONTA],610552799,Tab_RIT_BMP[ANO],$L$7) -> 0 | M21: =SUMIFS(Tab_RIT_BMP[SALDO],Tab_RIT_BMP[CONTA],610530799,Tab_RIT_BMP[ANO],$M$7)+SUMIFS(Tab_RIT_BMP[SALDO],Tab_RIT_BMP[CONTA],610550799,Tab_RIT_BMP[ANO],$M$7)+ SUMIFS(Tab_RIT_BMP[SALDO],Tab_RIT_BMP[CONTA],610532799,Tab_RIT_BMP[ANO],$M$7)+SUMIFS(Tab_RIT_BMP[SALDO],Tab_RIT_BMP[CONTA],610552799,Tab_RIT_BMP[ANO],$M$7) -> 0 | P21: (5) banco de capacitores; | Q21: =SUMIFS(Tab_Uderor[R$],Tab_Uderor[Competencia],Entrada!Q$7,Tab_Uderor[TipoReceita],Entrada!$P21)*0+R21 -> 0 | R21: =SUMIFS(Tab_Uderor[R$],Tab_Uderor[Competencia],Entrada!R$7,Tab_Uderor[TipoReceita],Entrada!$P21) -> 0 | S21: =SUMIFS(Tab_Uderor[R$],Tab_Uderor[Competencia],Entrada!S$7,Tab_Uderor[TipoReceita],Entrada!$P21) -> 0 | T21: =SUMIFS(Tab_Uderor[R$],Tab_Uderor[Competencia],Entrada!T$7,Tab_Uderor[TipoReceita],Entrada!$P21) -> 0 | U21: =SUMIFS(Tab_Uderor[R$],Tab_Uderor[Competencia],Entrada!U$7,Tab_Uderor[TipoReceita],Entrada!$P21) -> 0 | V21: =SUMIFS(Tab_Uderor[R$],Tab_Uderor[Competencia],Entrada!V$7,Tab_Uderor[TipoReceita],Entrada!$P21) -> 0 | W21: =SUMIFS(Tab_Uderor[R$],Tab_Uderor[Competencia],Entrada!W$7,Tab_Uderor[TipoReceita],Entrada!$P21) -> 0 | X21: =SUMIFS(Tab_Uderor[R$],Tab_Uderor[Competencia],Entrada!X$7,Tab_Uderor[TipoReceita],Entrada!$P21) -> 0 | Y21: =SUMIFS(Tab_Uderor[R$],Tab_Uderor[Competencia],Entrada!Y$7,Tab_Uderor[TipoReceita],Entrada!$P21) -> 0 | Z21: =SUMIFS(Tab_Uderor[R$],Tab_Uderor[Competencia],Entrada!Z$7,Tab_Uderor[TipoReceita],Entrada!$P21) -> 0 | AA21: =SUMIFS(Tab_Uderor[R$],Tab_Uderor[Competencia],Entrada!AA$7,Tab_Uderor[TipoReceita],Entrada!$P21) -> 0 | AB21: =SUMIFS(Tab_Uderor[R$],Tab_Uderor[Competencia],Entrada!AB$7,Tab_Uderor[TipoReceita],Entrada!$P21) -> 0 | AC21: =SUMIFS(Tab_Uderor[R$],Tab_Uderor[Competencia],Entrada!AC$7,Tab_Uderor[TipoReceita],Entrada!$P21)-AF21 -> 0 | AD21: =SUMIFS(Tab_Uderor[R$],Tab_Uderor[Competencia],Entrada!AD$7,Tab_Uderor[TipoReceita],Entrada!$P21)-AG21 -> 0 | AE21: =SUMIFS(Tab_Uderor[R$],Tab_Uderor[Competencia],Entrada!AE$7,Tab_Uderor[TipoReceita],Entrada!$P21)-AH21 -> 0
F22: (16) Saldo RGR Demais Investimentos | G22: =G86*VLOOKUP(DATE(YEAR(CAPA!$C$10),MONTH(CAPA!$C$10)-1,1),Índices!$B$135:$D$638,3,0)/VLOOKUP(DATE(YEAR($G$70),MONTH($G$70)-1,1),Índices!$B$135:$D$638,3,0) ->  | J22: BMP - 610530710; 610550710; 610532710; 610552710 | K22: (-) Créditos de Tributos Recuperáveis | L22: =SUMIFS(Tab_RIT_BMP[SALDO],Tab_RIT_BMP[CONTA],610530710,Tab_RIT_BMP[ANO],$L$7)+SUMIFS(Tab_RIT_BMP[SALDO],Tab_RIT_BMP[CONTA],610550710,Tab_RIT_BMP[ANO],$L$7)+ SUMIFS(Tab_RIT_BMP[SALDO],Tab_RIT_BMP[CONTA],610532710,Tab_RIT_BMP[ANO],$L$7)+SUMIFS(Tab_RIT_BMP[SALDO],Tab_RIT_BMP[CONTA],610552710,Tab_RIT_BMP[ANO],$L$7) -> 0 | M22: =SUMIFS(Tab_RIT_BMP[SALDO],Tab_RIT_BMP[CONTA],610530710,Tab_RIT_BMP[ANO],$M$7)+SUMIFS(Tab_RIT_BMP[SALDO],Tab_RIT_BMP[CONTA],610550710,Tab_RIT_BMP[ANO],$M$7)+ SUMIFS(Tab_RIT_BMP[SALDO],Tab_RIT_BMP[CONTA],610532710,Tab_RIT_BMP[ANO],$M$7)+SUMIFS(Tab_RIT_BMP[SALDO],Tab_RIT_BMP[CONTA],610552710,Tab_RIT_BMP[ANO],$M$7) -> 0 | P22: (6) padrões de entrada de unidades consumidoras atendidas em baixa tensão; | Q22: =SUMIFS(Tab_Uderor[R$],Tab_Uderor[Competencia],Entrada!Q$7,Tab_Uderor[TipoReceita],Entrada!$P22)*0+R22 -> 0 | R22: =SUMIFS(Tab_Uderor[R$],Tab_Uderor[Competencia],Entrada!R$7,Tab_Uderor[TipoReceita],Entrada!$P22) -> 0 | S22: =SUMIFS(Tab_Uderor[R$],Tab_Uderor[Competencia],Entrada!S$7,Tab_Uderor[TipoReceita],Entrada!$P22) -> 0 | T22: =SUMIFS(Tab_Uderor[R$],Tab_Uderor[Competencia],Entrada!T$7,Tab_Uderor[TipoReceita],Entrada!$P22) -> 0 | U22: =SUMIFS(Tab_Uderor[R$],Tab_Uderor[Competencia],Entrada!U$7,Tab_Uderor[TipoReceita],Entrada!$P22) -> 0 | V22: =SUMIFS(Tab_Uderor[R$],Tab_Uderor[Competencia],Entrada!V$7,Tab_Uderor[TipoReceita],Entrada!$P22) -> 0 | W22: =SUMIFS(Tab_Uderor[R$],Tab_Uderor[Competencia],Entrada!W$7,Tab_Uderor[TipoReceita],Entrada!$P22) -> 0 | X22: =SUMIFS(Tab_Uderor[R$],Tab_Uderor[Competencia],Entrada!X$7,Tab_Uderor[TipoReceita],Entrada!$P22) -> 0 | Y22: =SUMIFS(Tab_Uderor[R$],Tab_Uderor[Competencia],Entrada!Y$7,Tab_Uderor[TipoReceita],Entrada!$P22) -> 0 | Z22: =SUMIFS(Tab_Uderor[R$],Tab_Uderor[Competencia],Entrada!Z$7,Tab_Uderor[TipoReceita],Entrada!$P22) -> 0 | AA22: =SUMIFS(Tab_Uderor[R$],Tab_Uderor[Competencia],Entrada!AA$7,Tab_Uderor[TipoReceita],Entrada!$P22) -> 0 | AB22: =SUMIFS(Tab_Uderor[R$],Tab_Uderor[Competencia],Entrada!AB$7,Tab_Uderor[TipoReceita],Entrada!$P22) -> 0 | AC22: =SUMIFS(Tab_Uderor[R$],Tab_Uderor[Competencia],Entrada!AC$7,Tab_Uderor[TipoReceita],Entrada!$P22)-AF22 -> 0 | AD22: =SUMIFS(Tab_Uderor[R$],Tab_Uderor[Competencia],Entrada!AD$7,Tab_Uderor[TipoReceita],Entrada!$P22)-AG22 -> 0 | AE22: =SUMIFS(Tab_Uderor[R$],Tab_Uderor[Competencia],Entrada!AE$7,Tab_Uderor[TipoReceita],Entrada!$P22)-AH22 -> 0
F23: (17) Taxa de Depreciação | G23: =G87 -> 0 | K23: Subtotal | L23: =SUM(L20:L22) -> 0 | M23: =SUM(M20:M22) -> 0 | P23: (7) sistemas de medição de energia elétrica; | Q23: =SUMIFS(Tab_Uderor[R$],Tab_Uderor[Competencia],Entrada!Q$7,Tab_Uderor[TipoReceita],Entrada!$P23)*0+R23 -> 0 | R23: =SUMIFS(Tab_Uderor[R$],Tab_Uderor[Competencia],Entrada!R$7,Tab_Uderor[TipoReceita],Entrada!$P23) -> 0 | S23: =SUMIFS(Tab_Uderor[R$],Tab_Uderor[Competencia],Entrada!S$7,Tab_Uderor[TipoReceita],Entrada!$P23) -> 0 | T23: =SUMIFS(Tab_Uderor[R$],Tab_Uderor[Competencia],Entrada!T$7,Tab_Uderor[TipoReceita],Entrada!$P23) -> 0 | U23: =SUMIFS(Tab_Uderor[R$],Tab_Uderor[Competencia],Entrada!U$7,Tab_Uderor[TipoReceita],Entrada!$P23) -> 0 | V23: =SUMIFS(Tab_Uderor[R$],Tab_Uderor[Competencia],Entrada!V$7,Tab_Uderor[TipoReceita],Entrada!$P23) -> 0 | W23: =SUMIFS(Tab_Uderor[R$],Tab_Uderor[Competencia],Entrada!W$7,Tab_Uderor[TipoReceita],Entrada!$P23) -> 0 | X23: =SUMIFS(Tab_Uderor[R$],Tab_Uderor[Competencia],Entrada!X$7,Tab_Uderor[TipoReceita],Entrada!$P23) -> 0 | Y23: =SUMIFS(Tab_Uderor[R$],Tab_Uderor[Competencia],Entrada!Y$7,Tab_Uderor[TipoReceita],Entrada!$P23) -> 0 | Z23: =SUMIFS(Tab_Uderor[R$],Tab_Uderor[Competencia],Entrada!Z$7,Tab_Uderor[TipoReceita],Entrada!$P23) -> 0 | AA23: =SUMIFS(Tab_Uderor[R$],Tab_Uderor[Competencia],Entrada!AA$7,Tab_Uderor[TipoReceita],Entrada!$P23) -> 0 | AB23: =SUMIFS(Tab_Uderor[R$],Tab_Uderor[Competencia],Entrada!AB$7,Tab_Uderor[TipoReceita],Entrada!$P23) -> 0 | AC23: =SUMIFS(Tab_Uderor[R$],Tab_Uderor[Competencia],Entrada!AC$7,Tab_Uderor[TipoReceita],Entrada!$P23)-AF23 -> 0 | AD23: =SUMIFS(Tab_Uderor[R$],Tab_Uderor[Competencia],Entrada!AD$7,Tab_Uderor[TipoReceita],Entrada!$P23)-AG23 -> 0 | AE23: =SUMIFS(Tab_Uderor[R$],Tab_Uderor[Competencia],Entrada!AE$7,Tab_Uderor[TipoReceita],Entrada!$P23)-AH23 -> 0
F24: (18) Quota de Reintegração Regulatória = (5) * (17) | G24: =G23*G11 ->  | J24: CONTA TERCEIROS | P24: (8) geradores, incluindo-se unidades de microgeração e minigeração distribuída; | Q24: =SUMIFS(Tab_Uderor[R$],Tab_Uderor[Competencia],Entrada!Q$7,Tab_Uderor[TipoReceita],Entrada!$P24)*0+R24 -> 0 | R24: =SUMIFS(Tab_Uderor[R$],Tab_Uderor[Competencia],Entrada!R$7,Tab_Uderor[TipoReceita],Entrada!$P24) -> 0 | S24: =SUMIFS(Tab_Uderor[R$],Tab_Uderor[Competencia],Entrada!S$7,Tab_Uderor[TipoReceita],Entrada!$P24) -> 0 | T24: =SUMIFS(Tab_Uderor[R$],Tab_Uderor[Competencia],Entrada!T$7,Tab_Uderor[TipoReceita],Entrada!$P24) -> 0 | U24: =SUMIFS(Tab_Uderor[R$],Tab_Uderor[Competencia],Entrada!U$7,Tab_Uderor[TipoReceita],Entrada!$P24) -> 0 | V24: =SUMIFS(Tab_Uderor[R$],Tab_Uderor[Competencia],Entrada!V$7,Tab_Uderor[TipoReceita],Entrada!$P24) -> 0 | W24: =SUMIFS(Tab_Uderor[R$],Tab_Uderor[Competencia],Entrada!W$7,Tab_Uderor[TipoReceita],Entrada!$P24) -> 0 | X24: =SUMIFS(Tab_Uderor[R$],Tab_Uderor[Competencia],Entrada!X$7,Tab_Uderor[TipoReceita],Entrada!$P24) -> 0 | Y24: =SUMIFS(Tab_Uderor[R$],Tab_Uderor[Competencia],Entrada!Y$7,Tab_Uderor[TipoReceita],Entrada!$P24) -> 0 | Z24: =SUMIFS(Tab_Uderor[R$],Tab_Uderor[Competencia],Entrada!Z$7,Tab_Uderor[TipoReceita],Entrada!$P24) -> 0 | AA24: =SUMIFS(Tab_Uderor[R$],Tab_Uderor[Competencia],Entrada!AA$7,Tab_Uderor[TipoReceita],Entrada!$P24) -> 0 | AB24: =SUMIFS(Tab_Uderor[R$],Tab_Uderor[Competencia],Entrada!AB$7,Tab_Uderor[TipoReceita],Entrada!$P24) -> 0 | AC24: =SUMIFS(Tab_Uderor[R$],Tab_Uderor[Competencia],Entrada!AC$7,Tab_Uderor[TipoReceita],Entrada!$P24)-AF24 -> 0 | AD24: =SUMIFS(Tab_Uderor[R$],Tab_Uderor[Competencia],Entrada!AD$7,Tab_Uderor[TipoReceita],Entrada!$P24)-AG24 -> 0 | AE24: =SUMIFS(Tab_Uderor[R$],Tab_Uderor[Competencia],Entrada!AE$7,Tab_Uderor[TipoReceita],Entrada!$P24)-AH24 -> 0
J25: RIT - RP 800 - Célula F20 | K25: Manut. e Conserv. Bens e Instalações vinculadas ao Serviço Concedido | L25: =SUMIFS(Tab_RIT_BMP[SALDO],Tab_RIT_BMP[CONTA],1,Tab_RIT_BMP[ANO],$L$7) -> 0 | M25: =SUMIFS(Tab_RIT_BMP[SALDO],Tab_RIT_BMP[CONTA],1,Tab_RIT_BMP[ANO],$M$7) -> 0 | P25: (9) sistemas de iluminação pública. | Q25: =SUMIFS(Tab_Uderor[R$],Tab_Uderor[Competencia],Entrada!Q$7,Tab_Uderor[TipoReceita],Entrada!$P25)*0+R25 -> 0 | R25: =SUMIFS(Tab_Uderor[R$],Tab_Uderor[Competencia],Entrada!R$7,Tab_Uderor[TipoReceita],Entrada!$P25) -> 0 | S25: =SUMIFS(Tab_Uderor[R$],Tab_Uderor[Competencia],Entrada!S$7,Tab_Uderor[TipoReceita],Entrada!$P25) -> 0 | T25: =SUMIFS(Tab_Uderor[R$],Tab_Uderor[Competencia],Entrada!T$7,Tab_Uderor[TipoReceita],Entrada!$P25) -> 0 | U25: =SUMIFS(Tab_Uderor[R$],Tab_Uderor[Competencia],Entrada!U$7,Tab_Uderor[TipoReceita],Entrada!$P25) -> 0 | V25: =SUMIFS(Tab_Uderor[R$],Tab_Uderor[Competencia],Entrada!V$7,Tab_Uderor[TipoReceita],Entrada!$P25) -> 0 | W25: =SUMIFS(Tab_Uderor[R$],Tab_Uderor[Competencia],Entrada!W$7,Tab_Uderor[TipoReceita],Entrada!$P25) -> 0 | X25: =SUMIFS(Tab_Uderor[R$],Tab_Uderor[Competencia],Entrada!X$7,Tab_Uderor[TipoReceita],Entrada!$P25) -> 0 | Y25: =SUMIFS(Tab_Uderor[R$],Tab_Uderor[Competencia],Entrada!Y$7,Tab_Uderor[TipoReceita],Entrada!$P25) -> 0 | Z25: =SUMIFS(Tab_Uderor[R$],Tab_Uderor[Competencia],Entrada!Z$7,Tab_Uderor[TipoReceita],Entrada!$P25) -> 0 | AA25: =SUMIFS(Tab_Uderor[R$],Tab_Uderor[Competencia],Entrada!AA$7,Tab_Uderor[TipoReceita],Entrada!$P25) -> 0 | AB25: =SUMIFS(Tab_Uderor[R$],Tab_Uderor[Competencia],Entrada!AB$7,Tab_Uderor[TipoReceita],Entrada!$P25) -> 0 | AC25: =SUMIFS(Tab_Uderor[R$],Tab_Uderor[Competencia],Entrada!AC$7,Tab_Uderor[TipoReceita],Entrada!$P25)-AF25 -> 0 | AD25: =SUMIFS(Tab_Uderor[R$],Tab_Uderor[Competencia],Entrada!AD$7,Tab_Uderor[TipoReceita],Entrada!$P25)-AG25 -> 0 | AE25: =SUMIFS(Tab_Uderor[R$],Tab_Uderor[Competencia],Entrada!AE$7,Tab_Uderor[TipoReceita],Entrada!$P25)-AH25 -> 0
F26: Gasto do Conselho de Consumidores | J26: RIT - RP 800 - Célula F21 | K26: Auditoria e Consultoria | L26: =SUMIFS(Tab_RIT_BMP[SALDO],Tab_RIT_BMP[CONTA],2,Tab_RIT_BMP[ANO],$L$7) -> 0 | M26: =SUMIFS(Tab_RIT_BMP[SALDO],Tab_RIT_BMP[CONTA],2,Tab_RIT_BMP[ANO],$M$7) -> 0 | P26: (10) estações de recarga de veículos elétricos, incluindo a prestação de serviços aos usuários | Q26: =SUMIFS(Tab_Uderor[R$],Tab_Uderor[Competencia],Entrada!Q$7,Tab_Uderor[TipoReceita],Entrada!$P26)*0+R26 -> 0 | R26: =SUMIFS(Tab_Uderor[R$],Tab_Uderor[Competencia],Entrada!R$7,Tab_Uderor[TipoReceita],Entrada!$P26) -> 0 | S26: =SUMIFS(Tab_Uderor[R$],Tab_Uderor[Competencia],Entrada!S$7,Tab_Uderor[TipoReceita],Entrada!$P26) -> 0 | T26: =SUMIFS(Tab_Uderor[R$],Tab_Uderor[Competencia],Entrada!T$7,Tab_Uderor[TipoReceita],Entrada!$P26) -> 0 | U26: =SUMIFS(Tab_Uderor[R$],Tab_Uderor[Competencia],Entrada!U$7,Tab_Uderor[TipoReceita],Entrada!$P26) -> 0 | V26: =SUMIFS(Tab_Uderor[R$],Tab_Uderor[Competencia],Entrada!V$7,Tab_Uderor[TipoReceita],Entrada!$P26) -> 0 | W26: =SUMIFS(Tab_Uderor[R$],Tab_Uderor[Competencia],Entrada!W$7,Tab_Uderor[TipoReceita],Entrada!$P26) -> 0 | X26: =SUMIFS(Tab_Uderor[R$],Tab_Uderor[Competencia],Entrada!X$7,Tab_Uderor[TipoReceita],Entrada!$P26) -> 0 | Y26: =SUMIFS(Tab_Uderor[R$],Tab_Uderor[Competencia],Entrada!Y$7,Tab_Uderor[TipoReceita],Entrada!$P26) -> 0 | Z26: =SUMIFS(Tab_Uderor[R$],Tab_Uderor[Competencia],Entrada!Z$7,Tab_Uderor[TipoReceita],Entrada!$P26) -> 0 | AA26: =SUMIFS(Tab_Uderor[R$],Tab_Uderor[Competencia],Entrada!AA$7,Tab_Uderor[TipoReceita],Entrada!$P26) -> 0 | AB26: =SUMIFS(Tab_Uderor[R$],Tab_Uderor[Competencia],Entrada!AB$7,Tab_Uderor[TipoReceita],Entrada!$P26) -> 0 | AC26: =SUMIFS(Tab_Uderor[R$],Tab_Uderor[Competencia],Entrada!AC$7,Tab_Uderor[TipoReceita],Entrada!$P26)-AF26 -> 0 | AD26: =SUMIFS(Tab_Uderor[R$],Tab_Uderor[Competencia],Entrada!AD$7,Tab_Uderor[TipoReceita],Entrada!$P26)-AG26 -> 0 | AE26: =SUMIFS(Tab_Uderor[R$],Tab_Uderor[Competencia],Entrada!AE$7,Tab_Uderor[TipoReceita],Entrada!$P26)-AH26 -> 0
F27: =Indexador!D132 -> Despesa 2023 | H27: 45308 | J27: RIT - RP 800 - Célula F22 | K27: Serviços Jurídicos | L27: =SUMIFS(Tab_RIT_BMP[SALDO],Tab_RIT_BMP[CONTA],3,Tab_RIT_BMP[ANO],$L$7) -> 0 | M27: =SUMIFS(Tab_RIT_BMP[SALDO],Tab_RIT_BMP[CONTA],3,Tab_RIT_BMP[ANO],$M$7) -> 0 | P27: Eficientização do consumo de energia elétrica e instalação de cogeração qualificada, desde que não enquadráveis nos projetos de Pesquisa e Desenvolvimento (P&D) ou de Eficiência Energética estabelecidos em lei | Q27: =SUMIFS(Tab_Uderor[R$],Tab_Uderor[Competencia],Entrada!Q$7,Tab_Uderor[TipoReceita],Entrada!$P27)*0+R27 -> 0 | R27: =SUMIFS(Tab_Uderor[R$],Tab_Uderor[Competencia],Entrada!R$7,Tab_Uderor[TipoReceita],Entrada!$P27) -> 0 | S27: =SUMIFS(Tab_Uderor[R$],Tab_Uderor[Competencia],Entrada!S$7,Tab_Uderor[TipoReceita],Entrada!$P27) -> 0 | T27: =SUMIFS(Tab_Uderor[R$],Tab_Uderor[Competencia],Entrada!T$7,Tab_Uderor[TipoReceita],Entrada!$P27) -> 0 | U27: =SUMIFS(Tab_Uderor[R$],Tab_Uderor[Competencia],Entrada!U$7,Tab_Uderor[TipoReceita],Entrada!$P27) -> 0 | V27: =SUMIFS(Tab_Uderor[R$],Tab_Uderor[Competencia],Entrada!V$7,Tab_Uderor[TipoReceita],Entrada!$P27) -> 0 | W27: =SUMIFS(Tab_Uderor[R$],Tab_Uderor[Competencia],Entrada!W$7,Tab_Uderor[TipoReceita],Entrada!$P27) -> 0 | X27: =SUMIFS(Tab_Uderor[R$],Tab_Uderor[Competencia],Entrada!X$7,Tab_Uderor[TipoReceita],Entrada!$P27) -> 0 | Y27: =SUMIFS(Tab_Uderor[R$],Tab_Uderor[Competencia],Entrada!Y$7,Tab_Uderor[TipoReceita],Entrada!$P27) -> 0 | Z27: =SUMIFS(Tab_Uderor[R$],Tab_Uderor[Competencia],Entrada!Z$7,Tab_Uderor[TipoReceita],Entrada!$P27) -> 0 | AA27: =SUMIFS(Tab_Uderor[R$],Tab_Uderor[Competencia],Entrada!AA$7,Tab_Uderor[TipoReceita],Entrada!$P27) -> 0 | AB27: =SUMIFS(Tab_Uderor[R$],Tab_Uderor[Competencia],Entrada!AB$7,Tab_Uderor[TipoReceita],Entrada!$P27) -> 0 | AC27: =SUMIFS(Tab_Uderor[R$],Tab_Uderor[Competencia],Entrada!AC$7,Tab_Uderor[TipoReceita],Entrada!$P27)-AF27 -> 0 | AD27: =SUMIFS(Tab_Uderor[R$],Tab_Uderor[Competencia],Entrada!AD$7,Tab_Uderor[TipoReceita],Entrada!$P27)-AG27 -> 0 | AE27: =SUMIFS(Tab_Uderor[R$],Tab_Uderor[Competencia],Entrada!AE$7,Tab_Uderor[TipoReceita],Entrada!$P27)-AH27 -> 0
F28: =Indexador!E132 -> Despesa 2022 | J28: RIT - RP 800 - Célula F23 | K28: Serviços de Informática | L28: =SUMIFS(Tab_RIT_BMP[SALDO],Tab_RIT_BMP[CONTA],4,Tab_RIT_BMP[ANO],$L$7)+SUMIFS(Tab_RIT_BMP[SALDO],Tab_RIT_BMP[CONTA],5,Tab_RIT_BMP[ANO],$L$7) -> 0 | M28: =SUMIFS(Tab_RIT_BMP[SALDO],Tab_RIT_BMP[CONTA],4,Tab_RIT_BMP[ANO],$M$7)+SUMIFS(Tab_RIT_BMP[SALDO],Tab_RIT_BMP[CONTA],5,Tab_RIT_BMP[ANO],$M$7) -> 0 | P28: Serviços de comunicação de dados | Q28: =SUMIFS(Tab_Uderor[R$],Tab_Uderor[Competencia],Entrada!Q$7,Tab_Uderor[TipoReceita],Entrada!$P28)*0+R28 -> 0 | R28: =SUMIFS(Tab_Uderor[R$],Tab_Uderor[Competencia],Entrada!R$7,Tab_Uderor[TipoReceita],Entrada!$P28) -> 0 | S28: =SUMIFS(Tab_Uderor[R$],Tab_Uderor[Competencia],Entrada!S$7,Tab_Uderor[TipoReceita],Entrada!$P28) -> 0 | T28: =SUMIFS(Tab_Uderor[R$],Tab_Uderor[Competencia],Entrada!T$7,Tab_Uderor[TipoReceita],Entrada!$P28) -> 0 | U28: =SUMIFS(Tab_Uderor[R$],Tab_Uderor[Competencia],Entrada!U$7,Tab_Uderor[TipoReceita],Entrada!$P28) -> 0 | V28: =SUMIFS(Tab_Uderor[R$],Tab_Uderor[Competencia],Entrada!V$7,Tab_Uderor[TipoReceita],Entrada!$P28) -> 0 | W28: =SUMIFS(Tab_Uderor[R$],Tab_Uderor[Competencia],Entrada!W$7,Tab_Uderor[TipoReceita],Entrada!$P28) -> 0 | X28: =SUMIFS(Tab_Uderor[R$],Tab_Uderor[Competencia],Entrada!X$7,Tab_Uderor[TipoReceita],Entrada!$P28) -> 0 | Y28: =SUMIFS(Tab_Uderor[R$],Tab_Uderor[Competencia],Entrada!Y$7,Tab_Uderor[TipoReceita],Entrada!$P28) -> 0 | Z28: =SUMIFS(Tab_Uderor[R$],Tab_Uderor[Competencia],Entrada!Z$7,Tab_Uderor[TipoReceita],Entrada!$P28) -> 0 | AA28: =SUMIFS(Tab_Uderor[R$],Tab_Uderor[Competencia],Entrada!AA$7,Tab_Uderor[TipoReceita],Entrada!$P28) -> 0 | AB28: =SUMIFS(Tab_Uderor[R$],Tab_Uderor[Competencia],Entrada!AB$7,Tab_Uderor[TipoReceita],Entrada!$P28) -> 0 | AC28: =SUMIFS(Tab_Uderor[R$],Tab_Uderor[Competencia],Entrada!AC$7,Tab_Uderor[TipoReceita],Entrada!$P28)-AF28 -> 0 | AD28: =SUMIFS(Tab_Uderor[R$],Tab_Uderor[Competencia],Entrada!AD$7,Tab_Uderor[TipoReceita],Entrada!$P28)-AG28 -> 0 | AE28: =SUMIFS(Tab_Uderor[R$],Tab_Uderor[Competencia],Entrada!AE$7,Tab_Uderor[TipoReceita],Entrada!$P28)-AH28 -> 0
F29: =Indexador!F132 -> Despesa 2021 | J29: RIT - RP 800 - Célula F26 | K29: Viagens (Passagens Aéreas, etc) | L29: =SUMIFS(Tab_RIT_BMP[SALDO],Tab_RIT_BMP[CONTA],6,Tab_RIT_BMP[ANO],$L$7) -> 0 | M29: =SUMIFS(Tab_RIT_BMP[SALDO],Tab_RIT_BMP[CONTA],6,Tab_RIT_BMP[ANO],$M$7) -> 0 | P29: Serviços de consultoria | Q29: =SUMIFS(Tab_Uderor[R$],Tab_Uderor[Competencia],Entrada!Q$7,Tab_Uderor[TipoReceita],Entrada!$P29)*0+R29 -> 0 | R29: =SUMIFS(Tab_Uderor[R$],Tab_Uderor[Competencia],Entrada!R$7,Tab_Uderor[TipoReceita],Entrada!$P29) -> 0 | S29: =SUMIFS(Tab_Uderor[R$],Tab_Uderor[Competencia],Entrada!S$7,Tab_Uderor[TipoReceita],Entrada!$P29) -> 0 | T29: =SUMIFS(Tab_Uderor[R$],Tab_Uderor[Competencia],Entrada!T$7,Tab_Uderor[TipoReceita],Entrada!$P29) -> 0 | U29: =SUMIFS(Tab_Uderor[R$],Tab_Uderor[Competencia],Entrada!U$7,Tab_Uderor[TipoReceita],Entrada!$P29) -> 0 | V29: =SUMIFS(Tab_Uderor[R$],Tab_Uderor[Competencia],Entrada!V$7,Tab_Uderor[TipoReceita],Entrada!$P29) -> 0 | W29: =SUMIFS(Tab_Uderor[R$],Tab_Uderor[Competencia],Entrada!W$7,Tab_Uderor[TipoReceita],Entrada!$P29) -> 0 | X29: =SUMIFS(Tab_Uderor[R$],Tab_Uderor[Competencia],Entrada!X$7,Tab_Uderor[TipoReceita],Entrada!$P29) -> 0 | Y29: =SUMIFS(Tab_Uderor[R$],Tab_Uderor[Competencia],Entrada!Y$7,Tab_Uderor[TipoReceita],Entrada!$P29) -> 0 | Z29: =SUMIFS(Tab_Uderor[R$],Tab_Uderor[Competencia],Entrada!Z$7,Tab_Uderor[TipoReceita],Entrada!$P29) -> 0 | AA29: =SUMIFS(Tab_Uderor[R$],Tab_Uderor[Competencia],Entrada!AA$7,Tab_Uderor[TipoReceita],Entrada!$P29) -> 0 | AB29: =SUMIFS(Tab_Uderor[R$],Tab_Uderor[Competencia],Entrada!AB$7,Tab_Uderor[TipoReceita],Entrada!$P29) -> 0 | AC29: =SUMIFS(Tab_Uderor[R$],Tab_Uderor[Competencia],Entrada!AC$7,Tab_Uderor[TipoReceita],Entrada!$P29)-AF29 -> 0 | AD29: =SUMIFS(Tab_Uderor[R$],Tab_Uderor[Competencia],Entrada!AD$7,Tab_Uderor[TipoReceita],Entrada!$P29)-AG29 -> 0 | AE29: =SUMIFS(Tab_Uderor[R$],Tab_Uderor[Competencia],Entrada!AE$7,Tab_Uderor[TipoReceita],Entrada!$P29)-AH29 -> 0
F30: =Indexador!G132 -> Despesa 2020 | J30: RIT - RP 800 - Célula F27 | K30: Transportes (inclui Fretes) | L30: =SUMIFS(Tab_RIT_BMP[SALDO],Tab_RIT_BMP[CONTA],7,Tab_RIT_BMP[ANO],$L$7) -> 0 | M30: =SUMIFS(Tab_RIT_BMP[SALDO],Tab_RIT_BMP[CONTA],7,Tab_RIT_BMP[ANO],$M$7) -> 0 | P30: Receita proveniente da comercialização de resultados de projetos de P&D COM comprovação | Q30: =SUMIFS(Tab_Uderor[R$],Tab_Uderor[Competencia],Entrada!Q$7,Tab_Uderor[TipoReceita],Entrada!$P30)*0+R30 -> 0 | R30: =SUMIFS(Tab_Uderor[R$],Tab_Uderor[Competencia],Entrada!R$7,Tab_Uderor[TipoReceita],Entrada!$P30) -> 0 | S30: =SUMIFS(Tab_Uderor[R$],Tab_Uderor[Competencia],Entrada!S$7,Tab_Uderor[TipoReceita],Entrada!$P30) -> 0 | T30: =SUMIFS(Tab_Uderor[R$],Tab_Uderor[Competencia],Entrada!T$7,Tab_Uderor[TipoReceita],Entrada!$P30) -> 0 | U30: =SUMIFS(Tab_Uderor[R$],Tab_Uderor[Competencia],Entrada!U$7,Tab_Uderor[TipoReceita],Entrada!$P30) -> 0 | V30: =SUMIFS(Tab_Uderor[R$],Tab_Uderor[Competencia],Entrada!V$7,Tab_Uderor[TipoReceita],Entrada!$P30) -> 0 | W30: =SUMIFS(Tab_Uderor[R$],Tab_Uderor[Competencia],Entrada!W$7,Tab_Uderor[TipoReceita],Entrada!$P30) -> 0 | X30: =SUMIFS(Tab_Uderor[R$],Tab_Uderor[Competencia],Entrada!X$7,Tab_Uderor[TipoReceita],Entrada!$P30) -> 0 | Y30: =SUMIFS(Tab_Uderor[R$],Tab_Uderor[Competencia],Entrada!Y$7,Tab_Uderor[TipoReceita],Entrada!$P30) -> 0 | Z30: =SUMIFS(Tab_Uderor[R$],Tab_Uderor[Competencia],Entrada!Z$7,Tab_Uderor[TipoReceita],Entrada!$P30) -> 0 | AA30: =SUMIFS(Tab_Uderor[R$],Tab_Uderor[Competencia],Entrada!AA$7,Tab_Uderor[TipoReceita],Entrada!$P30) -> 0 | AB30: =SUMIFS(Tab_Uderor[R$],Tab_Uderor[Competencia],Entrada!AB$7,Tab_Uderor[TipoReceita],Entrada!$P30) -> 0 | AC30: =SUMIFS(Tab_Uderor[R$],Tab_Uderor[Competencia],Entrada!AC$7,Tab_Uderor[TipoReceita],Entrada!$P30)-AF30 -> 0 | AD30: =SUMIFS(Tab_Uderor[R$],Tab_Uderor[Competencia],Entrada!AD$7,Tab_Uderor[TipoReceita],Entrada!$P30)-AG30 -> 0 | AE30: =SUMIFS(Tab_Uderor[R$],Tab_Uderor[Competencia],Entrada!AE$7,Tab_Uderor[TipoReceita],Entrada!$P30)-AH30 -> 0
F31: =Indexador!H132 -> Despesa 2019 | J31: RIT - RP 800 - Célula F28 | K31: Propaganda e Publicidade (exceto Publicações Oficiais) | L31: =SUMIFS(Tab_RIT_BMP[SALDO],Tab_RIT_BMP[CONTA],8,Tab_RIT_BMP[ANO],$L$7) -> 0 | M31: =SUMIFS(Tab_RIT_BMP[SALDO],Tab_RIT_BMP[CONTA],8,Tab_RIT_BMP[ANO],$M$7) -> 0 | P31: Receita proveniente da comercialização de resultados de projetos de P&D SEM comprovação | Q31: =SUMIFS(Tab_Uderor[R$],Tab_Uderor[Competencia],Entrada!Q$7,Tab_Uderor[TipoReceita],Entrada!$P31)*0+R31 -> 0 | R31: =SUMIFS(Tab_Uderor[R$],Tab_Uderor[Competencia],Entrada!R$7,Tab_Uderor[TipoReceita],Entrada!$P31) -> 0 | S31: =SUMIFS(Tab_Uderor[R$],Tab_Uderor[Competencia],Entrada!S$7,Tab_Uderor[TipoReceita],Entrada!$P31) -> 0 | T31: =SUMIFS(Tab_Uderor[R$],Tab_Uderor[Competencia],Entrada!T$7,Tab_Uderor[TipoReceita],Entrada!$P31) -> 0 | U31: =SUMIFS(Tab_Uderor[R$],Tab_Uderor[Competencia],Entrada!U$7,Tab_Uderor[TipoReceita],Entrada!$P31) -> 0 | V31: =SUMIFS(Tab_Uderor[R$],Tab_Uderor[Competencia],Entrada!V$7,Tab_Uderor[TipoReceita],Entrada!$P31) -> 0 | W31: =SUMIFS(Tab_Uderor[R$],Tab_Uderor[Competencia],Entrada!W$7,Tab_Uderor[TipoReceita],Entrada!$P31) -> 0 | X31: =SUMIFS(Tab_Uderor[R$],Tab_Uderor[Competencia],Entrada!X$7,Tab_Uderor[TipoReceita],Entrada!$P31) -> 0 | Y31: =SUMIFS(Tab_Uderor[R$],Tab_Uderor[Competencia],Entrada!Y$7,Tab_Uderor[TipoReceita],Entrada!$P31) -> 0 | Z31: =SUMIFS(Tab_Uderor[R$],Tab_Uderor[Competencia],Entrada!Z$7,Tab_Uderor[TipoReceita],Entrada!$P31) -> 0 | AA31: =SUMIFS(Tab_Uderor[R$],Tab_Uderor[Competencia],Entrada!AA$7,Tab_Uderor[TipoReceita],Entrada!$P31) -> 0 | AB31: =SUMIFS(Tab_Uderor[R$],Tab_Uderor[Competencia],Entrada!AB$7,Tab_Uderor[TipoReceita],Entrada!$P31) -> 0 | AC31: =SUMIFS(Tab_Uderor[R$],Tab_Uderor[Competencia],Entrada!AC$7,Tab_Uderor[TipoReceita],Entrada!$P31)-AF31 -> 0 | AD31: =SUMIFS(Tab_Uderor[R$],Tab_Uderor[Competencia],Entrada!AD$7,Tab_Uderor[TipoReceita],Entrada!$P31)-AG31 -> 0 | AE31: =SUMIFS(Tab_Uderor[R$],Tab_Uderor[Competencia],Entrada!AE$7,Tab_Uderor[TipoReceita],Entrada!$P31)-AH31 -> 0
F32: Perdas Regulatórias | J32: RIT - RP 800 - Célula F29 | K32: Publicações Oficiais | L32: =SUMIFS(Tab_RIT_BMP[SALDO],Tab_RIT_BMP[CONTA],9,Tab_RIT_BMP[ANO],$L$7) -> 0 | M32: =SUMIFS(Tab_RIT_BMP[SALDO],Tab_RIT_BMP[CONTA],9,Tab_RIT_BMP[ANO],$M$7) -> 0
F33: Perdas Não Técnicas | H33: 45308 | J33: RIT - RP 800 - Célula F30 | K33: Serviço de Engenharia e Supervisão de Obras | L33: =SUMIFS(Tab_RIT_BMP[SALDO],Tab_RIT_BMP[CONTA],10,Tab_RIT_BMP[ANO],$L$7) -> 0 | M33: =SUMIFS(Tab_RIT_BMP[SALDO],Tab_RIT_BMP[CONTA],10,Tab_RIT_BMP[ANO],$M$7) -> 0
F34: Perdas Técnicas | J34: RIT - RP 800 - Célula F31 | K34: Gestão Comercial | L34: =SUMIFS(Tab_RIT_BMP[SALDO],Tab_RIT_BMP[CONTA],11,Tab_RIT_BMP[ANO],$L$7) -> 0 | M34: =SUMIFS(Tab_RIT_BMP[SALDO],Tab_RIT_BMP[CONTA],11,Tab_RIT_BMP[ANO],$M$7) -> 0 | P34: Outras Receitas - Caso 3
J35: RIT - RP 800 - Célula F32 | K35: Outros Serviços Terceirizados | L35: =SUMIFS(Tab_RIT_BMP[SALDO],Tab_RIT_BMP[CONTA],12,Tab_RIT_BMP[ANO],$L$7) -> 0 | M35: =SUMIFS(Tab_RIT_BMP[SALDO],Tab_RIT_BMP[CONTA],12,Tab_RIT_BMP[ANO],$M$7) -> 0 | P35: Alíquota ISS
F36: Dados da Revisão Anterior - Componente Pd | J36: RIT - RP 800 - Célula F33 - BMP - 610530810,610550810,610532810,610552810 | K36: (-) Créditos de Tributos Recuperáveis | L36: =SUMIFS(Tab_RIT_BMP[SALDO],Tab_RIT_BMP[CONTA],610530810,Tab_RIT_BMP[ANO],$L$7)+SUMIFS(Tab_RIT_BMP[SALDO],Tab_RIT_BMP[CONTA],610550810,Tab_RIT_BMP[ANO],$L$7)+ SUMIFS(Tab_RIT_BMP[SALDO],Tab_RIT_BMP[CONTA],610532810,Tab_RIT_BMP[ANO],$L$7)+SUMIFS(Tab_RIT_BMP[SALDO],Tab_RIT_BMP[CONTA],610552810,Tab_RIT_BMP[ANO],$L$7) -> 0 | M36: =SUMIFS(Tab_RIT_BMP[SALDO],Tab_RIT_BMP[CONTA],610530810,Tab_RIT_BMP[ANO],$M$7)+SUMIFS(Tab_RIT_BMP[SALDO],Tab_RIT_BMP[CONTA],610550810,Tab_RIT_BMP[ANO],$M$7)+ SUMIFS(Tab_RIT_BMP[SALDO],Tab_RIT_BMP[CONTA],610532810,Tab_RIT_BMP[ANO],$M$7)+SUMIFS(Tab_RIT_BMP[SALDO],Tab_RIT_BMP[CONTA],610552810,Tab_RIT_BMP[ANO],$M$7) -> 0
F37: Data Base Ativos e Consumidores | H37: 45308 | J37: RIT - RP 800 - Célula F34 - BMP - 610532801,610552801 | K37: Transferências da Administração Central | L37: =SUMIFS(Tab_RIT_BMP[SALDO],Tab_RIT_BMP[CONTA],610532801,Tab_RIT_BMP[ANO],$L$7)+SUMIFS(Tab_RIT_BMP[SALDO],Tab_RIT_BMP[CONTA],610552801,Tab_RIT_BMP[ANO],$M$7) -> 0 | M37: =SUMIFS(Tab_RIT_BMP[SALDO],Tab_RIT_BMP[CONTA],610532801,Tab_RIT_BMP[ANO],$M$7)+SUMIFS(Tab_RIT_BMP[SALDO],Tab_RIT_BMP[CONTA],610552801,Tab_RIT_BMP[ANO],$L$7) -> 0 | P37: Tipo de Receita | Q37: =Q7 -> 2024-11-01 | R37: 2024-10-01 | S37: 2024-09-01 | T37: 2024-08-01 | U37: 2024-07-01 | V37: 2024-06-01 | W37: 2024-05-01 | X37: 2024-04-01 | Y37: 2024-03-01 | Z37: 2024-02-01 | AA37: 2024-01-01 | AB37: 2023-12-01
F38: Mercado AT (MWh) | K38: Subtotal | L38: =SUM(L25:L37) -> 0 | M38: =SUM(M25:M37) -> 0 | P38: Serviços Cobráveis
D39: 45308 | F39: Mercado MT (MWh) | J39: CONTA SEGUROS | P39: Encargos de Conexão
D40: 45308 | F40: Mercado BT (MWh) | J40: BMP - 610531001; 610551001; 610533001; 610553001 | K40: Seguros | L40: =SUMIFS(Tab_RIT_BMP[SALDO],Tab_RIT_BMP[CONTA],610531001,Tab_RIT_BMP[ANO],$L$7)+SUMIFS(Tab_RIT_BMP[SALDO],Tab_RIT_BMP[CONTA],610551001,Tab_RIT_BMP[ANO],$L$7)+ SUMIFS(Tab_RIT_BMP[SALDO],Tab_RIT_BMP[CONTA],610533001,Tab_RIT_BMP[ANO],$L$7)+SUMIFS(Tab_RIT_BMP[SALDO],Tab_RIT_BMP[CONTA],610553001,Tab_RIT_BMP[ANO],$L$7) -> 0 | M40: =SUMIFS(Tab_RIT_BMP[SALDO],Tab_RIT_BMP[CONTA],610531001,Tab_RIT_BMP[ANO],$M$7)+SUMIFS(Tab_RIT_BMP[SALDO],Tab_RIT_BMP[CONTA],610551001,Tab_RIT_BMP[ANO],$M$7)+ SUMIFS(Tab_RIT_BMP[SALDO],Tab_RIT_BMP[CONTA],610533001,Tab_RIT_BMP[ANO],$M$7)+SUMIFS(Tab_RIT_BMP[SALDO],Tab_RIT_BMP[CONTA],610553001,Tab_RIT_BMP[ANO],$M$7) -> 0 | P40: Compartilhamento de Infraestrutura
D41: 45308 | F41: Número de unidades consumidoras | J41: BMP - 610531099; 610551099; 610533099; 610553099 | K41: Outros | L41: =SUMIFS(Tab_RIT_BMP[SALDO],Tab_RIT_BMP[CONTA],610531099,Tab_RIT_BMP[ANO],$L$7)+SUMIFS(Tab_RIT_BMP[SALDO],Tab_RIT_BMP[CONTA],610551099,Tab_RIT_BMP[ANO],$L$7)+ SUMIFS(Tab_RIT_BMP[SALDO],Tab_RIT_BMP[CONTA],610533099,Tab_RIT_BMP[ANO],$L$7)+SUMIFS(Tab_RIT_BMP[SALDO],Tab_RIT_BMP[CONTA],610553099,Tab_RIT_BMP[ANO],$L$7) -> 0 | M41: =SUMIFS(Tab_RIT_BMP[SALDO],Tab_RIT_BMP[CONTA],610531099,Tab_RIT_BMP[ANO],$M$7)+SUMIFS(Tab_RIT_BMP[SALDO],Tab_RIT_BMP[CONTA],610551099,Tab_RIT_BMP[ANO],$M$7)+ SUMIFS(Tab_RIT_BMP[SALDO],Tab_RIT_BMP[CONTA],610533099,Tab_RIT_BMP[ANO],$M$7)+SUMIFS(Tab_RIT_BMP[SALDO],Tab_RIT_BMP[CONTA],610553099,Tab_RIT_BMP[ANO],$M$7) -> 0 | P41: Sistemas de Comunicação (PLC)
D42: 45308 | J42: BMP - 610531010; 610551010; 610533010; 610553010 | K42: (-) Créditos de Tributos Recuperáveis | L42: =SUMIFS(Tab_RIT_BMP[SALDO],Tab_RIT_BMP[CONTA],610531010,Tab_RIT_BMP[ANO],$L$7)+SUMIFS(Tab_RIT_BMP[SALDO],Tab_RIT_BMP[CONTA],610551010,Tab_RIT_BMP[ANO],$L$7)+ SUMIFS(Tab_RIT_BMP[SALDO],Tab_RIT_BMP[CONTA],610533010,Tab_RIT_BMP[ANO],$L$7)+SUMIFS(Tab_RIT_BMP[SALDO],Tab_RIT_BMP[CONTA],610553010,Tab_RIT_BMP[ANO],$L$7) -> 0 | M42: =SUMIFS(Tab_RIT_BMP[SALDO],Tab_RIT_BMP[CONTA],610531010,Tab_RIT_BMP[ANO],$M$7)+SUMIFS(Tab_RIT_BMP[SALDO],Tab_RIT_BMP[CONTA],610551010,Tab_RIT_BMP[ANO],$M$7)+ SUMIFS(Tab_RIT_BMP[SALDO],Tab_RIT_BMP[CONTA],610533010,Tab_RIT_BMP[ANO],$M$7)+SUMIFS(Tab_RIT_BMP[SALDO],Tab_RIT_BMP[CONTA],610553010,Tab_RIT_BMP[ANO],$M$7) -> 0 | P42: Serviços de Consultoria
F43: OPEX | K43: Subtotal | L43: =SUM(L40:L42) -> 0 | M43: =SUM(M40:M42) -> 0 | P43: Serviços de O&M
F44: Extensão de redes subterrâneas (Km) | H44: 45308 | J44: CONTA TRIBUTOS | P44: Serviços de Comunicação
F45: Extensão de rede de distribuição aérea (Km) | J45: BMP - 6105316; 6105516; 6105336; 6105536 | K45: Tributos | L45: =SUMIFS(Tab_RIT_BMP[SALDO],Tab_RIT_BMP[CONTA],6105316,Tab_RIT_BMP[ANO],$L$7)+SUMIFS(Tab_RIT_BMP[SALDO],Tab_RIT_BMP[CONTA],6105516,Tab_RIT_BMP[ANO],$L$7)+ SUMIFS(Tab_RIT_BMP[SALDO],Tab_RIT_BMP[CONTA],6105336,Tab_RIT_BMP[ANO],$L$7)+SUMIFS(Tab_RIT_BMP[SALDO],Tab_RIT_BMP[CONTA],6105536,Tab_RIT_BMP[ANO],$L$7) -> 0 | M45: =SUMIFS(Tab_RIT_BMP[SALDO],Tab_RIT_BMP[CONTA],6105316,Tab_RIT_BMP[ANO],$M$7)+SUMIFS(Tab_RIT_BMP[SALDO],Tab_RIT_BMP[CONTA],6105516,Tab_RIT_BMP[ANO],$M$7)+ SUMIFS(Tab_RIT_BMP[SALDO],Tab_RIT_BMP[CONTA],6105336,Tab_RIT_BMP[ANO],$M$7)+SUMIFS(Tab_RIT_BMP[SALDO],Tab_RIT_BMP[CONTA],6105536,Tab_RIT_BMP[ANO],$M$7) -> 0 | P45: Serviços de Engenharia
F46: Extensão de rede de alta tensão (Km) | K46: (+) Créditos de Tributos Recuperáveis | L46: =L45 -> 0 | M46: =M45 -> 0 | P46: Convênios
F47: ="% PNT / BT Real de "&IF(MONTH(LnkTxtDRPData)>6,YEAR(LnkTxtDRPData)-1,YEAR(LnkTxtDRPData)-2) & " (Medido)" -> % PNT / BT Real de 2023 (Medido) | J47: CONTA OUTROS
F48: ="% PNT / BT Real de "&IF(MONTH(LnkTxtDRPData)>6,YEAR(LnkTxtDRPData)-1,YEAR(LnkTxtDRPData)-2)-1 & " (Medido)" -> % PNT / BT Real de 2022 (Medido) | J48: BMP - 610531901; 610551901; 610533901; 610553901 | K48: Indenização por Perdas e Danos | L48: =SUMIFS(Tab_RIT_BMP[SALDO],Tab_RIT_BMP[CONTA],610531901,Tab_RIT_BMP[ANO],$L$7)+SUMIFS(Tab_RIT_BMP[SALDO],Tab_RIT_BMP[CONTA],610551901,Tab_RIT_BMP[ANO],$L$7)+ SUMIFS(Tab_RIT_BMP[SALDO],Tab_RIT_BMP[CONTA],610533901,Tab_RIT_BMP[ANO],$L$7)+SUMIFS(Tab_RIT_BMP[SALDO],Tab_RIT_BMP[CONTA],610553901,Tab_RIT_BMP[ANO],$L$7) -> 0 | M48: =SUMIFS(Tab_RIT_BMP[SALDO],Tab_RIT_BMP[CONTA],610531901,Tab_RIT_BMP[ANO],$M$7)+SUMIFS(Tab_RIT_BMP[SALDO],Tab_RIT_BMP[CONTA],610551901,Tab_RIT_BMP[ANO],$M$7)+ SUMIFS(Tab_RIT_BMP[SALDO],Tab_RIT_BMP[CONTA],610533901,Tab_RIT_BMP[ANO],$M$7)+SUMIFS(Tab_RIT_BMP[SALDO],Tab_RIT_BMP[CONTA],610553901,Tab_RIT_BMP[ANO],$M$7) -> 0 | P48: UDER
F49: ="% PNT / BT Real de "&IF(MONTH(LnkTxtDRPData)>6,YEAR(LnkTxtDRPData)-1,YEAR(LnkTxtDRPData)-2)-2 & " (Medido)" -> % PNT / BT Real de 2021 (Medido) | J49: BMP - 610531902; 610551902; 610533902; 610553902 | K49: Consumo Próprio de Energia | L49: =SUMIFS(Tab_RIT_BMP[SALDO],Tab_RIT_BMP[CONTA],610531902,Tab_RIT_BMP[ANO],$L$7)+SUMIFS(Tab_RIT_BMP[SALDO],Tab_RIT_BMP[CONTA],610551902,Tab_RIT_BMP[ANO],$L$7)+ SUMIFS(Tab_RIT_BMP[SALDO],Tab_RIT_BMP[CONTA],610533902,Tab_RIT_BMP[ANO],$L$7)+SUMIFS(Tab_RIT_BMP[SALDO],Tab_RIT_BMP[CONTA],610553902,Tab_RIT_BMP[ANO],$L$7) -> 0 | M49: =SUMIFS(Tab_RIT_BMP[SALDO],Tab_RIT_BMP[CONTA],610531902,Tab_RIT_BMP[ANO],$M$7)+SUMIFS(Tab_RIT_BMP[SALDO],Tab_RIT_BMP[CONTA],610551902,Tab_RIT_BMP[ANO],$M$7)+ SUMIFS(Tab_RIT_BMP[SALDO],Tab_RIT_BMP[CONTA],610533902,Tab_RIT_BMP[ANO],$M$7)+SUMIFS(Tab_RIT_BMP[SALDO],Tab_RIT_BMP[CONTA],610553902,Tab_RIT_BMP[ANO],$M$7) -> 0 | AC49: =AC6 -> Diferenças em relação ao RTA 2023 | AG49: =AG6 -> Valores RTA 2023
F50: ="DEC Apurado "&IF(MONTH(LnkTxtDRPData)>3,YEAR(LnkTxtDRPData)-1,YEAR(LnkTxtDRPData)-2) -> DEC Apurado 2023 | J50: BMP - 610531905 | K50: Despesas com Conselho de Consumidores | L50: =SUMIFS(Tab_RIT_BMP[SALDO],Tab_RIT_BMP[CONTA],610531905,Tab_RIT_BMP[ANO],$L$7) -> 0 | M50: =SUMIFS(Tab_RIT_BMP[SALDO],Tab_RIT_BMP[CONTA],610531905,Tab_RIT_BMP[ANO],$M$7) -> 0 | Q50: =$Q$7 -> 2024-11-01 | R50: =DATE(YEAR(Q50),MONTH(Q50)-1,1) -> 2024-10-01 | S50: =DATE(YEAR(R50),MONTH(R50)-1,1) -> 2024-09-01 | T50: 2024-08-01 | U50: 2024-07-01 | V50: 2024-06-01 | W50: 2024-05-01 | X50: 2024-04-01 | Y50: 2024-03-01 | Z50: 2024-02-01 | AA50: 2024-01-01 | AB50: 2023-12-01 | AC50: =EDATE(AB50,-1) -> 2023-11-01 | AD50: =EDATE(AC50,-1) -> 2023-10-01 | AE50: 2023-09-01 | AF50: =AC50 -> 2023-11-01 | AG50: =AD50 -> 2023-10-01 | AH50: 2023-09-01
F51: ="DEC Apurado "&IF(MONTH(LnkTxtDRPData)>3,YEAR(LnkTxtDRPData)-1,YEAR(LnkTxtDRPData)-2)-1 -> DEC Apurado 2022 | J51: BMP - 610531908; 610533907 | K51: Comunicação e Reprografia | L51: =SUMIFS(Tab_RIT_BMP[SALDO],Tab_RIT_BMP[CONTA],610531908,Tab_RIT_BMP[ANO],$L$7)+SUMIFS(Tab_RIT_BMP[SALDO],Tab_RIT_BMP[CONTA],610533907,Tab_RIT_BMP[ANO],$L$7) -> 0 | M51: =SUMIFS(Tab_RIT_BMP[SALDO],Tab_RIT_BMP[CONTA],610531908,Tab_RIT_BMP[ANO],$M$7)+SUMIFS(Tab_RIT_BMP[SALDO],Tab_RIT_BMP[CONTA],610533907,Tab_RIT_BMP[ANO],$M$7) -> 0 | P51: Ultrapassagem de Demanda | Q51: =SUMIFS(Tab_Uderor[R$],Tab_Uderor[Competencia],Entrada!Q$50,Tab_Uderor[TipoReceita],Entrada!$P$51)*0+R51 -> 549134.08 | R51: =SUMIFS(Tab_Uderor[R$],Tab_Uderor[Competencia],Entrada!R$50,Tab_Uderor[TipoReceita],Entrada!$P$51) -> 549134.08 | S51: =SUMIFS(Tab_Uderor[R$],Tab_Uderor[Competencia],Entrada!S$50,Tab_Uderor[TipoReceita],Entrada!$P$51) -> 552637.71 | T51: =SUMIFS(Tab_Uderor[R$],Tab_Uderor[Competencia],Entrada!T$50,Tab_Uderor[TipoReceita],Entrada!$P$51) -> 413555.02 | U51: =SUMIFS(Tab_Uderor[R$],Tab_Uderor[Competencia],Entrada!U$50,Tab_Uderor[TipoReceita],Entrada!$P$51) -> 397184.49 | V51: =SUMIFS(Tab_Uderor[R$],Tab_Uderor[Competencia],Entrada!V$50,Tab_Uderor[TipoReceita],Entrada!$P$51) -> 367418.14 | W51: =SUMIFS(Tab_Uderor[R$],Tab_Uderor[Competencia],Entrada!W$50,Tab_Uderor[TipoReceita],Entrada!$P$51) -> 404308.25 | X51: =SUMIFS(Tab_Uderor[R$],Tab_Uderor[Competencia],Entrada!X$50,Tab_Uderor[TipoReceita],Entrada!$P$51) -> 408410.42 | Y51: =SUMIFS(Tab_Uderor[R$],Tab_Uderor[Competencia],Entrada!Y$50,Tab_Uderor[TipoReceita],Entrada!$P$51) -> 361575.76 | Z51: =SUMIFS(Tab_Uderor[R$],Tab_Uderor[Competencia],Entrada!Z$50,Tab_Uderor[TipoReceita],Entrada!$P$51) -> 273994.43 | AA51: =SUMIFS(Tab_Uderor[R$],Tab_Uderor[Competencia],Entrada!AA$50,Tab_Uderor[TipoReceita],Entrada!$P$51) -> 308794.76 | AB51: =SUMIFS(Tab_Uderor[R$],Tab_Uderor[Competencia],Entrada!AB$50,Tab_Uderor[TipoReceita],Entrada!$P$51) -> 363131.19 | AC51: =SUMIFS(Tab_Uderor[R$],Tab_Uderor[Competencia],Entrada!AC$50,Tab_Uderor[TipoReceita],Entrada!$P51)-AF51 -> 51591.05 | AD51: =SUMIFS(Tab_Uderor[R$],Tab_Uderor[Competencia],Entrada!AD$50,Tab_Uderor[TipoReceita],Entrada!$P51)-AG51 -> 0 | AE51: =SUMIFS(Tab_Uderor[R$],Tab_Uderor[Competencia],Entrada!AE$50,Tab_Uderor[TipoReceita],Entrada!$P51)-AH51 -> 0 | AF51: 379907.12 | AG51: 379907.12 | AH51: 332165.74
F52: ="DEC Apurado "&IF(MONTH(LnkTxtDRPData)>3,YEAR(LnkTxtDRPData)-1,YEAR(LnkTxtDRPData)-2)-2 -> DEC Apurado 2021 | J52: BMP - 610531903; 610551903; 610533903; 610553903 | K52: Taxa de Arrecadação | L52: =SUMIFS(Tab_RIT_BMP[SALDO],Tab_RIT_BMP[CONTA],610531903,Tab_RIT_BMP[ANO],$L$7)+SUMIFS(Tab_RIT_BMP[SALDO],Tab_RIT_BMP[CONTA],610551903,Tab_RIT_BMP[ANO],$L$7)+ SUMIFS(Tab_RIT_BMP[SALDO],Tab_RIT_BMP[CONTA],610533903,Tab_RIT_BMP[ANO],$L$7)+SUMIFS(Tab_RIT_BMP[SALDO],Tab_RIT_BMP[CONTA],610553903,Tab_RIT_BMP[ANO],$L$7) -> 0 | M52: =SUMIFS(Tab_RIT_BMP[SALDO],Tab_RIT_BMP[CONTA],610531903,Tab_RIT_BMP[ANO],$M$7)+SUMIFS(Tab_RIT_BMP[SALDO],Tab_RIT_BMP[CONTA],610551903,Tab_RIT_BMP[ANO],$M$7)+ SUMIFS(Tab_RIT_BMP[SALDO],Tab_RIT_BMP[CONTA],610533903,Tab_RIT_BMP[ANO],$M$7)+SUMIFS(Tab_RIT_BMP[SALDO],Tab_RIT_BMP[CONTA],610553903,Tab_RIT_BMP[ANO],$M$7) -> 0 | P52: Excedente Reativo | Q52: =SUMIFS(Tab_Uderor[R$],Tab_Uderor[Competencia],Entrada!Q$50,Tab_Uderor[TipoReceita],Entrada!$P$51)*0+R52 -> 422016.59 | R52: =SUMIFS(Tab_Uderor[R$],Tab_Uderor[Competencia],Entrada!R$50,Tab_Uderor[TipoReceita],Entrada!$P$52) -> 422016.59 | S52: =SUMIFS(Tab_Uderor[R$],Tab_Uderor[Competencia],Entrada!S$50,Tab_Uderor[TipoReceita],Entrada!$P$52) -> 429285.71 | T52: =SUMIFS(Tab_Uderor[R$],Tab_Uderor[Competencia],Entrada!T$50,Tab_Uderor[TipoReceita],Entrada!$P$52) -> 440024.76 | U52: =SUMIFS(Tab_Uderor[R$],Tab_Uderor[Competencia],Entrada!U$50,Tab_Uderor[TipoReceita],Entrada!$P$52) -> 455700.03 | V52: =SUMIFS(Tab_Uderor[R$],Tab_Uderor[Competencia],Entrada!V$50,Tab_Uderor[TipoReceita],Entrada!$P$52) -> 449856.54 | W52: =SUMIFS(Tab_Uderor[R$],Tab_Uderor[Competencia],Entrada!W$50,Tab_Uderor[TipoReceita],Entrada!$P$52) -> 453868.3 | X52: =SUMIFS(Tab_Uderor[R$],Tab_Uderor[Competencia],Entrada!X$50,Tab_Uderor[TipoReceita],Entrada!$P$52) -> 447001.74 | Y52: =SUMIFS(Tab_Uderor[R$],Tab_Uderor[Competencia],Entrada!Y$50,Tab_Uderor[TipoReceita],Entrada!$P$52) -> 426225.14 | Z52: =SUMIFS(Tab_Uderor[R$],Tab_Uderor[Competencia],Entrada!Z$50,Tab_Uderor[TipoReceita],Entrada!$P$52) -> 435581.62 | AA52: =SUMIFS(Tab_Uderor[R$],Tab_Uderor[Competencia],Entrada!AA$50,Tab_Uderor[TipoReceita],Entrada!$P$52) -> 488649.56 | AB52: =SUMIFS(Tab_Uderor[R$],Tab_Uderor[Competencia],Entrada!AB$50,Tab_Uderor[TipoReceita],Entrada!$P$52) -> 354826.82 | AC52: =SUMIFS(Tab_Uderor[R$],Tab_Uderor[Competencia],Entrada!AC$50,Tab_Uderor[TipoReceita],Entrada!$P52)-AF52 -> 4282.5 | AD52: =SUMIFS(Tab_Uderor[R$],Tab_Uderor[Competencia],Entrada!AD$50,Tab_Uderor[TipoReceita],Entrada!$P52)-AG52 -> 0 | AE52: =SUMIFS(Tab_Uderor[R$],Tab_Uderor[Competencia],Entrada!AE$50,Tab_Uderor[TipoReceita],Entrada!$P52)-AH52 -> 0 | AF52: 322839.26 | AG52: 322839.26 | AH52: 325233.39
F53: Meta de % PNT / BT (Medido) | J53: BMP - 610531904; 610551904; 610533904; 610553904 | K53: Taxas Bancárias | L53: =SUMIFS(Tab_RIT_BMP[SALDO],Tab_RIT_BMP[CONTA],610531904,Tab_RIT_BMP[ANO],$L$7)+SUMIFS(Tab_RIT_BMP[SALDO],Tab_RIT_BMP[CONTA],610551904,Tab_RIT_BMP[ANO],$L$7)+ SUMIFS(Tab_RIT_BMP[SALDO],Tab_RIT_BMP[CONTA],610533904,Tab_RIT_BMP[ANO],$L$7)+SUMIFS(Tab_RIT_BMP[SALDO],Tab_RIT_BMP[CONTA],610553904,Tab_RIT_BMP[ANO],$L$7) -> 0 | M53: =SUMIFS(Tab_RIT_BMP[SALDO],Tab_RIT_BMP[CONTA],610531904,Tab_RIT_BMP[ANO],$M$7)+SUMIFS(Tab_RIT_BMP[SALDO],Tab_RIT_BMP[CONTA],610551904,Tab_RIT_BMP[ANO],$M$7)+ SUMIFS(Tab_RIT_BMP[SALDO],Tab_RIT_BMP[CONTA],610533904,Tab_RIT_BMP[ANO],$M$7)+SUMIFS(Tab_RIT_BMP[SALDO],Tab_RIT_BMP[CONTA],610553904,Tab_RIT_BMP[ANO],$M$7) -> 0
F54: DEC 8 anos (Limite V8) | J54: BMP - 610531910; 610551910; 610533910; 610553910 | K54: (-) Créditos de Tributos Recuperáveis | L54: =SUMIFS(Tab_RIT_BMP[SALDO],Tab_RIT_BMP[CONTA],610531910,Tab_RIT_BMP[ANO],$L$7)+SUMIFS(Tab_RIT_BMP[SALDO],Tab_RIT_BMP[CONTA],610551910,Tab_RIT_BMP[ANO],$L$7)+ SUMIFS(Tab_RIT_BMP[SALDO],Tab_RIT_BMP[CONTA],610533910,Tab_RIT_BMP[ANO],$L$7)+SUMIFS(Tab_RIT_BMP[SALDO],Tab_RIT_BMP[CONTA],610553910,Tab_RIT_BMP[ANO],$L$7) -> 0 | M54: =SUMIFS(Tab_RIT_BMP[SALDO],Tab_RIT_BMP[CONTA],610531910,Tab_RIT_BMP[ANO],$M$7)+SUMIFS(Tab_RIT_BMP[SALDO],Tab_RIT_BMP[CONTA],610551910,Tab_RIT_BMP[ANO],$M$7)+ SUMIFS(Tab_RIT_BMP[SALDO],Tab_RIT_BMP[CONTA],610533910,Tab_RIT_BMP[ANO],$M$7)+SUMIFS(Tab_RIT_BMP[SALDO],Tab_RIT_BMP[CONTA],610553910,Tab_RIT_BMP[ANO],$M$7) -> 0
K55: Subtotal | L55: =SUM(L48:L54) -> 0 | M55: =SUM(M48:M54) -> 0 | P55: UDER "Limbo"
J56: Demais
F57: Dados da última Revisão Tarifária | J57: BMP - 610531212; 610533212 | K57: Condenações Trabalhistas | P57: Preenchimento necessário apenas para cálculos de concessionárias que passaram por alteração contratual, conforme parágrafo 38 do Proret 2.1A.
F58: Custos Operacionais (CO3) | H58: 45308 | J58: BMP - 610533908; 610531909 | K58: Gastos com CCEE | P58: Mês correspondente à Data de Referência de Alteração Contratual - DRAC
F59: Receitas Irrecuperáveis - Encargos Setoriais (Vi) | J59: BMP - 611511401; 611512203; 611512103; 611512003; 611512303 | K59: Perdas na Alienação e Desativação | L59: =SUMIFS(Tab_RIT_BMP[SALDO],Tab_RIT_BMP[CONTA],611511401,Tab_RIT_BMP[ANO],$L$7)+SUMIFS(Tab_RIT_BMP[SALDO],Tab_RIT_BMP[CONTA],611512203,Tab_RIT_BMP[ANO],$L$7)+ SUMIFS(Tab_RIT_BMP[SALDO],Tab_RIT_BMP[CONTA], 611512103,Tab_RIT_BMP[ANO],$L$7)+SUMIFS(Tab_RIT_BMP[SALDO],Tab_RIT_BMP[CONTA],611512003,Tab_RIT_BMP[ANO],$L$7)+ SUMIFS(Tab_RIT_BMP[SALDO],Tab_RIT_BMP[CONTA],611512303,Tab_RIT_BMP[ANO],$L$7) -> 0 | M59: =SUMIFS(Tab_RIT_BMP[SALDO],Tab_RIT_BMP[CONTA],611511401,Tab_RIT_BMP[ANO],$M$7)+SUMIFS(Tab_RIT_BMP[SALDO],Tab_RIT_BMP[CONTA],611512203,Tab_RIT_BMP[ANO],$M$7)+ SUMIFS(Tab_RIT_BMP[SALDO],Tab_RIT_BMP[CONTA],611512103,Tab_RIT_BMP[ANO],$M$7)+SUMIFS(Tab_RIT_BMP[SALDO],Tab_RIT_BMP[CONTA],611512003,Tab_RIT_BMP[ANO],$M$7)+ SUMIFS(Tab_RIT_BMP[SALDO],Tab_RIT_BMP[CONTA],611512303,Tab_RIT_BMP[ANO],$M$7) -> 0 | P59: Sexto mês anterior à data da última RTP
F60: Demais Receitas Irrecuperáveis (Vse) | J60: BMP - 611112103; 611112203; 611112303; 611112403; 611112503 | K60: Ganhos na Alienação de Materiais | L60: =SUMIFS(Tab_RIT_BMP[SALDO],Tab_RIT_BMP[CONTA],611112103,Tab_RIT_BMP[ANO],$L$7)+SUMIFS(Tab_RIT_BMP[SALDO],Tab_RIT_BMP[CONTA],611112203, Tab_RIT_BMP[ANO],$L$7)+ SUMIFS(Tab_RIT_BMP[SALDO],Tab_RIT_BMP[CONTA],611112303,Tab_RIT_BMP[ANO],$L$7)+SUMIFS(Tab_RIT_BMP[SALDO],Tab_RIT_BMP[CONTA], 611112403,Tab_RIT_BMP[ANO],$L$7)+ SUMIFS(Tab_RIT_BMP[SALDO],Tab_RIT_BMP[CONTA],611112503,Tab_RIT_BMP[ANO],$L$7) -> 0 | M60: =SUMIFS(Tab_RIT_BMP[SALDO],Tab_RIT_BMP[CONTA],611112103,Tab_RIT_BMP[ANO],$M$7)+SUMIFS(Tab_RIT_BMP[SALDO],Tab_RIT_BMP[CONTA],611112203, Tab_RIT_BMP[ANO],$M$7)+ SUMIFS(Tab_RIT_BMP[SALDO],Tab_RIT_BMP[CONTA],611112303,Tab_RIT_BMP[ANO],$M$7)+SUMIFS(Tab_RIT_BMP[SALDO],Tab_RIT_BMP[CONTA], 611112403,Tab_RIT_BMP[ANO],$M$7)+ SUMIFS(Tab_RIT_BMP[SALDO],Tab_RIT_BMP[CONTA],611112503,Tab_RIT_BMP[ANO],$M$7) -> 0
F61: Remuneração do Capital (RC) | P61: Preenchimento necessário apenas para cálculos de concessionárias que passaram por alteração contratual, conforme parágrafo 38 do Proret 2.1A.
F62: Quota de Reintegração Regulatória (QRR) | Q62: =Q58 -> 00:00:00 | R62: =DATE(YEAR(Q62),MONTH(Q62)-1,1) ->  | X62: =DATE(YEAR(W62),MONTH(W62)-1,1) ->  | Y62: =DATE(YEAR(X62),MONTH(X62)-1,1) ->  | Z62: =DATE(YEAR(Y62),MONTH(Y62)-1,1) ->  | AA62: =DATE(YEAR(Z62),MONTH(Z62)-1,1) ->  | AB62: =DATE(YEAR(AA62),MONTH(AA62)-1,1) ->  | AC62: =DATE(YEAR(AB62),MONTH(AB62)-1,1) ->  | AD62: =DATE(YEAR(AC62),MONTH(AC62)-1,1) ->  | AE62: =DATE(YEAR(AD62),MONTH(AD62)-1,1) ->  | AF62: =DATE(YEAR(AE62),MONTH(AE62)-1,1) ->  | AG62: =DATE(YEAR(AF62),MONTH(AF62)-1,1) ->  | AH62: =DATE(YEAR(AG62),MONTH(AG62)-1,1) ->  | AI62: =DATE(YEAR(AH62),MONTH(AH62)-1,1) -> 
F63: Custo anual das instalações móveis e imóveis (CAIMI) | P63: Ultrapassagem de Demanda (valores brutos)
F64: Ajuste em função dos investimentos realizados (valor negativo) | J64: Custo Médio do Capital - Atual | P64: Excedente Reativo (valores brutos)
F65: Índice de Produtividade + Mecanismo de Qualidade | J65: Tipo | K65: Norma | L65: Valor
F66: UDEROR (inserir o valor positivo) | J66: WACC real antes de impostos | K66: Despacho n° 829, 24/03/2023 | L66: 0.112503
F67: Componente T - Última Revisão | J67: Taxa RGR/PLPT real | K67: Despacho n° 829, 24/03/2023 | L67: 0.000797
J68: Taxa RGR Demais Investimentos | K68: Despacho n° 829, 24/03/2023 | L68: 0.000797
J69: Participação do Capital Próprio | K69: Despacho 829/2023 | L69: 0.524453
F70: Base de Ativios - SFF | H70: 45308 | J70: Prêmio de Risco do negócio e financeiro após impostos | K70: Despacho 829/2023 | L70: 0.089205
F71: (1) Ativo Imobilizado em Serviço (Valor Novo de Reposição)
F72: (2) Índice de Aproveitamento Integral
F73: (3) Obrigações Especiais Bruta | J73: Custo Médio do Capital - Ultima Revisão
F74: (4) Bens Totalmente Depreciados | J74: Tipo | K74: Norma | L74: Valor
F75: (5) Base de Remuneração Bruta = (1)-(2)-(3)-(4) | G75: =G71-G72-G73-G74 -> 0 | J75: WACC real antes de impostos | M75: <- Conferir valor na sparta da última revisão!
F76: (6) Depreciação Acumulada | J76: Taxa RGR/PLPT real | M76: <- Conferir valor na sparta da última revisão!
F77: (7) AIS Líquido (Valor de Mercado em Uso) | G77: =G71-G76 -> 0 | J77: Taxa RGR Demais Investimentos | M77: <- Conferir valor na sparta da última revisão!
F78: (8) Índice de Aproveitamento Depreciado | J78: Participação do Capital Próprio | M78: <- Conferir valor na sparta da última revisão!
F79: (9) Valor da Base de Remuneração (VBR) | G79: =G77-G78 -> 0 | J79: Prêmio de Risco do negócio e financeiro após impostos | M79: <- Conferir valor na sparta da última revisão!
F80: (10) Almoxarifado em Operação
F81: (11) Ativo Diferido | G81: =G102*I81 -> 0
F82: (12) Obrigações Especiais Líquida
F83: (13) Terrenos e Servidões
F84: (14) Base de Rem. Líquida Total = (9)+(10)+(11)-(12)+(13) | G84: =G79+G80+G81-G82+G83 -> 0
F85: (15) Saldo RGR PLPT
F86: (16) Saldo RGR Demais Investimentos
F87: (17) Taxa de Depreciação
F88: (18) Quota de Reintegração Regulatória = (5) * (17) | G88: =G87*G75 -> 0
F91: Base de Ativios - Ciclo anterior | H91: 45308
F92: (1) Ativo Imobilizado em Serviço (Valor Novo de Reposição)
F93: (2) Índice de Aproveitamento Integral
F94: (3) Obrigações Especiais Bruta
F95: (4) Bens Totalmente Depreciados
F96: (5) Base de Remuneração Bruta = (1)-(2)-(3)-(4) | G96: =G92-G93-G94-G95 -> 0
F97: (6) Depreciação Acumulada
F98: (7) AIS Líquido (Valor de Mercado em Uso)
F99: (8) Índice de Aproveitamento Depreciado
F100: (9) Valor da Base de Remuneração (VBR)
F101: (10) Almoxarifado em Operação
F102: (11) Ativo Diferido
F103: (12) Obrigações Especiais Líquida
F104: (13) Terrenos e Servidões
F105: (14) Base de Rem. Líquida Total = (1)-(6)-(8)+(10)+(11)-(12)+(13) | G105: =G92-G97-G99+G101+G102-G103+G104 -> 0
F106: (15) Saldo RGR PLPT
F107: (16) Saldo RGR Demais Investimentos
F109: (17) Taxa de Depreciação
F110: (18) Quota de Reintegração Regulatória = (5) * (17) | G110: =G96*G109 -> 0
F111: Base de Anuidade Regulatória (BAR)
F113: Dados do último Reajuste Anual - Contrato Novo
F114: Parcela B sem desconto UDEROR | G114: =SUM(G115:G118) -> 0
F115: Outras Receitas (OR)
F116: Excedente de Reativos (ER)
F117: Ultrapassagem de Demanda (UD)
F118: Parcela B
F119: Fator PB | G119: =G114/G118 -> 
F121: Dados do último Ciclo - Contrato Novo
F122: Número de processos até o primeiro reajuste contrato novo
F123: Número de processos no contrato novo antes da atual revisão
F125: Participação dos componentes da Parcela B no Ano Teste
F126: Descrição | G126: Valor
F127: Custos Operacionais | G127: =(G58*(1-G65)-(SUM(G58:G63)*(1-G65)-G66)*(1-(1-G67)^G122)-((SUM(G58:G63)*(1-G65)-G66)*(1-G67)^G122+G66-SUM(G59:G60)*(1-G65))*(1-(1-G67)^G123))/((((SUM(G58:G63)*(1-G65)-G66)*(1-G67)^G122)+G66-SUM(G59:G60)*(1-G65))*(1-G67)^G123) -> 
F128: Anuidades | G128: =(G63*(1-G65)/((((SUM(G58:G63)*(1-G65)-G66)*(1-G67)^G122)+G66-SUM(G59:G60)*(1-G65))*(1-G67)^G123)) -> 
F129: Remuneração | G129: =(G61*(1-G65)/((((SUM(G58:G63)*(1-G65)-G66)*(1-G67)^G122)+G66-SUM(G59:G60)*(1-G65))*(1-G67)^G123)) -> 
F130: Depreciação | G130: =(G62*(1-G65)/((((SUM(G58:G63)*(1-G65)-G66)*(1-G67)^G122)+G66-SUM(G59:G60)*(1-G65))*(1-G67)^G123)) -> 

Sheet Resultado
B1: =LnkTxtNomeCompleto -> Energisa Acre - Distribuidora de Energia S.A
B2: Resultado | F2: Parâmetros a serem considerados para os Reajustes subsequentes
B4: RA1 | D4: =D40+D45 -> 974759303.5 | F4: FATOR X | K4: Última versão enviada: | L4: 20
B5: RA0 | D5: =Mercado!D24 -> 939117370.6 | F5: Componente T do Fator X | G5: ='VPB e Fator X'!C36 ->  | K5: Data de envio | L5: 2024-11-27T12:14:40
B6: Índice de Reposição/Reajuste | D6: =D4/D5-1 -> 0.03795258618 | F6: Componente Pd do Fator X | G6: ='VPB e Fator X'!C33 -> 0.01449729951 | O6: Efeito Consumidor por subgrupo
B7: Componentes Financeiros | D7: =Financeiros!E8 -> -0.02294533256 | K7: Efeito Consumidor | O7: Subgrupo | P7: Variação
B8: Índice de Reposição/Reajuste com Financeiros | D8: =D6+D7 -> 0.01500725363 | F8: PERDAS | K8: Efeito Grupo A - Alta tensão | L8: -0.01229340598 | O8: A3a | P8: 0.02655835743
F9: Perdas Não Técnicas | G9: =Entrada!G33 -> 0 | K9: Efeito Grupo B - Baixa tensão | L9: -0.04422841 | O9: A4 | P9: -0.01291823739
C10: DRA | D10: DRP | F10: Perdas Técnicas | G10: =Entrada!G34 -> 0 | K10: Efeito tarifário médio AT+BT | L10: -0.03838021572 | O10: B1 | P10: -0.04384384042
B11: TOTAL (Parcela A + Parcela B) | C11: =C45+C40 -> 939117370.6 | D11: =D45+D40 -> 974759303.5 | K11: Tarifa B1 - Residencial (R$) | L11: 790.8948239 | O11: B2 | P11: -0.04500565345
B12: Financeiros | D12: =Financeiros!D8 -> -21548360.38 | O12: B3 | P12: -0.04500654701
B13: Total com financeiros | D13: =D11+D12 -> 953210943.1 | K13: Subvenção da CDE para descontos tarifários (Valores anuais) | M13: Ano anterior | O13: B4 | P13: -0.04500174949
K14: SUBSIDIO CARGA FONTE INCENTIVADA | L14: 14752190.64 | M14: =(HLOOKUP("Carga fonte",SubsidiosConcedidos[#All],2,FALSE))*12 -> 8945229 | O14: A | P14: -0.01229340598
K15: SUBSIDIO GERAÇÃO FONTE INCENTIVADA | L15: 0 | M15: =(HLOOKUP("Geração",SubsidiosConcedidos[#All],2,FALSE))*12 -> 0 | O15: B | P15: -0.04422841
B16: Parcela A | F16: Formação da Parcela B e Reposicionamento (Resumo) | K16: SUBSIDIO DISTRIBUIÇÃO | L16: 0 | M16: =(HLOOKUP("Distribuição",SubsidiosConcedidos[#All],2,FALSE))*12 -> 0 | O16: A+B | P16: -0.03838021572
K17: SUBSIDIO ÁGUA, ESGOTO E SANEAMENTO | L17: 0 | M17: =(HLOOKUP("Água, Esgoto e Saneamento",SubsidiosConcedidos[#All],2,FALSE))*12 -> 0
C18: Processo Anterior | D18: Processo Atual | K18: SUBSIDIO RURAL | L18: 0 | M18: =(HLOOKUP("Rural",SubsidiosConcedidos[#All],2,FALSE))*12 -> 0
B19: ENCARGOS | C19: =SUM(C20:C28) -> 140551113.2 | D19: =SUM(D20:D28) -> 131177502 | F19: Custo de Administração, Operação e Manutenção (CAOM) | G19: =SUM(G20:G20) ->  | K19: SUBSIDIO IRRIGANTE/AQUICULTOR | L19: 55147.70409 | M19: =(HLOOKUP("Irrigante/Aquicultor",SubsidiosConcedidos[#All],2,FALSE))*12 -> 30890.4
B20: Reserva Global de Reversão – RGR | D20: =Encargos!C16 -> 0 | F20: Custos Operacionais (CO) | G20: ='VPB e Fator X'!C121 ->  | K20: SUBSIDIO BAIXA RENDA | L20: 34433730.07 | M20: 0
B21: Conta de Consumo de Combustíveis – CCC | D21: =Encargos!C9 -> 0 | F21: Custo Anual dos Ativos (CAA) | G21: =SUM(G22:G24) ->  | K21: SUBSIDIO SCEE | L21: 9658106.937 | M21: =(HLOOKUP("SCEE",SubsidiosConcedidos[#All],2,FALSE))*12 -> 833723.52
B22: Taxa de Fisc. de Serviços de E.E. – TFSEE | C22: ='Votos e NTs'!BM274 -> 1671717.08 | D22: =Encargos!C17 -> 1722807.117 | F22: Remuneração do Capital (RC) | G22: ='VPB e Fator X'!C95 ->  | K22: SUBSIDIO LEI 14.299/22 | L22: 0 | M22: =(HLOOKUP("Lei 14299/20222",SubsidiosConcedidos[#All],2,FALSE))*12 -> 0
B23: Conta de Desenvolvimento Energético – CDE | C23: =SUM('Votos e NTs'!BM275:BM279) -> 96122490.15 | D23: =Encargos!C10 -> 87572497.29 | F23: Quota de Reintegração Regulatória (QRR) | G23: ='VPB e Fator X'!C77 -> 
B24: Compensação financeira - CFURH | C24: ='Votos e NTs'!BM280 -> 0 | D24: =Encargos!C11 -> 0 | F24: Custo anual das instalações móveis e imóveis (CAIMI) | G24: ='VPB e Fator X'!C67 -> 
B25: Encargos Serv. Sist. - ESS e Energ. Reserv. - EER | C25: ='Votos e NTs'!BM281 -> 20812797.03 | D25: =Encargos!C12 -> 21331445.22 | F25: Parcela B (VPB) | G25: =SUM(G21,G19) ->  | K25: Versão de Mercado
B26: PROINFA | C26: ='Votos e NTs'!BM282 -> 13043363 | D26: =Encargos!C13 -> 11461719.63 | F26: Índice de Produtividade da Parcela B | G26: ='VPB e Fator X'!C33 -> 0.01449729951 | K26: Status de Sincronização de BDL
B27: P&D e Eficiência Energética | C27: ='Votos e NTs'!BM283 -> 8900745.96 | D27: =Encargos!C15 -> 9089032.737 | F27: Mecanismo de Incentivo à Qualidade | G27: ='VPB1'!F42 -> -0.00780273229 | K27: Última Sincronização
F28: Parcela B com ajustes | G28: =((1-G26-G27)*G25)+G38 ->  | L28: Trabalha na pasta de rede
B29: TRANSPORTE | C29: =SUM(C30:C37) -> 37417850.08 | D29: =SUM(D30:D37) -> 66315482.65 | F29: Outras Receitas (OR) | G29: =UDEROR!C2 -> 3237622.472
B30: Rede Básica | C30: ='Votos e NTs'!BM286 -> 22515037.06 | D30: ='RB e Conexão'!E6 -> 40738395.63 | F30: Ultrapassagem de Demanda (UD) | G30: =UDEROR!C6+'VPB e Fator X'!D179 -> 2464058.902
B31: Rede Básica Fronteira | C31: ='Votos e NTs'!BM287 -> 13122601.04 | D31: ='RB e Conexão'!E7 -> 23146806.59 | F31: Excedente de Reativos (ER) | G31: =UDEROR!C7+'VPB e Fator X'!D180 -> 2584109.732
B32: Rede Básica ONS (A2) | C32: ='Votos e NTs'!BM288 -> 0 | D32: =VLOOKUP("TUSDg ONS DRP",TUSDG[],2,FALSE) -> 0 | F32: Parcela B deduzidas as outras receitas | G32: =G28-SUM(G29:G31) -> 
B33: Rede Básica Export. (A2) | C33: ='Votos e NTs'!BM289 -> 0 | D33: =VLOOKUP("TUSDg Export DRP",TUSDG[],2,FALSE) -> 0
B34: MUST Itaipu | C34: ='Votos e NTs'!BM290 -> 0 | D34: ='RB e Conexão'!E8 -> 0 | F34: 1. Receita Requerida (RR) | G34: =G28+D40 -> 
B35: Transporte de Itaipu | C35: ='Votos e NTs'!BM291 -> 0 | D35: =SUMPRODUCT(itaiputransporte[Potência],itaiputransporte[Tarifa DRP]) -> 0 | F35: 2. Outras Receitas (OR) | G35: =G29 -> 3237622.472
B36: Conexão | C36: ='Votos e NTs'!BM292 -> 1780211.975 | D36: ='RB e Conexão'!E9 -> 2430280.43 | F36: 3. Receita Verificada (RV) | G36: =Mercado!D24 -> 939117370.6
B37: Uso do sistema de distribuição e CCD | C37: ='Votos e NTs'!BM293 -> 0 | D37: =CUSD!D14+CUSD!E14 -> 0
B38: ENERGIA | C38: ='Votos e NTs'!BM294 -> 313680478 | D38: =Energia!D15 -> 317643081.7 | F38: Ajuste de PB associado ao SCEE | G38: =G39+G40+G41 -> 0
B39: RECEITA IRRECUPERÁVEL | C39: ='Votos e NTs'!BM295 -> 15338267.4 | D39: =Mercado!H38 -> 14690828.65 | F39: Mercado de Referência 12 meses
B40: VPA (ENCARGO + TRANSPORTE + ENERGIA+RI) | C40: =C19+C29+C38+C39 -> 506987708.7 | D40: =D19+D29+D38+D39 -> 529826895 | F40: Componente Pd do Mercado de Referência
F41: TUSDg
B42: Parcela B
D44: VPB1
B45: ="Parcela B "&IF(CAPA!C7="Revisão","(menos Outras Receitas)",) -> Parcela B | C45: ='Votos e NTs'!BM296 -> 432129661.9 | D45: =IF(CAPA!$C$7="Revisão",Resultado!$G$32,'VPB1'!$C$43) -> 444932408.5

Sheet Subvenção Permissionária (hidden)
A1: Cooperativa
S2: Outras Receitas
A3: Cálculo PB | D3: Receita Agregada | K3: Subvenção
A4: UC | D4: Subgrupo | E4: Modalidade | F4: Classe | G4: Mercado TUSD | H4: Tarifa Fio B eco | I4: Receita | K4: Subvenção | R4: OUTRAS RECEITAS (R$) | W4: 44013 | X4: 43983 | Y4: 43952 | Z4: 43922 | AA4: 43891 | AB4: 43862 | AC4: 43831 | AD4: 43800 | AE4: 43770 | AF4: 43739 | AG4: 43709 | AH4: 43678
A5: Data Base | D5: A3 | E5: Azul | F5: Demanda azul P | I5: =G5*H5 -> 0 | K5: PB COM COOPERATIVA | L5: ='VPB e Fator X - Subvenção'!C26 ->  | R5: Tipo de Receita | Y5: 3 meses antes | Z5: 4 meses antes | AA5: 5 meses antes | AB5: 6 meses antes | AC5: 7 meses antes | AD5: 8 meses antes | AE5: 9 meses antes | AF5: 10 meses antes | AG5: 11 meses antes | AH5: 12 meses antes
A6: (1) Ativo Imobilizado em Serviço (Valor Novo de Reposição) | F6: Demanda azul FP | I6: =G6*H6 -> 0 | K6: PB ORIGINAL SUPRIDORA | L6: =Resultado!D45 -> 444932408.5 | R6: Serviços Cobráveis | V6: Atividade inerente ao serviço
A7: (2) Obrigações Especiais Bruta | F7: Energia TUSD azul | I7: 0 | K7: Diferença | L7: =L5-L6 ->  | R7: Arrecadação de convênios ou valores pela fatura | V7: Atividades acessórias próprias
A8: (3) Bens Totalmente Depreciados | E8: Geração | F8: Demanda Geração | I8: 0 | K8: Receita Agregada | L8: =I24 -> 0 | R8: Arrecadação de faturas de terceiros por estrutura própria
A9: (4) Base de Remuneração Bruta = (1)-(2)-(3) | K9: Subvenção | L9: =L7-L8 ->  | R9: Veiculação de publicidade
A10: (5) Depreciação Acumulada | D10: A4 | E10: Azul | F10: Demanda azul P | I10: 0 | R10: Aluguel ou cessão onerosa de imóveis e espaços físicos
A11: (6) Valor da Base de Remuneração (VBR) | F11: Demanda azul FP | I11: 0 | K11: subvenção de 2016 | R11: Compartilhamento de infraestrutura
A12: (7) Obrigações Especiais Líquida | F12: Energia TUSD azul E | I12: 0 | L12: =L9/L11-1 ->  | R12: Serviços de avaliação técnica e aferição de medidores.
A13: (8) Terrenos e Servidões | E13: Verde | F13: Demanda verde | I13: 0 | R13: Operacionalização de serviço de créditos tributários
A14: (9) Almoxarifado em Operação | F14: Energia TUSD verde EP | I14: 0 | K14: Item | L14: 2023 | M14: Calculo anterior | N14: variação | R14: Elaboração de projeto, construção, operação, manutenção ou reforma de: | V14: Atividades acessórias complementares
A15: (10) Base de Remuneração Líquida Total = (1)-(5)-(7)+(8)+(9) | F15: Energia TUSD verde EFP | I15: 0 | K15: Densidade Cooperativa | L15: =G24/B21 ->  | N15: =L15/M15-1 ->  | R15: (1) redes de distribuição de energia elétrica destinadas à regularização fundiária de interesse específico e ao atendimento dos empreendimentos de múltiplas unidades consumidoras;
A16: (11) Taxa de Depreciação | E16: Geração | F16: Demanda geração | I16: 0 | K16: Densidade Supridora | L16: =(Mercado!C24-Mercado!C17)/(Entrada!G44+Entrada!G45+Entrada!G46) ->  | N16: =L16/M16-1 ->  | R16: (2) redes de energia elétrica destinadas ao acesso dos sistemas de distribuição ou transmissão;
A17: (12) Quota de Reintegração Regulatória | K17: Mercado | L17: =G24 -> 0 | R17: (3) subestações de energia;
A18: (13) Remuneração de Capital (RC) = BRR líq x WACC | D18: BT | E18: Convencional | F18: Energia TUSD B | I18: =G18*H18 -> 0 | K18: Km de rede | L18: =B21 -> 0 | R18: (4) instalações elétricas internas de unidades consumidoras;
E19: Branca | F19: Ponta | I19: 0 | R19: (5) banco de capacitores:
B20: Valores | E20: Branca | F20: Fora Ponta | I20: 0 | R20: (6) padrões de entrada de unidades consumidoras atendidas em baixa tensão;
A21: Total de km de rede (linhas e redes de distribuição) | E21: Branca | F21: Intermediário | I21: 0 | R21: (7) sistemas de medição de energia elétrica;
E22: Iluminação | F22: Energia TUSD B4a | I22: 0 | R22: (8) geradores, incluindo-se unidades de microgeração e minigeração distribuída;
F23: Energia TUSD B4b | I23: =G23*H23 -> 0 | R23: (9) sistemas de iluminação pública.
D24: Total Energia | G24: =G7+G12+G14+G15+G18+G22+G23 -> 0 | H24: Receita total | I24: =SUM(I5:I23) -> 0 | R24: Eficientização do consumo de energia elétrica e instalação de cogeração qualificada, desde que não enquadráveis nos projetos de Pesquisa e Desenvolvimento (P&D) ou de Eficiência Energética estabelecidos em lei
D25: Total demanda | G25: =G5+G6+G8+G10+G11+G13+G16 -> 0 | R25: Serviços de comunicação de dados
R26: Serviços de consultoria

Sheet Votos e NTs
B2: Tabelas | D2: Gráficos
B4: Consumidores | D4: Análise de Impacto da RTA na Tarfia | K4: Composição da Receita | P4: Composição da Receita com Tributos | U4: Composição da Receita com detalhamento de Encargos | Z4: Evolução da Tarifa B1 Residencial
B5: Mercado
B6: Encargos
B7: Custo do Transporte de Energia
B8: Perdas
B9: Energia Requerida
B10: Energia na DRA
B11: Contratos
B12: Fator X
B13: Parcela B
B14: CVA em Processamento
B15: Financeiros
B16: Subsídios
B17: Efeito Médio AT + BT
B18: Avaliação RTA
B19: Variação do Custo de Energia
B20: Dados dos Gráficos
E23: Impacto da RTA na Tarifa | K23: Composição da Receita | P23: Composição da Receita com Tributos | U23: Composição da Receita com detalhamento de Encargos | Z23: Data | AA23: Tipo | AC23: B1 - Residencial | AD23: IGPM | AE23: IPCA | AF23: Data
E24: Encargos Setoriais | H24: =IF(CAPA!C7="Reajuste",BP273,'NT Revisao'!AQ206) -> -0.009981298941 | K24: Custo de Distribuição | M24: =Resultado!D45 -> 444932408.5 | P24: Custo de Distribuição | R24: =M24/$R$32 -> 0.359039856 | U24: Custo de Distribuição | W24: =Resultado!D45 -> 444932408.5 | Z24: =YEAR(BD!B79) -> 1900 | AA24: =(BD!C79) -> 0 | AB24: =CONCATENATE(AA24," ",Z24) -> 0 1900 | AC24: =BD!D79 -> 0 | AD24: =AC24 -> 0 | AE24: =AD24 -> 0 | AF24: =DATE(YEAR(BD!B79),MONTH(BD!B79)-1,1) -> 
E25: Custo de Transporte | H25: =IF(CAPA!C7="Reajuste",BP285,'NT Revisao'!AQ218) -> 0.03077105533 | K25: Custo de Energia | M25: =Resultado!D38 -> 317643081.7 | P25: Custo de Energia | R25: =M25/$R$32 -> 0.256323262 | U25: Custo de Energia | W25: =Resultado!D38 -> 317643081.7 | Z25: =YEAR(BD!B78) -> 1900 | AA25: =(BD!C78) -> 0 | AB25: 0 1900 | AC25: =BD!D78 -> 0 | AD25: =AD24*VLOOKUP(AF25,Índices!$B$135:$F$627,2,0)/VLOOKUP(AF24,Índices!$B$135:$F$627,2,0) ->  | AE25: =AE24*VLOOKUP(AF25,Índices!$B$135:$F$627,3,0)/VLOOKUP(AF24,Índices!$B$135:$F$627,3,0) ->  | AF25: =DATE(YEAR(BD!B78),MONTH(BD!B78)-1,1) -> 
E26: Custo de Energia | H26: =IF(CAPA!C7="Reajuste",BP294,'NT Revisao'!AQ227) -> 0.004219497805 | K26: Custo de Transporte | M26: =Resultado!D29 -> 66315482.65 | P26: Custo de Transmissão | R26: =M26/$R$32 -> 0.0535135245 | U26: Custo de Transmissão | W26: =Resultado!D29 -> 66315482.65 | Z26: =YEAR(BD!B77) -> 1900 | AA26: =(BD!C77) -> 0 | AB26: 0 1900 | AC26: =BD!D77 -> 0 | AD26: =AD25*VLOOKUP(AF26,Índices!$B$135:$F$627,2,0)/VLOOKUP(AF25,Índices!$B$135:$F$627,2,0) ->  | AE26: =AE25*VLOOKUP(AF26,Índices!$B$135:$F$627,3,0)/VLOOKUP(AF25,Índices!$B$135:$F$627,3,0) ->  | AF26: =DATE(YEAR(BD!B77),MONTH(BD!B77)-1,1) -> 
E27: Receitas Irrecuperáveis | H27: =IF(CAPA!C7="Reajuste",BP295,'NT Revisao'!AQ228) -> -0.0006894119591 | K27: Encargos Setoriais | M27: =Resultado!D19 -> 131177502 | P27: Encargos Setoriais | R27: =M27/$R$32 -> 0.1058541714 | U27: Receitas Irrecuperáveis | W27: =Resultado!D39 -> 14690828.65 | Z27: =YEAR(BD!B76) -> 1900 | AA27: =(BD!C76) -> 0 | AB27: 0 1900 | AC27: =BD!D76 -> 0 | AD27: =AD26*VLOOKUP(AF27,Índices!$B$135:$F$627,2,0)/VLOOKUP(AF26,Índices!$B$135:$F$627,2,0) ->  | AE27: =AE26*VLOOKUP(AF27,Índices!$B$135:$F$627,3,0)/VLOOKUP(AF26,Índices!$B$135:$F$627,3,0) ->  | AF27: =DATE(YEAR(BD!B76),MONTH(BD!B76)-1,1) -> 
E28: Distribuição | H28: =IF(CAPA!C7="Reajuste",BP296,'NT Revisao'!AQ229) -> 0.01363274395 | K28: Receitas Irrecuperáveis | M28: =Resultado!D39 -> 14690828.65 | P28: Receitas Irrecuperáveis | R28: =M28/R32 -> 0.01185481863 | U28: PROINFA | W28: =Resultado!D26 -> 11461719.63 | Z28: =YEAR(BD!B75) -> 1900 | AA28: =(BD!C75) -> 0 | AB28: 0 1900 | AC28: =BD!D75 -> 0 | AD28: =AD27*VLOOKUP(AF28,Índices!$B$135:$F$627,2,0)/VLOOKUP(AF27,Índices!$B$135:$F$627,2,0) ->  | AE28: =AE27*VLOOKUP(AF28,Índices!$B$135:$F$627,3,0)/VLOOKUP(AF27,Índices!$B$135:$F$627,3,0) ->  | AF28: =DATE(YEAR(BD!B75),MONTH(BD!B75)-1,1) -> 
E29: Componentes Financeiros | H29: =IF(CAPA!C7="Reajuste",BP299,'NT Revisao'!AQ238) -> -0.02294533256 | P29: ICMS | R29: =Mercado!G9 -> 0.1688294983 | U29: CDE | W29: =Resultado!D23 -> 87572497.29 | Z29: =YEAR(BD!B74) -> 1900 | AA29: =(BD!C74) -> 0 | AB29: 0 1900 | AC29: =BD!D74 -> 0 | AD29: =AD28*VLOOKUP(AF29,Índices!$B$135:$F$627,2,0)/VLOOKUP(AF28,Índices!$B$135:$F$627,2,0) ->  | AE29: =AE28*VLOOKUP(AF29,Índices!$B$135:$F$627,3,0)/VLOOKUP(AF28,Índices!$B$135:$F$627,3,0) ->  | AF29: =DATE(YEAR(BD!B74),MONTH(BD!B74)-1,1) -> 
E30: Retirada dos Financeiros Anteriores | H30: =IF(CAPA!C7="Reajuste",BP351,'NT Revisao'!AQ290) -> -0.05338746935 | P30: PIS/COFINS | R30: =Mercado!$G$10 -> 0.04458486915 | U30: ESS/EER | W30: =Resultado!D25 -> 21331445.22 | Z30: =YEAR(BD!B73) -> 1900 | AA30: =(BD!C73) -> 0 | AB30: 0 1900 | AC30: =BD!D73 -> 0 | AD30: =AD29*VLOOKUP(AF30,Índices!$B$135:$F$627,2,0)/VLOOKUP(AF29,Índices!$B$135:$F$627,2,0) ->  | AE30: =AE29*VLOOKUP(AF30,Índices!$B$135:$F$627,3,0)/VLOOKUP(AF29,Índices!$B$135:$F$627,3,0) ->  | AF30: =DATE(YEAR(BD!B73),MONTH(BD!B73)-1,1) -> 
E31: Efeito Médio Consumidor | H31: =BP352 -> -0.03838021572 | P31: Tributos por dentro | R31: =LnkTxtPisCofins+LnkTxtICMS -> 0.2134143675 | U31: Outros | W31: =Resultado!D27+Resultado!D28+Resultado!D24+Resultado!D22 -> 10811839.85 | Z31: =YEAR(BD!B72) -> 1900 | AA31: =(BD!C72) -> 0 | AB31: 0 1900 | AC31: =BD!D72 -> 0 | AD31: =AD30*VLOOKUP(AF31,Índices!$B$135:$F$627,2,0)/VLOOKUP(AF30,Índices!$B$135:$F$627,2,0) ->  | AE31: =AE30*VLOOKUP(AF31,Índices!$B$135:$F$627,3,0)/VLOOKUP(AF30,Índices!$B$135:$F$627,3,0) ->  | AF31: =DATE(YEAR(BD!B72),MONTH(BD!B72)-1,1) -> 
P32: Receita com Tributos | R32: =SUM(W24:W31)/(1-R29-R30) -> 1239228462 | Z32: =YEAR(BD!B71) -> 1900 | AA32: =(BD!C71) -> 0 | AB32: 0 1900 | AC32: =BD!D71 -> 0 | AD32: =AD31*VLOOKUP(AF32,Índices!$B$135:$F$627,2,0)/VLOOKUP(AF31,Índices!$B$135:$F$627,2,0) ->  | AE32: =AE31*VLOOKUP(AF32,Índices!$B$135:$F$627,3,0)/VLOOKUP(AF31,Índices!$B$135:$F$627,3,0) ->  | AF32: =DATE(YEAR(BD!B71),MONTH(BD!B71)-1,1) -> 
P33: Tributos Totais por Fora | R33: =(R29+R30)/(1-R29-R30) -> 0.2713173984 | Z33: =YEAR(BD!B70) -> 1900 | AA33: =(BD!C70) -> 0 | AB33: 0 1900 | AC33: =BD!D70 -> 0 | AD33: =AD32*VLOOKUP(AF33,Índices!$B$135:$F$627,2,0)/VLOOKUP(AF32,Índices!$B$135:$F$627,2,0) ->  | AE33: =AE32*VLOOKUP(AF33,Índices!$B$135:$F$627,3,0)/VLOOKUP(AF32,Índices!$B$135:$F$627,3,0) ->  | AF33: =DATE(YEAR(BD!B70),MONTH(BD!B70)-1,1) -> 
Z34: =YEAR(BD!B69) -> 1900 | AA34: =(BD!C69) -> 0 | AB34: 0 1900 | AC34: =BD!D69 -> 0 | AD34: =AD33*VLOOKUP(AF34,Índices!$B$135:$F$627,2,0)/VLOOKUP(AF33,Índices!$B$135:$F$627,2,0) ->  | AE34: =AE33*VLOOKUP(AF34,Índices!$B$135:$F$627,3,0)/VLOOKUP(AF33,Índices!$B$135:$F$627,3,0) ->  | AF34: =DATE(YEAR(BD!B69),MONTH(BD!B69)-1,1) -> 
Z35: =YEAR(BD!B68) -> 1900 | AA35: =(BD!C68) -> 0 | AB35: 0 1900 | AC35: =BD!D68 -> 0 | AD35: =AD34*VLOOKUP(AF35,Índices!$B$135:$F$627,2,0)/VLOOKUP(AF34,Índices!$B$135:$F$627,2,0) ->  | AE35: =AE34*VLOOKUP(AF35,Índices!$B$135:$F$627,3,0)/VLOOKUP(AF34,Índices!$B$135:$F$627,3,0) ->  | AF35: =DATE(YEAR(BD!B68),MONTH(BD!B68)-1,1) -> 
Z36: =YEAR(BD!B67) -> 1900 | AA36: =(BD!C67) -> 0 | AB36: 0 1900 | AC36: =BD!D67 -> 0 | AD36: =AD35*VLOOKUP(AF36,Índices!$B$135:$F$627,2,0)/VLOOKUP(AF35,Índices!$B$135:$F$627,2,0) ->  | AE36: =AE35*VLOOKUP(AF36,Índices!$B$135:$F$627,3,0)/VLOOKUP(AF35,Índices!$B$135:$F$627,3,0) ->  | AF36: =DATE(YEAR(BD!B67),MONTH(BD!B67)-1,1) -> 
Z37: =YEAR(BD!B66) -> 2024 | AA37: =(BD!C66) -> 0 | AB37: =CONCATENATE(IF(AA37=1,"Revisão","Reajuste")," ",Z37) -> Reajuste 2024 | AC37: =BD!D66 -> 790.8948239 | AD37: =AD36*VLOOKUP(AF37,Índices!$B$135:$F$627,2,0)/VLOOKUP(AF36,Índices!$B$135:$F$627,2,0) ->  | AE37: =AE36*VLOOKUP(AF37,Índices!$B$135:$F$627,3,0)/VLOOKUP(AF36,Índices!$B$135:$F$627,3,0) ->  | AF37: =DATE(YEAR(BD!B66),MONTH(BD!B66)-1,1) -> 2024-11-01
AC38: =AC37/AC24-1 ->  | AD38: =AD37/AD24-1 -> 
B40: TabCons | E40: Voltar
B41: Classe de Consumo | C41: Nº de Unidades Consumidoras* | D41: Consumo de Energia (MWh) | E41: Participação no Consumo (%)
B42: Residencial | C42: =Mercado!E30 -> 255857 | D42: =Mercado!F30 -> 65506.213 | E42: =D42/$D$50 -> 0.5307416084
B43: Industrial | C43: =Mercado!E31 -> 375 | D43: =Mercado!F31 -> 11447.259 | E43: 0.09274748723
B44: Comercial | C44: =Mercado!E32 -> 22866 | D44: =Mercado!F32 -> 19860.503 | E44: 0.1609129092
B45: Rural | C45: =Mercado!E33 -> 17654 | D45: =Mercado!F33 -> 3903.691 | E45: 0.03162831654
B46: Iluminação Pública | C46: =Mercado!E34 -> 426 | D46: =Mercado!F34 -> 3781.312 | E46: 0.03063678269
B47: Poder Público | C47: =Mercado!E35 -> 3332 | D47: =Mercado!F35 -> 13616.873 | E47: 0.11032604
B48: Serviço Público | C48: =Mercado!E36 -> 234 | D48: =Mercado!F36 -> 3894.811 | E48: 0.03155636939
B49: Demais classes | C49: =Mercado!E37 -> 92 | D49: =Mercado!F37 -> 1413.264 | E49: 0.01145048651
B50: Total | C50: =SUM(C42:C49) -> 300836 | D50: =SUM(D42:D49) -> 123423.926 | E50: =SUM(E42:E49) -> 1
B51: * Nota: dados do último mês informado pela empresa
G53: TabMercado | I53: Voltar
G54: Subgrupos | H54: Mercado (MWh) | I54: Receita (R$) | J54: Colunas1
G55: Fornecimento | H55: =SUM(H56:H62) -> 1211706.378 | I55: =SUM(I56:I62) -> 887946907.7 | J55: =IF(ABS(H55)+ABS(I55)>0,1,0) -> 1
G56: A1 (230 kV ou mais) | H56: =Mercado!C10 -> 0 | I56: =Mercado!D10 -> 0 | J56: 0
G57: A2 (88 a 138 kV) | H57: =Mercado!C11 -> 0 | I57: =Mercado!D11 -> 0 | J57: 0
G58: A3 (69 kV) | H58: =Mercado!C12 -> 0 | I58: =Mercado!D12 -> 0 | J58: 0
G59: A3a (30 kV a 44 kV) | H59: =Mercado!C13 -> 1775.274 | I59: =Mercado!D13 -> 1525596.259 | J59: 1
G60: A4 (2,3 kV a 25 kV) | H60: =Mercado!C14 -> 193009.074 | I60: =Mercado!D14 -> 121720782.7 | J60: 1
G61: As | H61: =Mercado!C15 -> 0 | I61: =Mercado!D15 -> 0 | J61: 0
G62: BT (menor que 2,3 kV) | H62: =Mercado!C16 -> 1016922.03 | I62: =Mercado!D16 -> 764700528.8 | J62: 1
G63: Suprimento | H63: =Mercado!C17 -> 13097.01 | I63: =Mercado!D17 -> 4216445.37 | J63: 1
G64: Livres A1 | H64: =Mercado!C18 -> 0 | I64: =Mercado!D18 -> 0 | J64: 0
G65: Demais Livres | H65: =Mercado!C19 -> 103065.311 | I65: =Mercado!D19 -> 34652222.87 | J65: 1
G66: Distribuição | H66: =Mercado!C20 -> 0 | I66: =Mercado!D20 -> 0 | J66: 0
G67: Geração | H67: =Mercado!C21 -> 0 | I67: =Mercado!D21 -> 12301794.57 | J67: 1
G68: Total | H68: =SUM(H56:H67) -> 1327868.699 | I68: =SUM(I56:I67) -> 939117370.6
K70: TabEnc | N70: Voltar
K71: Encargos Setoriais | L71: Processo Anterior (R$) | M71: Processo Atual (R$) | N71: Dispositivo Legal | O71: Colunas1
K72: Taxa de Fisc. de Serviços de E.E. – TFSEE | L72: =Resultado!C22 -> 1671717.08 | M72: =Resultado!D22 -> 1722807.117 | N72: =Encargos!D17 -> Submódulo 5.5 do PRORET | O72: =IF(ABS(L72)+ABS(M72)>0,1,0) -> 1
K73: Conta de Desenv. Energético – CDE (USO) | L73: =BM275 -> 41798555.7 | M73: 47479092.68 | N73: =VLOOKUP("CDE",EncargoDRP[],3,FALSE) -> NT 140/2023 - CP 41/2023 | O73: 1
K74: Conta de Desenv. Energético – CDE Conta-Covid | L74: 28343135.38 | M74: 15944252.52 | N74: =VLOOKUP("CDE Covid",EncargoDRP[],3,FALSE) -> DSP 689/2024 | O74: =IF(ABS(L74)+ABS(M74)>0,1,0) -> 1
K75: Conta de Desenv. Energético – CDE Eletrobrás | L75: -2178457.198 | M75: -3631685.463 | N75: =VLOOKUP("CDE Eletrobras",EncargoDRP[],3,FALSE) -> DSP 1239/2024 | O75: =IF(ABS(L75)+ABS(M75)>0,1,0) -> 1
K76: Conta de Desenv. Energético – CDE Conta-Escassez Hídrica | L76: 25179542.3 | M76: 23824349.5 | N76: =VLOOKUP("CDE Escassez Hidrica",EncargoDRP[],3,FALSE) -> DSP 510/2023 | O76: =IF(ABS(L76)+ABS(M76)>0,1,0) -> 1
K77: Conta de Desenv. Energético – CDE GD | L77: 2979713.965 | M77: 3956488.049 | N77: =VLOOKUP("CDE GD",EncargoDRP[],3,FALSE) -> NT 140/2023 - CP 41/2023 | O77: =IF(ABS(L77)+ABS(M77)>0,1,0) -> 1
K78: Compensação financeira - CFURH | L78: 0 | M78: 0 | N78: 0 | O78: 0
K79: Encargos Serv. Sist. - ESS e Energ. Reserv. - EER | L79: =Resultado!C25 -> 20812797.03 | M79: =Resultado!D25 -> 21331445.22 | N79: =Encargos!D12 -> DSP 2.537/2024 | O79: 1
K80: PROINFA | L80: =Resultado!C26 -> 13043363 | M80: =Resultado!D26 -> 11461719.63 | N80: =Encargos!$D$13 -> REH 3.291/2023 | O80: 1
K81: P&D e Eficiência Energética | L81: =Resultado!C27 -> 8900745.96 | M81: =Resultado!D27 -> 9089032.737 | N81: REN 316/2008 | O81: 1
K82: Contribuição ONS | L82: 0 | M82: 0 | N82: 0 | O82: 0
K83: Total de Encargos Tarifários | L83: =SUM(L72:L82) -> 140551113.2 | M83: =SUM(M72:M82) -> 131177502
P85: TabTrans | R85: Voltar
P86: Componente | Q86: Processo Anterior (R$) | R86: Processo Atual (R$) | S86: Colunas1
P87: Rede Básica | Q87: =+Resultado!C30 -> 22515037.06 | R87: =+Resultado!D30 -> 40738395.63 | S87: =IF(ABS(Q87)+ABS(R87)>0,1,0) -> 1
P88: Rede Básica Fronteira | Q88: =+Resultado!C31 -> 13122601.04 | R88: =+Resultado!D31 -> 23146806.59 | S88: 1
P89: Rede Básica ONS (A2) | Q89: =+Resultado!C32 -> 0 | R89: =+Resultado!D32 -> 0 | S89: 0
P90: Rede Básica Export. (A2) | Q90: =+Resultado!C33 -> 0 | R90: =+Resultado!D33 -> 0 | S90: 0
P91: MUST Itaipu | Q91: =+Resultado!C34 -> 0 | R91: =+Resultado!D34 -> 0 | S91: 0
P92: Transporte de Itaipu | Q92: =+Resultado!C35 -> 0 | R92: =+Resultado!D35 -> 0 | S92: 0
P93: Conexão | Q93: =+Resultado!C36 -> 1780211.975 | R93: =+Resultado!D36 -> 2430280.43 | S93: 1
P94: Uso do sistema de distribuição | Q94: =+Resultado!C37 -> 0 | R94: =+Resultado!D37 -> 0 | S94: 0
P95: Total dos Custos de Transporte | Q95: =SUM(Q87:Q94) -> 37417850.08 | R95: =SUM(R87:R94) -> 66315482.65
T97: TabPerdas | W97: Voltar
T98: Perdas | U98: DRA | V98: DRP | W98: Referência
T99: Não Técnica (s/ Baixa Tensão) | U99: =Neutralidade!H15 -> 0.124035 | V99: =Energia!H13 -> 0.124035 | W99: REH 3.300/2023
T100: Técnica (s/ merc. injetado) | U100: =Neutralidade!H16 -> 0.088794 | V100: =Energia!H14 -> 0.088794 | W100: =W99 -> REH 3.300/2023
T101: Rede Básica (s/ merc. Injetado) | U101: =Neutralidade!H17 -> 0.01966405802 | V101: =Energia!H15 -> 0.01966405802 | W101: CCEE (últimos 12 meses) | Y101: Consumidores Livres | Z101: =Energia!H7 -> 103065.311 | AA101: =Z101 -> 103065.311
T102: Mercado Baixa Tensão (MWh) | U102: =Mercado!$C$16 -> 1016922.03 | V102: =Mercado!$C$16 -> 1016922.03 | W102: SAMP
Y104: TabEnergia | AA104: Voltar
Y105: Descrição | Z105: Processo Anterior (MWh) | AA105: Processo Atual (MWh)
Y106: Mercado Total (cativo + livres) | Z106: =AA106 -> 1202355.8 | AA106: =SUM(AA107:AA110) -> 1202355.8 | AB106: Colunas1
Y107: Fornecimento | Z107: =Energia!H5 -> 1189258.79 | AA107: =Z107 -> 1189258.79 | AB107: =IF(Z107<>0,1,0) -> 1
Y108: Suprimento | Z108: =Energia!H6 -> 13097.01 | AA108: =Z108 -> 13097.01 | AB108: =IF(Z108<>0,1,0) -> 1
Y109: Consumidores Rede B. | Z109: =Energia!H8 -> 0 | AA109: =Z109 -> 0 | AB109: 0
Y110: Consumidores Rede B. | Z110: =Energia!H8 -> 0 | AA110: =Z110 -> 0 | AB110: =IF(Z110<>0,1,0) -> 0
Y111: Perdas Totais | Z111: =SUM(Z112:Z113) -> 301497.5203 | AA111: =SUM(AA112:AA113) -> 301497.5203 | AB111: =IF(Z111<>0,1,0) -> 1
Y112: Perdas Rede Básica | Z112: =SUM(Neutralidade!H20:H21) -> 29001.5705 | AA112: =SUM(Energia!H18:H19) -> 29001.5705 | AB112: 1
Y113: Perdas na Distribuição | Z113: =SUM(Z114:Z115) -> 272495.9498 | AA113: =SUM(AA114:AA115) -> 272495.9498 | AB113: 1
Y114: Perda Não Técnica | Z114: =Neutralidade!H18 -> 126133.924 | AA114: =Energia!H16 -> 126133.924 | AB114: 1
Y115: Perda Técnica | Z115: =Neutralidade!H19 -> 146362.0258 | AA115: =Energia!H17 -> 146362.0258 | AB115: 1
Y116: Energia Requerida | Z116: =Z107+Z108+Z110+Z111 -> 1503853.32 | AA116: =AA107+AA108+AA110+AA111 -> 1503853.32
AC118: TabEDRA | AE118: Voltar
AC119: Energia Requerida (MWh) | AD119: Tarifa Média (R$/MWh) | AE119: Energia Requerida (R$)
AC120: ='Votos e NTs'!Z116 -> 1503853.32 | AD120: =Energia!C14 -> 208.1831435 | AE120: =AD120*AC120 -> 313076911.6
AG122: TabContratos | AK122: Voltar
AG123: Contratos | AH123: Montante Contratado (MWh) | AI123: Montante Considerado (MWh) | AJ123: Tarifa (R$/MWh) | AK123: Despesa (R$) | AL123: Colunas1
AG124: AMBIENTE REGULADO - CCEAR | AH124: =SUM(AH125:AH129) -> 1376431.645 | AI124: =SUM(AI125:AI129) -> 1139837.146 | AJ124: =AK124/AI124 -> 200.6810281 | AK124: =SUM(AK125:AK129) -> 228743690.4 | AL124: =IF(AH124=0,0,1) -> 1
AG125: Existente - CCEAR-DSP | AH125: =SUMPRODUCT((Energia!$J$49:$J$140),(Energia!$T$49:$T$140=18)*(INT(Energia!$S$49:$S$140/10000)=2)) -> 0 | AI125: =SUMPRODUCT((Energia!$K$49:$K$140),(Energia!$T$49:$T$140=18)*(INT(Energia!$S$49:$S$140/10000)=2)) -> 0 | AJ125: =IFERROR(AK125/AI125,"") ->  | AK125: =(SUMPRODUCT((Energia!$L$49:$L$140),(Energia!$T$49:$T$140=18)*(INT(Energia!$S$49:$S$140/10000)=2))) -> 0 | AL125: 0
AG126: Existente - CCEAR-QTD | AH126: =SUMPRODUCT((Energia!$J$49:$J$140),(Energia!$T$49:$T$140=1)*(INT(Energia!$S$49:$S$140/10000)=2)) -> 0 | AI126: =SUMPRODUCT((Energia!$K$49:$K$140),(Energia!$T$49:$T$140=1)*(INT(Energia!$S$49:$S$140/10000)=2)) -> 0 | AJ126: =IFERROR(AK126/AI126,"") ->  | AK126: =(SUMPRODUCT((Energia!$L$49:$L$140),(Energia!$T$49:$T$140=1)*(INT(Energia!$S$49:$S$140/10000)=2))) -> 0 | AL126: 0
AG127: Nova e Alternativa- CCEAR-DSP | AH127: =SUMPRODUCT((Energia!$J$49:$J$140),(Energia!$T$49:$T$140=18)*(INT(Energia!$S$49:$S$140/10000)=1))+SUMPRODUCT((Energia!$J$49:$J$140),(Energia!$T$49:$T$140=18)*(INT(Energia!$S$49:$S$140/10000)=3)) -> 239661.9145 | AI127: =SUMPRODUCT((Energia!$K$49:$K$140),(Energia!$T$49:$T$140=18)*(INT(Energia!$S$49:$S$140/10000)=1))+SUMPRODUCT((Energia!$K$49:$K$140),(Energia!$T$49:$T$140=18)*(INT(Energia!$S$49:$S$140/10000)=3)) -> 198466.4866 | AJ127: 307.9294615 | AK127: =(SUMPRODUCT((Energia!$L$49:$L$140),(Energia!$T$49:$T$140=18)*(INT(Energia!$S$49:$S$140/10000)=1))+SUMPRODUCT((Energia!$L$49:$L$140),(Energia!$T$49:$T$140=18)*(INT(Energia!$S$49:$S$140/10000)=3))) -> 61113678.36 | AL127: 1
AG128: Nova e Alternativa- CCEAR-QTD | AH128: =SUMPRODUCT((Energia!$J$49:$J$140),(Energia!$T$49:$T$140=1)*(INT(Energia!$S$49:$S$140/10000)=1))+SUMPRODUCT((Energia!$J$49:$J$140),(Energia!$T$49:$T$140=1)*(INT(Energia!$S$49:$S$140/10000)=3)) -> 461309.4056 | AI128: =SUMPRODUCT((Energia!$K$49:$K$140),(Energia!$T$49:$T$140=1)*(INT(Energia!$S$49:$S$140/10000)=1))+SUMPRODUCT((Energia!$K$49:$K$140),(Energia!$T$49:$T$140=1)*(INT(Energia!$S$49:$S$140/10000)=3)) -> 382015.0447 | AJ128: 178.4338325 | AK128: =(SUMPRODUCT((Energia!$L$49:$L$140),(Energia!$T$49:$T$140=1)*(INT(Energia!$S$49:$S$140/10000)=1))+SUMPRODUCT((Energia!$L$49:$L$140),(Energia!$T$49:$T$140=1)*(INT(Energia!$S$49:$S$140/10000)=3))) -> 68164408.52 | AL128: 1
AG129: Madeira e Belo Monte | AH129: =SUMPRODUCT((Energia!$J$49:$J$140)*(INT(Energia!$S$49:$S$140/10000)=5)) -> 675460.325 | AI129: =SUMPRODUCT((Energia!$K$49:$K$140)*(INT(Energia!$S$49:$S$140/10000)=5)) -> 559355.615 | AJ129: 177.8217665 | AK129: =(SUMPRODUCT((Energia!L49:L140)*(INT(Energia!S49:S140/10000)=5))) -> 99465603.57 | AL129: 1
AG130: Bilaterais | AH130: =AH131 -> 32544 | AI130: =SUM(AI131:AI146) -> 151395.3733 | AJ130: =AK130/AI130 -> 306.9393699 | AK130: =SUM(AK131:AK146) -> 46469200.48 | AL130: 1
AG131: =Energia!B145 -> Brasil Biofuels - BBF ACRE | AH131: =Energia!H145 -> 32544 | AI131: =Energia!M145 -> 26950.0198 | AJ131: =Energia!L145 -> 306.9393699 | AK131: =AJ131*AI131 -> 8272022.097 | AL131: 1
AG132: =Energia!B146 -> Energias do Acre SPE Ltda | AH132: =Energia!H146 -> 150276.312 | AI132: =Energia!M146 -> 124445.3535 | AJ132: =Energia!L146 -> 306.9393699 | AK132: =AJ132*AI132 -> 38197178.39 | AL132: 1
AG133: =Energia!B147 -> 0 | AH133: =Energia!H147 -> 0 | AI133: =Energia!M147 -> 0 | AJ133: =Energia!L147 -> 0 | AK133: 0 | AL133: 0
AG134: =Energia!B148 -> 0 | AH134: =Energia!H148 -> 0 | AI134: =Energia!M148 -> 0 | AJ134: =Energia!L148 -> 0 | AK134: 0 | AL134: 0
AG135: =Energia!B149 -> 0 | AH135: =Energia!H149 -> 0 | AI135: =Energia!M149 -> 0 | AJ135: =Energia!L149 -> 0 | AK135: 0 | AL135: 0
AG136: =Energia!B150 -> 0 | AH136: =Energia!H150 -> 0 | AI136: =Energia!M150 -> 0 | AJ136: =Energia!L150 -> 0 | AK136: 0 | AL136: 0
AG137: =Energia!B151 -> 0 | AH137: =Energia!H151 -> 0 | AI137: =Energia!M151 -> 0 | AJ137: =Energia!L151 -> 0 | AK137: 0 | AL137: 0
AG138: =Energia!B152 -> 0 | AH138: =Energia!H152 -> 0 | AI138: =Energia!M152 -> 0 | AJ138: =Energia!L152 -> 0 | AK138: 0 | AL138: 0
AG139: =Energia!B153 -> 0 | AH139: =Energia!H153 -> 0 | AI139: =Energia!M153 -> 0 | AJ139: =Energia!L153 -> 0 | AK139: 0 | AL139: 0
AG140: =Energia!B154 -> 0 | AH140: =Energia!H154 -> 0 | AI140: =Energia!M154 -> 0 | AJ140: =Energia!L154 -> 0 | AK140: 0 | AL140: 0
AG141: =Energia!B155 -> 0 | AH141: =Energia!H155 -> 0 | AI141: =Energia!M155 -> 0 | AJ141: =Energia!L155 -> 0 | AK141: 0 | AL141: 0
AG142: =Energia!B156 -> 0 | AH142: =Energia!H156 -> 0 | AI142: =Energia!M156 -> 0 | AJ142: =Energia!L156 -> 0 | AK142: 0 | AL142: 0
AG143: =Energia!B157 -> 0 | AH143: =Energia!H157 -> 0 | AI143: =Energia!M157 -> 0 | AJ143: =Energia!L157 -> 0 | AK143: 0 | AL143: 0
AG144: =Energia!B158 -> 0 | AH144: =Energia!H158 -> 0 | AI144: =Energia!M158 -> 0 | AJ144: =Energia!L158 -> 0 | AK144: 0 | AL144: 0
AG145: 0 | AH145: =Energia!H159 -> 0 | AI145: =Energia!M159 -> 0 | AJ145: =Energia!L159 -> 0 | AK145: 0 | AL145: 0
AG146: 0 | AH146: 0 | AI146: 0 | AJ146: 0 | AK146: 0 | AL146: 0
AG147: =Energia!B20 -> Energia Base | AH147: =SUM(AH148:AH152) -> 251307.8513 | AI147: =SUM(AI148:AI152) -> 212620.8066 | AJ147: =AK147/AI147 -> 199.5580368 | AK147: =SUM(AK148:AK152) -> 42430190.74 | AL147: 1
AG148: Geração Própria | AH148: =Energia!H33 -> 3719.65 | AI148: =Energia!C21 -> 3080.280272 | AJ148: =Energia!D21 -> 306.9393699 | AK148: =AJ148*AI148 -> 945459.2856 | AL148: 1
AG149: =Energia!B22 -> Cota Angra I/Angra II | AH149: =Energia!H34 -> 42566.07219 | AI149: =Energia!C22 -> 35249.40046 | AJ149: =Energia!D22 -> 355.16 | AK149: =AJ149*AI149 -> 12519177.07 | AL149: 1
AG150: =Energia!B23 -> Cotas Lei n º 12783/2013 | AH150: =Energia!H35 -> 178783.216 | AI150: =Energia!C23 -> 148052.2127 | AJ150: =Energia!D23 -> 195.6441843 | AK150: =AJ150*AI150 -> 28965554.39 | AL150: 1
AG151: =Energia!B24 -> Itaipu (tirando as perdas) | AH151: =Energia!H36 -> 0 | AI151: =Energia!C24 -> 0 | AJ151: =Energia!D24 -> 0 | AK151: =AJ151*AI151 -> 0 | AL151: 0
AG152: =Energia!B25 -> PROINFA | AH152: =Energia!C25 -> 26238.91311 | AI152: =Energia!C25 -> 26238.91311 | AJ152: =Energia!D25 -> 0 | AK152: =AJ152*AI152 -> 0 | AL152: 1
AG153: Total | AH153: =AH124+AH130+AH147 -> 1660283.496 | AI153: =AI124+AI130+AI147 -> 1503853.326 | AJ153: =AK153/AI153 -> 211.2194561 | AK153: =AK124+AK130+AK147 -> 317643081.7
AM155: TabFatorX | AN155: Voltar
AM156: Componentes | AN156: Valor
AM157: Componente Pd do Fator X | AN157: ='VPB1'!F40 -> 0.01449729951
AM158: Componente T do Fator X | AN158: ='VPB1'!F41 -> 0.00733
AM159: Componente Q do Fator X | AN159: ='VPB1'!F42 -> -0.00780273229
AM160: Fator X | AN160: ='VPB1'!F43 -> 0.01402456722
AP162: TabParcelaB | AR162: Voltar
AP163: Descrição | AQ163: Valores | AR163: Referência
AP164: (1) Parcela B Ano Anterior | AQ164: =+'VPB1'!C37 -> 432129661.9 | AR164: TUSD aplicada ao Mercado
AP165: (2) Fator DR1/Fator PB | AQ165: =+'VPB1'!C38 -> 1.015945853 | AR165: SGT/ANEEL
AP166: (3) Parcela B econômica = (1)*(2) | AQ166: =+'VPB1'!C39 -> 439020338 | AR166: SGT/ANEEL
AP167: (4) IPCA | AQ167: =+LnkTxtIPCA -> 0.04636443943 | AR167: Indicador econômico oficial
AP168: (5) Fator X | AQ168: =+AQ169+AQ170+AQ171 -> 0.01402456722
AP169: (5.1) Componente Pd do Fator X | AQ169: =+LnkTxtFatorPd -> 0.01449729951 | AR169: Pd Ex-Post | AS169: <-cuidado para verificar se é Reajuste depois de revisão. Se for reajuste pós revisão, deve se aplicar o Pd Expost.
AP170: (5.2) Componente T do Fator X | AQ170: =+LnkTxtFatorT -> 0.00733 | AR170: REH 3.300/2023
AP171: (5.3) Componente Q do Fator X | AQ171: =+LnkTxtFatorQ -> -0.00780273229 | AR171: PRORET 2.5 A
AP172: (6) UDEROR | AQ172: =SUM(AQ173:AQ175) -> 8285791.106
AP173: (6.1) Outras Receitas (OR) | AQ173: =+'VPB1'!C40 -> 3237622.472 | AR173: Valores fiscalizados - SFF
AP174: (6.2) Excedente de Reativos (ER) | AQ174: =+'VPB1'!C41 -> 2584109.732 | AR174: Valores fiscalizados - SFF
AP175: (6.3) Ultrapassagem de Demanda (UD) | AQ175: =+'VPB1'!C42 -> 2464058.902 | AR175: Valores fiscalizados - SFF
AP176: (5) ONS | AQ176: 0 | AR176: REA 6.981/2018
AP177: Parcela B - DRP (R$) = (3)*[{1)+(4)-(5)]-(6) | AQ177: =Resultado!D45 -> 444932408.5
AT179: TabCVA | AW179: Voltar
AT180: Descrição | AU180: Delta (R$) | AV180: 5° Dia Útil Anterior (R$) | AW180: 12 Meses Subseqüentes (R$) | AX180: Colunas1
AT181: CVA CCC | AU181: 0 | AV181: 0 | AW181: 0 | AX181: =IF(AU181<>0,1,0) -> 0
AT182: ="CVA "&CVA!B10 -> CVA CDE | AU182: =CVA!C10 -> 7831165.276 | AV182: =CVA!D10 -> 8247019.134 | AW182: =CVA!E10 -> 8728986.872 | AX182: 1
AT183: ="CVA "&CVA!B11 -> CVA CDE Covid | AU183: =CVA!C11 -> -7500656.449 | AV183: =CVA!D11 -> -7544058.566 | AW183: =CVA!E11 -> -7984944.27 | AX183: 0
AT184: ="CVA "&CVA!B12 -> CVA Rede Básica | AU184: =CVA!C12 -> 10540936.32 | AV184: =CVA!D12 -> 10900296.42 | AW184: =CVA!E12 -> 11537325.52 | AX184: 1
AT185: ="CVA "&CVA!B13 -> CVA Compra Energia | AU185: =CVA!C13 -> -5065664.715 | AV185: =CVA!D13 -> -5603834.402 | AW185: =CVA!E13 -> -5931330.597 | AX185: 1
AT186: CVA CFURH | AU186: 0 | AV186: 0 | AW186: 0 | AX186: 0
AT187: ="CVA "&CVA!B15 -> CVA Transporte Itaipu | AU187: =CVA!C15 -> 0 | AV187: =CVA!D15 -> 0 | AW187: =CVA!E15 -> 0 | AX187: 0
AT188: ="CVA "&CVA!B16 -> CVA Proinfa | AU188: =CVA!C16 -> -697987.9168 | AV188: =CVA!D16 -> -738776.8295 | AW188: =CVA!E16 -> -781952.0169 | AX188: 1
AT189: ="CVA "&CVA!B17 -> CVA ESS/ERR | AU189: =CVA!C17 -> 4217462.971 | AV189: =CVA!D17 -> 4516017.461 | AW189: =CVA!E17 -> 4779940.059 | AX189: 1
AT190: Total | AU190: =SUM(AU181:AU189) -> 9325255.49 | AV190: =SUM(AV181:AV189) -> 9776663.215 | AW190: =SUM(AW181:AW189) -> 10348025.57
AY192: TabFin | BA192: Voltar
AY193: Componentes Financeiros | AZ193: Valor (R$) | BA193: Participação | BB193: Colunas1 | BC193: Coluna1
AY194: CVA em processamento - Energia | AZ194: =SUMIFS(Financeiros[Valor],Financeiros[idDet1],19,Financeiros[id_Grupo_TARIFA],2,Financeiros[idDet2],60,Financeiros[idDet3],999) -> -5931330.597 | BA194: =AZ194/Financeiros!$D$5 -> -0.006315856551 | BB194: =IF(AZ194<>0,1,0) -> 1
AY195: CVA em processamento - Transporte | AZ195: =SUMIFS(Financeiros[Valor],Financeiros[idDet1],19,Financeiros[id_Grupo_TARIFA],1,Financeiros[idDet2],60, Financeiros[idDet3],999) -> 11537325.52 | BA195: =AZ195/Financeiros!$D$5 -> 0.01228528604 | BB195: 1
AY196: CVA em processamento - Encargos Setoriais | AZ196: =SUMIFS(Financeiros[Valor],Financeiros[idDet1],19,Financeiros[id_Grupo_TARIFA],3,Financeiros[idDet2],60,Financeiros[idDet3],999)+ SUMIFS(Financeiros[Valor],Financeiros[idDet1],19,Financeiros[id_Grupo_TARIFA],3,Financeiros[idDet2],60,Financeiros[idDet3],73)+ SUMIFS(Financeiros[Valor],Financeiros[idDet1],19,Financeiros[id_Grupo_TARIFA],3,Financeiros[idDet2],60,Financeiros[idDet3],74) -> 4742030.644 | BA196: =AZ196/Financeiros!$D$5 -> 0.005049454725 | BB196: 1
AY197: Saldo a Compensar CVA-Ano Anterior + Ajustes | AZ197: =SUMIFS(Financeiros[Valor],Financeiros[idDet1],19,Financeiros[idDet2],64, Financeiros[idDet3],999)+ SUMIFS(Financeiros[Valor],Financeiros[idDet1],19,Financeiros[idDet2],64, Financeiros[idDet3],73)+ SUMIFS(Financeiros[Valor],Financeiros[idDet1],19,Financeiros[idDet2],64, Financeiros[idDet3],74) -> -817529.3028 | BA197: =AZ197/Financeiros!$D$5 -> -0.0008705294231 | BB197: 1
AY198: Neutralidade de Parcela A- Energia | AZ198: =SUMIFS(Financeiros[Valor],Financeiros[idDet1],20,Financeiros[id_Grupo_TARIFA],2,Financeiros[idDet2],60,Financeiros[idDet3],999) -> -2554889.16 | BA198: =AZ198/Financeiros!$D$5 -> -0.002720521673 | BB198: 1
AY199: Neutralidade de Parcela A - Transporte | AZ199: =SUMIFS(Financeiros[Valor],Financeiros[idDet1],20,Financeiros[id_Grupo_TARIFA],1,Financeiros[idDet2],60, Financeiros[idDet3],999) -> 6270351.973 | BA199: =AZ199/Financeiros!$D$5 -> 0.006676856557 | BB199: 1
AY200: Neutralidade de Parcela A - Encargos Setoriais | AZ200: =SUMIFS(Financeiros[Valor],Financeiros[idDet1],20,Financeiros[id_Grupo_TARIFA],3,Financeiros[idDet2],60,Financeiros[idDet3],999)+ SUMIFS(Financeiros[Valor],Financeiros[idDet1],20,Financeiros[idDet2],60,Financeiros[idDet3],73)+ SUMIFS(Financeiros[Valor],Financeiros[idDet1],20,Financeiros[idDet2],60,Financeiros[idDet3],74)+ SUMIFS(Financeiros[Valor],Financeiros[idDet1],20,Financeiros[idDet2],60,Financeiros[idDet3],81)+ SUMIFS(Financeiros[Valor],Financeiros[idDet1],20,Financeiros[idDet2],60,Financeiros[idDet3],82) -> -7974155.504 | BA200: =AZ200/Financeiros!$D$5 -> -0.008491117037 | BB200: 1
AY201: Neutralidade de Parcela A - Receita Irrecuperável | AZ201: =SUMIFS(Financeiros[Valor],Financeiros[idDet1],20,Financeiros[id_Grupo_TARIFA],5,Financeiros[idDet2],60, Financeiros[idDet3],999) -> 209318.0172 | BA201: =AZ201/Financeiros!$D$5 -> 0.0002228880264 | BB201: 1
AY202: Neutralidade de Fin. Parcela B - Conta Covid | AZ202: =SUMIFS(Financeiros[Valor],Financeiros[idDet1],20,Financeiros[id_Grupo_TARIFA],4,Financeiros[idDet2],60, Financeiros[idDet3],999) -> 0 | BA202: =AZ202/Financeiros!$D$5 -> 0 | BB202: 0
AY203: Financeiro CDE Eletrobras | AZ203: =SUMIFS(Financeiros[Valor],Financeiros[idDet1],22,Financeiros[idDet2],60, Financeiros[idDet3],512,Financeiros[id_Detalhe_Grupo_TARIFA],28) -> -153919.1353 | BA203: =AZ203/Financeiros!$D$5 -> -0.0001638976555 | BB203: 1
AY204: Restituição de encargo do ONS | AZ204: =SUMIFS(Financeiros[Valor],Financeiros[idDet1],22,Financeiros[idDet2],60, Financeiros[idDet3],123,Financeiros[id_Grupo_TARIFA],4) -> 0 | BA204: =AZ204/Financeiros!$D$5 -> 0 | BB204: 0
AY205: Financeiros residuais do encargo de ONS | AZ205: =SUMIFS(Financeiros[Valor],Financeiros[idDet1],22,Financeiros[idDet2],60, Financeiros[idDet3],513,Financeiros[id_Grupo_TARIFA],4) -> 0 | BA205: =AZ205/Financeiros!$D$5 -> 0 | BB205: 0
AY206: Neutralidade de Fin. Parcela B - Conta Covid | AZ206: =SUMIFS(Financeiros[Valor],Financeiros[idDet1],20,Financeiros[id_Grupo_TARIFA],4,Financeiros[idDet2],60, Financeiros[idDet3],999) -> 0 | BA206: =AZ206/Financeiros!$D$5 -> 0 | BB206: 0
AY207: Crédito de PIS/COFINS | AZ207: =SUMIFS(Financeiros[Valor],Financeiros[idDet1],22,Financeiros[idDet2],60, Financeiros[idDet3],503,Financeiros[id_Grupo_TARIFA],99) -> -693496.9107 | BA207: =AZ207/Financeiros!$D$5 -> -0.0007384560572 | BB207: 1
AY208: Neutralidade Crédito de PIS/COFINS | AZ208: =SUMIFS(Financeiros[Valor],Financeiros[idDet1],20,Financeiros[idDet2],60,Financeiros[idDet3],503,Financeiros[id_Grupo_TARIFA],99) -> -274964.6781 | BA208: =AZ208/Financeiros!$D$5 -> -0.0002927905357 | BB208: 1
AY209: Sobrecontratação | AZ209: =SUMIFS(Financeiros[Valor],Financeiros[idDet1],22,Financeiros[idDet2],60,Financeiros[idDet3],106) -> 26650500.41 | BA209: =AZ209/Financeiros!$D$5 -> 0.02837824243 | BB209: 1
AY210: Garantias financeiras na contratação regulada de energia (CCEAR) de Energia | AZ210: =SUMIFS(Financeiros[Valor],Financeiros[idDet1],22,Financeiros[idDet2],60,Financeiros[idDet3],102) -> 158941.0395 | BA210: =AZ210/Financeiros!$D$5 -> 0.0001692451279 | BB210: 1
AY211: Reversão Sobrecontratação | AZ211: =SUMIFS(Financeiros[Valor],Financeiros[idDet1],22,Financeiros[idDet2],62,Financeiros[idDet3],106) -> 0 | BA211: =AZ211/Financeiros!$D$5 -> 0 | BB211: 0
AY212: Recálculo Exposição CCEAR entre Submercados | AZ212: =SUMIFS(Financeiros[Valor],Financeiros[idDet1],22,Financeiros[idDet2],60,Financeiros[idDet3],101) -> 0 | BA212: =AZ212/Financeiros!$D$5 -> 0 | BB212: 0
AY213: Compensação ref. acordos bilaterais de CCEAR | AZ213: =SUMIFS(Financeiros[Valor],Financeiros[idDet1],22,Financeiros[idDet2],60,Financeiros[idDet3],230) -> 0 | BA213: =AZ213/Financeiros!$D$5 -> 0 | BB213: 0
AY214: Reversão de Risco Hidrológico | AZ214: =SUMIFS(Financeiros[Valor],Financeiros[idDet1],22,Financeiros[idDet2],62,Financeiros[idDet3],220) -> -20065810.68 | BA214: =AZ214/Financeiros!$D$5 -> -0.02136666971 | BB214: 1
AY215: Risco Hidrológico | AZ215: =SUMIFS(Financeiros[Valor],Financeiros[idDet1],22,Financeiros[idDet2],60,Financeiros[idDet3],220) -> 18450225.97 | BA215: =AZ215/Financeiros!$D$5 -> 0.01964634725 | BB215: 1
AY216: Repasse de ultrapassagem de Supridas/Permissionárias | AZ216: =SUMIFS(Financeiros[Valor],Financeiros[idDet1],22,Financeiros[idDet2],60,Financeiros[idDet3],187) -> 0 | BA216: =AZ216/Financeiros!$D$5 -> 0 | BB216: 0
... 206 more rows

Sheet NT Revisao (hidden)
B2: Tabelas
B4: Custo Operacional
B5: Remuneração do Capital e Quota de Reintegração
B6: CAIMI
B7: Parcela B Ajustada
B8: Outras Receitas
B9: Cálculo das Perdas
B10: Energia Requerida
B11: Transmissão
B12: Encargos Setoriais
B16: Custo Operacional | E16: Voltar
B17: Descrição | C17: Limite Inferior | D17: Centro | E17: Limite Superior
B18: 1. Eficiência | C18: ='VPB e Fator X'!C133 ->  | D18: ='VPB e Fator X'!C131 ->  | E18: ='VPB e Fator X'!C132 -> 
B19: 2. OPEX Benchmarking (Atualizado) - R$ | C19: ='VPB e Fator X'!C136 ->  | D19: =(E19+C19)/2 ->  | E19: ='VPB e Fator X'!C135 -> 
B21: Comparação com intervalo de CO eficientes
B22: Descrição | C22: Valor
B23: 3. OPEX nas tarifas - R$ | C23: ='VPB e Fator X'!C111 -> 
B24: 4. Meta estudo de eficiência - R$ | C24: ='VPB e Fator X'!C114 -> 
B25: 5. Variação Anual (%) | C25: ='VPB e Fator X'!C115 -> 
B26: 6. Meta do estudo de eficiência aplicado o limite de 5% a.a. | C26: ='VPB e Fator X'!C117 -> 
B28: Avaliação do prêmio de eficiência
B29: Descrição | C29: Reais
B30: 7. OPEX Real - R$ | C30: ='VPB e Fator X'!C118 -> 
B31: 8. Meta OPEX | C31: ='VPB e Fator X'!C114 -> 
B32: 9. Relação Meta OPEX/ OPEX Real | C32: ='VPB e Fator X'!C119 -> 
B33: 10. Meta OPEX aplicada a regra de compartilhamento | C33: ='VPB e Fator X'!C120 -> 
B35: 11. Número de anos no ciclo | C35: ='VPB e Fator X'!C11 -> 
B36: 12. OPEX na revisão [ = 3. + (10. - 3.) / 11.] | C36: ='VPB e Fator X'!C121 -> 
G39: Remuneração do Capital e Quota de Reintegração | H39: Voltar
G40: Descrição | I40: Colunas1
G41: (1) Ativo Imobilizado em Serviço (Valor Novo de Reposição) | H41: =Entrada!G7 ->  | I41: =IF(H41=0,0,1) -> 
G42: (2) Índice de Aproveitamento Integral | H42: =Entrada!G8 -> 
G43: (3) Obrigações Especiais Bruta | H43: =Entrada!G9 -> 
G44: (4) Bens Totalmente Depreciados | H44: =Entrada!G10 -> 
G45: (5) Base de Remuneração Bruta = (1)-(2)-(3)-(4) | H45: =Entrada!G11 -> 
G46: (6) Depreciação Acumulada | H46: =Entrada!G12 -> 
G47: (7) AIS Líquido (Valor de Mercado em Uso) | H47: =Entrada!G13 -> 
G48: (8) Índice de Aproveitamento Depreciado | H48: =Entrada!G14 -> 
G49: (9) Valor da Base de Remuneração (VBR) = (1)-(6)-(8) | H49: =Entrada!G15 -> 
G50: (10) Almoxarifado em Operação | H50: =Entrada!G16 -> 
G51: (11) Ativo Diferido | H51: =Entrada!G17 -> 
G52: (12) Obrigações Especiais Líquida | H52: =Entrada!G18 -> 
G53: (13) Terrenos e Servidões | H53: =Entrada!G19 -> 
G54: (14) Base de Remuneração Líquida Total = (9)+(10)+(11)-(12)+(13) | H54: =Entrada!G20 -> 
G55: (15) Base de Remuneração Ativos Concessionária | H55: =H54-H61-H64 ->  | I55: =IF(H55=0,0,1) -> 
G56: (16) WACC antes de impostos | H56: ='VPB e Fator X'!F81 -> 0.112503 | I56: 1
G57: (17) Remuneração Ativos Concessionária | H57: =H55*H56 -> 
G58: (18) Base Obrigações Especiais | H58: ='VPB e Fator X'!G91 ->  | I58: =IF(H58=0,0,1) -> 
G59: (19) Taxa de Remuneração das Obrigações Especiais | H59: =H60/H58 ->  | I59: =IF(H58=0,0,1) -> 
G60: (20) Remuneração de Obrigações Especiais | H60: ='VPB e Fator X'!G95 ->  | I60: =IF(H60=0,0,1) -> 
G61: (21) Saldo RGR/PLPT | H61: ='VPB e Fator X'!C91 -> 
G62: (22) Taxa RGR/PLPT | H62: ='VPB e Fator X'!F82 -> 0.000797 | I62: =IF(H61=0,0,1) -> 
G63: (23) Remuneração RGR/PLPT | H63: =H61*H62 -> 
G64: (24) Saldo RGR/Demais Investimentos | H64: ='VPB e Fator X'!C92 ->  | I64: =IF(H64=0,0,1) -> 
G65: (25) Saldo RGR/Demais Investimentos | H65: ='VPB e Fator X'!F83 -> 0.000797 | I65: =IF(H64=0,0,1) -> 
G66: (23) Remuneração RGR Demais Investimentos | H66: =H64*H65 -> 
G67: (24) Remuneração do Capital = (17)+(20)+(23) | H67: =H57+H60+H63+H66 ->  | I67: =IF(H67=0,0,1) -> 
G68: (25) Taxa de Depreciação | H68: ='VPB e Fator X'!C76 -> 0 | I68: 0
G69: (29) Quota de Reintegração Regulatória = (5) * (25) | H69: =H45*H68 ->  | I69: =IF(H69=0,0,1) -> 
J71: CAIMI | K71: Voltar
J72: Descrição | K72: Valores (R$)
J73: ='VPB e Fator X'!B60 -> (1) Base de Anuidade Regulatória (BAR) | K73: ='VPB e Fator X'!C60 -> 
J74: ='VPB e Fator X'!B61 -> (2) Base de Anuidade - Infraestrutura de imóveis e móveis administrativos (BARA) | K74: ='VPB e Fator X'!C61 -> 
J75: ='VPB e Fator X'!B62 -> (3) Base de Anuidade - Veículos (BARV) | K75: ='VPB e Fator X'!C62 -> 
J76: ='VPB e Fator X'!B63 -> (4) Base de Anuidade - Sistemas de Informática (BARI) | K76: ='VPB e Fator X'!C63 -> 
J77: ='VPB e Fator X'!B64 -> (5) Anuidade - Infraestrutura de imóveis e móveis administrativos (CAL) | K77: ='VPB e Fator X'!C64 -> 
J78: ='VPB e Fator X'!B65 -> (6) Anuidade - Veículos (CAV) | K78: ='VPB e Fator X'!C65 -> 
J79: ='VPB e Fator X'!B66 -> (7) Anuidade - Sistemas de Informática (CAI) | K79: ='VPB e Fator X'!C66 -> 
J80: ='VPB e Fator X'!B67 -> (8) CAIMI = (5)+(6)+(7) | K80: ='VPB e Fator X'!C67 -> 
M82: Parcela B ajustada | N82: Voltar
M83: Descrição | N83: Valores
M84: Custo de Administração, Operação e Manutenção (CAOM) | N84: =Resultado!G19 -> 
M85: Custos Operacionais (CO) | N85: =Resultado!G20 -> 
M86: Custo Anual dos Ativos (CAA) | N86: =Resultado!G21 -> 
M87: Remuneração do Capital (RC) | N87: =Resultado!G22 -> 
M88: Quota de Reintegração Regulatória (QRR) | N88: =Resultado!G23 -> 
M89: Custo anual das instalações móveis e imóveis (CAIMI) | N89: =Resultado!G24 -> 
M90: Parcela B (VPB) | N90: =Resultado!G25 -> 
M91: Índice de Produtividade da Parcela B | N91: =Resultado!G26 -> 0.01449729951
M92: Mecanismo de Incentivo à Qualidade | N92: =Resultado!G27 -> -0.00780273229
M93: Parcela B com ajustes PM e MIQ | N93: =N90*(1-LnkTxtFatorAjusteMercado-N92) -> 
M94: Mercado de Referência 12 meses | N94: =Resultado!G39 -> 0
M95: Componente Pd do Mercado de Referência | N95: =Resultado!G40 -> 0
M96: TUSDg | N96: =Resultado!G41 -> 0
M97: Parcela B com ajustes | N97: =N93+N94+N95+N96 -> 
M98: Outras Receitas (OR) | N98: =Resultado!G29 -> 3237622.472
M99: Excedente de Reativos (ER) | N99: =Resultado!G30 -> 2464058.902
M100: Ultrapassagem de Demanda (UD) | N100: =Resultado!G31 -> 2584109.732
M101: Parcela B deduzido UDEROR | N101: =N97-SUM(N98:N100) -> 
P103: Outras Receitas | R103: Voltar
P104: Descrição das atividades | Q104: Compartilhamento | R104: Receita Regulatória | S104: Colunas1
P105: Serviços Cobráveis | Q105: 0.6 | R105: =UDEROR!D14 -> 628118.4469 | S105: =IF(R105=0,0,1) -> 1
P106: =UDEROR!B15 -> Arrecadação de convênios ou valores pela fatura | Q106: 0.6 | R106: =UDEROR!D15 -> 437993.3578 | S106: 1
P107: =UDEROR!B16 -> Arrecadação de faturas de terceiros por estrutura própria | Q107: 0.5 | R107: =UDEROR!D16 -> 0 | S107: 0
P108: =UDEROR!B17 -> Veiculação de publicidade | Q108: 0.6 | R108: =UDEROR!D17 -> 0 | S108: 0
P109: =UDEROR!B18 -> Aluguel ou cessão onerosa de imóveis e espaços físicos | Q109: 0.6 | R109: =UDEROR!D18 -> 0 | S109: 0
P110: =UDEROR!B19 -> Compartilhamento de infraestrutura | Q110: 0.6 | R110: =UDEROR!D19 -> 2171510.667 | S110: 1
P111: =UDEROR!B20 -> Serviços de avaliação técnica e aferição de medidores. | Q111: 0.6 | R111: =UDEROR!D20 -> 0 | S111: 0
P112: =UDEROR!B21 -> Operacionalização de serviço de créditos tributários | Q112: 0.6 | R112: =UDEROR!D21 -> 0 | S112: 0
P113: Elaboração de projeto, construção, operação, manutenção ou reforma de: | S113: 1 | T113: <- Não alterar! Essa linha deve ser exibida!
P114: (1) redes de distribuição de energia elétrica destinadas à regularização fundiária de interesse específico e ao atendimento dos empreendimentos de múltiplas unidades consumidoras; | Q114: 0.6 | R114: =UDEROR!D23 -> 0 | S114: 0
P115: (2) redes de energia elétrica destinadas ao acesso dos sistemas de distribuição ou transmissão; | Q115: 0.6 | R115: =UDEROR!D24 -> 0 | S115: 0
P116: (3) subestações de energia; | Q116: 0.6 | R116: =UDEROR!D25 -> 0 | S116: 0
P117: (4) instalações elétricas internas de unidades consumidoras; | Q117: 0.6 | R117: =UDEROR!D26 -> 0 | S117: 0
P118: (5) banco de capacitores: | Q118: 0.6 | R118: =UDEROR!D27 -> 0 | S118: 0
P119: (6) padrões de entrada de unidades consumidoras atendidas em baixa tensão; | Q119: 0.6 | R119: =UDEROR!D28 -> 0 | S119: 0
P120: (7) sistemas de medição de energia elétrica; | Q120: 0.6 | R120: =UDEROR!D29 -> 0 | S120: 0
P121: (8) geradores, incluindo-se unidades de microgeração e minigeração distribuída; | Q121: 0.3 | R121: =UDEROR!D30 -> 0 | S121: 0
P122: (9) sistemas de iluminação pública. | Q122: 0.6 | R122: =UDEROR!D31 -> 0 | S122: 0
P123: Eficientização do consumo de energia elétrica e instalação de cogeração qualificada, desde que não enquadráveis nos projetos de Pesquisa e Desenvolvimento (P&D) ou de Eficiência Energética estabelecidos em lei | Q123: 0.3 | R123: =UDEROR!D33 -> 0 | S123: 0
P124: Serviços de comunicação de dados | Q124: 0.3 | R124: =UDEROR!D34 -> 0 | S124: 0
P125: Serviços de consultoria | Q125: 0.6 | R125: =UDEROR!D35 -> 0 | S125: 0
P126: Total | R126: =SUM(R105:R125) -> 3237622.472 | S126: 1
T128: Calculo das Perdas | U128: Voltar
T129: Cálculo do Ponto de Partida
T130: Descrição | U130: PNT
T131: a. Meta Ciclo Anterior Faturada
T132: b. Diferença entre Medido e Faturado
T133: c. Meta Ciclo Anterior Medida [a + b]
T134: d. Média Histórico Medida
T135: e. Ponto de Partida Medido
T136: f. Ponto de Partida Faturado [e - b]
T138: Cálculo do Ponto de Chegada
T139: Descrição | U139: Benchmark
T140: g. Empresa Benchmark
T141: h. Perda Benchmark (PNT/BT)
T142: ="i. Perda "&LnkTxtNomeResumido&" (PNT/BT)" -> i. Perda EAC (PNT/BT)
T143: j. Probabilidade de Comparação
T144: k. Meta
T145: l. Meta Benchmarks
T146: m. Meta utilizada Medida
T147: n. Ponto de Partida (PNT/BT)
T148: o. Meta Ciclo Atual Faturada
T150: Trajetória
T151: Descrição | U151: Ponto Partida | V151: =YEAR(LnkTxtDRPData) -> 2024 | W151: =V151+1 -> 2025 | X151: =W151+1 -> 2026 | Y151: 2027 | Z151: 2028
T152: Trajetória PNT/BT
T153: Velocidade de Redução (a.a)
T154: Limite de Redução (a.a)
T155: PNT/BT Medido Regulatório
T156: Diferença entre Medido e Faturado
T157: PNT/BT Faturado Regulatório
T158: PT/ Einjetada Regulatório
T161: E injetada RTP Anterior | W161: Mercado BT RTP Anterior
U163: =V151-'VPB e Fator X'!C7 ->  | V163: =U163+1 ->  | W163: =V163+1 -> 
T164: PNT/BT última RTP
T165: PNT/Einjetada última RTP | U165: =U164*$Y$161/$U$161 ->  | V165: =V164*$Y$161/$U$161 ->  | W165: =W164*$Y$161/$U$161 ->  | X165: =X164*$Y$161/$U$161 ->  | Y165: =Y164*$Y$161/$U$161 -> 
T166: PT/Einjetada última RTP
U168: =V151 -> 2024 | V168: =W151 -> 2025 | W168: 2026 | X168: 2027 | Y168: 2028
T169: PNT/Einjetada | U169: =V157*Energia!$I$13/Energia!$H$13 -> 0 | V169: =W157*Energia!$I$13/Energia!$H$13 -> 0 | W169: =X157*Energia!$I$13/Energia!$H$13 -> 0 | X169: =Y157*Energia!$I$13/Energia!$H$13 -> 0 | Y169: =Z157*Energia!$I$13/Energia!$H$13 -> 0
AB171: Energia Requerida | AC171: Voltar
AB172: Descrição | AC172: Energia (MWh)
AB173: Perdas na Rede Básica | AC173: =Energia!H18+Energia!H19 -> 29001.5705
AB174: Perdas na Distribuição | AC174: =AC175+AC176 -> 272495.9498
AB175: Perdas Técnicas | AC175: =Energia!H17 -> 146362.0258
AB176: Perdas Não Técnicas | AC176: =Energia!H16 -> 126133.924
AB177: Energia Vendida | AC177: =Energia!D6 -> 1202355.806
AB178: Energia Requerida | AC178: =SUM(AC173:AC174,AC177) -> 1503853.326
AE180: Transmissão | AF180: Voltar
AE181: Descrição | AF181: Valor (R$) | AG181: Colunas1
T182: PT/Einjetada | U182: =V158 -> 0 | V182: =W158 -> 0 | W182: 0 | X182: 0 | Y182: 0 | AE182: Rede Básica | AF182: =Resultado!D30 -> 40738395.63 | AG182: =IF(AF182=0,0,1) -> 1
AE183: Rede Básica Fronteira | AF183: =Resultado!D31 -> 23146806.59 | AG183: =IF(AF183=0,0,1) -> 1
AE184: Rede Básica ONS (A2) | AF184: =Resultado!D32 -> 0 | AG184: 0
AE185: Rede Básica Export. (A2) | AF185: =Resultado!D33 -> 0 | AG185: 0
AE186: MUST Itaipu | AF186: =Resultado!D34 -> 0 | AG186: 0
AE187: Transporte de Itaipu | AF187: =Resultado!D35 -> 0 | AG187: 0
AE188: Conexão | AF188: =Resultado!D36 -> 2430280.43 | AG188: 1
AE189: Uso do sistema de distribuição | AF189: =Resultado!D37 -> 0 | AG189: 0
AE190: Total | AF190: =SUM(AF182:AF189) -> 66315482.65
AH192: Encargos Setoriais | AI192: Voltar
AH193: Descrição | AI193: Valor (R$) | AJ193: Dispositivo Legal | AK193: Colunas1
AH194: Taxa de Fisc. de Serviços de E.E. – TFSEE | AI194: =Resultado!D22 -> 1722807.117 | AJ194: =Encargos!D17 -> Submódulo 5.5 do PRORET | AK194: =IF(AI194=0,0,1) -> 1
AH195: Conta de Desenvolvimento Energético – CDE | AI195: =Resultado!D23 -> 87572497.29 | AJ195: =Encargos!D10 -> NT 140/2023 - CP 41/2023 e DSP 689/2024 e DSP 510/2023 e NT 140/2023 - CP 41/2023 | AK195: 1
AH196: Compensação financeira - CFURH | AI196: =Resultado!D24 -> 0 | AJ196: =Encargos!D11 -> 0 | AK196: 0
AH197: Encargos Serv. Sist. - ESS e Energ. Reserv. - EER | AI197: =Resultado!D25 -> 21331445.22 | AJ197: =Encargos!D12 -> DSP 2.537/2024 | AK197: 1
AH198: PROINFA | AI198: =Resultado!D26 -> 11461719.63 | AJ198: =Encargos!D13 -> REH 3.291/2023 | AK198: 1
AH199: P&D, Efic.Energ e Ressarc.ICMS Sist.Isol. | AI199: =Resultado!D27 -> 9089032.737 | AJ199: Res. Normativa nº 316/2008 | AK199: 1
AH200: ONS | AI200: =Resultado!D28 -> 0 | AJ200: =Encargos!D14 -> 0 | AK200: 0
AH201: Total | AI201: =SUM(AI194:AI200) -> 131177502
AL203: TabRevAvalRTE
AM204: Receita Verificada (R$) | AN204: Receita Verificada (R$) | AO204: Receita Requerida (R$) | AP204: Variação | AQ204: Participação na Revisão | AR204: Participação na Receita
AL205: PARCELA A [Encargos+Transmissão+Energia+RI] | AM205: =AM206+AM218+AM227+AM228 -> 506998918.3 | AN205: =AN206+AN218+AN227+AN228 ->  | AO205: =AO206+AO218+AO227+AO228 -> 529826895 | AP205: =IFERROR(AO205/AN205-1,0) -> 0 | AQ205: =IFERROR((AO205-AN205)/$AN$236,0) -> 0 | AR205: =IFERROR(AO205/$AO$236,0) -> 0
AL206: Encargos Setoriais | AM206: =SUM(AM207:AM217) -> 140554220.8 | AN206: =SUM(AN207:AN217) ->  | AO206: =SUM(AO207:AO217) -> 131177502 | AP206: =IFERROR(AO206/AN206-1,0) -> 0 | AQ206: 0 | AR206: 0 | AS206: Colunas1 | AT206: Colunas2
AL207: Taxa de Fisc. de Serviços de E.E. – TFSEE | AM207: =SUM(DADOS_MercadoBase[TFSEE]) -> 1671754.042 | AN207: =AM207+AM207*($AN$236-$AM$236)/$AM$205 ->  | AO207: =Resultado!D22 -> 1722807.117 | AP207: 0 | AQ207: 0 | AR207: 0 | AS207: =IF(SUM(AM207:AO207)<>0,1,0) -> 
AL208: Conta de Desenv. Energético – CDE (USO) | AM208: =SUM(DADOS_MercadoBase[CDE],DADOS_MercadoBase[RTE_CDE_E]) -> 41799479.88 | AO208: =Encargos!G22 -> 47479092.68 | AP208: 0 | AQ208: 0 | AR208: 0 | AS208: =IF(SUM(AM208:AO208)<>0,1,0) -> 
AL209: Conta de Desenv. Energético – CDE Conta-Covid (TE) | AM209: =SUM(DADOS_MercadoBase[covidTeEco])*(IFERROR(VLOOKUP("CDE Covid TE",BD!$B$8:$C$53,2,FALSE),0) /(IFERROR(VLOOKUP("CDE Covid TE",BD!$B$8:$C$53,2,FALSE),0)+IFERROR(VLOOKUP("CDE Conta - Escassez Hídrica TE",BD!$B$8:$C$53,2,FALSE),0)))+ SUM(DADOS_MercadoBase[covidTusdEco])*(IFERROR(VLOOKUP("CDE Covid TUSD",BD!$B$8:$C$53,2,FALSE),0) /(IFERROR(VLOOKUP("CDE Covid TUSD",BD!$B$8:$C$53,2,FALSE),0)+IFERROR(VLOOKUP("CDE Conta - Escassez Hídrica TUSD",BD!$B$8:$C$53,2,FALSE),0))) -> 28343762.05 | AO209: =Encargos!G23+Encargos!G24 -> 15944252.52 | AP209: 0 | AQ209: 0 | AR209: 0
AL210: Conta de Desenv. Energético – CDE Eletrobrás | AM210: =SUM(DADOS_MercadoBase[CDE_Elet_Eco]) -> -2178505.364 | AO210: =Encargos!G25 -> -3631685.463 | AP210: =IFERROR(AO210/AN210-1,0) -> 0 | AQ210: 0 | AR210: 0
AL211: Conta de Desenv. Energético – CDE Conta-Escassez Hídrica (TE) | AM211: =SUM(DADOS_MercadoBase[covidTeEco])*(IFERROR(VLOOKUP("CDE Conta - Escassez Hídrica TE",BD!$B$8:$C$53,2,FALSE),0) /(IFERROR(VLOOKUP("CDE Covid TE",BD!$B$8:$C$53,2,FALSE),0)+IFERROR(VLOOKUP("CDE Conta - Escassez Hídrica TE",BD!$B$8:$C$53,2,FALSE),0)))+ SUM(DADOS_MercadoBase[covidTusdEco])*(IFERROR(VLOOKUP("CDE Conta - Escassez Hídrica TUSD",BD!$B$8:$C$53,2,FALSE),0) /(IFERROR(VLOOKUP("CDE Covid TUSD",BD!$B$8:$C$53,2,FALSE),0)+IFERROR(VLOOKUP("CDE Conta - Escassez Hídrica TUSD",BD!$B$8:$C$53,2,FALSE),0))) -> 25180099.03 | AO211: =Encargos!G26+Encargos!G27 -> 23824349.5 | AP211: 0 | AQ211: 0 | AR211: 0
AL212: Conta de Desenv. Energético – CDE GD | AM212: =SUM(DADOS_MercadoBase[CDE_GD_Eco]) -> 2979779.847 | AO212: =Encargos!G28 -> 3956488.049 | AP212: =IFERROR(AO212/AN212-1,0) -> 0 | AQ212: =IFERROR((AO212-AN212)/$AN$236,0) -> 0 | AR212: =IFERROR(AO212/$AO$236,0) -> 0 | AS212: =IF(SUM(AQ211)<>0,1,0) -> 0
AL213: Compensação financeira - CFURH | AM213: =SUM(DADOS_MercadoBase[CFURH]) -> 0 | AO213: =Resultado!D24 -> 0 | AP213: 0 | AQ213: =IFERROR((AO213-AN213)/$AN$236,0) -> 0 | AR213: =IFERROR(AO213/$AO$236,0) -> 0
AL214: Encargos Serv. Sist. - ESS e Energ. Reserv. - EER | AM214: =SUM(DADOS_MercadoBase[ESSERR]) -> 20813257.21 | AO214: =Resultado!D25 -> 21331445.22 | AP214: 0 | AQ214: 0 | AR214: 0
AL215: PROINFA | AM215: =SUM(DADOS_MercadoBase[PROINFA]) -> 13043651.39 | AO215: =Resultado!D26 -> 11461719.63 | AP215: 0 | AQ215: 0 | AR215: 0 | AS215: =IF(SUM(AM215:AO215)<>0,1,0) -> 
AL216: P&D, Efic.Energ e Ressarc.ICMS Sist.Isol. | AM216: =SUM(DADOS_MercadoBase[PeD],DADOS_MercadoBase[RTE_PeD]) -> 8900942.758 | AO216: =Resultado!D27 -> 9089032.737 | AP216: 0 | AQ216: 0 | AR216: 0
AL217: ONS | AM217: =Resultado!C28 -> 0 | AO217: =Resultado!D28 -> 0 | AP217: 0 | AQ217: 0 | AR217: 0 | AS217: =IF(SUM(AM217:AO217)<>0,1,0) -> 
AL218: Custos de Transmissão | AM218: =SUM(AM219:AM226) -> 37418677.4 | AN218: =SUM(AN219:AN226) ->  | AO218: =SUM(AO219:AO226) -> 66315482.65 | AP218: 0 | AQ218: 0 | AR218: 0
AL219: Rede Básica | AM219: =SUM(DADOS_MercadoBase[TUST_RB]) -> 22515534.88 | AN219: =AM219+AM219*($AN$236-$AM$236)/$AM$205 ->  | AO219: =Resultado!D30 -> 40738395.63 | AP219: 0 | AQ219: 0 | AR219: 0
AL220: Rede Básica Fronteira | AM220: =SUM(DADOS_MercadoBase[TUST_FR]) -> 13122891.19 | AO220: =Resultado!D31 -> 23146806.59 | AP220: 0 | AQ220: 0 | AR220: 0
AL221: Rede Básica ONS (A2) | AM221: =SUM(DADOS_MercadoBase[TUSDG_ONS]) -> 0 | AO221: =Resultado!D32 -> 0 | AP221: 0 | AQ221: 0 | AR221: 0
AL222: Rede Básica Export. (A2) | AM222: =SUM(DADOS_MercadoBase[TUSDG_T]) -> 0 | AO222: =Resultado!D33 -> 0 | AP222: 0 | AQ222: 0 | AR222: 0
AL223: MUST Itaipu | AM223: =SUM(DADOS_MercadoBase[TUST_ITAIPU]) -> 0 | AO223: =Resultado!D34 -> 0 | AP223: 0 | AQ223: 0 | AR223: 0
AL224: Transporte de Itaipu | AM224: =SUM(DADOS_MercadoBase[ITAIPU]) -> 0 | AO224: =Resultado!D35 -> 0 | AP224: 0 | AQ224: 0 | AR224: 0
... 77 more rows

Sheet Apresentação
B2: Efeito Médio | L2: Efeito Médio CP x Final | U2: Composição Tarifária - Tributos | Z2: Composição Tarifária - ICMS & PIS/COFINS | AD2: Composição Tarifária - sem Tributos
U19: =Z19 -> Custo de Distribuição | W19: =AB19 -> 0.359039856 | Z19: Custo de Distribuição | AB19: =AF19/$AB$26 -> 0.359039856 | AD19: Custo de Distribuição | AF19: =IF(CAPA!$C$7="Reajuste",'Votos e NTs'!BN296,'NT Revisao'!AO229) -> 444932408.5
U20: =Z20 -> Custo de Energia | W20: =AB20 -> 0.256323262 | Z20: Custo de Energia | AB20: =AF20/$AB$26 -> 0.256323262 | AD20: Custo de Energia | AF20: =IF(CAPA!$C$7="Reajuste",'Votos e NTs'!BN294,'NT Revisao'!AO227) -> 317643081.7 | AP20: Custos Operacionais | AS20: ='NT Revisao'!AQ230 -> 0
U21: =Z21 -> Custo de Transporte | W21: =AB21 -> 0.0535135245 | Z21: Custo de Transporte | AB21: =AF21/$AB$26 -> 0.0535135245 | AD21: Custo de Transporte | AF21: =IF(CAPA!$C$7="Reajuste",'Votos e NTs'!BN285,'NT Revisao'!AO218) -> 66315482.65 | AP21: Anuidades | AS21: ='NT Revisao'!AQ231 -> 0
U22: =Z22 -> Encargos Setoriais | W22: =AB22 -> 0.1058541714 | Z22: Encargos Setoriais | AB22: =SUM(AF23:AF26/$AB$26) -> 0.1058541714 | AD22: Receitas Irrecuperáveis | AF22: =IF(CAPA!$C$7="Reajuste",'Votos e NTs'!BN295,'NT Revisao'!AO228) -> 14690828.65 | AP22: Remuneração | AS22: ='NT Revisao'!AQ232 -> 0
C23: Impacto da RTA na Tarifa | M23: Impacto da RTA na Tarifa | P23: CP | Q23: Final | U23: =Z23 -> Receitas Irrecuperáveis | W23: =AB23 -> 0.01185481863 | Z23: Receitas Irrecuperáveis | AB23: =AF22/$AB$26 -> 0.01185481863 | AD23: PROINFA | AF23: =IF(CAPA!$C$7="Reajuste",'Votos e NTs'!BN282,'NT Revisao'!AO215) -> 11461719.63 | AP23: Depreciação | AS23: ='NT Revisao'!AQ233 -> 0
C24: Encargos Setoriais | F24: =IF(CAPA!C7="Reajuste",'Votos e NTs'!BP273,'NT Revisao'!AQ206) -> -0.009981298941 | M24: Encargos Setoriais | P24: ='AP x Final'!I4 ->  | Q24: =F24 -> -0.009981298941 | U24: Tributos | W24: =AB24+AB25 -> 0.2134143675 | Z24: ICMS | AB24: ='Votos e NTs'!R29 -> 0.1688294983 | AD24: CDE | AF24: =IF(CAPA!C7="Reajuste",SUM('Votos e NTs'!BN275:BN279),SUM('NT Revisao'!AO208:AO212)) -> 87572497.29 | AP24: UDEROR | AS24: ='NT Revisao'!AQ234 -> 0
C25: Transporte | F25: =IF(CAPA!C7="Reajuste",'Votos e NTs'!BP285,'NT Revisao'!AQ218) -> 0.03077105533 | M25: Custos de Transporte | P25: ='AP x Final'!I16 ->  | Q25: 0.03077105533 | Z25: PIS/COFINS | AB25: ='Votos e NTs'!R30 -> 0.04458486915 | AD25: ESS/EER | AF25: =IF(CAPA!$C$7="Reajuste",'Votos e NTs'!BN281,'NT Revisao'!AO214) -> 21331445.22 | AP25: SCEE | AS25: ='NT Revisao'!AQ235 -> 0
C26: Compra de Energia | F26: =IF(CAPA!C7="Reajuste",'Votos e NTs'!BP294,'NT Revisao'!AQ227) -> 0.004219497805 | M26: Custos de Compra de Energia | P26: ='AP x Final'!I25 ->  | Q26: 0.004219497805 | Z26: TOTAL com tributos | AB26: =AF27/(1-AB24-AB25) -> 1239228462 | AD26: Outros | AF26: =AF27-SUM(AF19:AF25) -> 10811839.85 | AP26: Parcela B | AS26: =SUM(AS20:AS25) -> 0
C27: Receitas Irrecuperáveis | F27: =IF(CAPA!C7="Reajuste",'Votos e NTs'!BP294,'NT Revisao'!AQ228) -> 0.004219497805 | M27: Receitas Irrecuperáveis | P27: ='AP x Final'!I26 ->  | Q27: 0.004219497805 | AD27: TOTAL | AF27: =IF(CAPA!$C$7="Reajuste",'Votos e NTs'!BN297,'NT Revisao'!AO236) -> 974759303.5
C28: Distribuição | F28: =IF(CAPA!C7="Reajuste",'Votos e NTs'!BP295,'NT Revisao'!AQ229) -> -0.0006894119591 | M28: Distribuição | P28: ='AP x Final'!I27 ->  | Q28: -0.0006894119591
C29: Componentes Financeiros | F29: =IF(CAPA!C7="Reajuste",'Votos e NTs'!BP299,'NT Revisao'!AQ238)+F14 -> -0.02294533256 | M29: Componentes Financeiros | P29: ='AP x Final'!I36 ->  | Q29: -0.02294533256
C30: Retirada dos Financeiros Anteriores | F30: =IF(CAPA!C7="Reajuste",'Votos e NTs'!BP351,'NT Revisao'!AQ290) -> -0.05338746935 | M30: Efeito da Retirada dos Financeiros Anteriores | P30: =P31-SUM(P24:P29) ->  | Q30: =F30 -> -0.05338746935
C31: Efeito Médio Consumidor | F31: =IF(CAPA!C7="Reajuste",'Votos e NTs'!BP352,'NT Revisao'!AQ291) -> -0.03838021572 | M31: Efeito Médio Consumidor | P31: ='AP x Final'!I74 -> 0 | Q31: =F31 -> -0.03838021572
C34: Efeito Subgrupo
C35: SUBGRUPO | D35: EFEITO
C36: Grupo A | D36: =Resultado!L8 -> -0.01229340598
C37: Grupo B | D37: =Resultado!L9 -> -0.04422841
C38: Grupos A+B | D38: =Resultado!L10 -> -0.03838021572
F40: Compra de Energia
F41: Contratos | G41: Montantes (MWh) | J41: Preço (R$/MWh) | M41: Impacto Processo
G42: Processo Anterior | H42: Processo Atual | I42: Variação | J42: Processo Anterior | K42: Processo Atual | L42: Variação | N42: Colunas1
F43: CCEAR | G43: =(SUM('Votos e NTs'!BT358:BT361)+'Votos e NTs'!BT$371*SUM('Votos e NTs'!BT358:BT361)/SUM('Votos e NTs'!BT$358:BT$369)) -> 547575.4048 | H43: =(SUM('Votos e NTs'!BU358:BU361)+'Votos e NTs'!BU$371*SUM('Votos e NTs'!BU358:BU361)/SUM('Votos e NTs'!BU$358:BU$369)) -> 580481.5314 | I43: =IFERROR(H43/G43-1,"") -> 0.06009423783 | J43: =IFERROR(SUM('Votos e NTs'!BZ358:BZ361)/SUM('Votos e NTs'!BT358:BT361),"") -> 215.9909263 | K43: =IFERROR(SUM('Votos e NTs'!CA358:CA361)/SUM('Votos e NTs'!BU358:BU361),"") -> 222.7083549 | L43: =IFERROR(K43/J43-1,"") -> 0.03110051279 | M43: =SUM('Votos e NTs'!CG378:CG381) -> 0.004801297502 | N43: =IF(G43+H43=0,0,1) -> 1
F44: Ajuste - CCEAR | G44: =('Votos e NTs'!BT362+'Votos e NTs'!BT$371*'Votos e NTs'!BT362/SUM('Votos e NTs'!$BT$358:$BT$369)) -> 0 | H44: =('Votos e NTs'!BU362+'Votos e NTs'!BU$371*'Votos e NTs'!BU362/SUM('Votos e NTs'!$BU$358:$BU$369)) -> 0 | J44: =IFERROR('Votos e NTs'!BZ362/'Votos e NTs'!BT362,"") ->  | K44: =IFERROR('Votos e NTs'!CA362/'Votos e NTs'!BU362,"") ->  | L44: =IFERROR(K44/J44-1,"") ->  | M44: ='Votos e NTs'!CG382 -> 0 | N44: 0
F45: Madeira e Belo Monte | G45: =('Votos e NTs'!BT363+'Votos e NTs'!BT$371*'Votos e NTs'!BT363/SUM('Votos e NTs'!$BT$358:$BT$369)) -> 527277.1151 | H45: =('Votos e NTs'!BU363+'Votos e NTs'!BU$371*'Votos e NTs'!BU363/SUM('Votos e NTs'!$BU$358:$BU$369)) -> 559355.615 | I45: 0.06083802801 | J45: =IFERROR('Votos e NTs'!BZ363/'Votos e NTs'!BT363,"") -> 169.9456197 | K45: =IFERROR('Votos e NTs'!CA363/'Votos e NTs'!BU363,"") -> 177.8217665 | L45: =IFERROR(K45/J45-1,"") -> 0.04634510032 | M45: ='Votos e NTs'!CG383 -> 0.005529103926 | N45: 1
F46: Cota Angra I e Angra II | G46: =('Votos e NTs'!BT364+'Votos e NTs'!BT$371*'Votos e NTs'!BT364/SUM('Votos e NTs'!$BT$358:$BT$369)) -> 30403.73915 | H46: =('Votos e NTs'!BU364+'Votos e NTs'!BU$371*'Votos e NTs'!BU364/SUM('Votos e NTs'!$BU$358:$BU$369)) -> 35249.40046 | I46: 0.1593771506 | J46: =IFERROR('Votos e NTs'!BZ364/'Votos e NTs'!BT364,"") -> 347.5 | K46: =IFERROR('Votos e NTs'!CA364/'Votos e NTs'!BU364,"") -> 355.16 | L46: =IFERROR(K46/J46-1,"") -> 0.02204316547 | M46: ='Votos e NTs'!CG384 -> 0.0008345705358 | N46: 1
F47: Cotas Lei n º 12.783/2013 | G47: =('Votos e NTs'!BT365+'Votos e NTs'!BT$371*'Votos e NTs'!BT365/SUM('Votos e NTs'!$BT$358:$BT$369)) -> 140727.1237 | H47: =('Votos e NTs'!BU365+'Votos e NTs'!BU$371*'Votos e NTs'!BU365/SUM('Votos e NTs'!$BU$358:$BU$369)) -> 148052.2127 | I47: 0.05205172154 | J47: =IFERROR('Votos e NTs'!BZ365/'Votos e NTs'!BT365,"") -> 173.9154318 | K47: =IFERROR('Votos e NTs'!CA365/'Votos e NTs'!BU365,"") -> 195.6441843 | L47: =IFERROR(K47/J47-1,"") -> 0.1249386112 | M47: ='Votos e NTs'!CG385 -> 0.004054509021 | N47: 1
F48: Itaipu | G48: =('Votos e NTs'!BT366+'Votos e NTs'!BT$371*'Votos e NTs'!BT366/SUM('Votos e NTs'!$BT$358:$BT$369)) -> 0 | H48: =('Votos e NTs'!BU366+'Votos e NTs'!BU$371*'Votos e NTs'!BU366/SUM('Votos e NTs'!$BU$358:$BU$369)) -> 0 | J48: =IFERROR('Votos e NTs'!BZ366/'Votos e NTs'!BT366,"") ->  | K48: =IFERROR('Votos e NTs'!CA366/'Votos e NTs'!BU366,"") ->  | M48: ='Votos e NTs'!CG386 -> 0 | N48: 0
F49: Bilateral | G49: =('Votos e NTs'!BT367+'Votos e NTs'!BT$371*'Votos e NTs'!BT367/SUM('Votos e NTs'!$BT$358:$BT$369)) -> 232462.1557 | H49: =('Votos e NTs'!BU367+'Votos e NTs'!BU$371*'Votos e NTs'!BU367/SUM('Votos e NTs'!$BU$358:$BU$369)) -> 151395.3733 | I49: -0.3487310963 | J49: =IFERROR('Votos e NTs'!BZ367/'Votos e NTs'!BT367,"") -> 302.5737534 | K49: =IFERROR('Votos e NTs'!CA367/'Votos e NTs'!BU367,"") -> 306.9393699 | L49: 0.01442827208 | M49: ='Votos e NTs'!CG387 -> -0.01113491571 | N49: 1
F50: Geração Própria | G50: =('Votos e NTs'!BT368+'Votos e NTs'!BT$371*'Votos e NTs'!BT368/SUM('Votos e NTs'!$BT$358:$BT$369)) -> 160.8741505 | H50: =('Votos e NTs'!BU368+'Votos e NTs'!BU$371*'Votos e NTs'!BU368/SUM('Votos e NTs'!$BU$358:$BU$369)) -> 3080.280272 | I50: 18.14714242 | J50: =IFERROR('Votos e NTs'!BZ368/'Votos e NTs'!BT368,"") -> 302.5737534 | K50: =IFERROR('Votos e NTs'!CA368/'Votos e NTs'!BU368,"") -> 306.9393699 | L50: 0.01442827208 | M50: ='Votos e NTs'!CG388 -> 0.0003552624864 | N50: 1
F51: Montante de Reposição | G51: =('Votos e NTs'!BT369+'Votos e NTs'!BT$371*'Votos e NTs'!BT369/SUM('Votos e NTs'!$BT$358:$BT$369)) -> 0 | H51: =('Votos e NTs'!BU369+'Votos e NTs'!BU$371*'Votos e NTs'!BU369/SUM('Votos e NTs'!$BU$358:$BU$369)) -> 0 | J51: =IFERROR('Votos e NTs'!BZ369/'Votos e NTs'!BT369,"") ->  | K51: =IFERROR('Votos e NTs'!CA369/'Votos e NTs'!BU369,"") ->  | M51: ='Votos e NTs'!CG389 -> 0 | N51: 0
F52: Proinfa | G52: ='Votos e NTs'!BT370 -> 25246.9137 | H52: ='Votos e NTs'!BU370 -> 26238.91311 | I52: 0.03929190801 | J52: 0 | K52: 0 | M52: ='Votos e NTs'!CG390 -> -0.0002203299576 | N52: 1
F53: Total | G53: =SUM(G43:G52) -> 1503853.326 | H53: =SUM(H43:H52) -> 1503853.326 | I53: -1.110223025e-16 | J53: ='Votos e NTs'!BW372 -> 208.5844893 | K53: ='Votos e NTs'!BX372 -> 211.2194561 | L53: 0.01263261172 | M53: =SUM(M43:M52) -> 0.004219497805
O55: Encargos Setoriais
O56: Encargos Setoriais | P56: Processo Anterior (mil R$) | Q56: Processo Atual (mil R$) | R56: Impacto Processo | S56: Colunas1
O57: TFSEE | P57: ='Votos e NTs'!BM274/1000 -> 1671.71708 | Q57: ='Votos e NTs'!BN274/1000 -> 1722.807117 | R57: ='Votos e NTs'!BP274 -> 5.440218506e-05 | S57: =IF(P57+Q57=0,0,1) -> 1
O58: CDE (USO) | P58: ='Votos e NTs'!BM275/1000 -> 41798.5557 | Q58: ='Votos e NTs'!BN275/1000 -> 47479.09268 | R58: ='Votos e NTs'!BP275 -> 0.006048804077 | S58: 1
O59: CDE Conta Covid | P59: =IF('Votos e NTs'!BM276/1000<1,0,'Votos e NTs'!BM276/1000) -> 28343.13538 | Q59: ='Votos e NTs'!BN276/1000 -> 15944.25252 | R59: ='Votos e NTs'!BP276 -> -0.01320269782 | S59: 1
O60: CDE Modicidade Eletrobrás | P60: ='Votos e NTs'!BM277/1000 -> -2178.457198 | Q60: ='Votos e NTs'!BN277/1000 -> -3631.685463 | R60: ='Votos e NTs'!BP277 -> -0.001547440513 | S60: =IF(P60+Q60=0,0,1) -> 1
O61: CDE Conta Escassez Hídrica | P61: ='Votos e NTs'!BM278/1000 -> 25179.5423 | Q61: ='Votos e NTs'!BN278/1000 -> 23824.3495 | R61: ='Votos e NTs'!BP278 -> -0.001443049438 | S61: =IF(P61+Q61=0,0,1) -> 1
O62: CDE Conta GD | P62: ='Votos e NTs'!BM279/1000 -> 2979.713965 | Q62: ='Votos e NTs'!BN279/1000 -> 3956.488049 | R62: ='Votos e NTs'!BP279 -> 0.001040097985 | S62: =IF(P62+Q62=0,0,1) -> 1
O63: Compensação financeira - CFURH | P63: ='Votos e NTs'!BM280/1000 -> 0 | Q63: ='Votos e NTs'!BN280/1000 -> 0 | R63: ='Votos e NTs'!BP280 -> 0 | S63: 0
O64: ESS/EER | P64: ='Votos e NTs'!BM281/1000 -> 20812.79703 | Q64: ='Votos e NTs'!BN281/1000 -> 21331.44522 | R64: ='Votos e NTs'!BP281 -> 0.0005522719575 | S64: 1
O65: PROINFA | P65: ='Votos e NTs'!BM282/1000 -> 13043.363 | Q65: ='Votos e NTs'!BN282/1000 -> 11461.71963 | R65: ='Votos e NTs'!BP282 -> -0.001684180716 | S65: 1
O66: P&D | P66: ='Votos e NTs'!BM283/1000 -> 8900.74596 | Q66: ='Votos e NTs'!BN283/1000 -> 9089.032737 | R66: ='Votos e NTs'!BP283 -> 0.0002004933391 | S66: 1
O67: ONS | P67: ='Votos e NTs'!BM284/1000 -> 0 | Q67: ='Votos e NTs'!BN284/1000 -> 0 | R67: ='Votos e NTs'!BP284 -> 0 | S67: 0
O68: Total de Encargos | P68: =SUM(P57:P67) -> 140551.1132 | Q68: =SUM(Q57:Q67) -> 131177.502 | R68: =SUM(R57:R67) -> -0.009981298941
T70: Custos de Transporte
T71: Custos de Transporte | U71: Processo Anterior (mil R$) | V71: Processo Atual (mil R$) | W71: Impacto Processo | X71: Colunas1
T72: Rede Básica | U72: ='Votos e NTs'!BM286/1000 -> 22515.03706 | V72: ='Votos e NTs'!BN286/1000 -> 40738.39563 | W72: ='Votos e NTs'!BP286 -> 0.01940477212 | X72: =IF(U72+V72=0,0,1) -> 1
T73: Rede Básica Fronteira | U73: ='Votos e NTs'!BM287/1000 -> 13122.60104 | V73: ='Votos e NTs'!BN287/1000 -> 23146.80659 | W73: ='Votos e NTs'!BP287 -> 0.01067407106 | X73: 1
T74: Rede Básica ONS (A2) | U74: ='Votos e NTs'!BM288/1000 -> 0 | V74: ='Votos e NTs'!BN288/1000 -> 0 | W74: ='Votos e NTs'!BP288 -> 0 | X74: 0
T75: Rede Básica Export. (A2) | U75: ='Votos e NTs'!BM289/1000 -> 0 | V75: ='Votos e NTs'!BN289/1000 -> 0 | W75: ='Votos e NTs'!BP289 -> 0 | X75: 0
T76: MUST Itaipu | U76: ='Votos e NTs'!BM290/1000 -> 0 | V76: ='Votos e NTs'!BN290/1000 -> 0 | W76: ='Votos e NTs'!BP290 -> 0 | X76: 0
T77: Transporte de Itaipu | U77: ='Votos e NTs'!BM291/1000 -> 0 | V77: ='Votos e NTs'!BN291/1000 -> 0 | W77: ='Votos e NTs'!BP291 -> 0 | X77: 0
T78: Conexão | U78: ='Votos e NTs'!BM292/1000 -> 1780.211975 | V78: ='Votos e NTs'!BN292/1000 -> 2430.28043 | W78: ='Votos e NTs'!BP292 -> 0.0006922121517 | X78: 1
T79: Uso do sistema de distribuição | U79: ='Votos e NTs'!BM293/1000 -> 0 | V79: ='Votos e NTs'!BN293/1000 -> 0 | W79: ='Votos e NTs'!BP293 -> 0 | X79: 0
T80: Total do Transporte | U80: =SUM(U72:U79) -> 37417.85008 | V80: =SUM(V72:V79) -> 66315.48265 | W80: =SUM(W72:W79) -> 0.03077105533
Y82: Parcela B - Reajuste
Y83: Descrição | AA83: Valor | AB83: Referência
Y84: (1) Parcela B Processo Anterior (mil R$) | AA84: ='Votos e NTs'!AQ164/1000 -> 432129.6619 | AB84: TUSD fio B aplicada ao Mercado
Y85: (2) Fator DR1/Fator PB | AA85: ='VPB1'!C38 -> 1.015945853 | AB85: SGT/ANEEL
Y86: (3) Parcela B Processo Anterior sem UDEROR (mil R$) | AA86: =AA84*AA85 -> 439020.338 | AB86: SGT/ANEEL
Y87: (4) IPCA | AA87: 0.04005113905 | AB87: Indicador econômico oficial
Y88: (5) Fator X | AA88: =SUM(AA89:AA91) -> 0.01402456722 | AB88: Pd + T + Q
Y89: (5.1) Componente Pd do Fator X | AA89: ='VPB1'!F40 -> 0.01449729951 | AB89: PRORET 2.5 A
Y90: (5.2) Componente T do Fator X | AA90: ='VPB1'!F41 -> 0.00733 | AB90: REH nº 2.377/2018
Y91: (5.3) Componente Q do Fator X | AA91: ='VPB1'!F42 -> -0.00780273229 | AB91: PRORET 2.5 A
Y92: (6) UDEROR | AA92: =SUM(AA93:AA95) -> 8285.791106 | AB92: UD + ER + OR
Y93: (6.1) Outras Receitas (OR) | AA93: ='Votos e NTs'!AQ173/1000 -> 3237.622472 | AB93: Valores fiscalizados - SFF
Y94: (6.2) Excedente de Reativos (ER) | AA94: ='Votos e NTs'!AQ174/1000 -> 2584.109732 | AB94: Valores fiscalizados - SFF
Y95: (6.3) Ultrapassagem de Demanda (UD) | AA95: ='Votos e NTs'!AQ175/1000 -> 2464.058902 | AB95: Valores fiscalizados - SFF
Y96: (7) ONS | AB96: 0
Y97: Parcela B Atual (mil R$) | AA97: =AA86*(1+AA87-AA88)-AA92 -> 442160.7413
AD99: Financeiros
AD100: Componentes Financeiros | AF100: Valor (mil R$) | AG100: Impacto Processo
AD101: CVA em processamento - Energia | AF101: =SUMIFS(Financeiros[Valor],Financeiros[idDet1],19,Financeiros[id_Grupo_TARIFA],2,Financeiros[idDet2],60,Financeiros[idDet3],999)/1000 -> -5931.330597 | AG101: =1000*AF101/Financeiros!$D$5 -> -0.006315856551
AD102: CVA em processamento -Transporte | AF102: =SUMIFS(Financeiros[Valor],Financeiros[idDet1],19,Financeiros[id_Grupo_TARIFA],1,Financeiros[idDet2],60,Financeiros[idDet3],999)/1000 -> 11537.32552 | AG102: =1000*AF102/Financeiros!$D$5 -> 0.01228528604
AD103: CVA em processamento - Encargos Setoriais | AF103: =SUMIFS(Financeiros[Valor],Financeiros[idDet1],19,Financeiros[id_Grupo_TARIFA],3,Financeiros[idDet2],60,Financeiros[idDet3],999)/1000 -> 12726.97491 | AG103: =1000*AF103/Financeiros!$D$5 -> 0.01355205996
AD104: Saldo a Compensar CVA-Ano Anterior + Ajustes | AF104: =SUMIFS(Financeiros[Valor],Financeiros[idDet1],19,Financeiros[idDet2],64, Financeiros[idDet3],999)/1000 -> -817.5293061 | AG104: =1000*AF104/Financeiros!$D$5 -> -0.0008705294266
AD105: Neutralidade de Parcela A | AF105: =('Votos e NTs'!AZ198+'Votos e NTs'!AZ199+'Votos e NTs'!AZ200+'Votos e NTs'!AZ201)/1000 -> -4049.374674 | AG105: =1000*AF105/Financeiros!$D$5 -> -0.004311894127
AD106: Sobrecontratação/exposição de energia | AF106: =SUMIFS(Financeiros[Valor],Financeiros[idDet1],22,Financeiros[id_Grupo_TARIFA],2,Financeiros[idDet2],60, Financeiros[idDet3],106)/1000+SUMIFS(Financeiros[Valor],Financeiros[idDet1],22,Financeiros[id_Grupo_TARIFA],2,Financeiros[idDet2],60, Financeiros[idDet3],101)/1000 -> 26650.50041 | AG106: =1000*AF106/Financeiros!$D$5 -> 0.02837824243
AD107: Previsão de Risco Hidrológico | AF107: =SUMIFS(Financeiros[Valor],Financeiros[idDet1],22,Financeiros[id_Grupo_TARIFA],2,Financeiros[idDet2],60, Financeiros[idDet3],220)/1000 -> 18450.22597 | AG107: =1000*AF107/Financeiros!$D$5 -> 0.01964634725
AD108: Reversão do Risco Hidrológico | AF108: =SUMIFS(Financeiros[Valor],Financeiros[idDet1],22,Financeiros[id_Grupo_TARIFA],2,Financeiros[idDet2],62, Financeiros[idDet3],220)/1000 -> -20065.81068 | AG108: =1000*AF108/Financeiros!$D$5 -> -0.02136666971
AD109: Reversão Conta-Covid - CVA em processamento | AF109: =SUMIFS(Financeiros[Valor],Financeiros[idDet1],19,Financeiros[idDet2],60,Financeiros[idDet3],233)/1000 -> 0 | AG109: =1000*AF109/Financeiros!$D$5 -> 0
AD110: Reversão Conta-Covid - Saldo a Compensar | AF110: =SUMIFS(Financeiros[Valor],Financeiros[idDet1],19,Financeiros[idDet2],64,Financeiros[idDet3],236)/1000 -> 0 | AG110: =1000*AF110/Financeiros!$D$5 -> 0
AD111: Reversão Conta-Covid - Neutralidade de Parcela A | AF111: =SUMIFS(Financeiros[Valor],Financeiros[idDet1],20,Financeiros[idDet2],60, Financeiros[idDet3],234)/1000 -> 0 | AG111: =1000*AF111/Financeiros!$D$5 -> 0
AD112: Outro Financeiro Relevante | AF112: 0 | AG112: =1000*AF112/Financeiros!$D$5 -> 0
AD113: Diferimento (art 10 da ReH 2.706/2020) | AF113: ='Votos e NTs'!AZ224/1000 -> 0 | AG113: =1000*AF113/Financeiros!$D$5 -> 0
AD114: Outro Financeiro Relevante | AG114: =1000*AF114/Financeiros!$D$5 -> 0
AD115: Outros | AF115: =AF116-SUM(AF101:AF114) -> -60049.34193 | AG115: =1000*AF115/Financeiros!$D$5 -> -0.06394231841
AD116: Total | AF116: ='Votos e NTs'!AZ250/1000 -> -21548.36038 | AG116: =SUM(AG101:AG115) -> -0.02294533256
AI118: B1 x Inflação
AJ119: Variação
AI120: IGP-M | AJ120: ='Votos e NTs'!AD38 -> 
AI121: IPCA | AJ121: ='Votos e NTs'!AE38 -> 
AI122: Tarifa B1 | AJ122: ='Votos e NTs'!AC38 -> 
AL124: Financeiros
AL125: Resultado Bandeiras Tarifárias | AM125: Valor (mil R$) | AN125: Impacto Processo
AL126: Usinas com contrato por disponibilidade - CCEAR-D | AM126: -66519.46164 | AN126: -0.01144423021
AL127: Risco Hidrológico das usinas que repactuaram | AM127: 128197.3185 | AN127: 0.02205549458
AL128: Risco Hidrológico das usinas cotistas - CCGF | AM128: 103147.5557 | AN128: 0.01774584977
AL129: Risco Hidrológico da UHE ITAIPU | AM129: 87452.43744 | AN129: 0.01504560924
AL130: Encargos de Energia de Reserva - EER e de Serviço do Sistema - ESS | AM130: -102050.9453 | AN130: -0.01755718527
AL131: Resultado Mercado de Curto Prazo - MCP | AM131: 28529.54764 | AN131: 0.004908318602
AL132: Custo Total | AM132: 178756.4523 | AN132: 0.03075385671
AL133: Recolhimento pelas Bandeiras Tarifárias | AM133: -162443.7101 | AN133: -0.0279473581
AL134: Previsão do Risco Hidrológico no Processo Tarifário de 2018 | AM134: -162780.8718 | AN134: -0.02800536451
AL135: Receita Total | AM135: =AM133+AM134 -> -325224.5819 | AN135: =AN134+AN133 -> -0.05595272261
AL136: Custo não coberto antecipadamente | AM136: -146468.1296 | AN136: -0.0251988659
AP138: Remuneração do Capital
AP139: Descrição | AQ139: Ciclo Anterior | AR139: Ciclo Atual
AP140: Base Líquida (mil R$) | AQ140: ='Avaliação Parcela B'!J127/1000 ->  | AR140: ='Avaliação Parcela B'!K127/1000 -> 
AP141: Remuneração | AQ141: ='Avaliação Parcela B'!G128 ->  | AR141: ='Avaliação Parcela B'!H128 -> 
AT143: Quota de Reintegração
AT144: Descrição | AU144: Ciclo Anterior | AV144: Ciclo Atual
AT145: Base Bruta (mil R$) | AU145: ='Avaliação Parcela B'!J159/1000 ->  | AV145: ='Avaliação Parcela B'!K159/1000 -> 
AT146: Depreciação | AU146: ='Avaliação Parcela B'!G160 ->  | AV146: ='Avaliação Parcela B'!H160 -> 
AX148: Parcela B - Revisão
AX149: Descrição | AY149: Processo Anterior (mil R$) | AZ149: Processo Atual (mil R$) | BA149: Variação | BB149: Participação na Revisão
AX150: ='NT Revisao'!AL230 -> Custos Operacionais | AY150: ='NT Revisao'!AN230/1000 ->  | AZ150: ='NT Revisao'!AO230/1000 ->  | BA150: ='NT Revisao'!AP230 -> 0 | BB150: ='NT Revisao'!AQ230 -> 0
AX151: ='NT Revisao'!AL231 -> Anuidades | AY151: ='NT Revisao'!AN231/1000 ->  | AZ151: ='NT Revisao'!AO231/1000 ->  | BA151: ='NT Revisao'!AP231 -> 0 | BB151: ='NT Revisao'!AQ231 -> 0
AX152: ='NT Revisao'!AL232 -> Remuneração | AY152: ='NT Revisao'!AN232/1000 ->  | AZ152: ='NT Revisao'!AO232/1000 ->  | BA152: ='NT Revisao'!AP232 -> 0 | BB152: ='NT Revisao'!AQ232 -> 0
AX153: ='NT Revisao'!AL233 -> Depreciação | AY153: ='NT Revisao'!AN233/1000 ->  | AZ153: ='NT Revisao'!AO233/1000 ->  | BA153: ='NT Revisao'!AP233 -> 0 | BB153: ='NT Revisao'!AQ233 -> 0
AX154: ='NT Revisao'!AL234 -> UD+ER+OR | AY154: ='NT Revisao'!AN234/1000 ->  | AZ154: ='NT Revisao'!AO234/1000 -> -8285.791106 | BA154: ='NT Revisao'!AP234 -> 0 | BB154: ='NT Revisao'!#REF! -> 
AX157: PARCELA B | AY157: =SUM(AY150:AY156) ->  | AZ157: =SUM(AZ150:AZ156) ->  | BA157: =IF(ISERROR(AZ157/AY157-1),0,AZ157/AY157-1) -> 0 | BB157: =IF(ISERROR((AZ157-AY157)/$AP$185),0,(AZ157-AY157)/$AP$185) -> 0
BD161: Enel RJ | BE161: 683.87 | BG161: 1 | BH161: Enel RJ | BJ161: 714.44
BD162: Celpa | BE162: 683.6 | BG162: 2 | BH162: Celpa | BJ162: 703.21
BD163: AmE | BE163: 664.84 | BG163: =BG162+1 -> 3 | BH163: EMS | BJ163: 700.36
BD164: Light | BE164: 663.1 | BG164: =BG163+1 -> 4 | BH164: Light | BJ164: 694.05
BD165: ENF | BE165: 649.89 | BG165: 5 | BH165: AmE | BJ165: 693.49
BD166: Eflul | BE166: 648.12 | BG166: 6 | BH166: EMT | BJ166: 690.12
BD167: EFLJC | BE167: 639.05 | BG167: 7 | BH167: ENF | BJ167: 662.44
BD168: Sulgipe | BE168: 636.31 | BG168: 8 | BH168: Forcel | BJ168: 654.63
BD169: Cemar | BE169: 630.18 | BG169: 9 | BH169: ETO | BJ169: 647.35
BD170: Cemig-D | BE170: 628.33 | BG170: 10 | BH170: Cemig | BJ170: 644.23
BD171: EMT | BE171: 626.84 | BG171: 11 | BH171: Eflul | BJ171: 641.69
BD172: Forcel | BE172: 619.01 | BG172: 12 | BH172: EFLJC | BJ172: 639.85
BD173: Roraima Energia | BE173: 617.77 | BG173: 13 | BH173: Celpe 2021 | BI173: Celpe 2021 | BJ173: 628.4189439
BD174: EMS | BE174: 608.65 | BG174: 14 | BH174: Cemar | BJ174: 628.21
BD175: Hidropan | BE175: 600.74 | BG175: 15 | BH175: EMG | BJ175: 627.73
BD176: ETO | BE176: 600.08 | BG176: 16 | BH176: Coelba | BJ176: 624.64
BD177: EMG | BE177: 595.83 | BG177: 17 | BH177: Sulgipe | BJ177: 619.22
BD178: Ceron | BE178: 576.82 | BG178: 18 | BH178: Hidropan | BJ178: 602.62
BD179: Chesp | BE179: 573.14 | BG179: 19 | BH179: CPFL Paulista | BJ179: 601.57
BD180: Uhenpal | BE180: 572.49 | BG180: 20 | BH180: Chesp | BJ180: 599.53
BD181: Eletroacre | BE181: 569.84 | BG181: 21 | BH181: Enel CE | BJ181: 594.36
BD182: Cepisa | BE182: 569.48 | BG182: 22 | BH182: ELFSM | BJ182: 593.39
BD183: RGE | BE183: 560.27 | BG183: 23 | BH183: RGE (agrupada) | BJ183: 589.57
BD184: Cocel | BE184: 557.12 | BG184: 24 | BH184: ESE | BJ184: 585.6
BD185: Coelba | BE185: 552.13 | BG185: 25 | BH185: Ceal | BJ185: 583.31
BD186: Celpe | BE186: 549.33 | BG186: 26 | BH186: Eletroacre | BJ186: 581.91
BD187: CPFL Santa Cruz | BE187: 547.69 | BG187: 27 | BH187: Cepisa | BJ187: 581.82
BD188: EPB | BE188: 545.4 | BG188: 28 | BH188: Roraima Energia | BJ188: 574.69
BD189: Eletrocar | BE189: 541.57 | BG189: 29 | BH189: Celpe 2020 | BI189: Celpe 2020 | BJ189: 574.34
BD190: CEA | BE190: 537.18 | BG190: 30 | BH190: Uhenpal | BJ190: 571.71
BD191: Ceal | BE191: 535.25 | BG191: 31 | BH191: CPFL Santa Cruz | BJ191: 564.97
BD192: Celg-D | BE192: 533.68 | BG192: 32 | BH192: Cosern | BJ192: 563.55
BD193: Elektro | BE193: 531.87 | BG193: 33 | BH193: EPB | BJ193: 562.11
BD194: ESE | BE194: 530.72 | BG194: 34 | BH194: Cocel | BJ194: 561.58
BD195: Enel CE | BE195: 529.49 | BG195: 35 | BH195: Eletrocar | BJ195: 561.45
BD196: EDP ES | BE196: 525.81 | BG196: 36 | BH196: EDP ES | BJ196: 557
BD197: EDP SP | BE197: 525.73 | BG197: 37 | BH197: Elektro | BJ197: 555.05
BD198: CPFL Paulista | BE198: 523.02 | BG198: 38 | BH198: CEEE-D | BJ198: 548.97
BD199: CEB-DIS | BE199: 518.01 | BG199: 39 | BH199: Enel GO | BJ199: 547.39
BD200: ELFSM | BE200: 517.96 | BG200: 40 | BH200: EDP SP | BJ200: 546.11
BD201: Copel-DIS | BE201: 517.61 | BG201: 41 | BH201: Demei | BJ201: 537.88
BD202: Eletropaulo | BE202: 515.59 | BG202: 42 | BH202: Enel SP | BJ202: 534.19
BD203: CEEE-D | BE203: 515.07 | BG203: 43 | BH203: CPFL Piratininga | BJ203: 533.55
BD204: Ienergia | BE204: 510.62 | BG204: 44 | BH204: MuxEnergia | BJ204: 527.79
BD205: DMED | BE205: 507.42 | BG205: 45 | BH205: DMED | BJ205: 525.57
BD206: Demei | BE206: 507.03 | BG206: 46 | BH206: CEB-DIS | BJ206: 514.78
BD207: Cosern | BE207: 505.53 | BG207: 47 | BH207: Ceron | BJ207: 514.38
BD208: EBO | BE208: 497.66 | BG208: =BG207+1 -> 48 | BH208: ESS (agrupada) | BJ208: 513.89
BD209: Sul Sudeste | BE209: 497.35 | BG209: 49 | BH209: Copel-DIS | BJ209: 512.77
BD210: CPFL Piratininga | BE210: 490.18 | BG210: 50 | BH210: Ienergia | BJ210: 512.48
BD211: MuxEnergia | BE211: 485.22 | BG211: 51 | BH211: Cooperaliança | BJ211: 512
BD212: Celesc-DIS | BE212: 469.78 | BG212: 52 | BH212: Celesc-DIS | BJ212: 505.99
BD213: Cooperaliança | BE213: 467.6 | BG213: 53 | BH213: CEA | BJ213: 505.25
BG214: 54 | BH214: EBO | BJ214: 497.66
CE217: DEC | CV217: FEC
CG218: =CH218-1 -> 2012 | CH218: 2013 | CI218: 2014 | CJ218: 2015 | CK218: 2016 | CL218: 2017 | CM218: 2018 | CN218: 2019 | CO218: =CP218-1 -> 2020 | CP218: 2021 | CQ218: =CP218+1 -> 2022 | CR218: =CQ218+1 -> 2023 | CS218: 2024 | CT218: 2025 | CX218: =CY218-1 -> 2012 | CY218: 2013 | CZ218: 2014 | DA218: 2015 | DB218: 2016 | DC218: 2017 | DD218: 2018 | DE218: 2019 | DF218: =DG218-1 -> 2020 | DG218: 2021 | DH218: =DG218+1 -> 2022 | DI218: =DH218+1 -> 2023 | DJ218: 2024 | DK218: 2025
CE219: DEC Apurado | CH219: 23.76 | CI219: 25.51 | CJ219: 19.31 | CK219: 15.8 | CL219: 16.98 | CM219: 12.51 | CN219: 11.96 | CO219: 12.41 | CV219: FEC Apurado | CY219: 8.87 | CZ219: 8.84 | DA219: 8.12 | DB219: 7.13 | DC219: 7.56 | DD219: 8.97 | DE219: 5.69 | DF219: 5.56
CE220: DEC Limite | CH220: 16.39 | CI220: 16.39 | CJ220: 15.48 | CK220: 14.71 | CL220: 13.91 | CM220: 13.82 | CN220: 13.67 | CO220: 13.35 | CP220: 13.22 | CV220: FEC Limite | CY220: 12.48 | CZ220: 12.05 | DA220: 11.04 | DB220: 10.19 | DC220: 9.35 | DD220: 9.26 | DE220: 8.7 | DF220: 8.33 | DG220: 8.1
CE221: DEC Limite Proposto | CQ221: 12.92 | CR221: 12.33 | CS221: 11.86 | CT221: 11.48 | CV221: FEC Limite Proposto | DH221: 8.05 | DI221: 7.25 | DJ221: 7.05 | DK221: 6.68
DM241: Parcela B / Mercado
DM243: Grandes
DM244: Reg | DN244: Distribuidora | DO244: PB/Mcdo | DP244: Média | DQ244: Parcela B | DR244: Mercado | DS244: Proc.Tar
DM245: N | DN245: ETO | DO245: =DQ245/DR245 -> 265.4071894 | DP245: =$DP$282 -> 157.3788987 | DQ245: 639963261.2 | DR245: 2411250.662 | DS245: 2020
DM246: N | DN246: Eletroacre | DO246: =DQ246/DR246 -> 262.1465373 | DP246: 157.3788987 | DQ246: 287816729.4 | DR246: 1097923.064 | DS246: 2020
DM247: CO | DN247: EMT | DO247: =DQ247/DR247 -> 246.7591507 | DP247: 157.3788987 | DQ247: 2384063093 | DR247: 9661498.209 | DS247: 2021
DM248: N | DN248: Equatorial PA | DO248: 238.5668194 | DP248: 157.3788987 | DQ248: 2059159218 | DR248: 8631373.062 | DS248: 2020
DM249: N | DN249: Cemar | DO249: 234.2860346 | DP249: 157.3788987 | DQ249: 1473020968 | DR249: 6287276.026 | DS249: 2020
DM250: CO | DN250: EMS | DO250: =DQ250/DR250 -> 233.1547235 | DP250: 157.3788987 | DQ250: 1338673092 | DR250: 5741565.396 | DS250: 2021
DM251: NE | DN251: Equatorial PI | DO251: =DQ251/DR251 -> 225.4201543 | DP251: 157.3788987 | DQ251: 847371044 | DR251: 3759074.012 | DS251: 2020
DM252: NE | DN252: Coelba | DO252: =DQ252/DR252 -> 223.125744 | DP252: 157.3788987 | DQ252: 4496925221 | DR252: 20154219.5 | DS252: 2021
DM253: N | DN253: CEA | DO253: =DQ253/DR253 -> 202.1486891 | DP253: 157.3788987 | DQ253: 208334410.9 | DR253: 1030599.861 | DS253: 2020
DM254: N | DN254: Roraima Energia | DO254: 196.414686 | DP254: 157.3788987 | DQ254: 190096815.7 | DR254: 967834.023 | DS254: 2020
DM255: N | DN255: ERO | DO255: 194.5443248 | DP255: 157.3788987 | DQ255: 654751237.9 | DR255: 3365563.29 | DS255: 2020
DM256: NE | DN256: Enel CE | DO256: 193.8478817 | DP256: 157.3788987 | DQ256: 2304543823 | DR256: 11888413.76 | DS256: 2021
... 47 more rows

Sheet AP x Final
C1: Prencher valores conforme CP | F1: Prencher valores conforme CP
B2: Descrição | C2: CP XX/2021 Receita Verificada (R$) | D2: Final Receita Verificada (R$) | E2: Variação Receita Verificada Final/CP | F2: CP XX/2021 Receita Requerida (R$) | G2: Final Receita Requerida (R$) | H2: Variação Receita Requerida Final/CP | I2: CP Participação na Revisão % | J2: Final Participação na Revisão % | K2: Variação Total | M2: Variação de Custos | N2: Variação de Receita Verificada | O2: Simulação sem var. mercado
B3: PARCELA A [Encargos+Transmissão+Energia] | C3: =C4+C16+C25+C26 -> 0 | D3: =D4+D16+D25+D26 ->  | E3: =IF(ISERROR(D3/C3-1),"-",D3/C3-1) -> - | F3: =F4+F16+F25+F26 -> 0 | G3: =G4+G16+G25+G26 -> 529826895 | H3: =IF(ISERROR(G3/F3-1),"-",G3/F3-1) -> - | I3: =IFERROR((F3-C3)/$C$34,"") ->  | J3: =IFERROR((G3-D3)/$D$34,"") ->  | K3: =J3-I3 ->  | L3: =IF(G3+D3<>0,1,0) ->  | M3: =(G3-C3)/$C$34-I3 ->  | N3: =K3-M3 ->  | O3: =(G3-C3)/$C$34 -> 
B4: Encargos Setoriais | C4: =SUM(C5:C15) -> 0 | D4: =SUM(D5:D15) ->  | E4: =IF(ISERROR(D4/C4-1),"-",D4/C4-1) -> - | F4: =SUM(F5:F15) -> 0 | G4: =SUM(G5:G15) -> 131177502 | H4: - | K4: =J4-I4 ->  | N4: =K4-M4 -> 
B5: Taxa de Fisc. de Serviços de E.E. – TFSEE | D5: ='NT Revisao'!AN207 ->  | E5: =IF(ISERROR(D5/C5-1),"-",D5/C5-1) -> - | G5: ='NT Revisao'!AO207 -> 1722807.117 | H5: - | N5: =K5-M5 -> 
B6: Conta de Desenv. Energético – CDE (USO) | D6: ='NT Revisao'!AN208 ->  | E6: =IF(ISERROR(D6/C6-1),"-",D6/C6-1) -> - | G6: ='NT Revisao'!AO208 -> 47479092.68 | H6: -
B7: Conta de Desenv. Energético – CDE Conta-Covid | D7: ='NT Revisao'!AN209 ->  | E7: - | G7: ='NT Revisao'!AO209 -> 15944252.52 | H7: - | N7: =K7-M7 -> 
B8: Conta de Desenv. Energético – CDE Eletrobrás | D8: ='NT Revisao'!AN210 ->  | E8: - | G8: ='NT Revisao'!AO210 -> -3631685.463 | H8: - | N8: =K8-M8 -> 
B9: Conta de Desenv. Energético – CDE Conta-Escassez Hídrica | D9: ='NT Revisao'!AN211 ->  | E9: =IF(ISERROR(D9/C9-1),"-",D9/C9-1) -> - | G9: ='NT Revisao'!AO211 -> 23824349.5 | H9: =IF(ISERROR(G9/F9-1),"-",G9/F9-1) -> - | K9: =J9-I9 ->  | L9: =IF(G9+D9<>0,1,0) ->  | N9: =K9-M9 -> 
B10: Conta de Desenv. Energético – CDE GD | D10: ='NT Revisao'!AN212 ->  | E10: - | G10: ='NT Revisao'!AO212 -> 3956488.049 | H10: -
B11: Compensação financeira - CFURH | D11: ='NT Revisao'!AN213 ->  | E11: - | G11: ='NT Revisao'!AO213 -> 0 | H11: =IF(ISERROR(G11/F11-1),"-",G11/F11-1) -> -
B12: Encargos Serv. Sist. - ESS e Energ. Reserv. - EER | D12: ='NT Revisao'!AN214 ->  | E12: - | G12: ='NT Revisao'!AO214 -> 21331445.22 | H12: =IF(ISERROR(G12/F12-1),"-",G12/F12-1) -> - | K12: =J12-I12 -> 
B13: PROINFA | D13: ='NT Revisao'!AN215 ->  | E13: - | G13: ='NT Revisao'!AO215 -> 11461719.63 | H13: - | K13: =J13-I13 -> 
B14: P&D, Efic.Energ | D14: ='NT Revisao'!AN216 ->  | E14: - | G14: ='NT Revisao'!AO216 -> 9089032.737 | H14: - | K14: =J14-I14 -> 
B15: ONS | D15: ='NT Revisao'!AN217 ->  | E15: - | G15: ='NT Revisao'!AO217 -> 0 | H15: -
B16: Custos de Transmissão | C16: =SUM(C17:C24) -> 0 | D16: =SUM(D17:D24) ->  | E16: - | F16: =SUM(F17:F24) -> 0 | G16: =SUM(G17:G24) -> 66315482.65 | H16: - | K16: =J16-I16 -> 
B17: Rede Básica | D17: ='NT Revisao'!AN219 ->  | E17: =IF(ISERROR(D17/C17-1),"-",D17/C17-1) -> - | G17: ='NT Revisao'!AO219 -> 40738395.63 | H17: - | K17: =J17-I17 -> 
B18: Rede Básica Fronteira | D18: ='NT Revisao'!AN220 ->  | E18: - | G18: ='NT Revisao'!AO220 -> 23146806.59 | H18: - | K18: =J18-I18 -> 
B19: Rede Básica ONS (A2) | D19: ='NT Revisao'!AN221 ->  | E19: - | G19: ='NT Revisao'!AO221 -> 0 | H19: -
B20: Rede Básica Export. (A2) | D20: ='NT Revisao'!AN222 ->  | E20: - | G20: ='NT Revisao'!AO222 -> 0 | H20: -
B21: MUST Itaipu | D21: ='NT Revisao'!AN223 ->  | E21: - | G21: ='NT Revisao'!AO223 -> 0 | H21: - | K21: =J21-I21 -> 
B22: Transporte de Itaipu | D22: ='NT Revisao'!AN224 ->  | E22: - | G22: ='NT Revisao'!AO224 -> 0 | H22: - | K22: =J22-I22 -> 
B23: Conexão | D23: ='NT Revisao'!AN225 ->  | E23: - | G23: ='NT Revisao'!AO225 -> 2430280.43 | H23: - | K23: =J23-I23 -> 
B24: Uso do sistema de distribuição | D24: ='NT Revisao'!AN226 ->  | E24: - | G24: ='NT Revisao'!AO226 -> 0 | H24: =IF(ISERROR(G24/F24-1),"-",G24/F24-1) -> - | K24: =J24-I24 -> 
B25: Custo de Aquisição de Energia | D25: ='NT Revisao'!AN227 ->  | E25: - | G25: ='NT Revisao'!AO227 -> 317643081.7 | H25: -
B26: Receitas Irrecuperáveis | D26: ='NT Revisao'!AN228 ->  | E26: - | G26: ='NT Revisao'!AO228 -> 14690828.65 | H26: -
B27: PARCELA B | C27: =SUM(C28:C33) -> 0 | D27: =SUM(D28:D33) ->  | E27: =IF(ISERROR(D27/C27-1),"-",D27/C27-1) -> - | F27: =SUM(F28:F33) -> 0 | G27: =SUM(G28:G33) ->  | H27: =IF(ISERROR(G27/F27-1),"-",G27/F27-1) -> - | K27: =J27-I27 -> 
B28: Custos Operacionais | D28: ='NT Revisao'!AN230 ->  | E28: - | G28: ='NT Revisao'!AO230 ->  | H28: -
B29: Anuidades | D29: ='NT Revisao'!AN231 ->  | E29: - | G29: ='NT Revisao'!AO231 ->  | H29: -
B30: Remuneração | D30: ='NT Revisao'!AN232 ->  | E30: - | G30: ='NT Revisao'!AO232 ->  | H30: - | K30: =J30-I30 -> 
B31: Depreciação | D31: ='NT Revisao'!AN233 ->  | E31: - | G31: ='NT Revisao'!AO233 ->  | H31: -
B32: OR, UD e ER | D32: ='NT Revisao'!AN234 ->  | E32: =IF(ISERROR(D32/C32-1),"-",D32/C32-1) -> - | G32: ='NT Revisao'!AO234+'NT Revisao'!AO235 -> -8285791.106 | H32: -
B33: Ajuste de PB associado ao SCEE | D33: 0 | E33: 0 | G33: =Resultado!G38 -> 0 | H33: - | I33: =IFERROR((F33-C33)/$C$34,"") ->  | J33: =IFERROR((G33-D33)/$D$34,"") ->  | K33: =J33-I33 ->  | L33: =IF(G33+D33<>0,1,0) -> 0 | M33: =(G33-C33)/$C$34-I33 ->  | N33: =K33-M33 ->  | O33: =(G33-C33)/$C$34 -> 
B34: Reposicionamento Tarifário | C34: =C27+C3 -> 0 | D34: =D27+D3 ->  | E34: =IF(ISERROR(D34/C34-1),"-",D34/C34-1) -> - | F34: =F27+F3 -> 0 | G34: =G27+G3 ->  | H34: - | I34: =IFERROR((F34-C34)/$C$34,"") ->  | J34: =IFERROR((G34-D34)/$D$34,"") ->  | K34: =J34-I34 ->  | M34: =(G34-C34)/$C$34-I34 ->  | O34: =(G34-C34)/$C$34 -> 
L35: 0
B36: Componentes Financeiros do Processo Atual | F36: =SUM(F37:F72) -> 0 | G36: =SUM(G37:G72) -> 27686409.86 | I36: =SUM(I37:I72) ->  | J36: =SUM(J37:J72) -> 0.02948130951 | K36: =J36-I36 ->  | L36: 1 | M36: =G36/$C$34-I36 ->  | N36: =K36-M36 ->  | O36: =(G36-C36)/$C$34 -> 
B37: ='NT Revisao'!AL239 -> CVA em processamento - Energia | G37: ='NT Revisao'!AO239 -> -5931330.597 | I37: =F37/$C$34 ->  | J37: ='NT Revisao'!AQ239 -> -0.006315856551 | K37: =J37-I37 ->  | L37: 1 | M37: =G37/$C$34-I37 ->  | N37: =K37-M37 ->  | O37: =K37-N37 -> 
B38: ='NT Revisao'!AL240 -> CVA em processamento - Transporte | G38: ='NT Revisao'!AO240 -> 11537325.52 | I38: =F38/$C$34 ->  | J38: ='NT Revisao'!AQ240 -> 0.01228528604 | K38: =J38-I38 ->  | L38: 1
B39: ='NT Revisao'!AL241 -> CVA em processamento - Encargos Setoriais | G39: ='NT Revisao'!AO241 -> 4742030.644 | J39: ='NT Revisao'!AQ241 -> 0.005049454725 | L39: 1
B40: ='NT Revisao'!AL242 -> Saldo a Compensar CVA-Ano Anterior + Ajustes | G40: ='NT Revisao'!AO242 -> -817529.3028 | J40: ='NT Revisao'!AQ242 -> -0.0008705294231 | L40: 1
B41: ='NT Revisao'!AL243 -> Neutralidade de Parcela A- Energia | G41: ='NT Revisao'!AO243 -> -2554889.16 | J41: ='NT Revisao'!AQ243 -> -0.002720521673 | L41: 1
B42: ='NT Revisao'!AL244 -> Neutralidade de Parcela A - Transporte | G42: ='NT Revisao'!AO244 -> 6270351.973 | J42: ='NT Revisao'!AQ244 -> 0.006676856557 | L42: 1
B43: ='NT Revisao'!AL245 -> Neutralidade de Parcela A - Encargos Setoriais | G43: ='NT Revisao'!AO245 -> -7974155.504 | J43: ='NT Revisao'!AQ245 -> -0.008491117037 | L43: 1
B44: ='NT Revisao'!AL246 -> Neutralidade de Parcela A - Receita Irrecuperável | G44: ='NT Revisao'!AO246 -> 209318.0172 | J44: ='NT Revisao'!AQ246 -> 0.0002228880264 | L44: 1
B45: ='NT Revisao'!AL247 -> Neutralidade de Fin. Parcela B - Conta Covid | G45: ='NT Revisao'!AO247 -> 0 | J45: ='NT Revisao'!AQ247 -> 0 | L45: 0
B46: ='NT Revisao'!AL248 -> Financeiro CDE Eletrobras | G46: ='NT Revisao'!AO248 -> -153919.1353 | J46: ='NT Revisao'!AQ248 -> -0.0001638976555 | L46: 1
B47: ='NT Revisao'!AL249 -> Restituição de encargo do ONS | G47: ='NT Revisao'!AO249 -> 0 | J47: ='NT Revisao'!AQ249 -> 0 | L47: 0
B48: ='NT Revisao'!AL250 -> Financeiros residuais do encargo de ONS | G48: ='NT Revisao'!AO250 -> 0 | J48: ='NT Revisao'!AQ250 -> 0 | L48: 0
B49: ='NT Revisao'!AL251 -> Neutralidade de Fin. Parcela B - Conta Covid | G49: ='NT Revisao'!AO251 -> 0 | J49: ='NT Revisao'!AQ251 -> 0 | L49: 0
B50: ='NT Revisao'!AL252 -> Crédito de PIS/COFINS | G50: ='NT Revisao'!AO252 -> -693496.9107 | J50: ='NT Revisao'!AQ252 -> -0.0007384560572 | L50: 1
B51: ='NT Revisao'!AL253 -> Neutralidade Crédito de PIS/COFINS | G51: ='NT Revisao'!AO253 -> -274964.6781 | J51: ='NT Revisao'!AQ253 -> -0.0002927905357 | L51: 1
B52: ='NT Revisao'!AL254 -> Sobrecontratação | G52: ='NT Revisao'!AO254 -> 26650500.41 | J52: ='NT Revisao'!AQ254 -> 0.02837824243 | L52: 1
B53: ='NT Revisao'!AL255 -> Garantias financeiras na contratação regulada de energia (CCEAR) de Energia | G53: ='NT Revisao'!AO255 -> 158941.0395 | J53: ='NT Revisao'!AQ255 -> 0.0001692451279 | L53: 1
B54: ='NT Revisao'!AL256 -> Reversão Sobrecontratação | G54: ='NT Revisao'!AO256 -> 0 | J54: ='NT Revisao'!AQ256 -> 0 | L54: 0
B55: ='NT Revisao'!AL257 -> Recálculo Exposição CCEAR entre Submercados | G55: ='NT Revisao'!AO257 -> 0 | J55: ='NT Revisao'!AQ257 -> 0 | L55: 0
B56: Ressarcimento de P&D | F56: 0 | G56: 0 | I56: 0 | J56: 0 | K56: 0
B57: ='NT Revisao'!AL259 -> Reversão de Risco Hidrológico | G57: ='NT Revisao'!AO259 -> -20065810.68 | I57: =F57/$C$34 ->  | J57: ='NT Revisao'!AQ259 -> -0.02136666971 | L57: 1
B58: ='NT Revisao'!AL260 -> Risco Hidrológico | G58: ='NT Revisao'!AO260 -> 18450225.97 | J58: ='NT Revisao'!AQ260 -> 0.01964634725 | L58: 1
B59: ='NT Revisao'!AL261 -> Repasse de ultrapassagem de Supridas/Permissionárias | G59: ='NT Revisao'!AO261 -> 0 | J59: ='NT Revisao'!AQ261 -> 0 | L59: 0
B60: ='NT Revisao'!AL262 -> Ajuste CUSD | G60: ='NT Revisao'!AO262 -> 0 | J60: ='NT Revisao'!AQ262 -> 0 | K60: =J60-I60 ->  | L60: 0
B61: ='NT Revisao'!AL263 -> Conselho de Consumidores | G61: ='NT Revisao'!AO263 -> 0 | J61: ='NT Revisao'!AQ263 -> 0 | L61: 0
B62: ='NT Revisao'!AL264 -> Ajuste TUSDg | G62: ='NT Revisao'!AO264 -> 0 | J62: ='NT Revisao'!AQ264 -> 0 | L62: 1
B63: ='NT Revisao'!AL265 -> Repasse de compensação DIC/FIC | G63: ='NT Revisao'!AO265 -> 0 | J63: ='NT Revisao'!AQ265 -> 0 | L63: 1
B64: ='NT Revisao'!AL266 -> Acordo REN 824/2018 | G64: ='NT Revisao'!AO266 -> 0 | J64: ='NT Revisao'!AQ266 -> 0 | L64: 1
B65: ='NT Revisao'!AL267 -> Reversão de Créditos de Rescisão Contratual e Migração de Consumidores (REN 1.000/2021) | G65: ='NT Revisao'!AO267 -> -1103136.26 | J65: ='NT Revisao'!AQ267 -> -0.001174652172 | L65: 1
B66: ='NT Revisao'!AL268 -> Custo Distribuidora - Conta Covid - Art 4º - REN 952/2021 - Tusd | G66: ='NT Revisao'!AO268 -> 0 | J66: ='NT Revisao'!AQ268 -> 0 | L66: 1
B67: ='NT Revisao'!AL269 -> Custo Distribuidora - Conta Covid - Art 4º - REN 952/2021 - TE | G67: ='NT Revisao'!AO269 -> 0 | J67: ='NT Revisao'!AQ269 -> 0 | L67: 1
B68: ='NT Revisao'!AL270 -> Arrecadação de encargo CDE Covid dos consumidores migrantes (Ofício Circular 20/2021) | G68: ='NT Revisao'!AO270 -> -177983.0528 | J68: ='NT Revisao'!AQ270 -> -0.0001895216279 | L68: 1
B69: ='NT Revisao'!AL271 -> Arrecadação de encargo CDE Escassez Hídrica dos consumidores migrantes (REN 1.008/2022) | G69: ='NT Revisao'!AO271 -> -585068.4276 | J69: ='NT Revisao'!AQ271 -> -0.000622998196 | L69: 1
B70: ='NT Revisao'!AL272 -> Diferimento Parcela B | G70: ='NT Revisao'!AO272 -> 0 | J70: ='NT Revisao'!AQ272 -> 0 | L70: 1
B71: ='NT Revisao'!AL273 -> Recomposição à conta de comercialização de Itaipu - Reversão Bônus Itaipu | G71: ='NT Revisao'!AO273 -> 0 | J71: ='NT Revisao'!AQ273 -> 0 | L71: 1
B72: ='NT Revisao'!AL274 -> Neutralidade Mitigação Itaipu - Energia de Revenda | G72: ='NT Revisao'!AO274 -> 0 | J72: ='NT Revisao'!AQ274 -> 0 | L72: 1
B73: Efeito da retirada dos Componentes Financeiros do Processo Anterior | I73: =I74-I34-I36 ->  | J73: =J74-J34-J36 ->  | K73: =J73-I73 ->  | L73: 1 | O73: =J73-I73 -> 
B74: Efeito Médio a ser percebido pelos Consumidores | J74: ='NT Revisao'!AQ291 -> -0.03838021572 | K74: =J74-I74 -> -0.03838021572 | L74: 1 | M74: =((G34+G36)/C34-1)-((F34+F36)/C34-1) ->  | N74: =K74-M74 ->  | O74: =K74-N74 -> 

Sheet Mercado
B2: DADOS DE MERCADO DE ENERGIA E RECEITA VERIFICADA | G2: Anexo II | H2: =Resultado!$D$6 -> 0.03795258618
G3: Anexo I | H3: =Resultado!$D$8 -> 0.01500725363
M5: TipoMercado | R5: AnoMes
B6: Dados de Mercado | M6: Regular | R6: =DATE(YEAR(R8),MONTH(R8)-1,1) -> 45261
R7: AnoMes
B8: Descrição | C8: MERCADO (MWh) | D8: RECEITA (R$) | F8: DESCRIÇÃO | G8: POR DENTRO | J8: Critérios | L8: Para º de consumidores | R8: =DATE(YEAR(R10),MONTH(R10)-1,1) -> 45292
B9: FORNECIMENTO | C9: =SUM(C10:C16) -> 1211706.378 | D9: =SUM(D10:D16) -> 887946907.7 | F9: ICMS | G9: =SUM(INDIRECT("DADOS_MercadoBase[ICMS]"))/(SUM(INDIRECT("DADOS_MercadoBase[ICMS]"),INDIRECT("DADOS_MercadoBase[PisPasep]"),INDIRECT("DADOS_MercadoBase[Cofins]"),INDIRECT("DADOS_MercadoBase[FinTotAj]"))+G20) -> 0.1688294983 | J9: Subgrupo | K9: OPÇÃO | M9: AnoMes | N9: Subgrupo | O9: OPÇÃO | R9: AnoMes
B10: A1 | C10: =DSUM(Mercado_Receita!A:AAA,"TUSD_E",J9:K10) -> 0 | D10: =DSUM(Mercado_Receita!A:AAA,"total",J9:K10) -> 0 | F10: PIS/COFINS | G10: =SUM( INDIRECT("DADOS_MercadoBase[Cofins]"), INDIRECT("DADOS_MercadoBase[PisPasep]"))/(SUM( INDIRECT("DADOS_MercadoBase[ICMS]"), INDIRECT("DADOS_MercadoBase[PisPasep]"), INDIRECT("DADOS_MercadoBase[Cofins]"), INDIRECT("DADOS_MercadoBase[FinTotAj]"))+G20) -> 0.04458486915 | J10: A1 | K10: Cativo | M10: =DMAX(MercadoBase,"AnoMes",M5:M6) -> 45566 | N10: A1 | O10: Suprimento | R10: =DATE(YEAR(R12),MONTH(R12)-1,1) -> 45323
B11: A2 | C11: =DSUM(Mercado_Receita!A:AAA,"TUSD_E",J11:K12) -> 0 | D11: =DSUM(Mercado_Receita!A:AAA,"total",J11:K12) -> 0 | J11: Subgrupo | K11: OPÇÃO | M11: AnoMes | N11: Subgrupo | O11: OPÇÃO | P11: Subgrupo | R11: AnoMes
B12: A3 | C12: =DSUM(Mercado_Receita!A:AAA,"TUSD_E",J13:K14) -> 0 | D12: =DSUM(Mercado_Receita!A:AAA,"total",J13:K14) -> 0 | F12: MWh Ano Anterior | G12: =BD!C45 -> 1232551.137 | H12: <- Atenção! - Alterado para Mercado TUSD | J12: A2 | K12: Cativo | M12: =$M$10 -> 45566 | N12: A2 | O12: Livre | P12: A1 | R12: =DATE(YEAR(R14),MONTH(R14)-1,1) -> 45352
B13: A3a | C13: =DSUM(Mercado_Receita!A:AAA,"TUSD_E",J15:K16) -> 1775.274 | D13: =DSUM(Mercado_Receita!A:AAA,"total",J15:K16) -> 1525596.259 | F13: Variação | G13: =C24/G12-1 -> 0.07733355569 | H13: 0.07733355569 | J13: Subgrupo | K13: OPÇÃO | M13: AnoMes | N13: Subgrupo | O13: OPÇÃO | R13: AnoMes
B14: A4 | C14: =DSUM(Mercado_Receita!A:AAA,"TUSD_E",J17:K18) -> 193009.074 | D14: =DSUM(Mercado_Receita!A:AAA,"total",J17:K18) -> 121720782.7 | F14: R$ Ano Anterior | G14: =BD!C46 -> 879375952.9 | H14: 879375952.9 | J14: ="=A3" -> =A3 | K14: Cativo | M14: =$M$10 -> 45566 | N14: ="=A3" -> =A3 | O14: Distribuição | R14: =DATE(YEAR(R16),MONTH(R16)-1,1) -> 45383
B15: As | C15: =DSUM(Mercado_Receita!A:AAA,"TUSD_E",J19:K20) -> 0 | D15: =DSUM(Mercado_Receita!A:AAA,"total",J19:K20) -> 0 | F15: Variação | G15: =D24/G14-1 -> 0.0679361511 | H15: 0.0679361511 | J15: Subgrupo | K15: OPÇÃO | M15: AnoMes | N15: Subgrupo | O15: OPÇÃO | R15: AnoMes
B16: BT | C16: =DSUM(Mercado_Receita!A:AAA,"TUSD_E",J21:K22) -> 1016922.03 | D16: =DSUM(Mercado_Receita!A:AAA,"total",J21:K22) -> 764700528.8 | J16: ="=A3a" -> =A3a | K16: Cativo | M16: =$M$10 -> 45566 | N16: ="=A3a" -> =A3a | O16: Geração | R16: =DATE(YEAR(R18),MONTH(R18)-1,1) -> 45413
B17: SUPRIMENTO (Merc. TUSD + Sup. RB) | C17: =DSUM(Mercado_Receita!A:AAA,"TUSD_E",O9:P10)+'Mercado Supridas'!U69 -> 13097.01 | D17: =DSUM(Mercado_Receita!A:AAA,"total",O9:P10) -> 4216445.37 | F17: Parâmetros de cálculo de RI | J17: Subgrupo | K17: OPÇÃO | M17: AnoMes | N17: Subgrupo | O17: OPÇÃO | R17: AnoMes
B18: LIVRES A1 | C18: =DSUM(Mercado_Receita!A:AAA,"TUSD_E",O11:P12) -> 0 | D18: =DSUM(Mercado_Receita!A:AAA,"total",O11:P12) -> 0 | F18: RR sem RI | G18: =SUM(Resultado!D19,Resultado!D29,Resultado!D38,Resultado!D45) -> 960068474.8 | J18: A4 | K18: Cativo | M18: =$M$10 -> 45566 | N18: A4 | O18: Livre | R18: =DATE(YEAR(R20),MONTH(R20)-1,1) -> 45444
B19: DEMAIS LIVRES | C19: =DSUM(Mercado_Receita!A:AAA,"TUSD_E",O19:P20)+DSUM(Mercado_Receita!A:AAA,"TUSD_E",O17:P18)-C18 -> 103065.311 | D19: =DSUM(Mercado_Receita!A:AAA,"total",O19:P20)+DSUM(Mercado_Receita!A:AAA,"TOTAL",O17:P18)-D18 -> 34652222.87 | F19: Financeiros | G19: =Financeiros!D8 -> -21548360.38 | J19: Subgrupo | K19: OPÇÃO | M19: AnoMes | N19: Subgrupo | O19: OPÇÃO | R19: AnoMes
B20: DISTRIBUIÇÃO | C20: =DSUM(Mercado_Receita!A:AAA,"TUSD_E",O13:P14) -> 0 | D20: =DSUM(Mercado_Receita!A:AAA,"total",O13:P14) -> 0 | F20: Receita Bandeiras | G20: =SUM(TabBand[Fat Bandeiras]) -> 7086034.01 | J20: AS | K20: Cativo | M20: =$M$10 -> 45566 | N20: AS | O20: erc | R20: =DATE(YEAR(R22),MONTH(R22)-1,1) -> 45474
B21: GERADOR | D21: =DSUM(Mercado_Receita!A:AAA,"total",O15:P16) -> 12301794.57 | J21: Subgrupo | K21: OPÇÃO | M21: AnoMes | N21: Subgrupo | R21: AnoMes
B22: CDE Baixa Renda | J22: ="=B*" -> =B* | K22: Cativo | M22: =$M$10 -> 45566 | N22: ="=B*" -> =B* | R22: =DATE(YEAR(R24),MONTH(R24)-1,1) -> 45505
B23: AJUSTE ECONÔMICO - BOLHA | J23: Subclasse | K23: OPÇÃO | R23: AnoMes
B24: TOTAL | C24: =SUM(C10:C23) -> 1327868.699 | D24: =SUM(D10:D23) -> 939117370.6 | J24: ="=Residencial baixa renda*" -> =Residencial baixa renda* | K24: Cativo | R24: =DATE(YEAR(R26),MONTH(R26)-1,1) -> 45536
B25: ENERGIA DESTINADA APE/PIE | J25: Classe | L25: AnoMes | R25: AnoMes
B26: MERCADO TOTAL BAIXA RENDA | C26: =DSUM(Mercado_Receita!A:AAA,"TUSD_E",J23:K24) -> 182498.427 | J26: Residencial | L26: =$M$10 -> 45566 | R26: =DATE(YEAR(R28),MONTH(R28)-1,1) -> 45566
J27: Classe | L27: AnoMes | R27: AnoMes
B28: ="Fonte: SAMP - "&TEXT(L26,"mmmm/aa") -> Fonte: SAMP - outubro/24 | J28: Industrial | L28: =$M$10 -> 45566 | R28: =B65 -> 45597
B29: DESCRIÇÃO - Tipo | C29: RECEITA (R$) | D29: % Total | E29: nº de consumidores | F29: MWh mensal | G29: Percentual RI | H29: Reais RI (c/tributos) | J29: Classe | L29: AnoMes
B30: Residencial | C30: =DSUM(Mercado_Receita!A:AAA,"total",J25:K26) -> 522942729 | D30: =IFERROR(C30/$C$38,0) -> 0.5568449114 | E30: =DSUM(Mercado_Receita!$A:$AAA,"UC",$J$25:$L$26) -> 255857 | F30: =DSUM(Mercado_Receita!$A:$AAA,"TUSD_E",$J$25:$L$26) -> 65506.213 | G30: =BD!M67 -> 0.0181 | H30: =G30*C30/$D$24*SUM($G$18:$G$20)/(1-SUM($G$9:$G$10)) -> 12116497.81 | J30: Comercial | L30: =$M$10 -> 45566
B31: Industrial | C31: =DSUM(Mercado_Receita!A:AAA,"total",J27:K28) -> 49303430.79 | D31: 0.05249975385 | E31: =DSUM(Mercado_Receita!$A:$AAA,"UC",$J$27:$L$28) -> 375 | F31: =DSUM(Mercado_Receita!$A:$AAA,"TUSD_E",$J$27:$L$28) -> 11447.259 | G31: =BD!M68 -> 0.0049 | H31: =G31*C31/$D$24*SUM($G$18:$G$20)/(1-SUM($G$9:$G$10)) -> 309255.6374 | J31: Classe | L31: AnoMes
B32: Comercial | C32: =DSUM(Mercado_Receita!A:AAA,"total",J29:K30) -> 165495471.1 | D32: 0.1762244809 | E32: =DSUM(Mercado_Receita!$A:$AAA,"UC",$J$29:$L$30) -> 22866 | F32: =DSUM(Mercado_Receita!$A:$AAA,"TUSD_E",$J$29:$L$30) -> 19860.503 | G32: =BD!M69 -> 0.0068 | H32: 1440586.798 | J32: Rural | L32: =$M$10 -> 45566
B33: Rural | C33: =DSUM(Mercado_Receita!A:AAA,"total",J31:K32) -> 35386844.07 | D33: 0.03768096 | E33: =DSUM(Mercado_Receita!$A:$AAA,"UC",$J$31:$L$32) -> 17654 | F33: =DSUM(Mercado_Receita!$A:$AAA,"TUSD_E",$J$31:$L$32) -> 3903.691 | G33: =BD!M70 -> 0.0123 | H33: 557174.6489 | J33: Classe | L33: AnoMes
B34: Iluminação Pública | C34: =DSUM(Mercado_Receita!A:AAA,"total",J33:K34) -> 19639527.36 | D34: 0.02091275061 | E34: =DSUM(Mercado_Receita!$A:$AAA,"UC",$J$33:$L$34) -> 426 | F34: =DSUM(Mercado_Receita!$A:$AAA,"TUSD_E",$J$33:$L$34) -> 3781.312 | G34: =BD!M71 -> 0.0007 | H34: 17598.41182 | J34: Iluminação Pública | L34: =$M$10 -> 45566
B35: Poder Público | C35: =DSUM(Mercado_Receita!A:AAA,"total",J35:K36) -> 97905749.97 | D35: 0.1042529433 | E35: =DSUM(Mercado_Receita!$A:$AAA,"UC",$J$35:$L$36) -> 3332 | F35: =DSUM(Mercado_Receita!$A:$AAA,"TUSD_E",$J$35:$L$36) -> 13616.873 | G35: =BD!M72 -> 0.0019 | H35: 238125.6638 | J35: Classe | L35: AnoMes
B36: Serviço Público | C36: =DSUM(Mercado_Receita!A:AAA,"total",J37:K38) -> 30179079.38 | D36: 0.03213557786 | E36: =DSUM(Mercado_Receita!$A:$AAA,"UC",$J$37:$L$38) -> 234 | F36: =DSUM(Mercado_Receita!$A:$AAA,"TUSD_E",$J$37:$L$38) -> 3894.811 | G36: =BD!M73 -> 0.0003 | H36: 11589.68538 | J36: Poder Público | L36: =$M$10 -> 45566
B37: Demais | C37: =D24-SUM(C30:C36) -> 18264538.86 | D37: 0.01944862212 | E37: =DSUM(Mercado_Receita!A:AAA,"UC",$J$39:$L$40)-SUM(E$30:E$36) -> 92 | F37: =DSUM(Mercado_Receita!B:AAB,"TUSD_E",$J$39:$L$40)-SUM(F$30:F$36) -> 1413.264 | G37: =BD!M74 -> 0 | H37: 0 | J37: Classe | L37: AnoMes
B38: TOTAL | C38: =SUM(C30:C37) -> 939117370.6 | D38: =SUM(D30:D37) -> 1 | E38: =SUM(E30:E37) -> 300836 | F38: =SUM(F30:F37) -> 123423.926 | H38: =SUM(H30:H37) -> 14690828.65 | J38: Serviço público | L38: =$M$10 -> 45566
J39: Classe | L39: AnoMes
B40: nº de consumidores | J40: * | L40: =$M$10 -> 45566
B41: A1 | C41: =DSUM(Mercado_Receita!A:AAA,"UC",L9:N10) -> 0
B42: A2 | C42: =DSUM(Mercado_Receita!A:AAA,"UC",L11:N12) -> 0
B43: A3 | C43: =DSUM(Mercado_Receita!A:AAA,"UC",L13:N14) -> 0
B44: A3a | C44: =DSUM(Mercado_Receita!A:AAA,"UC",L15:N16) -> 15
B45: A4 | C45: =DSUM(Mercado_Receita!A:AAA,"UC",L17:N18) -> 847
B46: As | C46: =DSUM(Mercado_Receita!A:AAA,"UC",L19:N20) -> 0
B47: BT | C47: =DSUM(Mercado_Receita!A:AAA,"UC",L21:N22) -> 299974
B52: Arrecadação dos Encargos
B53: Competência | D53: PeD | E53: ONS | F53: ESSERR | G53: PROINFA | H53: CDE | I53: TFSEE | J53: CFURH | K53: CVA_Energia | L53: CVA_RB | M53: CVA_CDE | N53: CVA_CFURH | O53: CVA_TranItaipu | P53: CVA_ESSERR | Q53: CVA_PROINFA | R53: Fator Selic | S53: RTE_Energia | T53: RTE_CDE_USO | U53: RTE_CDE_E | V53: RTE_CUSD | W53: RTE_PeD | X53: CVA_CovidTe_ou_CVA_CDE_E | Y53: CVA_CCC | Z53: DISTRIBUICAO | AA53: cDE_E_ACR | AB53: CDE_E_Dec | AC53: CVA_CovidTusd | AD53: CDE_ELET_eco | AE53: CDE_GD_Eco | AF53: CVA_CDE_Elet | AG53: CVA_CDE_GD
B54: =DATE(YEAR(B55),MONTH(B55)-1,1) -> 45261 | D54: =DSUM(MercadoBase,D$53,INDIRECT("r"&5+2*(ROW()-54)&":r"&6+2*(ROW()-54))) -> 760703.9418 | E54: 0 | F54: 1794154.374 | G54: 1113394.62 | H54: 3572092.801 | I54: 142340.1299 | J54: 0 | K54: 249809.4649 | L54: 475500.7068 | M54: 415525.8018 | N54: 0 | O54: 0 | P54: 137734.8263 | Q54: -151652.9617 | R54: =VLOOKUP(CAPA!$C$15,Índices!B:F,5,FALSE)/VLOOKUP(DATE(YEAR(B54),MONTH(B54),1),Índices!B:F,5,FALSE) -> 1.098988712 | S54: =DSUM(MercadoBase,S$53,INDIRECT("r"&5+2*(ROW()-54)&":r"&6+2*(ROW()-54))) -> 0 | T54: 0 | U54: 0 | V54: 0 | W54: 0 | X54: -0.0008801139063 | Y54: 0 | Z54: =DSUM(MercadoBase,Z$53,INDIRECT("r"&5+2*(ROW()-54)&":r"&6+2*(ROW()-54))) -> 36664875.62 | AA54: =DSUM(MercadoBase,AA$53,INDIRECT("r"&5+2*(ROW()-54)&":r"&6+2*(ROW()-54))) -> 0 | AB54: 0 | AC54: -0.003493051312 | AD54: -187680.6749 | AE54: 257862.9925 | AF54: 0 | AG54: 0
B55: 45292 | D55: 737219.1316 | E55: 0 | F55: 1735664.108 | G55: 1074990.13 | H55: 3446234.699 | I55: 138138.3246 | J55: 0 | K55: 241498.3749 | L55: 462896.3174 | M55: 400885.2839 | N55: 0 | O55: 0 | P55: 133244.607 | Q55: -146421.9731 | R55: =VLOOKUP(CAPA!$C$15,Índices!B:F,5,FALSE)/VLOOKUP(DATE(YEAR(B55),MONTH(B55),1),Índices!B:F,5,FALSE) -> 1.088466612 | S55: 0 | T55: 0 | U55: 0 | V55: 0 | W55: 0 | X55: -0.0008513922591 | Y55: 0 | Z55: 35638933.09 | AA55: 0 | AB55: 0 | AC55: -0.003369978136 | AD55: -181555.9016 | AE55: 247858.8041 | AF55: 0 | AG55: 0
B56: 45323 | D56: 700834.697 | E56: 0 | F56: 1640525.037 | G56: 1024619.031 | H56: 3285785.514 | I56: 131411.5964 | J56: 0 | K56: 228387.9962 | L56: 445538.1126 | M56: 382220.9378 | N56: 0 | O56: 0 | P56: 125940.908 | Q56: -139561.0397 | R56: =VLOOKUP(CAPA!$C$15,Índices!B:F,5,FALSE)/VLOOKUP(DATE(YEAR(B56),MONTH(B56),1),Índices!B:F,5,FALSE) -> 1.079825841 | S56: 0 | T56: 0 | U56: 0 | V56: 0 | W56: 0 | X56: -0.0008053874181 | Y56: 0 | Z56: 34149594.67 | AA56: 0 | AB56: 0 | AC56: -0.00321307929 | AD56: -171745.5583 | AE56: 235286.9109 | AF56: 0 | AG56: 0
B57: 45352 | D57: 690862.2768 | E57: 0 | F57: 1625011.671 | G57: 1018368.893 | H57: 3260751.861 | I57: 129843.3852 | J57: 0 | K57: 225469.9411 | L57: 439208.0594 | M57: 379308.8834 | N57: 0 | O57: 0 | P57: 124749.9677 | Q57: -138709.7225 | R57: =VLOOKUP(CAPA!$C$15,Índices!B:F,5,FALSE)/VLOOKUP(DATE(YEAR(B57),MONTH(B57),1),Índices!B:F,5,FALSE) -> 1.070919286 | S57: 0 | T57: 0 | U57: 0 | V57: 0 | W57: 0 | X57: -0.0007974210436 | Y57: 0 | Z57: 33609914.2 | AA57: 0 | AB57: 0 | AC57: -0.00318859957 | AD57: -170046.7617 | AE57: 233592.4342 | AF57: 0 | AG57: 0
B58: 45383 | D58: 770912.6159 | E58: 0 | F58: 1809949.502 | G58: 1132808.113 | H58: 3633006.211 | I58: 144541.2811 | J58: 0 | K58: 250854.2935 | L58: 480456.2107 | M58: 422611.5902 | N58: 0 | O58: 0 | P58: 138947.3971 | Q58: -154297.2298 | R58: =VLOOKUP(CAPA!$C$15,Índices!B:F,5,FALSE)/VLOOKUP(DATE(YEAR(B58),MONTH(B58),1),Índices!B:F,5,FALSE) -> 1.061499191 | S58: 0 | T58: 0 | U58: 0 | V58: 0 | W58: 0 | X58: -0.0008881632647 | Y58: 0 | Z58: 37165895.53 | AA58: 0 | AB58: 0 | AC58: -0.003552616861 | AD58: -189397.1675 | AE58: 260627.4095 | AF58: 0 | AG58: 0
B59: 45413 | D59: 765511.0845 | E59: 0 | F59: 1791376.969 | G59: 1120313.326 | H59: 3592372.669 | I59: 143440.2976 | J59: 0 | K59: 248214.9153 | L59: 479352.2776 | M59: 417884.8694 | N59: 0 | O59: 0 | P59: 137521.6086 | Q59: -152595.3431 | R59: =VLOOKUP(CAPA!$C$15,Índices!B:F,5,FALSE)/VLOOKUP(DATE(YEAR(B59),MONTH(B59),1),Índices!B:F,5,FALSE) -> 1.052735776 | S59: 0 | T59: 0 | U59: 0 | V59: 0 | W59: 0 | X59: -0.0008793252587 | Y59: 0 | Z59: 37039940.85 | AA59: 0 | AB59: 0 | AC59: -0.003512882437 | AD59: -187512.4991 | AE59: 257188.9544 | AF59: 0 | AG59: 0
B60: 45444 | D60: 670345.289 | E60: 0 | F60: 1573992.977 | G60: 991447.2886 | H60: 3165899.976 | I60: 126503.799 | J60: 0 | K60: 217880.2395 | L60: 432308.0949 | M60: 368275.1819 | N60: 0 | O60: 0 | P60: 120833.331 | Q60: -135042.7917 | R60: =VLOOKUP(CAPA!$C$15,Índices!B:F,5,FALSE)/VLOOKUP(DATE(YEAR(B60),MONTH(B60),1),Índices!B:F,5,FALSE) -> 1.044501584 | S60: 0 | T60: 0 | U60: 0 | V60: 0 | W60: 0 | X60: -0.0007730338212 | Y60: 0 | Z60: 32833785.75 | AA60: 0 | AB60: 0 | AC60: -0.00309584652 | AD60: -164846.2867 | AE60: 224915.5502 | AF60: 0 | AG60: 0
B61: 45474 | D61: 688618.3995 | E61: 0 | F61: 1612971.83 | G61: 1014356.374 | H61: 3240373.917 | I61: 129734.2414 | J61: 0 | K61: 222488.2761 | L61: 439029.1036 | M61: 376938.407 | N61: 0 | O61: 0 | P61: 123825.6852 | Q61: -138163.1864 | R61: =VLOOKUP(CAPA!$C$15,Índices!B:F,5,FALSE)/VLOOKUP(DATE(YEAR(B61),MONTH(B61),1),Índices!B:F,5,FALSE) -> 1.035111853 | S61: 0 | T61: 0 | U61: 0 | V61: 0 | W61: 0 | X61: -0.0007921035716 | Y61: 0 | Z61: 33589178.7 | AA61: 0 | AB61: 0 | AC61: -0.003168672538 | AD61: -168912.8326 | AE61: 230028.5715 | AF61: 0 | AG61: 0
B62: 45505 | D62: 721667.5198 | E62: 0 | F62: 1676602.394 | G62: 1051018.543 | H62: 3374298.665 | I62: 134853.9681 | J62: 0 | K62: 230525.3082 | L62: 458431.5272 | M62: 392517.2824 | N62: 0 | O62: 0 | P62: 128710.5183 | Q62: -143156.8575 | R62: =VLOOKUP(CAPA!$C$15,Índices!B:F,5,FALSE)/VLOOKUP(DATE(YEAR(B62),MONTH(B62),1),Índices!B:F,5,FALSE) -> 1.026209367 | S62: 0 | T62: 0 | U62: 0 | V62: 0 | W62: 0 | X62: -0.0008229437779 | Y62: 0 | Z62: =DSUM(MercadoBase,Z$53,INDIRECT("r"&5+2*(ROW()-54)&":r"&6+2*(ROW()-54))) -> 35298258.3 | AA62: 0 | AB62: 0 | AC62: -0.003299633867 | AD62: -175489.3799 | AE62: 241371.3967 | AF62: 0 | AG62: 0
B63: 45536 | D63: 734884.8282 | E63: 0 | F63: 1708626.604 | G63: 1086583.048 | H63: 3473889.611 | I63: 139301.3846 | J63: 0 | K63: =DSUM(MercadoBase,K$53,INDIRECT("r"&5+2*(ROW()-54)&":r"&6+2*(ROW()-54)))*IF(VLOOKUP("MesesAdin",TabPostergacao[#All],2,FALSE)>2,0,1) -> 235427.834 | L63: =DSUM(MercadoBase,L$53,INDIRECT("r"&5+2*(ROW()-54)&":r"&6+2*(ROW()-54)))*IF(VLOOKUP("MesesAdin",TabPostergacao[#All],2,FALSE)>2,0,1) -> 466942.2538 | M63: =DSUM(MercadoBase,M$53,INDIRECT("r"&5+2*(ROW()-54)&":r"&6+2*(ROW()-54)))*IF(VLOOKUP("MesesAdin",TabPostergacao[#All],2,FALSE)>2,0,1) -> 404102.2579 | N63: =DSUM(MercadoBase,N$53,INDIRECT("r"&5+2*(ROW()-54)&":r"&6+2*(ROW()-54)))*IF(VLOOKUP("MesesAdin",TabPostergacao[#All],2,FALSE)>2,0,1) -> 0 | O63: =DSUM(MercadoBase,O$53,INDIRECT("r"&5+2*(ROW()-54)&":r"&6+2*(ROW()-54)))*IF(VLOOKUP("MesesAdin",TabPostergacao[#All],2,FALSE)>2,0,1) -> 0 | P63: =DSUM(MercadoBase,P$53,INDIRECT("r"&5+2*(ROW()-54)&":r"&6+2*(ROW()-54)))*IF(VLOOKUP("MesesAdin",TabPostergacao[#All],2,FALSE)>2,0,1) -> 131168.974 | Q63: =DSUM(MercadoBase,Q$53,INDIRECT("r"&5+2*(ROW()-54)&":r"&6+2*(ROW()-54)))*IF(VLOOKUP("MesesAdin",TabPostergacao[#All],2,FALSE)>2,0,1) -> -148001.0182 | R63: =VLOOKUP(CAPA!$C$15,Índices!B:F,5,FALSE)/VLOOKUP(DATE(YEAR(B63),MONTH(B63),1),Índices!B:F,5,FALSE) -> 1.017709887 | S63: 0 | T63: 0 | U63: 0 | V63: 0 | W63: 0 | X63: -0.0008393306146 | Y63: 0 | Z63: 35792339.64 | AA63: 0 | AB63: 0 | AC63: -0.003397021114 | AD63: -178983.8055 | AE63: 242982.5248 | AF63: 0 | AG63: 0
B64: 45566 | D64: =DSUM(MercadoBase,D$53,INDIRECT("r"&5+2*(ROW()-54)&":r"&6+2*(ROW()-54))) -> 829691.487 | E64: 0 | F64: 1922190.87 | G64: 1207876.01 | H64: 3877386.98 | I64: 155822.817 | J64: 0 | K64: =DSUM(MercadoBase,K$53,INDIRECT("r"&5+2*(ROW()-54)&":r"&6+2*(ROW()-54)))*IF(VLOOKUP("MesesAdin",TabPostergacao[#All],2,FALSE)>1,0,1) -> 263846.8797 | L64: =DSUM(MercadoBase,L$53,INDIRECT("r"&5+2*(ROW()-54)&":r"&6+2*(ROW()-54)))*IF(VLOOKUP("MesesAdin",TabPostergacao[#All],2,FALSE)>1,0,1) -> 518032.5618 | M64: =DSUM(MercadoBase,M$53,INDIRECT("r"&5+2*(ROW()-54)&":r"&6+2*(ROW()-54)))*IF(VLOOKUP("MesesAdin",TabPostergacao[#All],2,FALSE)>1,0,1) -> 451039.3273 | N64: =DSUM(MercadoBase,N$53,INDIRECT("r"&5+2*(ROW()-54)&":r"&6+2*(ROW()-54)))*IF(VLOOKUP("MesesAdin",TabPostergacao[#All],2,FALSE)>1,0,1) -> 0 | O64: =DSUM(MercadoBase,O$53,INDIRECT("r"&5+2*(ROW()-54)&":r"&6+2*(ROW()-54)))*IF(VLOOKUP("MesesAdin",TabPostergacao[#All],2,FALSE)>1,0,1) -> 0 | P64: =DSUM(MercadoBase,P$53,INDIRECT("r"&5+2*(ROW()-54)&":r"&6+2*(ROW()-54)))*IF(VLOOKUP("MesesAdin",TabPostergacao[#All],2,FALSE)>1,0,1) -> 147564.0165 | Q64: =DSUM(MercadoBase,Q$53,INDIRECT("r"&5+2*(ROW()-54)&":r"&6+2*(ROW()-54)))*IF(VLOOKUP("MesesAdin",TabPostergacao[#All],2,FALSE)>1,0,1) -> -164522.0581 | R64: =VLOOKUP(CAPA!$C$15,Índices!B:F,5,FALSE)/VLOOKUP(DATE(YEAR(B64),MONTH(B64),1),Índices!B:F,5,FALSE) -> 1.008352801 | S64: =DSUM(MercadoBase,S$53,INDIRECT("r"&5+2*(ROW()-54)&":r"&6+2*(ROW()-54))) -> 0 | T64: 0 | U64: 0 | V64: 0 | W64: 0 | X64: -0.0009433581416 | Y64: 0 | Z64: =DSUM(MercadoBase,Z$53,INDIRECT("r"&5+2*(ROW()-54)&":r"&6+2*(ROW()-54))) -> 40173472.77 | AA64: =DSUM(MercadoBase,AA$53,INDIRECT("r"&5+2*(ROW()-54)&":r"&6+2*(ROW()-54))) -> 0 | AB64: 0 | AC64: -0.003791590094 | AD64: -201167.2483 | AE64: 274032.1493 | AF64: 0 | AG64: 0
B65: =DATE(YEAR(CAPA!$C$10),MONTH(CAPA!$C$10)-1,1) -> 45597 | D65: 829691.487 | E65: 0 | F65: 1922190.87 | G65: 1207876.01 | H65: 3877386.98 | I65: 155822.817 | J65: 0 | K65: =DSUM(MercadoBase,K$53,INDIRECT("r"&5+2*(ROW()-54)&":r"&6+2*(ROW()-54)))*IF(VLOOKUP("MesesAdin",TabPostergacao[#All],2,FALSE)>0,0,1) -> 263846.8797 | L65: =DSUM(MercadoBase,L$53,INDIRECT("r"&5+2*(ROW()-54)&":r"&6+2*(ROW()-54)))*IF(VLOOKUP("MesesAdin",TabPostergacao[#All],2,FALSE)>0,0,1) -> 518032.5618 | M65: =DSUM(MercadoBase,M$53,INDIRECT("r"&5+2*(ROW()-54)&":r"&6+2*(ROW()-54)))*IF(VLOOKUP("MesesAdin",TabPostergacao[#All],2,FALSE)>0,0,1) -> 451039.3273 | N65: =DSUM(MercadoBase,N$53,INDIRECT("r"&5+2*(ROW()-54)&":r"&6+2*(ROW()-54)))*IF(VLOOKUP("MesesAdin",TabPostergacao[#All],2,FALSE)>0,0,1) -> 0 | O65: =DSUM(MercadoBase,O$53,INDIRECT("r"&5+2*(ROW()-54)&":r"&6+2*(ROW()-54)))*IF(VLOOKUP("MesesAdin",TabPostergacao[#All],2,FALSE)>0,0,1) -> 0 | P65: =DSUM(MercadoBase,P$53,INDIRECT("r"&5+2*(ROW()-54)&":r"&6+2*(ROW()-54)))*IF(VLOOKUP("MesesAdin",TabPostergacao[#All],2,FALSE)>0,0,1) -> 147564.0165 | Q65: =DSUM(MercadoBase,Q$53,INDIRECT("r"&5+2*(ROW()-54)&":r"&6+2*(ROW()-54)))*IF(VLOOKUP("MesesAdin",TabPostergacao[#All],2,FALSE)>0,0,1) -> -164522.0581 | R65: =VLOOKUP(CAPA!$C$15,Índices!B:F,5,FALSE)/VLOOKUP(DATE(YEAR(B65),MONTH(B65),1),Índices!B:F,5,FALSE) -> 1 | S65: 0 | T65: 0 | U65: 0 | V65: 0 | W65: 0 | X65: -0.0009433581416 | Y65: 0 | Z65: 40173472.77 | AA65: 0 | AB65: 0 | AC65: -0.003791590094 | AD65: -201167.2483 | AE65: 274032.1493 | AF65: 0 | AG65: 0
B66: Total Bruto | D66: =SUM(D54:D65) -> 8900942.758 | E66: =SUM(E54:E65) -> 0 | F66: 20813257.21 | G66: =SUM(G54:G65) -> 13043651.39 | H66: 41799479.88 | I66: 1671754.042 | J66: 0 | K66: 2878250.403 | L66: 5615727.787 | M66: 4862349.15 | N66: 0 | O66: 0 | P66: 1597805.856 | Q66: -1776646.24 | S66: =SUM(S54:S65) -> 0 | T66: 0 | U66: 0 | V66: 0 | W66: 0 | X66: -0.01021593122 | Y66: 0 | Z66: 432129661.9 | AA66: 0 | AB66: 0 | AC66: =SUM(AC54:AC65) -> -0.04087456183 | AD66: -2178505.364 | AE66: =SUM(AE54:AE65) -> 2979779.847 | AF66: 0 | AG66: =SUM(AG54:AG65) -> 0
B67: Total Atualizado pelo SELIC | D67: =SUMPRODUCT(D54:D65,$R$54:$R$65) -> 9327053.161 | E67: 0 | F67: 21813325.16 | G67: 13668341.92 | H67: 43801378.31 | I67: 1751704.621 | J67: 0 | K67: 3017005.011 | L67: 5884553.555 | M67: 5095221.165 | N67: 0 | O67: 0 | P67: 1674579.732 | Q67: -1861733.923 | R67: 13.20851542 | S67: 0 | T67: 0 | U67: 0 | V67: 0 | W67: 0 | X67: -0.01070673525 | Y67: 0 | Z67: 452795658.2 | AA67: 0 | AB67: 0 | AC67: =SUMPRODUCT(AC54:AC65,$R$54:$R$65) -> -0.04283216325 | AD67: -2283167.308 | AE67: =SUMPRODUCT(AE54:AE65,$R$54:$R$65) -> 3123176.368 | AF67: 0 | AG67: =SUMPRODUCT(AG54:AG65,$R$54:$R$65) -> 0

Sheet Mercado_Receita
A1: Código | B1: TipoMercado | C1: Modalidade | D1: Subgrupo | E1: Classe | F1: Subclasse | G1: Detalhe | H1: Agente | I1: Posto | J1: OPÇÃO | K1: AnoMes | L1: D | M1: Daj | N1: TUSD_E | O1: TUSD_Eaj | P1: TE_E | Q1: TE_Eaj | R1: TUSD/KW | S1: TUSD/MWh | T1: TE | U1: ReceitaD | V1: ReceitaE | W1: Total | X1: Total com Tar de aplicação | Y1: CCC | Z1: CDE | AA1: CFURH | AB1: Conexao_D | AC1: Conexao_T | AD1: CUSD | AE1: DISTRIBUICAO | AF1: EnergiaRevenda | AG1: ESSERR | AH1: ITAIPU | AI1: ONS | AJ1: OUTROS | AK1: PeD | AL1: PROINFA | AM1: RGR | AN1: TFSEE | AO1: TUST_FR | AP1: TUST_RB | AQ1: TUSDG_ONS | AR1: TUSDG_T | AS1: TUST_CI | AT1: TUST_ITAIPU | AU1: CVA_CCC | AV1: CVA_CDE | AW1: CVA_PROINFA | AX1: CVA_TranItaipu | AY1: CVA_ESSERR | AZ1: CVA_CFURH | BA1: CVA_CDE_E | BB1: CVA_Energia | BC1: CVA_RB | BD1: perdasnt | BE1: perdasrb_d | BF1: perdasrb_c | BG1: perdastec | BH1: RI | BI1: PisPasep | BJ1: Cofins | BK1: ICMS | BL1: UC | BM1: total_dummy | BN1: Subs_CarFI | BO1: Subs_GerFI | BP1: Subs_Dist | BQ1: Subs_AguaEsgoto | BR1: Subs_Rural | BS1: Subs_Irrigante | BT1: Subs_BaixaRenda | BU1: CDE_E | BV1: DespesaEnergia | BW1: RTE_CUSD | BX1: RTE_Energia | BY1: RTE_CDE_USO | BZ1: RTE_CDE_E | CA1: RTE_PeD | CB1: Dif_Subs_Car | CC1: Dif_Subs_Ger | CD1: Dif_Subs_D | CE1: Dif_Subs_Agua | CF1: Dif_Subs_Ru | CG1: Dif_Subs_Irr | CH1: dif_subs_baixa | CI1: FinTotAj | CJ1: FinAj | CK1: RTE_CDE_E_Dec | CL1: RTE_CDE_E_ACR | CM1: CDE_E_Dec | CN1: CDE_E_ACR | CO1: FinPostTUSD | CP1: FinPostTE | CQ1: FinPostQtddias | CR1: FinCT_Geral | CS1: finCT_TUST_FR | CT1: finCT_TUST_RB | CU1: FINCT_TUSDG_ONS | CV1: FINCT_TUSDG_T | CW1: FINCT_TUST_CI | CX1: FINCT_TUST_ITAIPU | CY1: FinCT_Itaipu | CZ1: FinCT_CUSD | DA1: FinCT_Conexao_D | DB1: FinCT_Conexao_T | DC1: FinCT_EnergiaRevenda | DD1: FINCT_perdasrb_c | DE1: FINCT_perdasrb_d | DF1: FinCT_perdasnt | DG1: FinCT_perdastec | DH1: FinCT_CCC | DI1: FinCT_CDE | DJ1: FinCT_CDE_E | DK1: FinCT_CFURH | DL1: FinCT_ONS | DM1: FinCT_ESSERR | DN1: FinCT_Ped | DO1: finCT_PROINFA | DP1: finCT_TFSEE | DQ1: FINCT_Liminar | DR1: FinCT_Subsidio | DS1: FINCT_RGR | DT1: Tipo_ato | DU1: DIST_D | DV1: DIST_E | DW1: FIN_RI | DX1: FINCT_RI | DY1: Fin_TUSD | DZ1: Fin_TE | EA1: CVA_TUSD | EB1: CVA_TE | EC1: FinCT_ParcelaB | ED1: CVA_EnergiaRevenda | EE1: CVA_perdasnt | EF1: CVA_perdasrb_d | EG1: CVA_perdasrb_c | EH1: CVA_perdastec | EI1: CVA_TUST_RB | EJ1: CVA_TUST_FR | EK1: CVA_TUSDG_ONS | EL1: CVA_TUSDG_T | EM1: CVA_TUST_CI | EN1: CVA_TUST_ITAIPU | EO1: CVA_liminar | EP1: covidTusdEco | EQ1: covidTeEco | ER1: CVA_CovidTusd | ES1: CVA_CovidTe_ou_CVA_CDE_E | ET1: FinCT_CDECOVIDTUSD | EU1: FinCT_CDECOVIDTE_ou_FinCT_CDE_E | EV1: CDE_Elet_Eco | EW1: FinCT_CDE_Elet | EX1: CVA_CDE_Elet | EY1: CDE_GD_Eco | EZ1: FinCT_CDE_GD | FA1: CVA_CDE_GD | FB1: Subs_BENEFICIO_L14299_TUSD | FC1: Subs_BENEFICIO_L14299_TE | FD1: Tar_PTUSD | FE1: Tar_ETUSD | FF1: Tar_ETE | FG1: Tar_PTUSD_S | FH1: Tar_ETUSD_S | FI1: Tar_ETE_S | FJ1: PercDescCompensada | FK1: Subs_(D-Daj)*Tar_PTUSD | FL1: Subs_(TUSD_E-TUSD_Eaj)*Tar_ETUSD | FM1: Subs_(TE_E-TE_Eaj)*Tar_ETE | FN1: Subs_D*(Tar_PTUSD_S-Tar_PTUSD) | FO1: Subs_TUSD_E*(T_ETUSD_S-T_ETUSD) | FP1: Subs_TE_E*(Tar_ETE_S-Tar_ETE) | FQ1: Subs_SCEE | FR1: SubsidioTotal | FS1: idsreag | FT1: FinCTAn3En | FU1: An3En | FV1: CVA_An3En | FW1: Fin_An3En | FX1: FIN_CFURH | FY1: TEAngra | FZ1: TUSDAngra | GA1: teCheia | GB1: tusdcheia | GC1: AngraIII_TE | GD1: AngraIII_TUSD | GE1: AngraIII_Desc_TE | GF1: AngraIII_Desc_TUSD
A2: 1 | B2: Regular | C2: Convencional | D2: B1 | E2: Residencial | F2: Residencial | G2: Não se aplica | H2: Não se aplica | I2: Não se aplica | J2: CATIVO | K2: 2023-12-01 | L2: 0 | M2: 0 | N2: 34300.363 | O2: 34300.363 | P2: 34300.363 | Q2: 34300.363 | S2: 527.07 | T2: 259.66 | V2: 26985124.58 | W2: 26985124.58 | X2: 28406188.62 | Y2: 0 | Z2: 1354837.583 | AA2: 0 | AB2: 0 | AC2: 46801.04678 | AD2: 0 | AE2: 12145872.86 | AF2: 7277806.944 | AG2: 599272.4624 | AH2: 0 | AI2: 0 | AJ2: 0 | AK2: 264698.0622 | AL2: 402394.7245 | AN2: 46969.37705 | AO2: 330296.2309 | AP2: 562495.3049 | AQ2: 0 | AR2: 0 | AS2: 0 | AT2: 0 | AU2: 0 | AV2: 157602.281 | AW2: -54809.27486 | AX2: 0 | AY2: 46005.34363 | AZ2: 0 | BB2: 83700.70999 | BC2: 140681.6964 | BD2: 740018.0981 | BE2: 35589.00111 | BF2: 153103.3756 | BG2: 915642.0712 | BH2: 434133.2175 | BI2: 295795.64 | BJ2: 1364586.41 | BK2: 6009152.99 | BL2: 124725 | BV2: 9122159.49 | CI2: 28406186.14 | CJ2: 1421061.525 | CO2: 343689.6373 | CP2: 1077374.402 | CR2: 1115149.8 | CS2: -4401.655257 | CT2: -15333.17909 | CU2: 0 | CV2: 0 | CW2: 0 | CX2: 0 | CY2: 0 | CZ2: 0 | DA2: 0 | DB2: -4037.915428 | DC2: 990289.8412 | DD2: 20832.74792 | DE2: 4842.588781 | DF2: 100694.1254 | DG2: 124591.2468 | DH2: 0 | DI2: -73267.38858 | DK2: 0 | DL2: 0 | DM2: -54993.872 | DN2: 0.004827919474 | DO2: -26806.32263 | DP2: -4118.959424 | DQ2: 0 | DR2: 119817.8853 | DV2: 12145872.86 | DW2: 406433.2625 | DX2: -27699.95499 | DY2: 84721.89661 | DZ2: 963154.193 | EA2: 258967.7406 | EB2: 114220.2088 | EC2: -39719.71187 | ED2: 66777.78535 | EE2: 6790.063283 | EF2: 326.5481889 | EG2: 1404.805655 | EH2: 8401.507509 | EI2: 88635.24186 | EJ2: 52046.45453 | EK2: 0 | EL2: 0 | EM2: 0 | EN2: 0 | EO2: 0 | EP2: 891013.9497 | EQ2: 741448.8816 | ER2: -0.001324858413 | ES2: -0.0002909468294 | ET2: -30144.35646 | EU2: -12069.30249 | EV2: -62043.21612 | EW2: -20745.68877 | EX2: 0 | EY2: 104965.8198 | EZ2: 0 | FA2: 0 | FB2: 0 | FC2: 0 | FE2: 537.09 | FF2: 291.07 | FH2: 537.09 | FI2: 291.07 | FJ2: 0 | FL2: 0 | FM2: 0 | FO2: 0 | FP2: 0 | FR2: 0 | FS2: 146 | FT2: 0 | FU2: 0 | FV2: 0 | FX2: 0 | FY2: -20.64199892 | GA2: -20.64199892 | GC2: 0 | GD2: 0 | GE2: 0 | GF2: 0
A3: 2 | B3: Refaturamento - Regular | C3: Convencional | D3: B1 | E3: Residencial | F3: Residencial | G3: Não se aplica | H3: Não se aplica | I3: Não se aplica | J3: CATIVO | K3: 2023-12-01 | L3: 0 | M3: 0 | N3: -140.066 | O3: -140.066 | P3: -140.066 | Q3: -140.066 | S3: 527.07 | T3: 259.66 | V3: -110194.1242 | W3: -110194.1242 | X3: -115997.0586 | Y3: 0 | Z3: -5532.497745 | AA3: 0 | AB3: 0 | AC3: -191.1127127 | AD3: 0 | AE3: -49597.83745 | AF3: -29719.02389 | AG3: -2447.137271 | AH3: 0 | AI3: 0 | AJ3: 0 | AK3: -1080.898146 | AL3: -1643.184344 | AN3: -191.8000916 | AO3: -1348.769162 | AP3: -2296.957247 | AQ3: 0 | AR3: 0 | AS3: 0 | AT3: 0 | AU3: 0 | AV3: -643.5710632 | AW3: 223.8144212 | AX3: 0 | AY3: -187.863448 | AZ3: 0 | BB3: -341.7929905 | BC3: -574.4756254 | BD3: -3021.873994 | BE3: -145.3281713 | BF3: -625.1997217 | BG3: -3739.036883 | BH3: -1772.788913 | BI3: -1135.11 | BJ3: -5229.86 | BK3: -28540.44 | BL3: -37 | BV3: -37250.46266 | CI3: -116000.3712 | CJ3: -5806.27702 | CO3: -1403.46132 | CP3: -4399.47306 | CR3: -4553.729414 | CS3: 17.97421926 | CT3: 62.61324589 | CU3: 0 | CV3: 0 | CW3: 0 | CX3: 0 | CY3: 0 | CZ3: 0 | DA3: 0 | DB3: 16.48888271 | DC3: -4043.862069 | DD3: -85.0708102 | DE3: -19.77477732 | DF3: -411.1858339 | DG3: -508.7700552 | DH3: 0 | DI3: 299.1883803 | DK3: 0 | DL3: 0 | DM3: 224.5682262 | DN3: -1.971487495e-05 | DO3: 109.463984 | DP3: 16.81982697 | DQ3: 0 | DR3: -489.2779685 | DV3: -49597.83745 | DW3: -1659.675769 | DX3: 113.1131439 | DY3: -345.96302 | DZ3: -3933.05328 | EA3: -1057.4983 | EB3: -466.41978 | EC3: 162.195985 | ED3: -272.687997 | EE3: -27.727316 | EF3: -1.333463982 | EG3: -5.736543047 | EH3: -34.30767047 | EI3: -361.9432187 | EJ3: -212.5324067 | EK3: 0 | EL3: 0 | EM3: 0 | EN3: 0 | EO3: 0 | EP3: -3638.467613 | EQ3: -3027.716618 | ER3: 5.410077394e-06 | ES3: 1.188085345e-06 | ET3: 123.0948906 | EU3: 49.2851613 | EV3: 253.354319 | EW3: 84.71530298 | EX3: 0 | EY3: -428.6293565 | EZ3: 0 | FA3: 0 | FB3: 0 | FC3: 0 | FE3: 537.09 | FF3: 291.07 | FH3: 537.09 | FI3: 291.07 | FJ3: 0 | FL3: 0 | FM3: 0 | FO3: 0 | FP3: 0 | FR3: 0 | FS3: 146 | FT3: 0 | FU3: 0 | FV3: 0 | FX3: 0 | FY3: -20.64199892 | GA3: -20.64199892 | GC3: 0 | GD3: 0 | GE3: 0 | GF3: 0
A4: 3 | B4: Sistema Isolado - Regular | C4: Convencional | D4: B1 | E4: Residencial | F4: Residencial | G4: Não se aplica | H4: Não se aplica | I4: Não se aplica | J4: CATIVO | K4: 2023-12-01 | L4: 0 | M4: 0 | N4: 7666.72 | O4: 7666.72 | P4: 7666.72 | Q4: 7666.72 | S4: 527.07 | T4: 259.66 | V4: 6031638.626 | W4: 6031638.626 | X4: 6349270.835 | Y4: 0 | Z4: 302829.4598 | AA4: 0 | AB4: 0 | AC4: 10460.83744 | AD4: 0 | AE4: 2714811.106 | AF4: 1626714.798 | AG4: 133947.6837 | AH4: 0 | AI4: 0 | AJ4: 0 | AK4: 59164.56124 | AL4: 89942.12924 | AN4: 10498.46214 | AO4: 73826.87813 | AP4: 125727.3576 | AQ4: 0 | AR4: 0 | AS4: 0 | AT4: 0 | AU4: 0 | AV4: 35226.81551 | AW4: -12250.8139 | AX4: 0 | AY4: 10282.98412 | AZ4: 0 | BB4: 18708.54566 | BC4: 31444.77437 | BD4: 165406.7496 | BE4: 7954.752741 | BF4: 34221.23292 | BG4: 204661.7227 | BH4: 97036.22732 | BI4: 66104.8 | BJ4: 305074.46 | BK4: 1275588.78 | BL4: 36126 | BV4: 2038959.256 | CI4: 6349270.835 | CJ4: 317632.1796 | CO4: 76820.5344 | CP4: 240811.6752 | CR4: 249255.1253 | CS4: -983.8455177 | CT4: -3427.228767 | CU4: 0 | CV4: 0 | CW4: 0 | CX4: 0 | CY4: 0 | CZ4: 0 | DA4: 0 | DB4: -902.5434211 | DC4: 221346.7808 | DD4: 4656.476818 | DE4: 1082.40173 | DF4: 22506.86574 | DG4: 27848.28265 | DH4: 0 | DI4: -16376.5192 | DK4: 0 | DL4: 0 | DM4: -12292.07453 | DN4: 0.001079122885 | DO4: -5991.67332 | DP4: -920.6581457 | DQ4: 0 | DR4: 26781.35441 | DV4: 2714811.106 | DW4: 90844.81183 | DX4: -6191.415493 | DY4: 18936.7984 | DZ4: 215281.4976 | EA4: 57883.736 | EB4: 25530.1776 | EC4: -8878.037511 | ED4: 14925.98147 | EE4: 1517.695716 | EF4: 72.98912641 | EG4: 313.9981816 | EH4: 1877.881166 | EI4: 19811.49825 | EJ4: 11633.27612 | EK4: 0 | EL4: 0 | EM4: 0 | EN4: 0 | EO4: 0 | EP4: 199156.9147 | EQ4: 165726.5543 | ER4: -0.0002961286005 | ES4: -6.503161135e-05 | ET4: -6737.781188 | EU4: -2697.696314 | EV4: -13867.72396 | EW4: -4637.017604 | EX4: 0 | EY4: 23461.66279 | EZ4: 0 | FA4: 0 | FB4: 0 | FC4: 0 | FE4: 537.09 | FF4: 291.07 | FH4: 537.09 | FI4: 291.07 | FJ4: 0 | FL4: 0 | FM4: 0 | FO4: 0 | FP4: 0 | FR4: 0 | FS4: 146 | FT4: 0 | FU4: 0 | FV4: 0 | FX4: 0 | FY4: -20.64199892 | GA4: -20.64199892 | GC4: 0 | GD4: 0 | GE4: 0 | GF4: 0
A5: 4 | B5: Sistema Isolado - Refaturamento | C5: Convencional | D5: B1 | E5: Residencial | F5: Residencial | G5: Não se aplica | H5: Não se aplica | I5: Não se aplica | J5: CATIVO | K5: 2023-12-01 | L5: 0 | M5: 0 | N5: -11.126 | O5: -11.126 | P5: -11.126 | Q5: -11.126 | S5: 527.07 | T5: 259.66 | V5: -8753.15798 | W5: -8753.15798 | X5: -9214.10816 | Y5: 0 | Z5: -439.4683215 | AA5: 0 | AB5: 0 | AC5: -15.18084361 | AD5: 0 | AE5: -3939.753684 | AF5: -2360.700383 | AG5: -194.3858558 | AH5: 0 | AI5: 0 | AJ5: 0 | AK5: -85.86004294 | AL5: -130.5246742 | AN5: -15.23544486 | AO5: -107.1381042 | AP5: -182.4564586 | AQ5: 0 | AR5: 0 | AS5: 0 | AT5: 0 | AU5: 0 | AV5: -51.12141169 | AW5: 17.77847051 | AX5: 0 | AY5: -14.92274158 | AZ5: 0 | BB5: -27.14997796 | BC5: -45.63288598 | BD5: -240.0394818 | BE5: -11.54399521 | BF5: -49.6621029 | BG5: -297.0065852 | BH5: -140.8196811 | BI5: -92.45 | BJ5: -426.04 | BK5: -1960.56 | BL5: -8 | BV5: -2958.952548 | CI5: -9217.4208 | CJ5: -464.29282 | CO5: -111.48252 | CP5: -349.46766 | CR5: -361.7208563 | CS5: 1.427763793 | CT5: 4.973619392 | CU5: 0 | CV5: 0 | CW5: 0 | CX5: 0 | CY5: 0 | CZ5: 0 | DA5: 0 | DB5: 1.309777598 | DC5: -321.2200633 | DD5: -6.757513131 | DE5: -1.570789288 | DF5: -32.66212777 | DG5: -40.41363096 | DH5: 0 | DI5: 23.76572415 | DK5: 0 | DL5: 0 | DM5: 17.83834824 | DN5: -1.566031003e-06 | DO5: 8.695160038 | DP5: 1.336065818 | DQ5: 0 | DR5: -38.86529691 | DV5: -3939.753684 | DW5: -131.8346537 | DX5: 8.985027335 | DY5: -27.48122 | DZ5: -312.41808 | EA5: -84.0013 | EB5: -37.04958 | EC5: 12.88387281 | ED5: -21.66069321 | EE5: -2.202491096 | EF5: -0.1059223528 | EG5: -0.4556764521 | EH5: -2.725194848 | EI5: -28.7505908 | EJ5: -16.88229518 | EK5: 0 | EL5: 0 | EM5: 0 | EN5: 0 | EO5: 0 | EP5: -289.0179677 | EQ5: -240.5035847 | ER5: 4.297439856e-07 | ES5: 9.437434886e-08 | ET5: 9.777917219 | EU5: 3.914916572 | EV5: 20.12494219 | EW5: 6.729273778 | EX5: 0 | EY5: -34.04773621 | EZ5: 0 | FA5: 0 | FB5: 0 | FC5: 0 | FE5: 537.09 | FF5: 291.07 | FH5: 537.09 | FI5: 291.07 | FJ5: 0 | FL5: 0 | FM5: 0 | FO5: 0 | FP5: 0 | FR5: 0 | FS5: 146 | FT5: 0 | FU5: 0 | FV5: 0 | FX5: 0 | FY5: -20.64199892 | GA5: -20.64199892 | GC5: 0 | GD5: 0 | GE5: 0 | GF5: 0
A6: 5 | B6: Sistema de Compensação GD I | C6: Convencional | D6: B1 | E6: Residencial | F6: Residencial | G6: Não se aplica | H6: Não se aplica | I6: Não se aplica | J6: CATIVO | K6: 2023-12-01 | L6: 0 | M6: 0 | N6: 1036.1 | O6: 1036.1 | P6: 1036.1 | Q6: 1036.1 | S6: 527.07 | T6: 259.66 | V6: 815130.953 | W6: 815130.953 | X6: 858056.576 | Y6: 0 | Z6: 40925.14182 | AA6: 0 | AB6: 0 | AC6: 1413.704122 | AD6: 0 | AE6: 366886.4634 | AF6: 219838.3666 | AG6: 18102.02995 | AH6: 0 | AI6: 0 | AJ6: 0 | AK6: 7995.648974 | AL6: 12155.00763 | AN6: 1418.78882 | AO6: 9977.151694 | AP6: 16991.11422 | AQ6: 0 | AR6: 0 | AS6: 0 | AT6: 0 | AU6: 0 | AV6: 4760.641259 | AW6: -1655.606085 | AX6: 0 | AY6: 1389.668574 | AZ6: 0 | BB6: 2528.320345 | BC6: 4249.52662 | BD6: 22353.48796 | BE6: 1075.025476 | BF6: 4624.744276 | BG6: 27658.50466 | BH6: 13113.72205 | BI6: 8979.65 | BJ6: 41360.73 | BK6: 191630.32 | BL6: 4920 | BV6: 275550.129 | CI6: 858056.576 | CJ6: 42925.593 | CO6: 10381.722 | CP6: 32543.901 | CR6: 33684.97027 | CS6: -132.9593804 | CT6: -463.1643944 | CU6: 0 | CV6: 0 | CW6: 0 | CX6: 0 | CY6: 0 | CZ6: 0 | DA6: 0 | DB6: -121.9720087 | DC6: 29913.36577 | DD6: 629.2880959 | DE6: 146.2785171 | DF6: 3041.634962 | DG6: 3763.4876 | DH6: 0 | DI6: -2213.164371 | DK6: 0 | DL6: 0 | DM6: -1661.182151 | DN6: 0.0001458354072 | DO6: -809.7299402 | DP6: -124.4200786 | DQ6: 0 | DR6: 3619.30021 | DV6: 366886.4634 | DW6: 12276.99845 | DX6: -836.7236044 | DY6: 2559.167 | DZ6: 29093.688 | EA6: 7822.555 | EB6: 3450.213 | EC6: -1199.800523 | ED6: 2017.13502 | EE6: 205.1052511 | EF6: 9.8639358 | EG6: 42.43451124 | EH6: 253.781627 | EI6: 2677.376157 | EJ6: 1572.150462 | EK6: 0 | EL6: 0 | EM6: 0 | EN6: 0 | EO6: 0 | EP6: 26914.57094 | EQ6: 22396.70718 | ER6: -4.001957068e-05 | ES6: -8.788537017e-06 | ET6: -910.5608512 | EU6: -364.5735269 | EV6: -1874.119415 | EW6: -626.6583283 | EX6: 0 | EY6: 3170.668658 | EZ6: 0 | FA6: 0 | FB6: 0 | FC6: 0 | FE6: 537.09 | FF6: 291.07 | FH6: 537.09 | FI6: 291.07 | FJ6: 0 | FL6: 0 | FM6: 0 | FO6: 0 | FP6: 0 | FR6: 0 | FS6: 146 | FT6: 0 | FU6: 0 | FV6: 0 | FX6: 0 | FY6: -20.64199892 | GA6: -20.64199892 | GC6: 0 | GD6: 0 | GE6: 0 | GF6: 0
A7: 6 | B7: Sistema de Compensação GD I - Refaturamento | C7: Convencional | D7: B1 | E7: Residencial | F7: Residencial | G7: Não se aplica | H7: Não se aplica | I7: Não se aplica | J7: CATIVO | K7: 2023-12-01 | L7: 0 | M7: 0 | N7: 2.197 | O7: 2.197 | P7: 2.197 | Q7: 2.197 | S7: 527.07 | T7: 259.66 | V7: 1728.44581 | W7: 1728.44581 | X7: 1819.46752 | Y7: 0 | Z7: 86.77978629 | AA7: 0 | AB7: 0 | AC7: 2.997691301 | AD7: 0 | AE7: 777.9650227 | AF7: 466.1566368 | AG7: 38.38448007 | AH7: 0 | AI7: 0 | AJ7: 0 | AK7: 16.95438741 | AL7: 25.77410652 | AN7: 3.008473158 | AO7: 21.15606821 | AP7: 36.02883692 | AQ7: 0 | AR7: 0 | AS7: 0 | AT7: 0 | AU7: 0 | AV7: 10.09470982 | AW7: -3.510632726 | AX7: 0 | AY7: 2.946725081 | AZ7: 0 | BB7: 5.361181158 | BC7: 9.010915918 | BD7: 47.39949141 | BE7: 2.279539591 | BF7: 9.806546833 | BG7: 58.64852306 | BH7: 27.80701414 | BI7: 18.57 | BJ7: 85.63 | BK7: 82.54 | BL7: 0 | BV7: 584.2907377 | CI7: 1821.952 | CJ7: 93.47619 | CO7: 22.01394 | CP7: 69.00777 | CR7: 71.42735227 | CS7: -0.2819339434 | CT7: -0.9821177247 | CU7: 0 | CV7: 0 | CW7: 0 | CX7: 0 | CY7: 0 | CZ7: 0 | DA7: 0 | DB7: -0.2586357525 | DC7: 63.42984712 | DD7: 1.334375009 | DE7: 0.3101765294 | DF7: 6.449640006 | DG7: 7.980293657 | DH7: 0 | DI7: -4.692908139 | DK7: 0 | DL7: 0 | DM7: -3.522456506 | DN7: 3.092369383e-07 | DO7: -1.716993223 | DP7: -0.2638267664 | DQ7: 0 | DR7: 7.67455126 | DV7: 777.9650227 | DW7: 26.03278215 | DX7: -1.774231984 | DY7: 5.42659 | DZ7: 61.69176 | EA7: 16.58735 | EB7: 7.31601 | EC7: -2.544119051 | ED7: 4.27723737 | EE7: 0.4349157772 | EF7: 0.02091599937 | EG7: 0.08998033123 | EH7: 0.5381316809 | EI7: 5.677246808 | EJ7: 3.33366911 | EK7: 0 | EL7: 0 | EM7: 0 | EN7: 0 | EO7: 0 | EP7: 57.07104755 | EQ7: 47.49113568 | ER7: -8.485956645e-08 | ES7: -1.86356682e-08 | ET7: -1.930800299 | EU7: -0.7730605527 | EV7: -3.973979687 | EW7: -1.328798714 | EX7: 0 | EY7: 6.723249726 | EZ7: 0 | FA7: 0 | FB7: 0 | FC7: 0 | FE7: 537.09 | FF7: 291.07 | FH7: 537.09 | FI7: 291.07 | FJ7: 0 | FL7: 0 | FM7: 0 | FO7: 0 | FP7: 0 | FR7: 0 | FS7: 146 | FT7: 0 | FU7: 0 | FV7: 0 | FX7: 0 | FY7: -20.64199892 | GA7: -20.64199892 | GC7: 0 | GD7: 0 | GE7: 0 | GF7: 0
A8: 7 | B8: Sistema de Compensação GD II | C8: Convencional | D8: B1 | E8: Residencial | F8: Residencial | G8: Não se aplica | H8: Não se aplica | I8: Não se aplica | J8: CATIVO | K8: 2023-12-01 | L8: 0 | M8: 0 | N8: 96.623 | O8: 96.623 | P8: 96.623 | Q8: 96.623 | S8: 527.07 | T8: 259.66 | V8: 76016.21279 | W8: 76016.21279 | X8: 80019.30368 | Y8: 0 | Z8: 3816.533132 | AA8: 0 | AB8: 0 | AC8: 131.8370171 | AD8: 0 | AE8: 34214.52635 | AF8: 20501.34398 | AG8: 1688.130914 | AH8: 0 | AI8: 0 | AJ8: 0 | AK8: 745.6457783 | AL8: 1133.532769 | AN8: 132.311198 | AO8: 930.4336725 | AP8: 1584.530865 | AQ8: 0 | AR8: 0 | AS8: 0 | AT8: 0 | AU8: 0 | AV8: 443.9604675 | AW8: -154.3959335 | AX8: 0 | AY8: 129.5955474 | AZ8: 0 | BB8: 235.7821607 | BC8: 396.2957345 | BD8: 2084.606763 | BE8: 100.2530514 | BF8: 431.2871983 | BG8: 2579.333748 | BH8: 1222.939065 | BI8: 836.1 | BJ8: 3852.02 | BK8: 17114.77 | BL8: 881 | BV8: 25696.82474 | CI8: 80016.8192 | CJ8: 4000.57641 | CO8: 968.16246 | CP8: 3034.92843 | CR8: 3141.340491 | CS8: -12.3993188 | CT8: -43.19306368 | CU8: 0 | CV8: 0 | CW8: 0 | CX8: 0 | CY8: 0 | CZ8: 0 | DA8: 0 | DB8: -11.37467561 | DC8: 2789.614073 | DD8: 58.68516909 | DE8: 13.64141411 | DF8: 283.6520557 | DG8: 350.9694647 | DH8: 0 | DI8: -206.3918357 | DK8: 0 | DL8: 0 | DM8: -154.9159376 | DN8: 1.360009128e-05 | DO8: -75.51253355 | DP8: -11.60297389 | DQ8: 0 | DR8: 337.5230616 | DV8: 34214.52635 | DW8: 1144.909199 | DX8: -78.02986664 | DY8: 238.65881 | DZ8: 2713.17384 | EA8: 729.50365 | EB8: 321.75459 | EC8: -111.8891284 | ED8: 188.1108359 | EE8: 19.12738604 | EF8: 0.919875561 | EG8: 3.957291554 | EH8: 23.66677169 | EI8: 249.6825755 | EJ8: 146.6131591 | EK8: 0 | EL8: 0 | EM8: 0 | EN8: 0 | EO8: 0 | EP8: 2509.957136 | EQ8: 2088.637234 | ER8: -3.73208279e-06 | ES8: -8.195876964e-07 | ET8: -84.9156656 | EU8: -33.99883013 | EV8: -174.7737093 | EW8: -58.43992632 | EX8: 0 | EY8: 295.6852792 | EZ8: 0 | FA8: 0 | FB8: 0 | FC8: 0 | FE8: 537.09 | FF8: 291.07 | FH8: 537.09 | FI8: 291.07 | FJ8: 0 | FL8: 0 | FM8: 0 | FO8: 0 | FP8: 0 | FR8: 0 | FS8: 146 | FT8: 0 | FU8: 0 | FV8: 0 | FX8: 0 | FY8: -20.64199892 | GA8: -20.64199892 | GC8: 0 | GD8: 0 | GE8: 0 | GF8: 0
A9: 8 | B9: Sistema de Compensação GD III | C9: Convencional | D9: B1 | E9: Residencial | F9: Residencial | G9: Não se aplica | H9: Não se aplica | I9: Não se aplica | J9: CATIVO | K9: 2023-12-01 | L9: 0 | M9: 0 | N9: 2.66 | O9: 2.66 | P9: 2.66 | Q9: 2.66 | S9: 527.07 | T9: 259.66 | V9: 2092.7018 | W9: 2092.7018 | X9: 2202.9056 | Y9: 0 | Z9: 105.0679251 | AA9: 0 | AB9: 0 | AC9: 3.629430524 | AD9: 0 | AE9: 941.9148659 | AF9: 564.3953818 | AG9: 46.47369913 | AH9: 0 | AI9: 0 | AJ9: 0 | AK9: 20.52738758 | AL9: 31.20579123 | AN9: 3.642484569 | AO9: 25.61453866 | AP9: 43.62162321 | AQ9: 0 | AR9: 0 | AS9: 0 | AT9: 0 | AU9: 0 | AV9: 12.22208836 | AW9: -4.25047021 | AX9: 0 | AY9: 3.567723585 | AZ9: 0 | BB9: 6.491006774 | BC9: 10.90989365 | BD9: 57.38855128 | BE9: 2.759934143 | BF9: 11.87319735 | BG9: 71.00822546 | BH9: 33.66711771 | BI9: 24.12 | BJ9: 111.07 | BK9: 521.55 | BL9: 1 | BV9: 707.42529 | CI9: 2202.9056 | CJ9: 110.1738 | CO9: 26.6532 | CP9: 83.5506 | CR9: 86.48008968 | CS9: -0.3413492441 | CT9: -1.1890911 | CU9: 0 | CV9: 0 | CW9: 0 | CX9: 0 | CY9: 0 | CZ9: 0 | DA9: 0 | DB9: -0.3131411477 | DC9: 76.79717494 | DD9: 1.615583761 | DE9: 0.375543727 | DF9: 7.80884953 | DG9: 9.662076071 | DH9: 0 | DI9: -5.681900615 | DK9: 0 | DL9: 0 | DM9: -4.264785755 | DN9: 3.744061203e-07 | DO9: -2.078835673 | DP9: -0.3194261259 | DQ9: 0 | DR9: 9.291900934 | DV9: 941.9148659 | DW9: 31.51898067 | DX9: -2.14813704 | DY9: 6.5702 | DZ9: 74.6928 | EA9: 20.083 | EB9: 8.8578 | EC9: -3.080271587 | ED9: 5.178630589 | EE9: 0.5265707635 | EF9: 0.02532387726 | EG9: 0.1089429591 | EH9: 0.651538585 | EI9: 6.873680705 | EJ9: 4.036212942 | EK9: 0 | EL9: 0 | EM9: 0 | EN9: 0 | EO9: 0 | EP9: 69.09830973 | EQ9: 57.49950883 | ER9: -1.027430345e-07 | ES9: -2.256298472e-08 | ET9: -2.337700863 | EU9: -0.9359768185 | EV9: -4.8114638 | EW9: -1.608832307 | EX9: 0 | EY9: 8.140120288 | EZ9: 0 | FA9: 0 | FB9: 0 | FC9: 0 | FE9: 537.09 | FF9: 291.07 | FH9: 537.09 | FI9: 291.07 | FJ9: 0 | FL9: 0 | FM9: 0 | FO9: 0 | FP9: 0 | FR9: 0 | FS9: 146 | FT9: 0 | FU9: 0 | FV9: 0 | FX9: 0 | FY9: -20.64199892 | GA9: -20.64199892 | GC9: 0 | GD9: 0 | GE9: 0 | GF9: 0
